Workbook

Sheet Control
A1: Sheets | B1: Text File Names | C1: Description | E1: Notes: 50 sheets maximum
A2: Sat | B2: Saturation.txt | C2: Saturation in the LTVSMC tailings | E2: Referenced text files must be in same root folder as this spreadsheet

Sheet PlotControl
A2: Model Name: | B2: Plant Site Version 6.0
A4: Plot: | B4: Annual Average | C4: =B2 & " Model " & IF(B4="Annual Max", "Annual Maximum", B4) & " of Result Statistics Saturation in the " & B8 -> Plant Site Version 6.0 Model Annual Average of Result Statistics Saturation in the Cell 1E Coarse | V4: Directory to save PDFs to: | W4: P:\Mpls\23 MN\69\2369862\WorkFiles\APA\Support Docs\Surface WQ\Workfiles\Models\GoldSim\Tailings Basin\2012 MODEL\Base Model\Output_Data\LTVSMC_Tailings\plots
C5: =B2 & " Model Monthly Result Statistics Saturation in the " & B8 -> Plant Site Version 6.0 Model Monthly Result Statistics Saturation in the Cell 1E Coarse | V5: Starting figure caption | W5: Figure A-1-0001
V7: Note: This loops through the plots and location drop down menus.
A8: Location to Plot (dropdown): | B8: Cell 1E Coarse | C8: =MATCH(B8,$A$15:$A$22,0) -> 8
A10: Initial Time for Monthly Plot (yr): | B10: 0
B11: =B10+20 -> 20
A12: Standard | B12: =VLOOKUP($B$6,$A$25:$B$52,2,FALSE) -> 
A14: Locations
A15: Cell 2W Fines
A16: Cell 2W Coarse
A17: Cell 2W Banks
A18: Cell 2E Fines
A19: Cell 2E Coarse
A20: Cell 2E Banks
A21: Cell 1E Fines
A22: Cell 1E Coarse
I23: Annual Project Results | S23: Monthly Project Results
A24: Plots | H24: Time | I24: P10 | J24: P50 | K24: P90 | L24: Mean | R24: Time | S24: P10 | T24: P50 | U24: P90 | V24: Mean
A25: Annual Max | H25: 0 | I25: =IF($B$4="Annual Average", AVERAGE(OFFSET(Sat!$A$10,$H25*12,4*($C$8-1)+2,12,1)), MAX(OFFSET(Sat!$A$10,$H25*12,4*($C$8-1)+2,12,1))) * 100 -> 23.20375 | J25: =IF($B$4="Annual Average", AVERAGE(OFFSET(Sat!$A$10,$H25*12,4*($C$8-1)+3,12,1)), MAX(OFFSET(Sat!$A$10,$H25*12,4*($C$8-1)+3,12,1))) * 100 -> 24.94058333 | K25: =IF($B$4="Annual Average", AVERAGE(OFFSET(Sat!$A$10,$H25*12,4*($C$8-1)+4,12,1)), MAX(OFFSET(Sat!$A$10,$H25*12,4*($C$8-1)+4,12,1))) * 100 -> 25.77691667 | L25: =IF($B$4="Annual Average", AVERAGE(OFFSET(Sat!$A$10,$H25*12,4*($C$8-1)+1,12,1)), MAX(OFFSET(Sat!$A$10,$H25*12,4*($C$8-1)+1,12,1))) * 100 -> 24.69891667 | R25: =B10 -> 0 | S25: =VLOOKUP($R25,Sat!$A$10:$AG$2410,4*($C$8-1)+3) * 100 -> 25 | T25: =VLOOKUP($R25,Sat!$A$10:$AG$2410,4*($C$8-1)+4) * 100 -> 25 | U25: =VLOOKUP($R25,Sat!$A$10:$AG$2410,4*($C$8-1)+5) * 100 -> 25 | V25: =VLOOKUP($R25,Sat!$A$10:$AG$2410,4*($C$8-1)+2) * 100 -> 25
A26: Annual Average | H26: 1 | I26: =IF($B$4="Annual Average", AVERAGE(OFFSET(Sat!$A$10,$H26*12,4*($C$8-1)+2,12,1)), MAX(OFFSET(Sat!$A$10,$H26*12,4*($C$8-1)+2,12,1))) * 100 -> 22.049 | J26: =IF($B$4="Annual Average", AVERAGE(OFFSET(Sat!$A$10,$H26*12,4*($C$8-1)+3,12,1)), MAX(OFFSET(Sat!$A$10,$H26*12,4*($C$8-1)+3,12,1))) * 100 -> 24.81633333 | K26: =IF($B$4="Annual Average", AVERAGE(OFFSET(Sat!$A$10,$H26*12,4*($C$8-1)+4,12,1)), MAX(OFFSET(Sat!$A$10,$H26*12,4*($C$8-1)+4,12,1))) * 100 -> 26.3715 | L26: =IF($B$4="Annual Average", AVERAGE(OFFSET(Sat!$A$10,$H26*12,4*($C$8-1)+1,12,1)), MAX(OFFSET(Sat!$A$10,$H26*12,4*($C$8-1)+1,12,1))) * 100 -> 24.44466667 | R26: =R25+1/12 -> 0.08333333333 | S26: =VLOOKUP($R26,Sat!$A$10:$AG$2410,4*($C$8-1)+3) * 100 -> 24.674 | T26: =VLOOKUP($R26,Sat!$A$10:$AG$2410,4*($C$8-1)+4) * 100 -> 24.989 | U26: =VLOOKUP($R26,Sat!$A$10:$AG$2410,4*($C$8-1)+5) * 100 -> 25.141 | V26: =VLOOKUP($R26,Sat!$A$10:$AG$2410,4*($C$8-1)+2) * 100 -> 24.945
H27: 2 | I27: =IF($B$4="Annual Average", AVERAGE(OFFSET(Sat!$A$10,$H27*12,4*($C$8-1)+2,12,1)), MAX(OFFSET(Sat!$A$10,$H27*12,4*($C$8-1)+2,12,1))) * 100 -> 22.15691667 | J27: =IF($B$4="Annual Average", AVERAGE(OFFSET(Sat!$A$10,$H27*12,4*($C$8-1)+3,12,1)), MAX(OFFSET(Sat!$A$10,$H27*12,4*($C$8-1)+3,12,1))) * 100 -> 24.78416667 | K27: =IF($B$4="Annual Average", AVERAGE(OFFSET(Sat!$A$10,$H27*12,4*($C$8-1)+4,12,1)), MAX(OFFSET(Sat!$A$10,$H27*12,4*($C$8-1)+4,12,1))) * 100 -> 26.32383333 | L27: =IF($B$4="Annual Average", AVERAGE(OFFSET(Sat!$A$10,$H27*12,4*($C$8-1)+1,12,1)), MAX(OFFSET(Sat!$A$10,$H27*12,4*($C$8-1)+1,12,1))) * 100 -> 24.46316667 | R27: =R26+1/12 -> 0.1666666667 | S27: =VLOOKUP($R27,Sat!$A$10:$AG$2410,4*($C$8-1)+3) * 100 -> 24.674 | T27: =VLOOKUP($R27,Sat!$A$10:$AG$2410,4*($C$8-1)+4) * 100 -> 24.989 | U27: =VLOOKUP($R27,Sat!$A$10:$AG$2410,4*($C$8-1)+5) * 100 -> 25.141 | V27: =VLOOKUP($R27,Sat!$A$10:$AG$2410,4*($C$8-1)+2) * 100 -> 24.945
H28: 3 | I28: =IF($B$4="Annual Average", AVERAGE(OFFSET(Sat!$A$10,$H28*12,4*($C$8-1)+2,12,1)), MAX(OFFSET(Sat!$A$10,$H28*12,4*($C$8-1)+2,12,1))) * 100 -> 21.79933333 | J28: =IF($B$4="Annual Average", AVERAGE(OFFSET(Sat!$A$10,$H28*12,4*($C$8-1)+3,12,1)), MAX(OFFSET(Sat!$A$10,$H28*12,4*($C$8-1)+3,12,1))) * 100 -> 24.70275 | K28: =IF($B$4="Annual Average", AVERAGE(OFFSET(Sat!$A$10,$H28*12,4*($C$8-1)+4,12,1)), MAX(OFFSET(Sat!$A$10,$H28*12,4*($C$8-1)+4,12,1))) * 100 -> 26.40266667 | L28: =IF($B$4="Annual Average", AVERAGE(OFFSET(Sat!$A$10,$H28*12,4*($C$8-1)+1,12,1)), MAX(OFFSET(Sat!$A$10,$H28*12,4*($C$8-1)+1,12,1))) * 100 -> 24.3305 | R28: 0.25 | S28: =VLOOKUP($R28,Sat!$A$10:$AG$2410,4*($C$8-1)+3) * 100 -> 24.02 | T28: =VLOOKUP($R28,Sat!$A$10:$AG$2410,4*($C$8-1)+4) * 100 -> 24.968 | U28: =VLOOKUP($R28,Sat!$A$10:$AG$2410,4*($C$8-1)+5) * 100 -> 25.424 | V28: =VLOOKUP($R28,Sat!$A$10:$AG$2410,4*($C$8-1)+2) * 100 -> 24.836
H29: 4 | I29: =IF($B$4="Annual Average", AVERAGE(OFFSET(Sat!$A$10,$H29*12,4*($C$8-1)+2,12,1)), MAX(OFFSET(Sat!$A$10,$H29*12,4*($C$8-1)+2,12,1))) * 100 -> 21.86291667 | J29: =IF($B$4="Annual Average", AVERAGE(OFFSET(Sat!$A$10,$H29*12,4*($C$8-1)+3,12,1)), MAX(OFFSET(Sat!$A$10,$H29*12,4*($C$8-1)+3,12,1))) * 100 -> 24.72858333 | K29: =IF($B$4="Annual Average", AVERAGE(OFFSET(Sat!$A$10,$H29*12,4*($C$8-1)+4,12,1)), MAX(OFFSET(Sat!$A$10,$H29*12,4*($C$8-1)+4,12,1))) * 100 -> 26.4395 | L29: =IF($B$4="Annual Average", AVERAGE(OFFSET(Sat!$A$10,$H29*12,4*($C$8-1)+1,12,1)), MAX(OFFSET(Sat!$A$10,$H29*12,4*($C$8-1)+1,12,1))) * 100 -> 24.34525 | R29: 0.3333333333 | S29: =VLOOKUP($R29,Sat!$A$10:$AG$2410,4*($C$8-1)+3) * 100 -> 23.694 | T29: =VLOOKUP($R29,Sat!$A$10:$AG$2410,4*($C$8-1)+4) * 100 -> 24.957 | U29: =VLOOKUP($R29,Sat!$A$10:$AG$2410,4*($C$8-1)+5) * 100 -> 25.565 | V29: =VLOOKUP($R29,Sat!$A$10:$AG$2410,4*($C$8-1)+2) * 100 -> 24.781
H30: 5 | I30: =IF($B$4="Annual Average", AVERAGE(OFFSET(Sat!$A$10,$H30*12,4*($C$8-1)+2,12,1)), MAX(OFFSET(Sat!$A$10,$H30*12,4*($C$8-1)+2,12,1))) * 100 -> 21.98916667 | J30: =IF($B$4="Annual Average", AVERAGE(OFFSET(Sat!$A$10,$H30*12,4*($C$8-1)+3,12,1)), MAX(OFFSET(Sat!$A$10,$H30*12,4*($C$8-1)+3,12,1))) * 100 -> 24.687 | K30: =IF($B$4="Annual Average", AVERAGE(OFFSET(Sat!$A$10,$H30*12,4*($C$8-1)+4,12,1)), MAX(OFFSET(Sat!$A$10,$H30*12,4*($C$8-1)+4,12,1))) * 100 -> 26.41533333 | L30: =IF($B$4="Annual Average", AVERAGE(OFFSET(Sat!$A$10,$H30*12,4*($C$8-1)+1,12,1)), MAX(OFFSET(Sat!$A$10,$H30*12,4*($C$8-1)+1,12,1))) * 100 -> 24.3825 | R30: 0.4166666667 | S30: =VLOOKUP($R30,Sat!$A$10:$AG$2410,4*($C$8-1)+3) * 100 -> 23.694 | T30: =VLOOKUP($R30,Sat!$A$10:$AG$2410,4*($C$8-1)+4) * 100 -> 24.957 | U30: =VLOOKUP($R30,Sat!$A$10:$AG$2410,4*($C$8-1)+5) * 100 -> 25.565 | V30: =VLOOKUP($R30,Sat!$A$10:$AG$2410,4*($C$8-1)+2) * 100 -> 24.781
H31: 6 | I31: =IF($B$4="Annual Average", AVERAGE(OFFSET(Sat!$A$10,$H31*12,4*($C$8-1)+2,12,1)), MAX(OFFSET(Sat!$A$10,$H31*12,4*($C$8-1)+2,12,1))) * 100 -> 21.70891667 | J31: =IF($B$4="Annual Average", AVERAGE(OFFSET(Sat!$A$10,$H31*12,4*($C$8-1)+3,12,1)), MAX(OFFSET(Sat!$A$10,$H31*12,4*($C$8-1)+3,12,1))) * 100 -> 24.64616667 | K31: =IF($B$4="Annual Average", AVERAGE(OFFSET(Sat!$A$10,$H31*12,4*($C$8-1)+4,12,1)), MAX(OFFSET(Sat!$A$10,$H31*12,4*($C$8-1)+4,12,1))) * 100 -> 26.22933333 | L31: =IF($B$4="Annual Average", AVERAGE(OFFSET(Sat!$A$10,$H31*12,4*($C$8-1)+1,12,1)), MAX(OFFSET(Sat!$A$10,$H31*12,4*($C$8-1)+1,12,1))) * 100 -> 24.27216667 | R31: 0.5 | S31: =VLOOKUP($R31,Sat!$A$10:$AG$2410,4*($C$8-1)+3) * 100 -> 23.367 | T31: =VLOOKUP($R31,Sat!$A$10:$AG$2410,4*($C$8-1)+4) * 100 -> 24.946 | U31: =VLOOKUP($R31,Sat!$A$10:$AG$2410,4*($C$8-1)+5) * 100 -> 25.706 | V31: =VLOOKUP($R31,Sat!$A$10:$AG$2410,4*($C$8-1)+2) * 100 -> 24.726
H32: 7 | I32: =IF($B$4="Annual Average", AVERAGE(OFFSET(Sat!$A$10,$H32*12,4*($C$8-1)+2,12,1)), MAX(OFFSET(Sat!$A$10,$H32*12,4*($C$8-1)+2,12,1))) * 100 -> 21.76841667 | J32: =IF($B$4="Annual Average", AVERAGE(OFFSET(Sat!$A$10,$H32*12,4*($C$8-1)+3,12,1)), MAX(OFFSET(Sat!$A$10,$H32*12,4*($C$8-1)+3,12,1))) * 100 -> 24.61308333 | K32: =IF($B$4="Annual Average", AVERAGE(OFFSET(Sat!$A$10,$H32*12,4*($C$8-1)+4,12,1)), MAX(OFFSET(Sat!$A$10,$H32*12,4*($C$8-1)+4,12,1))) * 100 -> 26.249 | L32: =IF($B$4="Annual Average", AVERAGE(OFFSET(Sat!$A$10,$H32*12,4*($C$8-1)+1,12,1)), MAX(OFFSET(Sat!$A$10,$H32*12,4*($C$8-1)+1,12,1))) * 100 -> 24.23608333 | R32: 0.5833333333 | S32: =VLOOKUP($R32,Sat!$A$10:$AG$2410,4*($C$8-1)+3) * 100 -> 22.714 | T32: =VLOOKUP($R32,Sat!$A$10:$AG$2410,4*($C$8-1)+4) * 100 -> 24.924 | U32: =VLOOKUP($R32,Sat!$A$10:$AG$2410,4*($C$8-1)+5) * 100 -> 25.989 | V32: =VLOOKUP($R32,Sat!$A$10:$AG$2410,4*($C$8-1)+2) * 100 -> 24.617
H33: 8 | I33: =IF($B$4="Annual Average", AVERAGE(OFFSET(Sat!$A$10,$H33*12,4*($C$8-1)+2,12,1)), MAX(OFFSET(Sat!$A$10,$H33*12,4*($C$8-1)+2,12,1))) * 100 -> 21.59166667 | J33: =IF($B$4="Annual Average", AVERAGE(OFFSET(Sat!$A$10,$H33*12,4*($C$8-1)+3,12,1)), MAX(OFFSET(Sat!$A$10,$H33*12,4*($C$8-1)+3,12,1))) * 100 -> 24.74433333 | K33: =IF($B$4="Annual Average", AVERAGE(OFFSET(Sat!$A$10,$H33*12,4*($C$8-1)+4,12,1)), MAX(OFFSET(Sat!$A$10,$H33*12,4*($C$8-1)+4,12,1))) * 100 -> 26.33275 | L33: =IF($B$4="Annual Average", AVERAGE(OFFSET(Sat!$A$10,$H33*12,4*($C$8-1)+1,12,1)), MAX(OFFSET(Sat!$A$10,$H33*12,4*($C$8-1)+1,12,1))) * 100 -> 24.29808333 | R33: 0.6666666667 | S33: =VLOOKUP($R33,Sat!$A$10:$AG$2410,4*($C$8-1)+3) * 100 -> 22.714 | T33: =VLOOKUP($R33,Sat!$A$10:$AG$2410,4*($C$8-1)+4) * 100 -> 24.924 | U33: =VLOOKUP($R33,Sat!$A$10:$AG$2410,4*($C$8-1)+5) * 100 -> 25.989 | V33: =VLOOKUP($R33,Sat!$A$10:$AG$2410,4*($C$8-1)+2) * 100 -> 24.617
H34: 9 | I34: =IF($B$4="Annual Average", AVERAGE(OFFSET(Sat!$A$10,$H34*12,4*($C$8-1)+2,12,1)), MAX(OFFSET(Sat!$A$10,$H34*12,4*($C$8-1)+2,12,1))) * 100 -> 21.27975 | J34: =IF($B$4="Annual Average", AVERAGE(OFFSET(Sat!$A$10,$H34*12,4*($C$8-1)+3,12,1)), MAX(OFFSET(Sat!$A$10,$H34*12,4*($C$8-1)+3,12,1))) * 100 -> 24.71716667 | K34: =IF($B$4="Annual Average", AVERAGE(OFFSET(Sat!$A$10,$H34*12,4*($C$8-1)+4,12,1)), MAX(OFFSET(Sat!$A$10,$H34*12,4*($C$8-1)+4,12,1))) * 100 -> 26.39633333 | L34: =IF($B$4="Annual Average", AVERAGE(OFFSET(Sat!$A$10,$H34*12,4*($C$8-1)+1,12,1)), MAX(OFFSET(Sat!$A$10,$H34*12,4*($C$8-1)+1,12,1))) * 100 -> 24.23166667 | R34: 0.75 | S34: =VLOOKUP($R34,Sat!$A$10:$AG$2410,4*($C$8-1)+3) * 100 -> 22.061 | T34: =VLOOKUP($R34,Sat!$A$10:$AG$2410,4*($C$8-1)+4) * 100 -> 24.903 | U34: =VLOOKUP($R34,Sat!$A$10:$AG$2410,4*($C$8-1)+5) * 100 -> 26.271 | V34: =VLOOKUP($R34,Sat!$A$10:$AG$2410,4*($C$8-1)+2) * 100 -> 24.507
H35: 10 | I35: =IF($B$4="Annual Average", AVERAGE(OFFSET(Sat!$A$10,$H35*12,4*($C$8-1)+2,12,1)), MAX(OFFSET(Sat!$A$10,$H35*12,4*($C$8-1)+2,12,1))) * 100 -> 21.50533333 | J35: =IF($B$4="Annual Average", AVERAGE(OFFSET(Sat!$A$10,$H35*12,4*($C$8-1)+3,12,1)), MAX(OFFSET(Sat!$A$10,$H35*12,4*($C$8-1)+3,12,1))) * 100 -> 24.75266667 | K35: =IF($B$4="Annual Average", AVERAGE(OFFSET(Sat!$A$10,$H35*12,4*($C$8-1)+4,12,1)), MAX(OFFSET(Sat!$A$10,$H35*12,4*($C$8-1)+4,12,1))) * 100 -> 26.35383333 | L35: =IF($B$4="Annual Average", AVERAGE(OFFSET(Sat!$A$10,$H35*12,4*($C$8-1)+1,12,1)), MAX(OFFSET(Sat!$A$10,$H35*12,4*($C$8-1)+1,12,1))) * 100 -> 24.273 | R35: 0.8333333333 | S35: =VLOOKUP($R35,Sat!$A$10:$AG$2410,4*($C$8-1)+3) * 100 -> 21.734 | T35: =VLOOKUP($R35,Sat!$A$10:$AG$2410,4*($C$8-1)+4) * 100 -> 24.892 | U35: =VLOOKUP($R35,Sat!$A$10:$AG$2410,4*($C$8-1)+5) * 100 -> 26.412 | V35: =VLOOKUP($R35,Sat!$A$10:$AG$2410,4*($C$8-1)+2) * 100 -> 24.452
H36: 11 | I36: =IF($B$4="Annual Average", AVERAGE(OFFSET(Sat!$A$10,$H36*12,4*($C$8-1)+2,12,1)), MAX(OFFSET(Sat!$A$10,$H36*12,4*($C$8-1)+2,12,1))) * 100 -> 22.04 | J36: =IF($B$4="Annual Average", AVERAGE(OFFSET(Sat!$A$10,$H36*12,4*($C$8-1)+3,12,1)), MAX(OFFSET(Sat!$A$10,$H36*12,4*($C$8-1)+3,12,1))) * 100 -> 24.73 | K36: =IF($B$4="Annual Average", AVERAGE(OFFSET(Sat!$A$10,$H36*12,4*($C$8-1)+4,12,1)), MAX(OFFSET(Sat!$A$10,$H36*12,4*($C$8-1)+4,12,1))) * 100 -> 26.33325 | L36: =IF($B$4="Annual Average", AVERAGE(OFFSET(Sat!$A$10,$H36*12,4*($C$8-1)+1,12,1)), MAX(OFFSET(Sat!$A$10,$H36*12,4*($C$8-1)+1,12,1))) * 100 -> 24.35333333 | R36: 0.9166666667 | S36: =VLOOKUP($R36,Sat!$A$10:$AG$2410,4*($C$8-1)+3) * 100 -> 21.734 | T36: =VLOOKUP($R36,Sat!$A$10:$AG$2410,4*($C$8-1)+4) * 100 -> 24.892 | U36: =VLOOKUP($R36,Sat!$A$10:$AG$2410,4*($C$8-1)+5) * 100 -> 26.412 | V36: =VLOOKUP($R36,Sat!$A$10:$AG$2410,4*($C$8-1)+2) * 100 -> 24.452
H37: 12 | I37: =IF($B$4="Annual Average", AVERAGE(OFFSET(Sat!$A$10,$H37*12,4*($C$8-1)+2,12,1)), MAX(OFFSET(Sat!$A$10,$H37*12,4*($C$8-1)+2,12,1))) * 100 -> 21.9025 | J37: =IF($B$4="Annual Average", AVERAGE(OFFSET(Sat!$A$10,$H37*12,4*($C$8-1)+3,12,1)), MAX(OFFSET(Sat!$A$10,$H37*12,4*($C$8-1)+3,12,1))) * 100 -> 24.76008333 | K37: =IF($B$4="Annual Average", AVERAGE(OFFSET(Sat!$A$10,$H37*12,4*($C$8-1)+4,12,1)), MAX(OFFSET(Sat!$A$10,$H37*12,4*($C$8-1)+4,12,1))) * 100 -> 26.32275 | L37: =IF($B$4="Annual Average", AVERAGE(OFFSET(Sat!$A$10,$H37*12,4*($C$8-1)+1,12,1)), MAX(OFFSET(Sat!$A$10,$H37*12,4*($C$8-1)+1,12,1))) * 100 -> 24.36208333 | R37: 1 | S37: =VLOOKUP($R37,Sat!$A$10:$AG$2410,4*($C$8-1)+3) * 100 -> 21.081 | T37: =VLOOKUP($R37,Sat!$A$10:$AG$2410,4*($C$8-1)+4) * 100 -> 24.87 | U37: =VLOOKUP($R37,Sat!$A$10:$AG$2410,4*($C$8-1)+5) * 100 -> 26.695 | V37: =VLOOKUP($R37,Sat!$A$10:$AG$2410,4*($C$8-1)+2) * 100 -> 24.343
H38: 13 | I38: =IF($B$4="Annual Average", AVERAGE(OFFSET(Sat!$A$10,$H38*12,4*($C$8-1)+2,12,1)), MAX(OFFSET(Sat!$A$10,$H38*12,4*($C$8-1)+2,12,1))) * 100 -> 21.84316667 | J38: =IF($B$4="Annual Average", AVERAGE(OFFSET(Sat!$A$10,$H38*12,4*($C$8-1)+3,12,1)), MAX(OFFSET(Sat!$A$10,$H38*12,4*($C$8-1)+3,12,1))) * 100 -> 24.7395 | K38: =IF($B$4="Annual Average", AVERAGE(OFFSET(Sat!$A$10,$H38*12,4*($C$8-1)+4,12,1)), MAX(OFFSET(Sat!$A$10,$H38*12,4*($C$8-1)+4,12,1))) * 100 -> 26.464 | L38: =IF($B$4="Annual Average", AVERAGE(OFFSET(Sat!$A$10,$H38*12,4*($C$8-1)+1,12,1)), MAX(OFFSET(Sat!$A$10,$H38*12,4*($C$8-1)+1,12,1))) * 100 -> 24.35575 | R38: 1.083333333 | S38: =VLOOKUP($R38,Sat!$A$10:$AG$2410,4*($C$8-1)+3) * 100 -> 21.441 | T38: =VLOOKUP($R38,Sat!$A$10:$AG$2410,4*($C$8-1)+4) * 100 -> 24.826 | U38: =VLOOKUP($R38,Sat!$A$10:$AG$2410,4*($C$8-1)+5) * 100 -> 26.501 | V38: =VLOOKUP($R38,Sat!$A$10:$AG$2410,4*($C$8-1)+2) * 100 -> 24.361
H39: 14 | I39: =IF($B$4="Annual Average", AVERAGE(OFFSET(Sat!$A$10,$H39*12,4*($C$8-1)+2,12,1)), MAX(OFFSET(Sat!$A$10,$H39*12,4*($C$8-1)+2,12,1))) * 100 -> 21.71 | J39: =IF($B$4="Annual Average", AVERAGE(OFFSET(Sat!$A$10,$H39*12,4*($C$8-1)+3,12,1)), MAX(OFFSET(Sat!$A$10,$H39*12,4*($C$8-1)+3,12,1))) * 100 -> 24.75325 | K39: =IF($B$4="Annual Average", AVERAGE(OFFSET(Sat!$A$10,$H39*12,4*($C$8-1)+4,12,1)), MAX(OFFSET(Sat!$A$10,$H39*12,4*($C$8-1)+4,12,1))) * 100 -> 26.49241667 | L39: =IF($B$4="Annual Average", AVERAGE(OFFSET(Sat!$A$10,$H39*12,4*($C$8-1)+1,12,1)), MAX(OFFSET(Sat!$A$10,$H39*12,4*($C$8-1)+1,12,1))) * 100 -> 24.33741667 | R39: 1.166666667 | S39: =VLOOKUP($R39,Sat!$A$10:$AG$2410,4*($C$8-1)+3) * 100 -> 21.441 | T39: =VLOOKUP($R39,Sat!$A$10:$AG$2410,4*($C$8-1)+4) * 100 -> 24.826 | U39: =VLOOKUP($R39,Sat!$A$10:$AG$2410,4*($C$8-1)+5) * 100 -> 26.501 | V39: =VLOOKUP($R39,Sat!$A$10:$AG$2410,4*($C$8-1)+2) * 100 -> 24.361
H40: 15 | I40: =IF($B$4="Annual Average", AVERAGE(OFFSET(Sat!$A$10,$H40*12,4*($C$8-1)+2,12,1)), MAX(OFFSET(Sat!$A$10,$H40*12,4*($C$8-1)+2,12,1))) * 100 -> 21.39975 | J40: =IF($B$4="Annual Average", AVERAGE(OFFSET(Sat!$A$10,$H40*12,4*($C$8-1)+3,12,1)), MAX(OFFSET(Sat!$A$10,$H40*12,4*($C$8-1)+3,12,1))) * 100 -> 24.69716667 | K40: =IF($B$4="Annual Average", AVERAGE(OFFSET(Sat!$A$10,$H40*12,4*($C$8-1)+4,12,1)), MAX(OFFSET(Sat!$A$10,$H40*12,4*($C$8-1)+4,12,1))) * 100 -> 26.42916667 | L40: =IF($B$4="Annual Average", AVERAGE(OFFSET(Sat!$A$10,$H40*12,4*($C$8-1)+1,12,1)), MAX(OFFSET(Sat!$A$10,$H40*12,4*($C$8-1)+1,12,1))) * 100 -> 24.27716667 | R40: 1.25 | S40: =VLOOKUP($R40,Sat!$A$10:$AG$2410,4*($C$8-1)+3) * 100 -> 21.73 | T40: =VLOOKUP($R40,Sat!$A$10:$AG$2410,4*($C$8-1)+4) * 100 -> 24.811 | U40: =VLOOKUP($R40,Sat!$A$10:$AG$2410,4*($C$8-1)+5) * 100 -> 26.431 | V40: =VLOOKUP($R40,Sat!$A$10:$AG$2410,4*($C$8-1)+2) * 100 -> 24.38
H41: 16 | I41: =IF($B$4="Annual Average", AVERAGE(OFFSET(Sat!$A$10,$H41*12,4*($C$8-1)+2,12,1)), MAX(OFFSET(Sat!$A$10,$H41*12,4*($C$8-1)+2,12,1))) * 100 -> 21.47608333 | J41: =IF($B$4="Annual Average", AVERAGE(OFFSET(Sat!$A$10,$H41*12,4*($C$8-1)+3,12,1)), MAX(OFFSET(Sat!$A$10,$H41*12,4*($C$8-1)+3,12,1))) * 100 -> 24.65616667 | K41: =IF($B$4="Annual Average", AVERAGE(OFFSET(Sat!$A$10,$H41*12,4*($C$8-1)+4,12,1)), MAX(OFFSET(Sat!$A$10,$H41*12,4*($C$8-1)+4,12,1))) * 100 -> 26.36716667 | L41: =IF($B$4="Annual Average", AVERAGE(OFFSET(Sat!$A$10,$H41*12,4*($C$8-1)+1,12,1)), MAX(OFFSET(Sat!$A$10,$H41*12,4*($C$8-1)+1,12,1))) * 100 -> 24.27283333 | R41: 1.333333333 | S41: =VLOOKUP($R41,Sat!$A$10:$AG$2410,4*($C$8-1)+3) * 100 -> 22.024 | T41: =VLOOKUP($R41,Sat!$A$10:$AG$2410,4*($C$8-1)+4) * 100 -> 24.777 | U41: =VLOOKUP($R41,Sat!$A$10:$AG$2410,4*($C$8-1)+5) * 100 -> 26.342 | V41: =VLOOKUP($R41,Sat!$A$10:$AG$2410,4*($C$8-1)+2) * 100 -> 24.417
H42: 17 | I42: =IF($B$4="Annual Average", AVERAGE(OFFSET(Sat!$A$10,$H42*12,4*($C$8-1)+2,12,1)), MAX(OFFSET(Sat!$A$10,$H42*12,4*($C$8-1)+2,12,1))) * 100 -> 21.9265 | J42: =IF($B$4="Annual Average", AVERAGE(OFFSET(Sat!$A$10,$H42*12,4*($C$8-1)+3,12,1)), MAX(OFFSET(Sat!$A$10,$H42*12,4*($C$8-1)+3,12,1))) * 100 -> 24.66591667 | K42: =IF($B$4="Annual Average", AVERAGE(OFFSET(Sat!$A$10,$H42*12,4*($C$8-1)+4,12,1)), MAX(OFFSET(Sat!$A$10,$H42*12,4*($C$8-1)+4,12,1))) * 100 -> 26.25033333 | L42: =IF($B$4="Annual Average", AVERAGE(OFFSET(Sat!$A$10,$H42*12,4*($C$8-1)+1,12,1)), MAX(OFFSET(Sat!$A$10,$H42*12,4*($C$8-1)+1,12,1))) * 100 -> 24.30316667 | R42: 1.416666667 | S42: =VLOOKUP($R42,Sat!$A$10:$AG$2410,4*($C$8-1)+3) * 100 -> 22.024 | T42: =VLOOKUP($R42,Sat!$A$10:$AG$2410,4*($C$8-1)+4) * 100 -> 24.777 | U42: =VLOOKUP($R42,Sat!$A$10:$AG$2410,4*($C$8-1)+5) * 100 -> 26.342 | V42: =VLOOKUP($R42,Sat!$A$10:$AG$2410,4*($C$8-1)+2) * 100 -> 24.417
H43: 18 | I43: =IF($B$4="Annual Average", AVERAGE(OFFSET(Sat!$A$10,$H43*12,4*($C$8-1)+2,12,1)), MAX(OFFSET(Sat!$A$10,$H43*12,4*($C$8-1)+2,12,1))) * 100 -> 21.79683333 | J43: =IF($B$4="Annual Average", AVERAGE(OFFSET(Sat!$A$10,$H43*12,4*($C$8-1)+3,12,1)), MAX(OFFSET(Sat!$A$10,$H43*12,4*($C$8-1)+3,12,1))) * 100 -> 24.64041667 | K43: =IF($B$4="Annual Average", AVERAGE(OFFSET(Sat!$A$10,$H43*12,4*($C$8-1)+4,12,1)), MAX(OFFSET(Sat!$A$10,$H43*12,4*($C$8-1)+4,12,1))) * 100 -> 26.40125 | L43: =IF($B$4="Annual Average", AVERAGE(OFFSET(Sat!$A$10,$H43*12,4*($C$8-1)+1,12,1)), MAX(OFFSET(Sat!$A$10,$H43*12,4*($C$8-1)+1,12,1))) * 100 -> 24.32016667 | R43: 1.5 | S43: =VLOOKUP($R43,Sat!$A$10:$AG$2410,4*($C$8-1)+3) * 100 -> 22.098 | T43: =VLOOKUP($R43,Sat!$A$10:$AG$2410,4*($C$8-1)+4) * 100 -> 24.791 | U43: =VLOOKUP($R43,Sat!$A$10:$AG$2410,4*($C$8-1)+5) * 100 -> 26.262 | V43: =VLOOKUP($R43,Sat!$A$10:$AG$2410,4*($C$8-1)+2) * 100 -> 24.435
H44: 19 | I44: =IF($B$4="Annual Average", AVERAGE(OFFSET(Sat!$A$10,$H44*12,4*($C$8-1)+2,12,1)), MAX(OFFSET(Sat!$A$10,$H44*12,4*($C$8-1)+2,12,1))) * 100 -> 21.30425 | J44: =IF($B$4="Annual Average", AVERAGE(OFFSET(Sat!$A$10,$H44*12,4*($C$8-1)+3,12,1)), MAX(OFFSET(Sat!$A$10,$H44*12,4*($C$8-1)+3,12,1))) * 100 -> 24.70933333 | K44: =IF($B$4="Annual Average", AVERAGE(OFFSET(Sat!$A$10,$H44*12,4*($C$8-1)+4,12,1)), MAX(OFFSET(Sat!$A$10,$H44*12,4*($C$8-1)+4,12,1))) * 100 -> 26.38066667 | L44: =IF($B$4="Annual Average", AVERAGE(OFFSET(Sat!$A$10,$H44*12,4*($C$8-1)+1,12,1)), MAX(OFFSET(Sat!$A$10,$H44*12,4*($C$8-1)+1,12,1))) * 100 -> 24.24833333 | R44: 1.583333333 | S44: =VLOOKUP($R44,Sat!$A$10:$AG$2410,4*($C$8-1)+3) * 100 -> 22.461 | T44: =VLOOKUP($R44,Sat!$A$10:$AG$2410,4*($C$8-1)+4) * 100 -> 24.821 | U44: =VLOOKUP($R44,Sat!$A$10:$AG$2410,4*($C$8-1)+5) * 100 -> 26.194 | V44: =VLOOKUP($R44,Sat!$A$10:$AG$2410,4*($C$8-1)+2) * 100 -> 24.472
H45: 20 | I45: =IF($B$4="Annual Average", AVERAGE(OFFSET(Sat!$A$10,$H45*12,4*($C$8-1)+2,12,1)), MAX(OFFSET(Sat!$A$10,$H45*12,4*($C$8-1)+2,12,1))) * 100 -> 21.35066667 | J45: =IF($B$4="Annual Average", AVERAGE(OFFSET(Sat!$A$10,$H45*12,4*($C$8-1)+3,12,1)), MAX(OFFSET(Sat!$A$10,$H45*12,4*($C$8-1)+3,12,1))) * 100 -> 24.63483333 | K45: =IF($B$4="Annual Average", AVERAGE(OFFSET(Sat!$A$10,$H45*12,4*($C$8-1)+4,12,1)), MAX(OFFSET(Sat!$A$10,$H45*12,4*($C$8-1)+4,12,1))) * 100 -> 26.37883333 | L45: =IF($B$4="Annual Average", AVERAGE(OFFSET(Sat!$A$10,$H45*12,4*($C$8-1)+1,12,1)), MAX(OFFSET(Sat!$A$10,$H45*12,4*($C$8-1)+1,12,1))) * 100 -> 24.20466667 | R45: 1.666666667 | S45: =VLOOKUP($R45,Sat!$A$10:$AG$2410,4*($C$8-1)+3) * 100 -> 22.461 | T45: =VLOOKUP($R45,Sat!$A$10:$AG$2410,4*($C$8-1)+4) * 100 -> 24.821 | U45: =VLOOKUP($R45,Sat!$A$10:$AG$2410,4*($C$8-1)+5) * 100 -> 26.194 | V45: =VLOOKUP($R45,Sat!$A$10:$AG$2410,4*($C$8-1)+2) * 100 -> 24.472
H46: 21 | I46: =IF($B$4="Annual Average", AVERAGE(OFFSET(Sat!$A$10,$H46*12,4*($C$8-1)+2,12,1)), MAX(OFFSET(Sat!$A$10,$H46*12,4*($C$8-1)+2,12,1))) * 100 -> 21.78075 | J46: =IF($B$4="Annual Average", AVERAGE(OFFSET(Sat!$A$10,$H46*12,4*($C$8-1)+3,12,1)), MAX(OFFSET(Sat!$A$10,$H46*12,4*($C$8-1)+3,12,1))) * 100 -> 24.75933333 | K46: =IF($B$4="Annual Average", AVERAGE(OFFSET(Sat!$A$10,$H46*12,4*($C$8-1)+4,12,1)), MAX(OFFSET(Sat!$A$10,$H46*12,4*($C$8-1)+4,12,1))) * 100 -> 26.46708333 | L46: =IF($B$4="Annual Average", AVERAGE(OFFSET(Sat!$A$10,$H46*12,4*($C$8-1)+1,12,1)), MAX(OFFSET(Sat!$A$10,$H46*12,4*($C$8-1)+1,12,1))) * 100 -> 24.35016667 | R46: 1.75 | S46: =VLOOKUP($R46,Sat!$A$10:$AG$2410,4*($C$8-1)+3) * 100 -> 22.472 | T46: =VLOOKUP($R46,Sat!$A$10:$AG$2410,4*($C$8-1)+4) * 100 -> 24.803 | U46: =VLOOKUP($R46,Sat!$A$10:$AG$2410,4*($C$8-1)+5) * 100 -> 26.163 | V46: =VLOOKUP($R46,Sat!$A$10:$AG$2410,4*($C$8-1)+2) * 100 -> 24.491
H47: 22 | I47: =IF($B$4="Annual Average", AVERAGE(OFFSET(Sat!$A$10,$H47*12,4*($C$8-1)+2,12,1)), MAX(OFFSET(Sat!$A$10,$H47*12,4*($C$8-1)+2,12,1))) * 100 -> 22.04408333 | J47: =IF($B$4="Annual Average", AVERAGE(OFFSET(Sat!$A$10,$H47*12,4*($C$8-1)+3,12,1)), MAX(OFFSET(Sat!$A$10,$H47*12,4*($C$8-1)+3,12,1))) * 100 -> 24.8465 | K47: =IF($B$4="Annual Average", AVERAGE(OFFSET(Sat!$A$10,$H47*12,4*($C$8-1)+4,12,1)), MAX(OFFSET(Sat!$A$10,$H47*12,4*($C$8-1)+4,12,1))) * 100 -> 26.5455 | L47: =IF($B$4="Annual Average", AVERAGE(OFFSET(Sat!$A$10,$H47*12,4*($C$8-1)+1,12,1)), MAX(OFFSET(Sat!$A$10,$H47*12,4*($C$8-1)+1,12,1))) * 100 -> 24.48033333 | R47: 1.833333333 | S47: =VLOOKUP($R47,Sat!$A$10:$AG$2410,4*($C$8-1)+3) * 100 -> 22.321 | T47: =VLOOKUP($R47,Sat!$A$10:$AG$2410,4*($C$8-1)+4) * 100 -> 24.845 | U47: =VLOOKUP($R47,Sat!$A$10:$AG$2410,4*($C$8-1)+5) * 100 -> 26.444 | V47: =VLOOKUP($R47,Sat!$A$10:$AG$2410,4*($C$8-1)+2) * 100 -> 24.528
H48: 23 | I48: =IF($B$4="Annual Average", AVERAGE(OFFSET(Sat!$A$10,$H48*12,4*($C$8-1)+2,12,1)), MAX(OFFSET(Sat!$A$10,$H48*12,4*($C$8-1)+2,12,1))) * 100 -> 21.80483333 | J48: =IF($B$4="Annual Average", AVERAGE(OFFSET(Sat!$A$10,$H48*12,4*($C$8-1)+3,12,1)), MAX(OFFSET(Sat!$A$10,$H48*12,4*($C$8-1)+3,12,1))) * 100 -> 24.706 | K48: =IF($B$4="Annual Average", AVERAGE(OFFSET(Sat!$A$10,$H48*12,4*($C$8-1)+4,12,1)), MAX(OFFSET(Sat!$A$10,$H48*12,4*($C$8-1)+4,12,1))) * 100 -> 26.47975 | L48: =IF($B$4="Annual Average", AVERAGE(OFFSET(Sat!$A$10,$H48*12,4*($C$8-1)+1,12,1)), MAX(OFFSET(Sat!$A$10,$H48*12,4*($C$8-1)+1,12,1))) * 100 -> 24.37366667 | R48: 1.916666667 | S48: =VLOOKUP($R48,Sat!$A$10:$AG$2410,4*($C$8-1)+3) * 100 -> 22.321 | T48: =VLOOKUP($R48,Sat!$A$10:$AG$2410,4*($C$8-1)+4) * 100 -> 24.845 | U48: =VLOOKUP($R48,Sat!$A$10:$AG$2410,4*($C$8-1)+5) * 100 -> 26.444 | V48: =VLOOKUP($R48,Sat!$A$10:$AG$2410,4*($C$8-1)+2) * 100 -> 24.528
H49: 24 | I49: =IF($B$4="Annual Average", AVERAGE(OFFSET(Sat!$A$10,$H49*12,4*($C$8-1)+2,12,1)), MAX(OFFSET(Sat!$A$10,$H49*12,4*($C$8-1)+2,12,1))) * 100 -> 21.94741667 | J49: =IF($B$4="Annual Average", AVERAGE(OFFSET(Sat!$A$10,$H49*12,4*($C$8-1)+3,12,1)), MAX(OFFSET(Sat!$A$10,$H49*12,4*($C$8-1)+3,12,1))) * 100 -> 24.64391667 | K49: =IF($B$4="Annual Average", AVERAGE(OFFSET(Sat!$A$10,$H49*12,4*($C$8-1)+4,12,1)), MAX(OFFSET(Sat!$A$10,$H49*12,4*($C$8-1)+4,12,1))) * 100 -> 26.376 | L49: =IF($B$4="Annual Average", AVERAGE(OFFSET(Sat!$A$10,$H49*12,4*($C$8-1)+1,12,1)), MAX(OFFSET(Sat!$A$10,$H49*12,4*($C$8-1)+1,12,1))) * 100 -> 24.32366667 | R49: 2 | S49: =VLOOKUP($R49,Sat!$A$10:$AG$2410,4*($C$8-1)+3) * 100 -> 22.128 | T49: =VLOOKUP($R49,Sat!$A$10:$AG$2410,4*($C$8-1)+4) * 100 -> 24.874 | U49: =VLOOKUP($R49,Sat!$A$10:$AG$2410,4*($C$8-1)+5) * 100 -> 26.534 | V49: =VLOOKUP($R49,Sat!$A$10:$AG$2410,4*($C$8-1)+2) * 100 -> 24.547
H50: 25 | I50: =IF($B$4="Annual Average", AVERAGE(OFFSET(Sat!$A$10,$H50*12,4*($C$8-1)+2,12,1)), MAX(OFFSET(Sat!$A$10,$H50*12,4*($C$8-1)+2,12,1))) * 100 -> 21.81166667 | J50: =IF($B$4="Annual Average", AVERAGE(OFFSET(Sat!$A$10,$H50*12,4*($C$8-1)+3,12,1)), MAX(OFFSET(Sat!$A$10,$H50*12,4*($C$8-1)+3,12,1))) * 100 -> 24.72208333 | K50: =IF($B$4="Annual Average", AVERAGE(OFFSET(Sat!$A$10,$H50*12,4*($C$8-1)+4,12,1)), MAX(OFFSET(Sat!$A$10,$H50*12,4*($C$8-1)+4,12,1))) * 100 -> 26.36525 | L50: =IF($B$4="Annual Average", AVERAGE(OFFSET(Sat!$A$10,$H50*12,4*($C$8-1)+1,12,1)), MAX(OFFSET(Sat!$A$10,$H50*12,4*($C$8-1)+1,12,1))) * 100 -> 24.34491667 | R50: 2.083333333 | S50: =VLOOKUP($R50,Sat!$A$10:$AG$2410,4*($C$8-1)+3) * 100 -> 22.143 | T50: =VLOOKUP($R50,Sat!$A$10:$AG$2410,4*($C$8-1)+4) * 100 -> 24.883 | U50: =VLOOKUP($R50,Sat!$A$10:$AG$2410,4*($C$8-1)+5) * 100 -> 26.593 | V50: =VLOOKUP($R50,Sat!$A$10:$AG$2410,4*($C$8-1)+2) * 100 -> 24.547
H51: 26 | I51: =IF($B$4="Annual Average", AVERAGE(OFFSET(Sat!$A$10,$H51*12,4*($C$8-1)+2,12,1)), MAX(OFFSET(Sat!$A$10,$H51*12,4*($C$8-1)+2,12,1))) * 100 -> 21.75291667 | J51: =IF($B$4="Annual Average", AVERAGE(OFFSET(Sat!$A$10,$H51*12,4*($C$8-1)+3,12,1)), MAX(OFFSET(Sat!$A$10,$H51*12,4*($C$8-1)+3,12,1))) * 100 -> 24.70058333 | K51: =IF($B$4="Annual Average", AVERAGE(OFFSET(Sat!$A$10,$H51*12,4*($C$8-1)+4,12,1)), MAX(OFFSET(Sat!$A$10,$H51*12,4*($C$8-1)+4,12,1))) * 100 -> 26.34008333 | L51: =IF($B$4="Annual Average", AVERAGE(OFFSET(Sat!$A$10,$H51*12,4*($C$8-1)+1,12,1)), MAX(OFFSET(Sat!$A$10,$H51*12,4*($C$8-1)+1,12,1))) * 100 -> 24.29266667 | R51: 2.166666667 | S51: =VLOOKUP($R51,Sat!$A$10:$AG$2410,4*($C$8-1)+3) * 100 -> 22.143 | T51: =VLOOKUP($R51,Sat!$A$10:$AG$2410,4*($C$8-1)+4) * 100 -> 24.883 | U51: =VLOOKUP($R51,Sat!$A$10:$AG$2410,4*($C$8-1)+5) * 100 -> 26.593 | V51: =VLOOKUP($R51,Sat!$A$10:$AG$2410,4*($C$8-1)+2) * 100 -> 24.547
H52: 27 | I52: =IF($B$4="Annual Average", AVERAGE(OFFSET(Sat!$A$10,$H52*12,4*($C$8-1)+2,12,1)), MAX(OFFSET(Sat!$A$10,$H52*12,4*($C$8-1)+2,12,1))) * 100 -> 21.839 | J52: =IF($B$4="Annual Average", AVERAGE(OFFSET(Sat!$A$10,$H52*12,4*($C$8-1)+3,12,1)), MAX(OFFSET(Sat!$A$10,$H52*12,4*($C$8-1)+3,12,1))) * 100 -> 24.71041667 | K52: =IF($B$4="Annual Average", AVERAGE(OFFSET(Sat!$A$10,$H52*12,4*($C$8-1)+4,12,1)), MAX(OFFSET(Sat!$A$10,$H52*12,4*($C$8-1)+4,12,1))) * 100 -> 26.47583333 | L52: =IF($B$4="Annual Average", AVERAGE(OFFSET(Sat!$A$10,$H52*12,4*($C$8-1)+1,12,1)), MAX(OFFSET(Sat!$A$10,$H52*12,4*($C$8-1)+1,12,1))) * 100 -> 24.35675 | R52: 2.25 | S52: =VLOOKUP($R52,Sat!$A$10:$AG$2410,4*($C$8-1)+3) * 100 -> 22.334 | T52: =VLOOKUP($R52,Sat!$A$10:$AG$2410,4*($C$8-1)+4) * 100 -> 24.795 | U52: =VLOOKUP($R52,Sat!$A$10:$AG$2410,4*($C$8-1)+5) * 100 -> 26.442 | V52: =VLOOKUP($R52,Sat!$A$10:$AG$2410,4*($C$8-1)+2) * 100 -> 24.528
H53: 28 | I53: =IF($B$4="Annual Average", AVERAGE(OFFSET(Sat!$A$10,$H53*12,4*($C$8-1)+2,12,1)), MAX(OFFSET(Sat!$A$10,$H53*12,4*($C$8-1)+2,12,1))) * 100 -> 21.98033333 | J53: =IF($B$4="Annual Average", AVERAGE(OFFSET(Sat!$A$10,$H53*12,4*($C$8-1)+3,12,1)), MAX(OFFSET(Sat!$A$10,$H53*12,4*($C$8-1)+3,12,1))) * 100 -> 24.67033333 | K53: =IF($B$4="Annual Average", AVERAGE(OFFSET(Sat!$A$10,$H53*12,4*($C$8-1)+4,12,1)), MAX(OFFSET(Sat!$A$10,$H53*12,4*($C$8-1)+4,12,1))) * 100 -> 26.54491667 | L53: =IF($B$4="Annual Average", AVERAGE(OFFSET(Sat!$A$10,$H53*12,4*($C$8-1)+1,12,1)), MAX(OFFSET(Sat!$A$10,$H53*12,4*($C$8-1)+1,12,1))) * 100 -> 24.41541667 | R53: 2.333333333 | S53: =VLOOKUP($R53,Sat!$A$10:$AG$2410,4*($C$8-1)+3) * 100 -> 22.408 | T53: =VLOOKUP($R53,Sat!$A$10:$AG$2410,4*($C$8-1)+4) * 100 -> 24.786 | U53: =VLOOKUP($R53,Sat!$A$10:$AG$2410,4*($C$8-1)+5) * 100 -> 26.208 | V53: =VLOOKUP($R53,Sat!$A$10:$AG$2410,4*($C$8-1)+2) * 100 -> 24.491
H54: 29 | I54: =IF($B$4="Annual Average", AVERAGE(OFFSET(Sat!$A$10,$H54*12,4*($C$8-1)+2,12,1)), MAX(OFFSET(Sat!$A$10,$H54*12,4*($C$8-1)+2,12,1))) * 100 -> 22.03866667 | J54: =IF($B$4="Annual Average", AVERAGE(OFFSET(Sat!$A$10,$H54*12,4*($C$8-1)+3,12,1)), MAX(OFFSET(Sat!$A$10,$H54*12,4*($C$8-1)+3,12,1))) * 100 -> 24.64066667 | K54: =IF($B$4="Annual Average", AVERAGE(OFFSET(Sat!$A$10,$H54*12,4*($C$8-1)+4,12,1)), MAX(OFFSET(Sat!$A$10,$H54*12,4*($C$8-1)+4,12,1))) * 100 -> 26.45966667 | L54: =IF($B$4="Annual Average", AVERAGE(OFFSET(Sat!$A$10,$H54*12,4*($C$8-1)+1,12,1)), MAX(OFFSET(Sat!$A$10,$H54*12,4*($C$8-1)+1,12,1))) * 100 -> 24.374 | R54: 2.416666667 | S54: =VLOOKUP($R54,Sat!$A$10:$AG$2410,4*($C$8-1)+3) * 100 -> 22.408 | T54: =VLOOKUP($R54,Sat!$A$10:$AG$2410,4*($C$8-1)+4) * 100 -> 24.786 | U54: =VLOOKUP($R54,Sat!$A$10:$AG$2410,4*($C$8-1)+5) * 100 -> 26.208 | V54: =VLOOKUP($R54,Sat!$A$10:$AG$2410,4*($C$8-1)+2) * 100 -> 24.491
H55: 30 | I55: =IF($B$4="Annual Average", AVERAGE(OFFSET(Sat!$A$10,$H55*12,4*($C$8-1)+2,12,1)), MAX(OFFSET(Sat!$A$10,$H55*12,4*($C$8-1)+2,12,1))) * 100 -> 21.61783333 | J55: =IF($B$4="Annual Average", AVERAGE(OFFSET(Sat!$A$10,$H55*12,4*($C$8-1)+3,12,1)), MAX(OFFSET(Sat!$A$10,$H55*12,4*($C$8-1)+3,12,1))) * 100 -> 24.61666667 | K55: =IF($B$4="Annual Average", AVERAGE(OFFSET(Sat!$A$10,$H55*12,4*($C$8-1)+4,12,1)), MAX(OFFSET(Sat!$A$10,$H55*12,4*($C$8-1)+4,12,1))) * 100 -> 26.42125 | L55: =IF($B$4="Annual Average", AVERAGE(OFFSET(Sat!$A$10,$H55*12,4*($C$8-1)+1,12,1)), MAX(OFFSET(Sat!$A$10,$H55*12,4*($C$8-1)+1,12,1))) * 100 -> 24.26266667 | R55: 2.5 | S55: =VLOOKUP($R55,Sat!$A$10:$AG$2410,4*($C$8-1)+3) * 100 -> 22.254 | T55: =VLOOKUP($R55,Sat!$A$10:$AG$2410,4*($C$8-1)+4) * 100 -> 24.663 | U55: =VLOOKUP($R55,Sat!$A$10:$AG$2410,4*($C$8-1)+5) * 100 -> 26.142 | V55: =VLOOKUP($R55,Sat!$A$10:$AG$2410,4*($C$8-1)+2) * 100 -> 24.454
H56: 31 | I56: =IF($B$4="Annual Average", AVERAGE(OFFSET(Sat!$A$10,$H56*12,4*($C$8-1)+2,12,1)), MAX(OFFSET(Sat!$A$10,$H56*12,4*($C$8-1)+2,12,1))) * 100 -> 21.29158333 | J56: =IF($B$4="Annual Average", AVERAGE(OFFSET(Sat!$A$10,$H56*12,4*($C$8-1)+3,12,1)), MAX(OFFSET(Sat!$A$10,$H56*12,4*($C$8-1)+3,12,1))) * 100 -> 24.63716667 | K56: =IF($B$4="Annual Average", AVERAGE(OFFSET(Sat!$A$10,$H56*12,4*($C$8-1)+4,12,1)), MAX(OFFSET(Sat!$A$10,$H56*12,4*($C$8-1)+4,12,1))) * 100 -> 26.4015 | L56: =IF($B$4="Annual Average", AVERAGE(OFFSET(Sat!$A$10,$H56*12,4*($C$8-1)+1,12,1)), MAX(OFFSET(Sat!$A$10,$H56*12,4*($C$8-1)+1,12,1))) * 100 -> 24.21683333 | R56: 2.583333333 | S56: =VLOOKUP($R56,Sat!$A$10:$AG$2410,4*($C$8-1)+3) * 100 -> 22.253 | T56: =VLOOKUP($R56,Sat!$A$10:$AG$2410,4*($C$8-1)+4) * 100 -> 24.674 | U56: =VLOOKUP($R56,Sat!$A$10:$AG$2410,4*($C$8-1)+5) * 100 -> 26.13 | V56: =VLOOKUP($R56,Sat!$A$10:$AG$2410,4*($C$8-1)+2) * 100 -> 24.435
H57: 32 | I57: =IF($B$4="Annual Average", AVERAGE(OFFSET(Sat!$A$10,$H57*12,4*($C$8-1)+2,12,1)), MAX(OFFSET(Sat!$A$10,$H57*12,4*($C$8-1)+2,12,1))) * 100 -> 21.79683333 | J57: =IF($B$4="Annual Average", AVERAGE(OFFSET(Sat!$A$10,$H57*12,4*($C$8-1)+3,12,1)), MAX(OFFSET(Sat!$A$10,$H57*12,4*($C$8-1)+3,12,1))) * 100 -> 24.74891667 | K57: =IF($B$4="Annual Average", AVERAGE(OFFSET(Sat!$A$10,$H57*12,4*($C$8-1)+4,12,1)), MAX(OFFSET(Sat!$A$10,$H57*12,4*($C$8-1)+4,12,1))) * 100 -> 26.34016667 | L57: =IF($B$4="Annual Average", AVERAGE(OFFSET(Sat!$A$10,$H57*12,4*($C$8-1)+1,12,1)), MAX(OFFSET(Sat!$A$10,$H57*12,4*($C$8-1)+1,12,1))) * 100 -> 24.31233333 | R57: 2.666666667 | S57: =VLOOKUP($R57,Sat!$A$10:$AG$2410,4*($C$8-1)+3) * 100 -> 22.253 | T57: =VLOOKUP($R57,Sat!$A$10:$AG$2410,4*($C$8-1)+4) * 100 -> 24.674 | U57: =VLOOKUP($R57,Sat!$A$10:$AG$2410,4*($C$8-1)+5) * 100 -> 26.13 | V57: =VLOOKUP($R57,Sat!$A$10:$AG$2410,4*($C$8-1)+2) * 100 -> 24.435
H58: 33 | I58: =IF($B$4="Annual Average", AVERAGE(OFFSET(Sat!$A$10,$H58*12,4*($C$8-1)+2,12,1)), MAX(OFFSET(Sat!$A$10,$H58*12,4*($C$8-1)+2,12,1))) * 100 -> 21.78316667 | J58: =IF($B$4="Annual Average", AVERAGE(OFFSET(Sat!$A$10,$H58*12,4*($C$8-1)+3,12,1)), MAX(OFFSET(Sat!$A$10,$H58*12,4*($C$8-1)+3,12,1))) * 100 -> 24.7535 | K58: =IF($B$4="Annual Average", AVERAGE(OFFSET(Sat!$A$10,$H58*12,4*($C$8-1)+4,12,1)), MAX(OFFSET(Sat!$A$10,$H58*12,4*($C$8-1)+4,12,1))) * 100 -> 26.45458333 | L58: =IF($B$4="Annual Average", AVERAGE(OFFSET(Sat!$A$10,$H58*12,4*($C$8-1)+1,12,1)), MAX(OFFSET(Sat!$A$10,$H58*12,4*($C$8-1)+1,12,1))) * 100 -> 24.352 | R58: 2.75 | S58: =VLOOKUP($R58,Sat!$A$10:$AG$2410,4*($C$8-1)+3) * 100 -> 21.946 | T58: =VLOOKUP($R58,Sat!$A$10:$AG$2410,4*($C$8-1)+4) * 100 -> 24.753 | U58: =VLOOKUP($R58,Sat!$A$10:$AG$2410,4*($C$8-1)+5) * 100 -> 26.2 | V58: =VLOOKUP($R58,Sat!$A$10:$AG$2410,4*($C$8-1)+2) * 100 -> 24.398
H59: 34 | I59: =IF($B$4="Annual Average", AVERAGE(OFFSET(Sat!$A$10,$H59*12,4*($C$8-1)+2,12,1)), MAX(OFFSET(Sat!$A$10,$H59*12,4*($C$8-1)+2,12,1))) * 100 -> 21.86125 | J59: =IF($B$4="Annual Average", AVERAGE(OFFSET(Sat!$A$10,$H59*12,4*($C$8-1)+3,12,1)), MAX(OFFSET(Sat!$A$10,$H59*12,4*($C$8-1)+3,12,1))) * 100 -> 24.71341667 | K59: =IF($B$4="Annual Average", AVERAGE(OFFSET(Sat!$A$10,$H59*12,4*($C$8-1)+4,12,1)), MAX(OFFSET(Sat!$A$10,$H59*12,4*($C$8-1)+4,12,1))) * 100 -> 26.42233333 | L59: =IF($B$4="Annual Average", AVERAGE(OFFSET(Sat!$A$10,$H59*12,4*($C$8-1)+1,12,1)), MAX(OFFSET(Sat!$A$10,$H59*12,4*($C$8-1)+1,12,1))) * 100 -> 24.329 | R59: 2.833333333 | S59: =VLOOKUP($R59,Sat!$A$10:$AG$2410,4*($C$8-1)+3) * 100 -> 21.981 | T59: =VLOOKUP($R59,Sat!$A$10:$AG$2410,4*($C$8-1)+4) * 100 -> 24.813 | U59: =VLOOKUP($R59,Sat!$A$10:$AG$2410,4*($C$8-1)+5) * 100 -> 26.291 | V59: =VLOOKUP($R59,Sat!$A$10:$AG$2410,4*($C$8-1)+2) * 100 -> 24.38
H60: 35 | I60: =IF($B$4="Annual Average", AVERAGE(OFFSET(Sat!$A$10,$H60*12,4*($C$8-1)+2,12,1)), MAX(OFFSET(Sat!$A$10,$H60*12,4*($C$8-1)+2,12,1))) * 100 -> 21.94566667 | J60: =IF($B$4="Annual Average", AVERAGE(OFFSET(Sat!$A$10,$H60*12,4*($C$8-1)+3,12,1)), MAX(OFFSET(Sat!$A$10,$H60*12,4*($C$8-1)+3,12,1))) * 100 -> 24.74516667 | K60: =IF($B$4="Annual Average", AVERAGE(OFFSET(Sat!$A$10,$H60*12,4*($C$8-1)+4,12,1)), MAX(OFFSET(Sat!$A$10,$H60*12,4*($C$8-1)+4,12,1))) * 100 -> 26.36941667 | L60: =IF($B$4="Annual Average", AVERAGE(OFFSET(Sat!$A$10,$H60*12,4*($C$8-1)+1,12,1)), MAX(OFFSET(Sat!$A$10,$H60*12,4*($C$8-1)+1,12,1))) * 100 -> 24.34875 | R60: 2.916666667 | S60: =VLOOKUP($R60,Sat!$A$10:$AG$2410,4*($C$8-1)+3) * 100 -> 21.981 | T60: =VLOOKUP($R60,Sat!$A$10:$AG$2410,4*($C$8-1)+4) * 100 -> 24.813 | U60: =VLOOKUP($R60,Sat!$A$10:$AG$2410,4*($C$8-1)+5) * 100 -> 26.291 | V60: =VLOOKUP($R60,Sat!$A$10:$AG$2410,4*($C$8-1)+2) * 100 -> 24.38
H61: 36 | I61: =IF($B$4="Annual Average", AVERAGE(OFFSET(Sat!$A$10,$H61*12,4*($C$8-1)+2,12,1)), MAX(OFFSET(Sat!$A$10,$H61*12,4*($C$8-1)+2,12,1))) * 100 -> 21.97675 | J61: =IF($B$4="Annual Average", AVERAGE(OFFSET(Sat!$A$10,$H61*12,4*($C$8-1)+3,12,1)), MAX(OFFSET(Sat!$A$10,$H61*12,4*($C$8-1)+3,12,1))) * 100 -> 24.7365 | K61: =IF($B$4="Annual Average", AVERAGE(OFFSET(Sat!$A$10,$H61*12,4*($C$8-1)+4,12,1)), MAX(OFFSET(Sat!$A$10,$H61*12,4*($C$8-1)+4,12,1))) * 100 -> 26.34066667 | L61: =IF($B$4="Annual Average", AVERAGE(OFFSET(Sat!$A$10,$H61*12,4*($C$8-1)+1,12,1)), MAX(OFFSET(Sat!$A$10,$H61*12,4*($C$8-1)+1,12,1))) * 100 -> 24.35283333 | R61: 3 | S61: =VLOOKUP($R61,Sat!$A$10:$AG$2410,4*($C$8-1)+3) * 100 -> 21.477 | T61: =VLOOKUP($R61,Sat!$A$10:$AG$2410,4*($C$8-1)+4) * 100 -> 24.836 | U61: =VLOOKUP($R61,Sat!$A$10:$AG$2410,4*($C$8-1)+5) * 100 -> 26.638 | V61: =VLOOKUP($R61,Sat!$A$10:$AG$2410,4*($C$8-1)+2) * 100 -> 24.343
H62: 37 | I62: =IF($B$4="Annual Average", AVERAGE(OFFSET(Sat!$A$10,$H62*12,4*($C$8-1)+2,12,1)), MAX(OFFSET(Sat!$A$10,$H62*12,4*($C$8-1)+2,12,1))) * 100 -> 22.048 | J62: =IF($B$4="Annual Average", AVERAGE(OFFSET(Sat!$A$10,$H62*12,4*($C$8-1)+3,12,1)), MAX(OFFSET(Sat!$A$10,$H62*12,4*($C$8-1)+3,12,1))) * 100 -> 24.69891667 | K62: =IF($B$4="Annual Average", AVERAGE(OFFSET(Sat!$A$10,$H62*12,4*($C$8-1)+4,12,1)), MAX(OFFSET(Sat!$A$10,$H62*12,4*($C$8-1)+4,12,1))) * 100 -> 26.33741667 | L62: =IF($B$4="Annual Average", AVERAGE(OFFSET(Sat!$A$10,$H62*12,4*($C$8-1)+1,12,1)), MAX(OFFSET(Sat!$A$10,$H62*12,4*($C$8-1)+1,12,1))) * 100 -> 24.35166667 | R62: 3.083333333 | S62: =VLOOKUP($R62,Sat!$A$10:$AG$2410,4*($C$8-1)+3) * 100 -> 21.752 | T62: =VLOOKUP($R62,Sat!$A$10:$AG$2410,4*($C$8-1)+4) * 100 -> 24.821 | U62: =VLOOKUP($R62,Sat!$A$10:$AG$2410,4*($C$8-1)+5) * 100 -> 26.495 | V62: =VLOOKUP($R62,Sat!$A$10:$AG$2410,4*($C$8-1)+2) * 100 -> 24.341
H63: 38 | I63: =IF($B$4="Annual Average", AVERAGE(OFFSET(Sat!$A$10,$H63*12,4*($C$8-1)+2,12,1)), MAX(OFFSET(Sat!$A$10,$H63*12,4*($C$8-1)+2,12,1))) * 100 -> 21.9075 | J63: =IF($B$4="Annual Average", AVERAGE(OFFSET(Sat!$A$10,$H63*12,4*($C$8-1)+3,12,1)), MAX(OFFSET(Sat!$A$10,$H63*12,4*($C$8-1)+3,12,1))) * 100 -> 24.73516667 | K63: =IF($B$4="Annual Average", AVERAGE(OFFSET(Sat!$A$10,$H63*12,4*($C$8-1)+4,12,1)), MAX(OFFSET(Sat!$A$10,$H63*12,4*($C$8-1)+4,12,1))) * 100 -> 26.39841667 | L63: =IF($B$4="Annual Average", AVERAGE(OFFSET(Sat!$A$10,$H63*12,4*($C$8-1)+1,12,1)), MAX(OFFSET(Sat!$A$10,$H63*12,4*($C$8-1)+1,12,1))) * 100 -> 24.35966667 | R63: 3.166666667 | S63: =VLOOKUP($R63,Sat!$A$10:$AG$2410,4*($C$8-1)+3) * 100 -> 21.752 | T63: =VLOOKUP($R63,Sat!$A$10:$AG$2410,4*($C$8-1)+4) * 100 -> 24.821 | U63: =VLOOKUP($R63,Sat!$A$10:$AG$2410,4*($C$8-1)+5) * 100 -> 26.495 | V63: =VLOOKUP($R63,Sat!$A$10:$AG$2410,4*($C$8-1)+2) * 100 -> 24.341
H64: 39 | I64: =IF($B$4="Annual Average", AVERAGE(OFFSET(Sat!$A$10,$H64*12,4*($C$8-1)+2,12,1)), MAX(OFFSET(Sat!$A$10,$H64*12,4*($C$8-1)+2,12,1))) * 100 -> 21.99458333 | J64: =IF($B$4="Annual Average", AVERAGE(OFFSET(Sat!$A$10,$H64*12,4*($C$8-1)+3,12,1)), MAX(OFFSET(Sat!$A$10,$H64*12,4*($C$8-1)+3,12,1))) * 100 -> 24.82716667 | K64: =IF($B$4="Annual Average", AVERAGE(OFFSET(Sat!$A$10,$H64*12,4*($C$8-1)+4,12,1)), MAX(OFFSET(Sat!$A$10,$H64*12,4*($C$8-1)+4,12,1))) * 100 -> 26.38433333 | L64: =IF($B$4="Annual Average", AVERAGE(OFFSET(Sat!$A$10,$H64*12,4*($C$8-1)+1,12,1)), MAX(OFFSET(Sat!$A$10,$H64*12,4*($C$8-1)+1,12,1))) * 100 -> 24.40791667 | R64: 3.25 | S64: =VLOOKUP($R64,Sat!$A$10:$AG$2410,4*($C$8-1)+3) * 100 -> 22.094 | T64: =VLOOKUP($R64,Sat!$A$10:$AG$2410,4*($C$8-1)+4) * 100 -> 24.661 | U64: =VLOOKUP($R64,Sat!$A$10:$AG$2410,4*($C$8-1)+5) * 100 -> 26.344 | V64: =VLOOKUP($R64,Sat!$A$10:$AG$2410,4*($C$8-1)+2) * 100 -> 24.336
H65: 40 | I65: =IF($B$4="Annual Average", AVERAGE(OFFSET(Sat!$A$10,$H65*12,4*($C$8-1)+2,12,1)), MAX(OFFSET(Sat!$A$10,$H65*12,4*($C$8-1)+2,12,1))) * 100 -> 21.884 | J65: =IF($B$4="Annual Average", AVERAGE(OFFSET(Sat!$A$10,$H65*12,4*($C$8-1)+3,12,1)), MAX(OFFSET(Sat!$A$10,$H65*12,4*($C$8-1)+3,12,1))) * 100 -> 24.76625 | K65: =IF($B$4="Annual Average", AVERAGE(OFFSET(Sat!$A$10,$H65*12,4*($C$8-1)+4,12,1)), MAX(OFFSET(Sat!$A$10,$H65*12,4*($C$8-1)+4,12,1))) * 100 -> 26.43641667 | L65: =IF($B$4="Annual Average", AVERAGE(OFFSET(Sat!$A$10,$H65*12,4*($C$8-1)+1,12,1)), MAX(OFFSET(Sat!$A$10,$H65*12,4*($C$8-1)+1,12,1))) * 100 -> 24.3765 | R65: 3.333333333 | S65: =VLOOKUP($R65,Sat!$A$10:$AG$2410,4*($C$8-1)+3) * 100 -> 22.017 | T65: =VLOOKUP($R65,Sat!$A$10:$AG$2410,4*($C$8-1)+4) * 100 -> 24.611 | U65: =VLOOKUP($R65,Sat!$A$10:$AG$2410,4*($C$8-1)+5) * 100 -> 26.254 | V65: =VLOOKUP($R65,Sat!$A$10:$AG$2410,4*($C$8-1)+2) * 100 -> 24.334
H66: 41 | I66: =IF($B$4="Annual Average", AVERAGE(OFFSET(Sat!$A$10,$H66*12,4*($C$8-1)+2,12,1)), MAX(OFFSET(Sat!$A$10,$H66*12,4*($C$8-1)+2,12,1))) * 100 -> 21.83108333 | J66: =IF($B$4="Annual Average", AVERAGE(OFFSET(Sat!$A$10,$H66*12,4*($C$8-1)+3,12,1)), MAX(OFFSET(Sat!$A$10,$H66*12,4*($C$8-1)+3,12,1))) * 100 -> 24.70558333 | K66: =IF($B$4="Annual Average", AVERAGE(OFFSET(Sat!$A$10,$H66*12,4*($C$8-1)+4,12,1)), MAX(OFFSET(Sat!$A$10,$H66*12,4*($C$8-1)+4,12,1))) * 100 -> 26.39975 | L66: =IF($B$4="Annual Average", AVERAGE(OFFSET(Sat!$A$10,$H66*12,4*($C$8-1)+1,12,1)), MAX(OFFSET(Sat!$A$10,$H66*12,4*($C$8-1)+1,12,1))) * 100 -> 24.3175 | R66: 3.416666667 | S66: =VLOOKUP($R66,Sat!$A$10:$AG$2410,4*($C$8-1)+3) * 100 -> 22.017 | T66: =VLOOKUP($R66,Sat!$A$10:$AG$2410,4*($C$8-1)+4) * 100 -> 24.611 | U66: =VLOOKUP($R66,Sat!$A$10:$AG$2410,4*($C$8-1)+5) * 100 -> 26.254 | V66: =VLOOKUP($R66,Sat!$A$10:$AG$2410,4*($C$8-1)+2) * 100 -> 24.334
H67: 42 | I67: =IF($B$4="Annual Average", AVERAGE(OFFSET(Sat!$A$10,$H67*12,4*($C$8-1)+2,12,1)), MAX(OFFSET(Sat!$A$10,$H67*12,4*($C$8-1)+2,12,1))) * 100 -> 21.91183333 | J67: =IF($B$4="Annual Average", AVERAGE(OFFSET(Sat!$A$10,$H67*12,4*($C$8-1)+3,12,1)), MAX(OFFSET(Sat!$A$10,$H67*12,4*($C$8-1)+3,12,1))) * 100 -> 24.76216667 | K67: =IF($B$4="Annual Average", AVERAGE(OFFSET(Sat!$A$10,$H67*12,4*($C$8-1)+4,12,1)), MAX(OFFSET(Sat!$A$10,$H67*12,4*($C$8-1)+4,12,1))) * 100 -> 26.361 | L67: =IF($B$4="Annual Average", AVERAGE(OFFSET(Sat!$A$10,$H67*12,4*($C$8-1)+1,12,1)), MAX(OFFSET(Sat!$A$10,$H67*12,4*($C$8-1)+1,12,1))) * 100 -> 24.353 | R67: 3.5 | S67: =VLOOKUP($R67,Sat!$A$10:$AG$2410,4*($C$8-1)+3) * 100 -> 21.756 | T67: =VLOOKUP($R67,Sat!$A$10:$AG$2410,4*($C$8-1)+4) * 100 -> 24.656 | U67: =VLOOKUP($R67,Sat!$A$10:$AG$2410,4*($C$8-1)+5) * 100 -> 26.267 | V67: =VLOOKUP($R67,Sat!$A$10:$AG$2410,4*($C$8-1)+2) * 100 -> 24.329
H68: 43 | I68: =IF($B$4="Annual Average", AVERAGE(OFFSET(Sat!$A$10,$H68*12,4*($C$8-1)+2,12,1)), MAX(OFFSET(Sat!$A$10,$H68*12,4*($C$8-1)+2,12,1))) * 100 -> 22.00825 | J68: =IF($B$4="Annual Average", AVERAGE(OFFSET(Sat!$A$10,$H68*12,4*($C$8-1)+3,12,1)), MAX(OFFSET(Sat!$A$10,$H68*12,4*($C$8-1)+3,12,1))) * 100 -> 24.76566667 | K68: =IF($B$4="Annual Average", AVERAGE(OFFSET(Sat!$A$10,$H68*12,4*($C$8-1)+4,12,1)), MAX(OFFSET(Sat!$A$10,$H68*12,4*($C$8-1)+4,12,1))) * 100 -> 26.39466667 | L68: =IF($B$4="Annual Average", AVERAGE(OFFSET(Sat!$A$10,$H68*12,4*($C$8-1)+1,12,1)), MAX(OFFSET(Sat!$A$10,$H68*12,4*($C$8-1)+1,12,1))) * 100 -> 24.4015 | R68: 3.583333333 | S68: =VLOOKUP($R68,Sat!$A$10:$AG$2410,4*($C$8-1)+3) * 100 -> 21.811 | T68: =VLOOKUP($R68,Sat!$A$10:$AG$2410,4*($C$8-1)+4) * 100 -> 24.646 | U68: =VLOOKUP($R68,Sat!$A$10:$AG$2410,4*($C$8-1)+5) * 100 -> 26.256 | V68: =VLOOKUP($R68,Sat!$A$10:$AG$2410,4*($C$8-1)+2) * 100 -> 24.327
H69: 44 | I69: =IF($B$4="Annual Average", AVERAGE(OFFSET(Sat!$A$10,$H69*12,4*($C$8-1)+2,12,1)), MAX(OFFSET(Sat!$A$10,$H69*12,4*($C$8-1)+2,12,1))) * 100 -> 21.98775 | J69: =IF($B$4="Annual Average", AVERAGE(OFFSET(Sat!$A$10,$H69*12,4*($C$8-1)+3,12,1)), MAX(OFFSET(Sat!$A$10,$H69*12,4*($C$8-1)+3,12,1))) * 100 -> 24.70616667 | K69: =IF($B$4="Annual Average", AVERAGE(OFFSET(Sat!$A$10,$H69*12,4*($C$8-1)+4,12,1)), MAX(OFFSET(Sat!$A$10,$H69*12,4*($C$8-1)+4,12,1))) * 100 -> 26.40008333 | L69: =IF($B$4="Annual Average", AVERAGE(OFFSET(Sat!$A$10,$H69*12,4*($C$8-1)+1,12,1)), MAX(OFFSET(Sat!$A$10,$H69*12,4*($C$8-1)+1,12,1))) * 100 -> 24.39008333 | R69: 3.666666667 | S69: =VLOOKUP($R69,Sat!$A$10:$AG$2410,4*($C$8-1)+3) * 100 -> 21.811 | T69: =VLOOKUP($R69,Sat!$A$10:$AG$2410,4*($C$8-1)+4) * 100 -> 24.646 | U69: =VLOOKUP($R69,Sat!$A$10:$AG$2410,4*($C$8-1)+5) * 100 -> 26.256 | V69: =VLOOKUP($R69,Sat!$A$10:$AG$2410,4*($C$8-1)+2) * 100 -> 24.327
H70: 45 | I70: =IF($B$4="Annual Average", AVERAGE(OFFSET(Sat!$A$10,$H70*12,4*($C$8-1)+2,12,1)), MAX(OFFSET(Sat!$A$10,$H70*12,4*($C$8-1)+2,12,1))) * 100 -> 21.81933333 | J70: =IF($B$4="Annual Average", AVERAGE(OFFSET(Sat!$A$10,$H70*12,4*($C$8-1)+3,12,1)), MAX(OFFSET(Sat!$A$10,$H70*12,4*($C$8-1)+3,12,1))) * 100 -> 24.63891667 | K70: =IF($B$4="Annual Average", AVERAGE(OFFSET(Sat!$A$10,$H70*12,4*($C$8-1)+4,12,1)), MAX(OFFSET(Sat!$A$10,$H70*12,4*($C$8-1)+4,12,1))) * 100 -> 26.40983333 | L70: =IF($B$4="Annual Average", AVERAGE(OFFSET(Sat!$A$10,$H70*12,4*($C$8-1)+1,12,1)), MAX(OFFSET(Sat!$A$10,$H70*12,4*($C$8-1)+1,12,1))) * 100 -> 24.31125 | R70: 3.75 | S70: =VLOOKUP($R70,Sat!$A$10:$AG$2410,4*($C$8-1)+3) * 100 -> 21.78 | T70: =VLOOKUP($R70,Sat!$A$10:$AG$2410,4*($C$8-1)+4) * 100 -> 24.659 | U70: =VLOOKUP($R70,Sat!$A$10:$AG$2410,4*($C$8-1)+5) * 100 -> 26.423 | V70: =VLOOKUP($R70,Sat!$A$10:$AG$2410,4*($C$8-1)+2) * 100 -> 24.323
H71: 46 | I71: =IF($B$4="Annual Average", AVERAGE(OFFSET(Sat!$A$10,$H71*12,4*($C$8-1)+2,12,1)), MAX(OFFSET(Sat!$A$10,$H71*12,4*($C$8-1)+2,12,1))) * 100 -> 21.89708333 | J71: =IF($B$4="Annual Average", AVERAGE(OFFSET(Sat!$A$10,$H71*12,4*($C$8-1)+3,12,1)), MAX(OFFSET(Sat!$A$10,$H71*12,4*($C$8-1)+3,12,1))) * 100 -> 24.65058333 | K71: =IF($B$4="Annual Average", AVERAGE(OFFSET(Sat!$A$10,$H71*12,4*($C$8-1)+4,12,1)), MAX(OFFSET(Sat!$A$10,$H71*12,4*($C$8-1)+4,12,1))) * 100 -> 26.37941667 | L71: =IF($B$4="Annual Average", AVERAGE(OFFSET(Sat!$A$10,$H71*12,4*($C$8-1)+1,12,1)), MAX(OFFSET(Sat!$A$10,$H71*12,4*($C$8-1)+1,12,1))) * 100 -> 24.31708333 | R71: 3.833333333 | S71: =VLOOKUP($R71,Sat!$A$10:$AG$2410,4*($C$8-1)+3) * 100 -> 21.621 | T71: =VLOOKUP($R71,Sat!$A$10:$AG$2410,4*($C$8-1)+4) * 100 -> 24.722 | U71: =VLOOKUP($R71,Sat!$A$10:$AG$2410,4*($C$8-1)+5) * 100 -> 26.529 | V71: =VLOOKUP($R71,Sat!$A$10:$AG$2410,4*($C$8-1)+2) * 100 -> 24.321
H72: 47 | I72: =IF($B$4="Annual Average", AVERAGE(OFFSET(Sat!$A$10,$H72*12,4*($C$8-1)+2,12,1)), MAX(OFFSET(Sat!$A$10,$H72*12,4*($C$8-1)+2,12,1))) * 100 -> 21.6715 | J72: =IF($B$4="Annual Average", AVERAGE(OFFSET(Sat!$A$10,$H72*12,4*($C$8-1)+3,12,1)), MAX(OFFSET(Sat!$A$10,$H72*12,4*($C$8-1)+3,12,1))) * 100 -> 24.6975 | K72: =IF($B$4="Annual Average", AVERAGE(OFFSET(Sat!$A$10,$H72*12,4*($C$8-1)+4,12,1)), MAX(OFFSET(Sat!$A$10,$H72*12,4*($C$8-1)+4,12,1))) * 100 -> 26.32125 | L72: =IF($B$4="Annual Average", AVERAGE(OFFSET(Sat!$A$10,$H72*12,4*($C$8-1)+1,12,1)), MAX(OFFSET(Sat!$A$10,$H72*12,4*($C$8-1)+1,12,1))) * 100 -> 24.27283333 | R72: 3.916666667 | S72: =VLOOKUP($R72,Sat!$A$10:$AG$2410,4*($C$8-1)+3) * 100 -> 21.621 | T72: =VLOOKUP($R72,Sat!$A$10:$AG$2410,4*($C$8-1)+4) * 100 -> 24.722 | U72: =VLOOKUP($R72,Sat!$A$10:$AG$2410,4*($C$8-1)+5) * 100 -> 26.529 | V72: =VLOOKUP($R72,Sat!$A$10:$AG$2410,4*($C$8-1)+2) * 100 -> 24.321
H73: 48 | I73: =IF($B$4="Annual Average", AVERAGE(OFFSET(Sat!$A$10,$H73*12,4*($C$8-1)+2,12,1)), MAX(OFFSET(Sat!$A$10,$H73*12,4*($C$8-1)+2,12,1))) * 100 -> 21.74141667 | J73: =IF($B$4="Annual Average", AVERAGE(OFFSET(Sat!$A$10,$H73*12,4*($C$8-1)+3,12,1)), MAX(OFFSET(Sat!$A$10,$H73*12,4*($C$8-1)+3,12,1))) * 100 -> 24.66583333 | K73: =IF($B$4="Annual Average", AVERAGE(OFFSET(Sat!$A$10,$H73*12,4*($C$8-1)+4,12,1)), MAX(OFFSET(Sat!$A$10,$H73*12,4*($C$8-1)+4,12,1))) * 100 -> 26.32733333 | L73: =IF($B$4="Annual Average", AVERAGE(OFFSET(Sat!$A$10,$H73*12,4*($C$8-1)+1,12,1)), MAX(OFFSET(Sat!$A$10,$H73*12,4*($C$8-1)+1,12,1))) * 100 -> 24.273 | R73: 4 | S73: =VLOOKUP($R73,Sat!$A$10:$AG$2410,4*($C$8-1)+3) * 100 -> 21.267 | T73: =VLOOKUP($R73,Sat!$A$10:$AG$2410,4*($C$8-1)+4) * 100 -> 24.891 | U73: =VLOOKUP($R73,Sat!$A$10:$AG$2410,4*($C$8-1)+5) * 100 -> 26.822 | V73: =VLOOKUP($R73,Sat!$A$10:$AG$2410,4*($C$8-1)+2) * 100 -> 24.316
H74: 49 | I74: =IF($B$4="Annual Average", AVERAGE(OFFSET(Sat!$A$10,$H74*12,4*($C$8-1)+2,12,1)), MAX(OFFSET(Sat!$A$10,$H74*12,4*($C$8-1)+2,12,1))) * 100 -> 21.99158333 | J74: =IF($B$4="Annual Average", AVERAGE(OFFSET(Sat!$A$10,$H74*12,4*($C$8-1)+3,12,1)), MAX(OFFSET(Sat!$A$10,$H74*12,4*($C$8-1)+3,12,1))) * 100 -> 24.67491667 | K74: =IF($B$4="Annual Average", AVERAGE(OFFSET(Sat!$A$10,$H74*12,4*($C$8-1)+4,12,1)), MAX(OFFSET(Sat!$A$10,$H74*12,4*($C$8-1)+4,12,1))) * 100 -> 26.3895 | L74: =IF($B$4="Annual Average", AVERAGE(OFFSET(Sat!$A$10,$H74*12,4*($C$8-1)+1,12,1)), MAX(OFFSET(Sat!$A$10,$H74*12,4*($C$8-1)+1,12,1))) * 100 -> 24.34033333 | R74: 4.083333333 | S74: =VLOOKUP($R74,Sat!$A$10:$AG$2410,4*($C$8-1)+3) * 100 -> 21.574 | T74: =VLOOKUP($R74,Sat!$A$10:$AG$2410,4*($C$8-1)+4) * 100 -> 24.834 | U74: =VLOOKUP($R74,Sat!$A$10:$AG$2410,4*($C$8-1)+5) * 100 -> 26.566 | V74: =VLOOKUP($R74,Sat!$A$10:$AG$2410,4*($C$8-1)+2) * 100 -> 24.322
H75: 50 | I75: =IF($B$4="Annual Average", AVERAGE(OFFSET(Sat!$A$10,$H75*12,4*($C$8-1)+2,12,1)), MAX(OFFSET(Sat!$A$10,$H75*12,4*($C$8-1)+2,12,1))) * 100 -> 22.117 | J75: =IF($B$4="Annual Average", AVERAGE(OFFSET(Sat!$A$10,$H75*12,4*($C$8-1)+3,12,1)), MAX(OFFSET(Sat!$A$10,$H75*12,4*($C$8-1)+3,12,1))) * 100 -> 24.65466667 | K75: =IF($B$4="Annual Average", AVERAGE(OFFSET(Sat!$A$10,$H75*12,4*($C$8-1)+4,12,1)), MAX(OFFSET(Sat!$A$10,$H75*12,4*($C$8-1)+4,12,1))) * 100 -> 26.34525 | L75: =IF($B$4="Annual Average", AVERAGE(OFFSET(Sat!$A$10,$H75*12,4*($C$8-1)+1,12,1)), MAX(OFFSET(Sat!$A$10,$H75*12,4*($C$8-1)+1,12,1))) * 100 -> 24.36783333 | R75: 4.166666667 | S75: =VLOOKUP($R75,Sat!$A$10:$AG$2410,4*($C$8-1)+3) * 100 -> 21.574 | T75: =VLOOKUP($R75,Sat!$A$10:$AG$2410,4*($C$8-1)+4) * 100 -> 24.834 | U75: =VLOOKUP($R75,Sat!$A$10:$AG$2410,4*($C$8-1)+5) * 100 -> 26.566 | V75: =VLOOKUP($R75,Sat!$A$10:$AG$2410,4*($C$8-1)+2) * 100 -> 24.322
H76: 51 | I76: =IF($B$4="Annual Average", AVERAGE(OFFSET(Sat!$A$10,$H76*12,4*($C$8-1)+2,12,1)), MAX(OFFSET(Sat!$A$10,$H76*12,4*($C$8-1)+2,12,1))) * 100 -> 22.14083333 | J76: =IF($B$4="Annual Average", AVERAGE(OFFSET(Sat!$A$10,$H76*12,4*($C$8-1)+3,12,1)), MAX(OFFSET(Sat!$A$10,$H76*12,4*($C$8-1)+3,12,1))) * 100 -> 24.73058333 | K76: =IF($B$4="Annual Average", AVERAGE(OFFSET(Sat!$A$10,$H76*12,4*($C$8-1)+4,12,1)), MAX(OFFSET(Sat!$A$10,$H76*12,4*($C$8-1)+4,12,1))) * 100 -> 26.39483333 | L76: =IF($B$4="Annual Average", AVERAGE(OFFSET(Sat!$A$10,$H76*12,4*($C$8-1)+1,12,1)), MAX(OFFSET(Sat!$A$10,$H76*12,4*($C$8-1)+1,12,1))) * 100 -> 24.42158333 | R76: 4.25 | S76: =VLOOKUP($R76,Sat!$A$10:$AG$2410,4*($C$8-1)+3) * 100 -> 21.994 | T76: =VLOOKUP($R76,Sat!$A$10:$AG$2410,4*($C$8-1)+4) * 100 -> 24.81 | U76: =VLOOKUP($R76,Sat!$A$10:$AG$2410,4*($C$8-1)+5) * 100 -> 26.379 | V76: =VLOOKUP($R76,Sat!$A$10:$AG$2410,4*($C$8-1)+2) * 100 -> 24.332
H77: 52 | I77: =IF($B$4="Annual Average", AVERAGE(OFFSET(Sat!$A$10,$H77*12,4*($C$8-1)+2,12,1)), MAX(OFFSET(Sat!$A$10,$H77*12,4*($C$8-1)+2,12,1))) * 100 -> 22.08691667 | J77: =IF($B$4="Annual Average", AVERAGE(OFFSET(Sat!$A$10,$H77*12,4*($C$8-1)+3,12,1)), MAX(OFFSET(Sat!$A$10,$H77*12,4*($C$8-1)+3,12,1))) * 100 -> 24.72216667 | K77: =IF($B$4="Annual Average", AVERAGE(OFFSET(Sat!$A$10,$H77*12,4*($C$8-1)+4,12,1)), MAX(OFFSET(Sat!$A$10,$H77*12,4*($C$8-1)+4,12,1))) * 100 -> 26.38416667 | L77: =IF($B$4="Annual Average", AVERAGE(OFFSET(Sat!$A$10,$H77*12,4*($C$8-1)+1,12,1)), MAX(OFFSET(Sat!$A$10,$H77*12,4*($C$8-1)+1,12,1))) * 100 -> 24.41983333 | R77: 4.333333333 | S77: =VLOOKUP($R77,Sat!$A$10:$AG$2410,4*($C$8-1)+3) * 100 -> 21.9 | T77: =VLOOKUP($R77,Sat!$A$10:$AG$2410,4*($C$8-1)+4) * 100 -> 24.722 | U77: =VLOOKUP($R77,Sat!$A$10:$AG$2410,4*($C$8-1)+5) * 100 -> 26.343 | V77: =VLOOKUP($R77,Sat!$A$10:$AG$2410,4*($C$8-1)+2) * 100 -> 24.337
H78: 53 | I78: =IF($B$4="Annual Average", AVERAGE(OFFSET(Sat!$A$10,$H78*12,4*($C$8-1)+2,12,1)), MAX(OFFSET(Sat!$A$10,$H78*12,4*($C$8-1)+2,12,1))) * 100 -> 21.77391667 | J78: =IF($B$4="Annual Average", AVERAGE(OFFSET(Sat!$A$10,$H78*12,4*($C$8-1)+3,12,1)), MAX(OFFSET(Sat!$A$10,$H78*12,4*($C$8-1)+3,12,1))) * 100 -> 24.7225 | K78: =IF($B$4="Annual Average", AVERAGE(OFFSET(Sat!$A$10,$H78*12,4*($C$8-1)+4,12,1)), MAX(OFFSET(Sat!$A$10,$H78*12,4*($C$8-1)+4,12,1))) * 100 -> 26.33033333 | L78: =IF($B$4="Annual Average", AVERAGE(OFFSET(Sat!$A$10,$H78*12,4*($C$8-1)+1,12,1)), MAX(OFFSET(Sat!$A$10,$H78*12,4*($C$8-1)+1,12,1))) * 100 -> 24.33416667 | R78: 4.416666667 | S78: =VLOOKUP($R78,Sat!$A$10:$AG$2410,4*($C$8-1)+3) * 100 -> 21.9 | T78: =VLOOKUP($R78,Sat!$A$10:$AG$2410,4*($C$8-1)+4) * 100 -> 24.722 | U78: =VLOOKUP($R78,Sat!$A$10:$AG$2410,4*($C$8-1)+5) * 100 -> 26.343 | V78: =VLOOKUP($R78,Sat!$A$10:$AG$2410,4*($C$8-1)+2) * 100 -> 24.337
H79: 54 | I79: =IF($B$4="Annual Average", AVERAGE(OFFSET(Sat!$A$10,$H79*12,4*($C$8-1)+2,12,1)), MAX(OFFSET(Sat!$A$10,$H79*12,4*($C$8-1)+2,12,1))) * 100 -> 21.592 | J79: =IF($B$4="Annual Average", AVERAGE(OFFSET(Sat!$A$10,$H79*12,4*($C$8-1)+3,12,1)), MAX(OFFSET(Sat!$A$10,$H79*12,4*($C$8-1)+3,12,1))) * 100 -> 24.67933333 | K79: =IF($B$4="Annual Average", AVERAGE(OFFSET(Sat!$A$10,$H79*12,4*($C$8-1)+4,12,1)), MAX(OFFSET(Sat!$A$10,$H79*12,4*($C$8-1)+4,12,1))) * 100 -> 26.32508333 | L79: =IF($B$4="Annual Average", AVERAGE(OFFSET(Sat!$A$10,$H79*12,4*($C$8-1)+1,12,1)), MAX(OFFSET(Sat!$A$10,$H79*12,4*($C$8-1)+1,12,1))) * 100 -> 24.28566667 | R79: 4.5 | S79: =VLOOKUP($R79,Sat!$A$10:$AG$2410,4*($C$8-1)+3) * 100 -> 21.971 | T79: =VLOOKUP($R79,Sat!$A$10:$AG$2410,4*($C$8-1)+4) * 100 -> 24.653 | U79: =VLOOKUP($R79,Sat!$A$10:$AG$2410,4*($C$8-1)+5) * 100 -> 26.257 | V79: =VLOOKUP($R79,Sat!$A$10:$AG$2410,4*($C$8-1)+2) * 100 -> 24.348
H80: 55 | I80: =IF($B$4="Annual Average", AVERAGE(OFFSET(Sat!$A$10,$H80*12,4*($C$8-1)+2,12,1)), MAX(OFFSET(Sat!$A$10,$H80*12,4*($C$8-1)+2,12,1))) * 100 -> 21.53783333 | J80: =IF($B$4="Annual Average", AVERAGE(OFFSET(Sat!$A$10,$H80*12,4*($C$8-1)+3,12,1)), MAX(OFFSET(Sat!$A$10,$H80*12,4*($C$8-1)+3,12,1))) * 100 -> 24.7225 | K80: =IF($B$4="Annual Average", AVERAGE(OFFSET(Sat!$A$10,$H80*12,4*($C$8-1)+4,12,1)), MAX(OFFSET(Sat!$A$10,$H80*12,4*($C$8-1)+4,12,1))) * 100 -> 26.41791667 | L80: =IF($B$4="Annual Average", AVERAGE(OFFSET(Sat!$A$10,$H80*12,4*($C$8-1)+1,12,1)), MAX(OFFSET(Sat!$A$10,$H80*12,4*($C$8-1)+1,12,1))) * 100 -> 24.29383333 | R80: 4.583333333 | S80: =VLOOKUP($R80,Sat!$A$10:$AG$2410,4*($C$8-1)+3) * 100 -> 22.091 | T80: =VLOOKUP($R80,Sat!$A$10:$AG$2410,4*($C$8-1)+4) * 100 -> 24.617 | U80: =VLOOKUP($R80,Sat!$A$10:$AG$2410,4*($C$8-1)+5) * 100 -> 26.289 | V80: =VLOOKUP($R80,Sat!$A$10:$AG$2410,4*($C$8-1)+2) * 100 -> 24.353
H81: 56 | I81: =IF($B$4="Annual Average", AVERAGE(OFFSET(Sat!$A$10,$H81*12,4*($C$8-1)+2,12,1)), MAX(OFFSET(Sat!$A$10,$H81*12,4*($C$8-1)+2,12,1))) * 100 -> 21.91575 | J81: =IF($B$4="Annual Average", AVERAGE(OFFSET(Sat!$A$10,$H81*12,4*($C$8-1)+3,12,1)), MAX(OFFSET(Sat!$A$10,$H81*12,4*($C$8-1)+3,12,1))) * 100 -> 24.81658333 | K81: =IF($B$4="Annual Average", AVERAGE(OFFSET(Sat!$A$10,$H81*12,4*($C$8-1)+4,12,1)), MAX(OFFSET(Sat!$A$10,$H81*12,4*($C$8-1)+4,12,1))) * 100 -> 26.45566667 | L81: =IF($B$4="Annual Average", AVERAGE(OFFSET(Sat!$A$10,$H81*12,4*($C$8-1)+1,12,1)), MAX(OFFSET(Sat!$A$10,$H81*12,4*($C$8-1)+1,12,1))) * 100 -> 24.41941667 | R81: 4.666666667 | S81: =VLOOKUP($R81,Sat!$A$10:$AG$2410,4*($C$8-1)+3) * 100 -> 22.091 | T81: =VLOOKUP($R81,Sat!$A$10:$AG$2410,4*($C$8-1)+4) * 100 -> 24.617 | U81: =VLOOKUP($R81,Sat!$A$10:$AG$2410,4*($C$8-1)+5) * 100 -> 26.289 | V81: =VLOOKUP($R81,Sat!$A$10:$AG$2410,4*($C$8-1)+2) * 100 -> 24.353
H82: 57 | I82: =IF($B$4="Annual Average", AVERAGE(OFFSET(Sat!$A$10,$H82*12,4*($C$8-1)+2,12,1)), MAX(OFFSET(Sat!$A$10,$H82*12,4*($C$8-1)+2,12,1))) * 100 -> 22.27283333 | J82: =IF($B$4="Annual Average", AVERAGE(OFFSET(Sat!$A$10,$H82*12,4*($C$8-1)+3,12,1)), MAX(OFFSET(Sat!$A$10,$H82*12,4*($C$8-1)+3,12,1))) * 100 -> 24.76383333 | K82: =IF($B$4="Annual Average", AVERAGE(OFFSET(Sat!$A$10,$H82*12,4*($C$8-1)+4,12,1)), MAX(OFFSET(Sat!$A$10,$H82*12,4*($C$8-1)+4,12,1))) * 100 -> 26.4205 | L82: =IF($B$4="Annual Average", AVERAGE(OFFSET(Sat!$A$10,$H82*12,4*($C$8-1)+1,12,1)), MAX(OFFSET(Sat!$A$10,$H82*12,4*($C$8-1)+1,12,1))) * 100 -> 24.46825 | R82: 4.75 | S82: =VLOOKUP($R82,Sat!$A$10:$AG$2410,4*($C$8-1)+3) * 100 -> 22.049 | T82: =VLOOKUP($R82,Sat!$A$10:$AG$2410,4*($C$8-1)+4) * 100 -> 24.656 | U82: =VLOOKUP($R82,Sat!$A$10:$AG$2410,4*($C$8-1)+5) * 100 -> 26.398 | V82: =VLOOKUP($R82,Sat!$A$10:$AG$2410,4*($C$8-1)+2) * 100 -> 24.364
H83: 58 | I83: =IF($B$4="Annual Average", AVERAGE(OFFSET(Sat!$A$10,$H83*12,4*($C$8-1)+2,12,1)), MAX(OFFSET(Sat!$A$10,$H83*12,4*($C$8-1)+2,12,1))) * 100 -> 22.1645 | J83: =IF($B$4="Annual Average", AVERAGE(OFFSET(Sat!$A$10,$H83*12,4*($C$8-1)+3,12,1)), MAX(OFFSET(Sat!$A$10,$H83*12,4*($C$8-1)+3,12,1))) * 100 -> 24.7195 | K83: =IF($B$4="Annual Average", AVERAGE(OFFSET(Sat!$A$10,$H83*12,4*($C$8-1)+4,12,1)), MAX(OFFSET(Sat!$A$10,$H83*12,4*($C$8-1)+4,12,1))) * 100 -> 26.37916667 | L83: =IF($B$4="Annual Average", AVERAGE(OFFSET(Sat!$A$10,$H83*12,4*($C$8-1)+1,12,1)), MAX(OFFSET(Sat!$A$10,$H83*12,4*($C$8-1)+1,12,1))) * 100 -> 24.441 | R83: 4.833333333 | S83: =VLOOKUP($R83,Sat!$A$10:$AG$2410,4*($C$8-1)+3) * 100 -> 21.951 | T83: =VLOOKUP($R83,Sat!$A$10:$AG$2410,4*($C$8-1)+4) * 100 -> 24.712 | U83: =VLOOKUP($R83,Sat!$A$10:$AG$2410,4*($C$8-1)+5) * 100 -> 26.483 | V83: =VLOOKUP($R83,Sat!$A$10:$AG$2410,4*($C$8-1)+2) * 100 -> 24.369
H84: 59 | I84: =IF($B$4="Annual Average", AVERAGE(OFFSET(Sat!$A$10,$H84*12,4*($C$8-1)+2,12,1)), MAX(OFFSET(Sat!$A$10,$H84*12,4*($C$8-1)+2,12,1))) * 100 -> 21.70991667 | J84: =IF($B$4="Annual Average", AVERAGE(OFFSET(Sat!$A$10,$H84*12,4*($C$8-1)+3,12,1)), MAX(OFFSET(Sat!$A$10,$H84*12,4*($C$8-1)+3,12,1))) * 100 -> 24.74441667 | K84: =IF($B$4="Annual Average", AVERAGE(OFFSET(Sat!$A$10,$H84*12,4*($C$8-1)+4,12,1)), MAX(OFFSET(Sat!$A$10,$H84*12,4*($C$8-1)+4,12,1))) * 100 -> 26.42958333 | L84: =IF($B$4="Annual Average", AVERAGE(OFFSET(Sat!$A$10,$H84*12,4*($C$8-1)+1,12,1)), MAX(OFFSET(Sat!$A$10,$H84*12,4*($C$8-1)+1,12,1))) * 100 -> 24.33591667 | R84: 4.916666667 | S84: =VLOOKUP($R84,Sat!$A$10:$AG$2410,4*($C$8-1)+3) * 100 -> 21.951 | T84: =VLOOKUP($R84,Sat!$A$10:$AG$2410,4*($C$8-1)+4) * 100 -> 24.712 | U84: =VLOOKUP($R84,Sat!$A$10:$AG$2410,4*($C$8-1)+5) * 100 -> 26.483 | V84: =VLOOKUP($R84,Sat!$A$10:$AG$2410,4*($C$8-1)+2) * 100 -> 24.369
H85: 60 | I85: =IF($B$4="Annual Average", AVERAGE(OFFSET(Sat!$A$10,$H85*12,4*($C$8-1)+2,12,1)), MAX(OFFSET(Sat!$A$10,$H85*12,4*($C$8-1)+2,12,1))) * 100 -> 21.46891667 | J85: =IF($B$4="Annual Average", AVERAGE(OFFSET(Sat!$A$10,$H85*12,4*($C$8-1)+3,12,1)), MAX(OFFSET(Sat!$A$10,$H85*12,4*($C$8-1)+3,12,1))) * 100 -> 24.60808333 | K85: =IF($B$4="Annual Average", AVERAGE(OFFSET(Sat!$A$10,$H85*12,4*($C$8-1)+4,12,1)), MAX(OFFSET(Sat!$A$10,$H85*12,4*($C$8-1)+4,12,1))) * 100 -> 26.49366667 | L85: =IF($B$4="Annual Average", AVERAGE(OFFSET(Sat!$A$10,$H85*12,4*($C$8-1)+1,12,1)), MAX(OFFSET(Sat!$A$10,$H85*12,4*($C$8-1)+1,12,1))) * 100 -> 24.23575 | R85: 5 | S85: =VLOOKUP($R85,Sat!$A$10:$AG$2410,4*($C$8-1)+3) * 100 -> 21.792 | T85: =VLOOKUP($R85,Sat!$A$10:$AG$2410,4*($C$8-1)+4) * 100 -> 24.723 | U85: =VLOOKUP($R85,Sat!$A$10:$AG$2410,4*($C$8-1)+5) * 100 -> 26.682 | V85: =VLOOKUP($R85,Sat!$A$10:$AG$2410,4*($C$8-1)+2) * 100 -> 24.374
H86: 61 | I86: =IF($B$4="Annual Average", AVERAGE(OFFSET(Sat!$A$10,$H86*12,4*($C$8-1)+2,12,1)), MAX(OFFSET(Sat!$A$10,$H86*12,4*($C$8-1)+2,12,1))) * 100 -> 21.76341667 | J86: =IF($B$4="Annual Average", AVERAGE(OFFSET(Sat!$A$10,$H86*12,4*($C$8-1)+3,12,1)), MAX(OFFSET(Sat!$A$10,$H86*12,4*($C$8-1)+3,12,1))) * 100 -> 24.59166667 | K86: =IF($B$4="Annual Average", AVERAGE(OFFSET(Sat!$A$10,$H86*12,4*($C$8-1)+4,12,1)), MAX(OFFSET(Sat!$A$10,$H86*12,4*($C$8-1)+4,12,1))) * 100 -> 26.3875 | L86: =IF($B$4="Annual Average", AVERAGE(OFFSET(Sat!$A$10,$H86*12,4*($C$8-1)+1,12,1)), MAX(OFFSET(Sat!$A$10,$H86*12,4*($C$8-1)+1,12,1))) * 100 -> 24.26933333 | R86: 5.083333333 | S86: =VLOOKUP($R86,Sat!$A$10:$AG$2410,4*($C$8-1)+3) * 100 -> 21.868 | T86: =VLOOKUP($R86,Sat!$A$10:$AG$2410,4*($C$8-1)+4) * 100 -> 24.726 | U86: =VLOOKUP($R86,Sat!$A$10:$AG$2410,4*($C$8-1)+5) * 100 -> 26.631 | V86: =VLOOKUP($R86,Sat!$A$10:$AG$2410,4*($C$8-1)+2) * 100 -> 24.38
H87: 62 | I87: =IF($B$4="Annual Average", AVERAGE(OFFSET(Sat!$A$10,$H87*12,4*($C$8-1)+2,12,1)), MAX(OFFSET(Sat!$A$10,$H87*12,4*($C$8-1)+2,12,1))) * 100 -> 21.32583333 | J87: =IF($B$4="Annual Average", AVERAGE(OFFSET(Sat!$A$10,$H87*12,4*($C$8-1)+3,12,1)), MAX(OFFSET(Sat!$A$10,$H87*12,4*($C$8-1)+3,12,1))) * 100 -> 24.67608333 | K87: =IF($B$4="Annual Average", AVERAGE(OFFSET(Sat!$A$10,$H87*12,4*($C$8-1)+4,12,1)), MAX(OFFSET(Sat!$A$10,$H87*12,4*($C$8-1)+4,12,1))) * 100 -> 26.48058333 | L87: =IF($B$4="Annual Average", AVERAGE(OFFSET(Sat!$A$10,$H87*12,4*($C$8-1)+1,12,1)), MAX(OFFSET(Sat!$A$10,$H87*12,4*($C$8-1)+1,12,1))) * 100 -> 24.276 | R87: 5.166666667 | S87: =VLOOKUP($R87,Sat!$A$10:$AG$2410,4*($C$8-1)+3) * 100 -> 21.868 | T87: =VLOOKUP($R87,Sat!$A$10:$AG$2410,4*($C$8-1)+4) * 100 -> 24.726 | U87: =VLOOKUP($R87,Sat!$A$10:$AG$2410,4*($C$8-1)+5) * 100 -> 26.631 | V87: =VLOOKUP($R87,Sat!$A$10:$AG$2410,4*($C$8-1)+2) * 100 -> 24.38
H88: 63 | I88: =IF($B$4="Annual Average", AVERAGE(OFFSET(Sat!$A$10,$H88*12,4*($C$8-1)+2,12,1)), MAX(OFFSET(Sat!$A$10,$H88*12,4*($C$8-1)+2,12,1))) * 100 -> 21.47666667 | J88: =IF($B$4="Annual Average", AVERAGE(OFFSET(Sat!$A$10,$H88*12,4*($C$8-1)+3,12,1)), MAX(OFFSET(Sat!$A$10,$H88*12,4*($C$8-1)+3,12,1))) * 100 -> 24.67375 | K88: =IF($B$4="Annual Average", AVERAGE(OFFSET(Sat!$A$10,$H88*12,4*($C$8-1)+4,12,1)), MAX(OFFSET(Sat!$A$10,$H88*12,4*($C$8-1)+4,12,1))) * 100 -> 26.38791667 | L88: =IF($B$4="Annual Average", AVERAGE(OFFSET(Sat!$A$10,$H88*12,4*($C$8-1)+1,12,1)), MAX(OFFSET(Sat!$A$10,$H88*12,4*($C$8-1)+1,12,1))) * 100 -> 24.23133333 | R88: 5.25 | S88: =VLOOKUP($R88,Sat!$A$10:$AG$2410,4*($C$8-1)+3) * 100 -> 21.978 | T88: =VLOOKUP($R88,Sat!$A$10:$AG$2410,4*($C$8-1)+4) * 100 -> 24.653 | U88: =VLOOKUP($R88,Sat!$A$10:$AG$2410,4*($C$8-1)+5) * 100 -> 26.495 | V88: =VLOOKUP($R88,Sat!$A$10:$AG$2410,4*($C$8-1)+2) * 100 -> 24.381
H89: 64 | I89: =IF($B$4="Annual Average", AVERAGE(OFFSET(Sat!$A$10,$H89*12,4*($C$8-1)+2,12,1)), MAX(OFFSET(Sat!$A$10,$H89*12,4*($C$8-1)+2,12,1))) * 100 -> 21.8375 | J89: =IF($B$4="Annual Average", AVERAGE(OFFSET(Sat!$A$10,$H89*12,4*($C$8-1)+3,12,1)), MAX(OFFSET(Sat!$A$10,$H89*12,4*($C$8-1)+3,12,1))) * 100 -> 24.71 | K89: =IF($B$4="Annual Average", AVERAGE(OFFSET(Sat!$A$10,$H89*12,4*($C$8-1)+4,12,1)), MAX(OFFSET(Sat!$A$10,$H89*12,4*($C$8-1)+4,12,1))) * 100 -> 26.51925 | L89: =IF($B$4="Annual Average", AVERAGE(OFFSET(Sat!$A$10,$H89*12,4*($C$8-1)+1,12,1)), MAX(OFFSET(Sat!$A$10,$H89*12,4*($C$8-1)+1,12,1))) * 100 -> 24.36033333 | R89: 5.333333333 | S89: =VLOOKUP($R89,Sat!$A$10:$AG$2410,4*($C$8-1)+3) * 100 -> 22.03 | T89: =VLOOKUP($R89,Sat!$A$10:$AG$2410,4*($C$8-1)+4) * 100 -> 24.597 | U89: =VLOOKUP($R89,Sat!$A$10:$AG$2410,4*($C$8-1)+5) * 100 -> 26.292 | V89: =VLOOKUP($R89,Sat!$A$10:$AG$2410,4*($C$8-1)+2) * 100 -> 24.382
H90: 65 | I90: =IF($B$4="Annual Average", AVERAGE(OFFSET(Sat!$A$10,$H90*12,4*($C$8-1)+2,12,1)), MAX(OFFSET(Sat!$A$10,$H90*12,4*($C$8-1)+2,12,1))) * 100 -> 22.03366667 | J90: =IF($B$4="Annual Average", AVERAGE(OFFSET(Sat!$A$10,$H90*12,4*($C$8-1)+3,12,1)), MAX(OFFSET(Sat!$A$10,$H90*12,4*($C$8-1)+3,12,1))) * 100 -> 24.75233333 | K90: =IF($B$4="Annual Average", AVERAGE(OFFSET(Sat!$A$10,$H90*12,4*($C$8-1)+4,12,1)), MAX(OFFSET(Sat!$A$10,$H90*12,4*($C$8-1)+4,12,1))) * 100 -> 26.4265 | L90: =IF($B$4="Annual Average", AVERAGE(OFFSET(Sat!$A$10,$H90*12,4*($C$8-1)+1,12,1)), MAX(OFFSET(Sat!$A$10,$H90*12,4*($C$8-1)+1,12,1))) * 100 -> 24.39083333 | R90: 5.416666667 | S90: =VLOOKUP($R90,Sat!$A$10:$AG$2410,4*($C$8-1)+3) * 100 -> 22.03 | T90: =VLOOKUP($R90,Sat!$A$10:$AG$2410,4*($C$8-1)+4) * 100 -> 24.597 | U90: =VLOOKUP($R90,Sat!$A$10:$AG$2410,4*($C$8-1)+5) * 100 -> 26.292 | V90: =VLOOKUP($R90,Sat!$A$10:$AG$2410,4*($C$8-1)+2) * 100 -> 24.382
H91: 66 | I91: =IF($B$4="Annual Average", AVERAGE(OFFSET(Sat!$A$10,$H91*12,4*($C$8-1)+2,12,1)), MAX(OFFSET(Sat!$A$10,$H91*12,4*($C$8-1)+2,12,1))) * 100 -> 22.0325 | J91: =IF($B$4="Annual Average", AVERAGE(OFFSET(Sat!$A$10,$H91*12,4*($C$8-1)+3,12,1)), MAX(OFFSET(Sat!$A$10,$H91*12,4*($C$8-1)+3,12,1))) * 100 -> 24.70658333 | K91: =IF($B$4="Annual Average", AVERAGE(OFFSET(Sat!$A$10,$H91*12,4*($C$8-1)+4,12,1)), MAX(OFFSET(Sat!$A$10,$H91*12,4*($C$8-1)+4,12,1))) * 100 -> 26.278 | L91: =IF($B$4="Annual Average", AVERAGE(OFFSET(Sat!$A$10,$H91*12,4*($C$8-1)+1,12,1)), MAX(OFFSET(Sat!$A$10,$H91*12,4*($C$8-1)+1,12,1))) * 100 -> 24.36616667 | R91: =R90+1/12 -> 5.5 | S91: =VLOOKUP($R91,Sat!$A$10:$AG$2410,4*($C$8-1)+3) * 100 -> 22.14 | T91: =VLOOKUP($R91,Sat!$A$10:$AG$2410,4*($C$8-1)+4) * 100 -> 24.608 | U91: =VLOOKUP($R91,Sat!$A$10:$AG$2410,4*($C$8-1)+5) * 100 -> 26.239 | V91: =VLOOKUP($R91,Sat!$A$10:$AG$2410,4*($C$8-1)+2) * 100 -> 24.382
H92: 67 | I92: =IF($B$4="Annual Average", AVERAGE(OFFSET(Sat!$A$10,$H92*12,4*($C$8-1)+2,12,1)), MAX(OFFSET(Sat!$A$10,$H92*12,4*($C$8-1)+2,12,1))) * 100 -> 21.9485 | J92: =IF($B$4="Annual Average", AVERAGE(OFFSET(Sat!$A$10,$H92*12,4*($C$8-1)+3,12,1)), MAX(OFFSET(Sat!$A$10,$H92*12,4*($C$8-1)+3,12,1))) * 100 -> 24.61966667 | K92: =IF($B$4="Annual Average", AVERAGE(OFFSET(Sat!$A$10,$H92*12,4*($C$8-1)+4,12,1)), MAX(OFFSET(Sat!$A$10,$H92*12,4*($C$8-1)+4,12,1))) * 100 -> 26.27575 | L92: =IF($B$4="Annual Average", AVERAGE(OFFSET(Sat!$A$10,$H92*12,4*($C$8-1)+1,12,1)), MAX(OFFSET(Sat!$A$10,$H92*12,4*($C$8-1)+1,12,1))) * 100 -> 24.30166667 | R92: 5.583333333 | S92: =VLOOKUP($R92,Sat!$A$10:$AG$2410,4*($C$8-1)+3) * 100 -> 22.104 | T92: =VLOOKUP($R92,Sat!$A$10:$AG$2410,4*($C$8-1)+4) * 100 -> 24.649 | U92: =VLOOKUP($R92,Sat!$A$10:$AG$2410,4*($C$8-1)+5) * 100 -> 26.234 | V92: =VLOOKUP($R92,Sat!$A$10:$AG$2410,4*($C$8-1)+2) * 100 -> 24.383
H93: 68 | I93: =IF($B$4="Annual Average", AVERAGE(OFFSET(Sat!$A$10,$H93*12,4*($C$8-1)+2,12,1)), MAX(OFFSET(Sat!$A$10,$H93*12,4*($C$8-1)+2,12,1))) * 100 -> 21.62716667 | J93: =IF($B$4="Annual Average", AVERAGE(OFFSET(Sat!$A$10,$H93*12,4*($C$8-1)+3,12,1)), MAX(OFFSET(Sat!$A$10,$H93*12,4*($C$8-1)+3,12,1))) * 100 -> 24.55625 | K93: =IF($B$4="Annual Average", AVERAGE(OFFSET(Sat!$A$10,$H93*12,4*($C$8-1)+4,12,1)), MAX(OFFSET(Sat!$A$10,$H93*12,4*($C$8-1)+4,12,1))) * 100 -> 26.31358333 | L93: =IF($B$4="Annual Average", AVERAGE(OFFSET(Sat!$A$10,$H93*12,4*($C$8-1)+1,12,1)), MAX(OFFSET(Sat!$A$10,$H93*12,4*($C$8-1)+1,12,1))) * 100 -> 24.18333333 | R93: 5.666666667 | S93: =VLOOKUP($R93,Sat!$A$10:$AG$2410,4*($C$8-1)+3) * 100 -> 22.104 | T93: =VLOOKUP($R93,Sat!$A$10:$AG$2410,4*($C$8-1)+4) * 100 -> 24.649 | U93: =VLOOKUP($R93,Sat!$A$10:$AG$2410,4*($C$8-1)+5) * 100 -> 26.234 | V93: =VLOOKUP($R93,Sat!$A$10:$AG$2410,4*($C$8-1)+2) * 100 -> 24.383
H94: 69 | I94: =IF($B$4="Annual Average", AVERAGE(OFFSET(Sat!$A$10,$H94*12,4*($C$8-1)+2,12,1)), MAX(OFFSET(Sat!$A$10,$H94*12,4*($C$8-1)+2,12,1))) * 100 -> 21.79558333 | J94: =IF($B$4="Annual Average", AVERAGE(OFFSET(Sat!$A$10,$H94*12,4*($C$8-1)+3,12,1)), MAX(OFFSET(Sat!$A$10,$H94*12,4*($C$8-1)+3,12,1))) * 100 -> 24.65075 | K94: =IF($B$4="Annual Average", AVERAGE(OFFSET(Sat!$A$10,$H94*12,4*($C$8-1)+4,12,1)), MAX(OFFSET(Sat!$A$10,$H94*12,4*($C$8-1)+4,12,1))) * 100 -> 26.30141667 | L94: =IF($B$4="Annual Average", AVERAGE(OFFSET(Sat!$A$10,$H94*12,4*($C$8-1)+1,12,1)), MAX(OFFSET(Sat!$A$10,$H94*12,4*($C$8-1)+1,12,1))) * 100 -> 24.26391667 | R94: 5.75 | S94: =VLOOKUP($R94,Sat!$A$10:$AG$2410,4*($C$8-1)+3) * 100 -> 22.281 | T94: =VLOOKUP($R94,Sat!$A$10:$AG$2410,4*($C$8-1)+4) * 100 -> 24.693 | U94: =VLOOKUP($R94,Sat!$A$10:$AG$2410,4*($C$8-1)+5) * 100 -> 26.282 | V94: =VLOOKUP($R94,Sat!$A$10:$AG$2410,4*($C$8-1)+2) * 100 -> 24.384
H95: 70 | I95: =IF($B$4="Annual Average", AVERAGE(OFFSET(Sat!$A$10,$H95*12,4*($C$8-1)+2,12,1)), MAX(OFFSET(Sat!$A$10,$H95*12,4*($C$8-1)+2,12,1))) * 100 -> 21.69858333 | J95: =IF($B$4="Annual Average", AVERAGE(OFFSET(Sat!$A$10,$H95*12,4*($C$8-1)+3,12,1)), MAX(OFFSET(Sat!$A$10,$H95*12,4*($C$8-1)+3,12,1))) * 100 -> 24.69366667 | K95: =IF($B$4="Annual Average", AVERAGE(OFFSET(Sat!$A$10,$H95*12,4*($C$8-1)+4,12,1)), MAX(OFFSET(Sat!$A$10,$H95*12,4*($C$8-1)+4,12,1))) * 100 -> 26.36041667 | L95: =IF($B$4="Annual Average", AVERAGE(OFFSET(Sat!$A$10,$H95*12,4*($C$8-1)+1,12,1)), MAX(OFFSET(Sat!$A$10,$H95*12,4*($C$8-1)+1,12,1))) * 100 -> 24.29566667 | R95: 5.833333333 | S95: =VLOOKUP($R95,Sat!$A$10:$AG$2410,4*($C$8-1)+3) * 100 -> 21.96 | T95: =VLOOKUP($R95,Sat!$A$10:$AG$2410,4*($C$8-1)+4) * 100 -> 24.795 | U95: =VLOOKUP($R95,Sat!$A$10:$AG$2410,4*($C$8-1)+5) * 100 -> 26.443 | V95: =VLOOKUP($R95,Sat!$A$10:$AG$2410,4*($C$8-1)+2) * 100 -> 24.385
H96: 71 | I96: =IF($B$4="Annual Average", AVERAGE(OFFSET(Sat!$A$10,$H96*12,4*($C$8-1)+2,12,1)), MAX(OFFSET(Sat!$A$10,$H96*12,4*($C$8-1)+2,12,1))) * 100 -> 21.663 | J96: =IF($B$4="Annual Average", AVERAGE(OFFSET(Sat!$A$10,$H96*12,4*($C$8-1)+3,12,1)), MAX(OFFSET(Sat!$A$10,$H96*12,4*($C$8-1)+3,12,1))) * 100 -> 24.65491667 | K96: =IF($B$4="Annual Average", AVERAGE(OFFSET(Sat!$A$10,$H96*12,4*($C$8-1)+4,12,1)), MAX(OFFSET(Sat!$A$10,$H96*12,4*($C$8-1)+4,12,1))) * 100 -> 26.31483333 | L96: =IF($B$4="Annual Average", AVERAGE(OFFSET(Sat!$A$10,$H96*12,4*($C$8-1)+1,12,1)), MAX(OFFSET(Sat!$A$10,$H96*12,4*($C$8-1)+1,12,1))) * 100 -> 24.27075 | R96: 5.916666667 | S96: =VLOOKUP($R96,Sat!$A$10:$AG$2410,4*($C$8-1)+3) * 100 -> 21.96 | T96: =VLOOKUP($R96,Sat!$A$10:$AG$2410,4*($C$8-1)+4) * 100 -> 24.795 | U96: =VLOOKUP($R96,Sat!$A$10:$AG$2410,4*($C$8-1)+5) * 100 -> 26.443 | V96: =VLOOKUP($R96,Sat!$A$10:$AG$2410,4*($C$8-1)+2) * 100 -> 24.385
H97: 72 | I97: =IF($B$4="Annual Average", AVERAGE(OFFSET(Sat!$A$10,$H97*12,4*($C$8-1)+2,12,1)), MAX(OFFSET(Sat!$A$10,$H97*12,4*($C$8-1)+2,12,1))) * 100 -> 21.757 | J97: =IF($B$4="Annual Average", AVERAGE(OFFSET(Sat!$A$10,$H97*12,4*($C$8-1)+3,12,1)), MAX(OFFSET(Sat!$A$10,$H97*12,4*($C$8-1)+3,12,1))) * 100 -> 24.73466667 | K97: =IF($B$4="Annual Average", AVERAGE(OFFSET(Sat!$A$10,$H97*12,4*($C$8-1)+4,12,1)), MAX(OFFSET(Sat!$A$10,$H97*12,4*($C$8-1)+4,12,1))) * 100 -> 26.43216667 | L97: =IF($B$4="Annual Average", AVERAGE(OFFSET(Sat!$A$10,$H97*12,4*($C$8-1)+1,12,1)), MAX(OFFSET(Sat!$A$10,$H97*12,4*($C$8-1)+1,12,1))) * 100 -> 24.37425 | R97: 6 | S97: =VLOOKUP($R97,Sat!$A$10:$AG$2410,4*($C$8-1)+3) * 100 -> 21.699 | T97: =VLOOKUP($R97,Sat!$A$10:$AG$2410,4*($C$8-1)+4) * 100 -> 24.821 | U97: =VLOOKUP($R97,Sat!$A$10:$AG$2410,4*($C$8-1)+5) * 100 -> 26.598 | V97: =VLOOKUP($R97,Sat!$A$10:$AG$2410,4*($C$8-1)+2) * 100 -> 24.385
H98: 73 | I98: =IF($B$4="Annual Average", AVERAGE(OFFSET(Sat!$A$10,$H98*12,4*($C$8-1)+2,12,1)), MAX(OFFSET(Sat!$A$10,$H98*12,4*($C$8-1)+2,12,1))) * 100 -> 22.01666667 | J98: =IF($B$4="Annual Average", AVERAGE(OFFSET(Sat!$A$10,$H98*12,4*($C$8-1)+3,12,1)), MAX(OFFSET(Sat!$A$10,$H98*12,4*($C$8-1)+3,12,1))) * 100 -> 24.65658333 | K98: =IF($B$4="Annual Average", AVERAGE(OFFSET(Sat!$A$10,$H98*12,4*($C$8-1)+4,12,1)), MAX(OFFSET(Sat!$A$10,$H98*12,4*($C$8-1)+4,12,1))) * 100 -> 26.39725 | L98: =IF($B$4="Annual Average", AVERAGE(OFFSET(Sat!$A$10,$H98*12,4*($C$8-1)+1,12,1)), MAX(OFFSET(Sat!$A$10,$H98*12,4*($C$8-1)+1,12,1))) * 100 -> 24.38491667 | R98: 6.083333333 | S98: =VLOOKUP($R98,Sat!$A$10:$AG$2410,4*($C$8-1)+3) * 100 -> 21.516 | T98: =VLOOKUP($R98,Sat!$A$10:$AG$2410,4*($C$8-1)+4) * 100 -> 24.762 | U98: =VLOOKUP($R98,Sat!$A$10:$AG$2410,4*($C$8-1)+5) * 100 -> 26.511 | V98: =VLOOKUP($R98,Sat!$A$10:$AG$2410,4*($C$8-1)+2) * 100 -> 24.365
H99: 74 | I99: =IF($B$4="Annual Average", AVERAGE(OFFSET(Sat!$A$10,$H99*12,4*($C$8-1)+2,12,1)), MAX(OFFSET(Sat!$A$10,$H99*12,4*($C$8-1)+2,12,1))) * 100 -> 21.99383333 | J99: =IF($B$4="Annual Average", AVERAGE(OFFSET(Sat!$A$10,$H99*12,4*($C$8-1)+3,12,1)), MAX(OFFSET(Sat!$A$10,$H99*12,4*($C$8-1)+3,12,1))) * 100 -> 24.66241667 | K99: =IF($B$4="Annual Average", AVERAGE(OFFSET(Sat!$A$10,$H99*12,4*($C$8-1)+4,12,1)), MAX(OFFSET(Sat!$A$10,$H99*12,4*($C$8-1)+4,12,1))) * 100 -> 26.38583333 | L99: =IF($B$4="Annual Average", AVERAGE(OFFSET(Sat!$A$10,$H99*12,4*($C$8-1)+1,12,1)), MAX(OFFSET(Sat!$A$10,$H99*12,4*($C$8-1)+1,12,1))) * 100 -> 24.35433333 | R99: 6.166666667 | S99: =VLOOKUP($R99,Sat!$A$10:$AG$2410,4*($C$8-1)+3) * 100 -> 21.516 | T99: =VLOOKUP($R99,Sat!$A$10:$AG$2410,4*($C$8-1)+4) * 100 -> 24.762 | U99: =VLOOKUP($R99,Sat!$A$10:$AG$2410,4*($C$8-1)+5) * 100 -> 26.511 | V99: =VLOOKUP($R99,Sat!$A$10:$AG$2410,4*($C$8-1)+2) * 100 -> 24.365
H100: 75 | I100: =IF($B$4="Annual Average", AVERAGE(OFFSET(Sat!$A$10,$H100*12,4*($C$8-1)+2,12,1)), MAX(OFFSET(Sat!$A$10,$H100*12,4*($C$8-1)+2,12,1))) * 100 -> 22.1815 | J100: =IF($B$4="Annual Average", AVERAGE(OFFSET(Sat!$A$10,$H100*12,4*($C$8-1)+3,12,1)), MAX(OFFSET(Sat!$A$10,$H100*12,4*($C$8-1)+3,12,1))) * 100 -> 24.78608333 | K100: =IF($B$4="Annual Average", AVERAGE(OFFSET(Sat!$A$10,$H100*12,4*($C$8-1)+4,12,1)), MAX(OFFSET(Sat!$A$10,$H100*12,4*($C$8-1)+4,12,1))) * 100 -> 26.42308333 | L100: =IF($B$4="Annual Average", AVERAGE(OFFSET(Sat!$A$10,$H100*12,4*($C$8-1)+1,12,1)), MAX(OFFSET(Sat!$A$10,$H100*12,4*($C$8-1)+1,12,1))) * 100 -> 24.46116667 | R100: 6.25 | S100: =VLOOKUP($R100,Sat!$A$10:$AG$2410,4*($C$8-1)+3) * 100 -> 21.852 | T100: =VLOOKUP($R100,Sat!$A$10:$AG$2410,4*($C$8-1)+4) * 100 -> 24.615 | U100: =VLOOKUP($R100,Sat!$A$10:$AG$2410,4*($C$8-1)+5) * 100 -> 26.374 | V100: =VLOOKUP($R100,Sat!$A$10:$AG$2410,4*($C$8-1)+2) * 100 -> 24.345
H101: 76 | I101: =IF($B$4="Annual Average", AVERAGE(OFFSET(Sat!$A$10,$H101*12,4*($C$8-1)+2,12,1)), MAX(OFFSET(Sat!$A$10,$H101*12,4*($C$8-1)+2,12,1))) * 100 -> 22.08391667 | J101: =IF($B$4="Annual Average", AVERAGE(OFFSET(Sat!$A$10,$H101*12,4*($C$8-1)+3,12,1)), MAX(OFFSET(Sat!$A$10,$H101*12,4*($C$8-1)+3,12,1))) * 100 -> 24.81525 | K101: =IF($B$4="Annual Average", AVERAGE(OFFSET(Sat!$A$10,$H101*12,4*($C$8-1)+4,12,1)), MAX(OFFSET(Sat!$A$10,$H101*12,4*($C$8-1)+4,12,1))) * 100 -> 26.51491667 | L101: =IF($B$4="Annual Average", AVERAGE(OFFSET(Sat!$A$10,$H101*12,4*($C$8-1)+1,12,1)), MAX(OFFSET(Sat!$A$10,$H101*12,4*($C$8-1)+1,12,1))) * 100 -> 24.482 | R101: 6.333333333 | S101: =VLOOKUP($R101,Sat!$A$10:$AG$2410,4*($C$8-1)+3) * 100 -> 21.969 | T101: =VLOOKUP($R101,Sat!$A$10:$AG$2410,4*($C$8-1)+4) * 100 -> 24.623 | U101: =VLOOKUP($R101,Sat!$A$10:$AG$2410,4*($C$8-1)+5) * 100 -> 26.117 | V101: =VLOOKUP($R101,Sat!$A$10:$AG$2410,4*($C$8-1)+2) * 100 -> 24.303
H102: 77 | I102: =IF($B$4="Annual Average", AVERAGE(OFFSET(Sat!$A$10,$H102*12,4*($C$8-1)+2,12,1)), MAX(OFFSET(Sat!$A$10,$H102*12,4*($C$8-1)+2,12,1))) * 100 -> 21.78541667 | J102: =IF($B$4="Annual Average", AVERAGE(OFFSET(Sat!$A$10,$H102*12,4*($C$8-1)+3,12,1)), MAX(OFFSET(Sat!$A$10,$H102*12,4*($C$8-1)+3,12,1))) * 100 -> 24.73 | K102: =IF($B$4="Annual Average", AVERAGE(OFFSET(Sat!$A$10,$H102*12,4*($C$8-1)+4,12,1)), MAX(OFFSET(Sat!$A$10,$H102*12,4*($C$8-1)+4,12,1))) * 100 -> 26.311 | L102: =IF($B$4="Annual Average", AVERAGE(OFFSET(Sat!$A$10,$H102*12,4*($C$8-1)+1,12,1)), MAX(OFFSET(Sat!$A$10,$H102*12,4*($C$8-1)+1,12,1))) * 100 -> 24.32275 | R102: 6.416666667 | S102: =VLOOKUP($R102,Sat!$A$10:$AG$2410,4*($C$8-1)+3) * 100 -> 21.969 | T102: =VLOOKUP($R102,Sat!$A$10:$AG$2410,4*($C$8-1)+4) * 100 -> 24.623 | U102: =VLOOKUP($R102,Sat!$A$10:$AG$2410,4*($C$8-1)+5) * 100 -> 26.117 | V102: =VLOOKUP($R102,Sat!$A$10:$AG$2410,4*($C$8-1)+2) * 100 -> 24.303
H103: 78 | I103: =IF($B$4="Annual Average", AVERAGE(OFFSET(Sat!$A$10,$H103*12,4*($C$8-1)+2,12,1)), MAX(OFFSET(Sat!$A$10,$H103*12,4*($C$8-1)+2,12,1))) * 100 -> 21.576 | J103: =IF($B$4="Annual Average", AVERAGE(OFFSET(Sat!$A$10,$H103*12,4*($C$8-1)+3,12,1)), MAX(OFFSET(Sat!$A$10,$H103*12,4*($C$8-1)+3,12,1))) * 100 -> 24.64333333 | K103: =IF($B$4="Annual Average", AVERAGE(OFFSET(Sat!$A$10,$H103*12,4*($C$8-1)+4,12,1)), MAX(OFFSET(Sat!$A$10,$H103*12,4*($C$8-1)+4,12,1))) * 100 -> 26.30933333 | L103: =IF($B$4="Annual Average", AVERAGE(OFFSET(Sat!$A$10,$H103*12,4*($C$8-1)+1,12,1)), MAX(OFFSET(Sat!$A$10,$H103*12,4*($C$8-1)+1,12,1))) * 100 -> 24.23625 | R103: 6.5 | S103: =VLOOKUP($R103,Sat!$A$10:$AG$2410,4*($C$8-1)+3) * 100 -> 21.97 | T103: =VLOOKUP($R103,Sat!$A$10:$AG$2410,4*($C$8-1)+4) * 100 -> 24.607 | U103: =VLOOKUP($R103,Sat!$A$10:$AG$2410,4*($C$8-1)+5) * 100 -> 26.044 | V103: =VLOOKUP($R103,Sat!$A$10:$AG$2410,4*($C$8-1)+2) * 100 -> 24.282
H104: 79 | I104: =IF($B$4="Annual Average", AVERAGE(OFFSET(Sat!$A$10,$H104*12,4*($C$8-1)+2,12,1)), MAX(OFFSET(Sat!$A$10,$H104*12,4*($C$8-1)+2,12,1))) * 100 -> 21.71483333 | J104: =IF($B$4="Annual Average", AVERAGE(OFFSET(Sat!$A$10,$H104*12,4*($C$8-1)+3,12,1)), MAX(OFFSET(Sat!$A$10,$H104*12,4*($C$8-1)+3,12,1))) * 100 -> 24.67091667 | K104: =IF($B$4="Annual Average", AVERAGE(OFFSET(Sat!$A$10,$H104*12,4*($C$8-1)+4,12,1)), MAX(OFFSET(Sat!$A$10,$H104*12,4*($C$8-1)+4,12,1))) * 100 -> 26.395 | L104: =IF($B$4="Annual Average", AVERAGE(OFFSET(Sat!$A$10,$H104*12,4*($C$8-1)+1,12,1)), MAX(OFFSET(Sat!$A$10,$H104*12,4*($C$8-1)+1,12,1))) * 100 -> 24.30958333 | R104: 6.583333333 | S104: =VLOOKUP($R104,Sat!$A$10:$AG$2410,4*($C$8-1)+3) * 100 -> 21.814 | T104: =VLOOKUP($R104,Sat!$A$10:$AG$2410,4*($C$8-1)+4) * 100 -> 24.551 | U104: =VLOOKUP($R104,Sat!$A$10:$AG$2410,4*($C$8-1)+5) * 100 -> 26.002 | V104: =VLOOKUP($R104,Sat!$A$10:$AG$2410,4*($C$8-1)+2) * 100 -> 24.241
H105: 80 | I105: =IF($B$4="Annual Average", AVERAGE(OFFSET(Sat!$A$10,$H105*12,4*($C$8-1)+2,12,1)), MAX(OFFSET(Sat!$A$10,$H105*12,4*($C$8-1)+2,12,1))) * 100 -> 21.72608333 | J105: =IF($B$4="Annual Average", AVERAGE(OFFSET(Sat!$A$10,$H105*12,4*($C$8-1)+3,12,1)), MAX(OFFSET(Sat!$A$10,$H105*12,4*($C$8-1)+3,12,1))) * 100 -> 24.76441667 | K105: =IF($B$4="Annual Average", AVERAGE(OFFSET(Sat!$A$10,$H105*12,4*($C$8-1)+4,12,1)), MAX(OFFSET(Sat!$A$10,$H105*12,4*($C$8-1)+4,12,1))) * 100 -> 26.461 | L105: =IF($B$4="Annual Average", AVERAGE(OFFSET(Sat!$A$10,$H105*12,4*($C$8-1)+1,12,1)), MAX(OFFSET(Sat!$A$10,$H105*12,4*($C$8-1)+1,12,1))) * 100 -> 24.34275 | R105: 6.666666667 | S105: =VLOOKUP($R105,Sat!$A$10:$AG$2410,4*($C$8-1)+3) * 100 -> 21.814 | T105: =VLOOKUP($R105,Sat!$A$10:$AG$2410,4*($C$8-1)+4) * 100 -> 24.551 | U105: =VLOOKUP($R105,Sat!$A$10:$AG$2410,4*($C$8-1)+5) * 100 -> 26.002 | V105: =VLOOKUP($R105,Sat!$A$10:$AG$2410,4*($C$8-1)+2) * 100 -> 24.241
H106: 81 | I106: =IF($B$4="Annual Average", AVERAGE(OFFSET(Sat!$A$10,$H106*12,4*($C$8-1)+2,12,1)), MAX(OFFSET(Sat!$A$10,$H106*12,4*($C$8-1)+2,12,1))) * 100 -> 21.76466667 | J106: =IF($B$4="Annual Average", AVERAGE(OFFSET(Sat!$A$10,$H106*12,4*($C$8-1)+3,12,1)), MAX(OFFSET(Sat!$A$10,$H106*12,4*($C$8-1)+3,12,1))) * 100 -> 24.65258333 | K106: =IF($B$4="Annual Average", AVERAGE(OFFSET(Sat!$A$10,$H106*12,4*($C$8-1)+4,12,1)), MAX(OFFSET(Sat!$A$10,$H106*12,4*($C$8-1)+4,12,1))) * 100 -> 26.31208333 | L106: =IF($B$4="Annual Average", AVERAGE(OFFSET(Sat!$A$10,$H106*12,4*($C$8-1)+1,12,1)), MAX(OFFSET(Sat!$A$10,$H106*12,4*($C$8-1)+1,12,1))) * 100 -> 24.26441667 | R106: 6.75 | S106: =VLOOKUP($R106,Sat!$A$10:$AG$2410,4*($C$8-1)+3) * 100 -> 21.838 | T106: =VLOOKUP($R106,Sat!$A$10:$AG$2410,4*($C$8-1)+4) * 100 -> 24.571 | U106: =VLOOKUP($R106,Sat!$A$10:$AG$2410,4*($C$8-1)+5) * 100 -> 26.061 | V106: =VLOOKUP($R106,Sat!$A$10:$AG$2410,4*($C$8-1)+2) * 100 -> 24.22
H107: 82 | I107: =IF($B$4="Annual Average", AVERAGE(OFFSET(Sat!$A$10,$H107*12,4*($C$8-1)+2,12,1)), MAX(OFFSET(Sat!$A$10,$H107*12,4*($C$8-1)+2,12,1))) * 100 -> 21.92183333 | J107: =IF($B$4="Annual Average", AVERAGE(OFFSET(Sat!$A$10,$H107*12,4*($C$8-1)+3,12,1)), MAX(OFFSET(Sat!$A$10,$H107*12,4*($C$8-1)+3,12,1))) * 100 -> 24.70316667 | K107: =IF($B$4="Annual Average", AVERAGE(OFFSET(Sat!$A$10,$H107*12,4*($C$8-1)+4,12,1)), MAX(OFFSET(Sat!$A$10,$H107*12,4*($C$8-1)+4,12,1))) * 100 -> 26.35866667 | L107: =IF($B$4="Annual Average", AVERAGE(OFFSET(Sat!$A$10,$H107*12,4*($C$8-1)+1,12,1)), MAX(OFFSET(Sat!$A$10,$H107*12,4*($C$8-1)+1,12,1))) * 100 -> 24.33016667 | R107: 6.833333333 | S107: =VLOOKUP($R107,Sat!$A$10:$AG$2410,4*($C$8-1)+3) * 100 -> 21.464 | T107: =VLOOKUP($R107,Sat!$A$10:$AG$2410,4*($C$8-1)+4) * 100 -> 24.661 | U107: =VLOOKUP($R107,Sat!$A$10:$AG$2410,4*($C$8-1)+5) * 100 -> 26.222 | V107: =VLOOKUP($R107,Sat!$A$10:$AG$2410,4*($C$8-1)+2) * 100 -> 24.179
H108: 83 | I108: =IF($B$4="Annual Average", AVERAGE(OFFSET(Sat!$A$10,$H108*12,4*($C$8-1)+2,12,1)), MAX(OFFSET(Sat!$A$10,$H108*12,4*($C$8-1)+2,12,1))) * 100 -> 21.81075 | J108: =IF($B$4="Annual Average", AVERAGE(OFFSET(Sat!$A$10,$H108*12,4*($C$8-1)+3,12,1)), MAX(OFFSET(Sat!$A$10,$H108*12,4*($C$8-1)+3,12,1))) * 100 -> 24.68758333 | K108: =IF($B$4="Annual Average", AVERAGE(OFFSET(Sat!$A$10,$H108*12,4*($C$8-1)+4,12,1)), MAX(OFFSET(Sat!$A$10,$H108*12,4*($C$8-1)+4,12,1))) * 100 -> 26.425 | L108: =IF($B$4="Annual Average", AVERAGE(OFFSET(Sat!$A$10,$H108*12,4*($C$8-1)+1,12,1)), MAX(OFFSET(Sat!$A$10,$H108*12,4*($C$8-1)+1,12,1))) * 100 -> 24.31925 | R108: 6.916666667 | S108: =VLOOKUP($R108,Sat!$A$10:$AG$2410,4*($C$8-1)+3) * 100 -> 21.464 | T108: =VLOOKUP($R108,Sat!$A$10:$AG$2410,4*($C$8-1)+4) * 100 -> 24.661 | U108: =VLOOKUP($R108,Sat!$A$10:$AG$2410,4*($C$8-1)+5) * 100 -> 26.222 | V108: =VLOOKUP($R108,Sat!$A$10:$AG$2410,4*($C$8-1)+2) * 100 -> 24.179
H109: 84 | I109: =IF($B$4="Annual Average", AVERAGE(OFFSET(Sat!$A$10,$H109*12,4*($C$8-1)+2,12,1)), MAX(OFFSET(Sat!$A$10,$H109*12,4*($C$8-1)+2,12,1))) * 100 -> 21.77025 | J109: =IF($B$4="Annual Average", AVERAGE(OFFSET(Sat!$A$10,$H109*12,4*($C$8-1)+3,12,1)), MAX(OFFSET(Sat!$A$10,$H109*12,4*($C$8-1)+3,12,1))) * 100 -> 24.62766667 | K109: =IF($B$4="Annual Average", AVERAGE(OFFSET(Sat!$A$10,$H109*12,4*($C$8-1)+4,12,1)), MAX(OFFSET(Sat!$A$10,$H109*12,4*($C$8-1)+4,12,1))) * 100 -> 26.3905 | L109: =IF($B$4="Annual Average", AVERAGE(OFFSET(Sat!$A$10,$H109*12,4*($C$8-1)+1,12,1)), MAX(OFFSET(Sat!$A$10,$H109*12,4*($C$8-1)+1,12,1))) * 100 -> 24.28933333 | R109: 7 | S109: =VLOOKUP($R109,Sat!$A$10:$AG$2410,4*($C$8-1)+3) * 100 -> 21.333 | T109: =VLOOKUP($R109,Sat!$A$10:$AG$2410,4*($C$8-1)+4) * 100 -> 24.679 | U109: =VLOOKUP($R109,Sat!$A$10:$AG$2410,4*($C$8-1)+5) * 100 -> 26.353 | V109: =VLOOKUP($R109,Sat!$A$10:$AG$2410,4*($C$8-1)+2) * 100 -> 24.159
H110: 85 | I110: =IF($B$4="Annual Average", AVERAGE(OFFSET(Sat!$A$10,$H110*12,4*($C$8-1)+2,12,1)), MAX(OFFSET(Sat!$A$10,$H110*12,4*($C$8-1)+2,12,1))) * 100 -> 21.66525 | J110: =IF($B$4="Annual Average", AVERAGE(OFFSET(Sat!$A$10,$H110*12,4*($C$8-1)+3,12,1)), MAX(OFFSET(Sat!$A$10,$H110*12,4*($C$8-1)+3,12,1))) * 100 -> 24.67583333 | K110: =IF($B$4="Annual Average", AVERAGE(OFFSET(Sat!$A$10,$H110*12,4*($C$8-1)+4,12,1)), MAX(OFFSET(Sat!$A$10,$H110*12,4*($C$8-1)+4,12,1))) * 100 -> 26.39016667 | L110: =IF($B$4="Annual Average", AVERAGE(OFFSET(Sat!$A$10,$H110*12,4*($C$8-1)+1,12,1)), MAX(OFFSET(Sat!$A$10,$H110*12,4*($C$8-1)+1,12,1))) * 100 -> 24.27908333 | R110: 7.083333333 | S110: =VLOOKUP($R110,Sat!$A$10:$AG$2410,4*($C$8-1)+3) * 100 -> 21.518 | T110: =VLOOKUP($R110,Sat!$A$10:$AG$2410,4*($C$8-1)+4) * 100 -> 24.632 | U110: =VLOOKUP($R110,Sat!$A$10:$AG$2410,4*($C$8-1)+5) * 100 -> 26.411 | V110: =VLOOKUP($R110,Sat!$A$10:$AG$2410,4*($C$8-1)+2) * 100 -> 24.156
H111: 86 | I111: =IF($B$4="Annual Average", AVERAGE(OFFSET(Sat!$A$10,$H111*12,4*($C$8-1)+2,12,1)), MAX(OFFSET(Sat!$A$10,$H111*12,4*($C$8-1)+2,12,1))) * 100 -> 21.856 | J111: =IF($B$4="Annual Average", AVERAGE(OFFSET(Sat!$A$10,$H111*12,4*($C$8-1)+3,12,1)), MAX(OFFSET(Sat!$A$10,$H111*12,4*($C$8-1)+3,12,1))) * 100 -> 24.65225 | K111: =IF($B$4="Annual Average", AVERAGE(OFFSET(Sat!$A$10,$H111*12,4*($C$8-1)+4,12,1)), MAX(OFFSET(Sat!$A$10,$H111*12,4*($C$8-1)+4,12,1))) * 100 -> 26.27933333 | L111: =IF($B$4="Annual Average", AVERAGE(OFFSET(Sat!$A$10,$H111*12,4*($C$8-1)+1,12,1)), MAX(OFFSET(Sat!$A$10,$H111*12,4*($C$8-1)+1,12,1))) * 100 -> 24.28833333 | R111: 7.166666667 | S111: =VLOOKUP($R111,Sat!$A$10:$AG$2410,4*($C$8-1)+3) * 100 -> 21.518 | T111: =VLOOKUP($R111,Sat!$A$10:$AG$2410,4*($C$8-1)+4) * 100 -> 24.632 | U111: =VLOOKUP($R111,Sat!$A$10:$AG$2410,4*($C$8-1)+5) * 100 -> 26.411 | V111: =VLOOKUP($R111,Sat!$A$10:$AG$2410,4*($C$8-1)+2) * 100 -> 24.156
H112: 87 | I112: =IF($B$4="Annual Average", AVERAGE(OFFSET(Sat!$A$10,$H112*12,4*($C$8-1)+2,12,1)), MAX(OFFSET(Sat!$A$10,$H112*12,4*($C$8-1)+2,12,1))) * 100 -> 22.03966667 | J112: =IF($B$4="Annual Average", AVERAGE(OFFSET(Sat!$A$10,$H112*12,4*($C$8-1)+3,12,1)), MAX(OFFSET(Sat!$A$10,$H112*12,4*($C$8-1)+3,12,1))) * 100 -> 24.71433333 | K112: =IF($B$4="Annual Average", AVERAGE(OFFSET(Sat!$A$10,$H112*12,4*($C$8-1)+4,12,1)), MAX(OFFSET(Sat!$A$10,$H112*12,4*($C$8-1)+4,12,1))) * 100 -> 26.41583333 | L112: =IF($B$4="Annual Average", AVERAGE(OFFSET(Sat!$A$10,$H112*12,4*($C$8-1)+1,12,1)), MAX(OFFSET(Sat!$A$10,$H112*12,4*($C$8-1)+1,12,1))) * 100 -> 24.38333333 | R112: 7.25 | S112: =VLOOKUP($R112,Sat!$A$10:$AG$2410,4*($C$8-1)+3) * 100 -> 21.566 | T112: =VLOOKUP($R112,Sat!$A$10:$AG$2410,4*($C$8-1)+4) * 100 -> 24.613 | U112: =VLOOKUP($R112,Sat!$A$10:$AG$2410,4*($C$8-1)+5) * 100 -> 26.337 | V112: =VLOOKUP($R112,Sat!$A$10:$AG$2410,4*($C$8-1)+2) * 100 -> 24.174
H113: 88 | I113: =IF($B$4="Annual Average", AVERAGE(OFFSET(Sat!$A$10,$H113*12,4*($C$8-1)+2,12,1)), MAX(OFFSET(Sat!$A$10,$H113*12,4*($C$8-1)+2,12,1))) * 100 -> 21.84133333 | J113: =IF($B$4="Annual Average", AVERAGE(OFFSET(Sat!$A$10,$H113*12,4*($C$8-1)+3,12,1)), MAX(OFFSET(Sat!$A$10,$H113*12,4*($C$8-1)+3,12,1))) * 100 -> 24.65425 | K113: =IF($B$4="Annual Average", AVERAGE(OFFSET(Sat!$A$10,$H113*12,4*($C$8-1)+4,12,1)), MAX(OFFSET(Sat!$A$10,$H113*12,4*($C$8-1)+4,12,1))) * 100 -> 26.41383333 | L113: =IF($B$4="Annual Average", AVERAGE(OFFSET(Sat!$A$10,$H113*12,4*($C$8-1)+1,12,1)), MAX(OFFSET(Sat!$A$10,$H113*12,4*($C$8-1)+1,12,1))) * 100 -> 24.31691667 | R113: 7.333333333 | S113: =VLOOKUP($R113,Sat!$A$10:$AG$2410,4*($C$8-1)+3) * 100 -> 21.776 | T113: =VLOOKUP($R113,Sat!$A$10:$AG$2410,4*($C$8-1)+4) * 100 -> 24.55 | U113: =VLOOKUP($R113,Sat!$A$10:$AG$2410,4*($C$8-1)+5) * 100 -> 26.083 | V113: =VLOOKUP($R113,Sat!$A$10:$AG$2410,4*($C$8-1)+2) * 100 -> 24.209
H114: 89 | I114: =IF($B$4="Annual Average", AVERAGE(OFFSET(Sat!$A$10,$H114*12,4*($C$8-1)+2,12,1)), MAX(OFFSET(Sat!$A$10,$H114*12,4*($C$8-1)+2,12,1))) * 100 -> 21.94158333 | J114: =IF($B$4="Annual Average", AVERAGE(OFFSET(Sat!$A$10,$H114*12,4*($C$8-1)+3,12,1)), MAX(OFFSET(Sat!$A$10,$H114*12,4*($C$8-1)+3,12,1))) * 100 -> 24.65658333 | K114: =IF($B$4="Annual Average", AVERAGE(OFFSET(Sat!$A$10,$H114*12,4*($C$8-1)+4,12,1)), MAX(OFFSET(Sat!$A$10,$H114*12,4*($C$8-1)+4,12,1))) * 100 -> 26.35175 | L114: =IF($B$4="Annual Average", AVERAGE(OFFSET(Sat!$A$10,$H114*12,4*($C$8-1)+1,12,1)), MAX(OFFSET(Sat!$A$10,$H114*12,4*($C$8-1)+1,12,1))) * 100 -> 24.31966667 | R114: 7.416666667 | S114: =VLOOKUP($R114,Sat!$A$10:$AG$2410,4*($C$8-1)+3) * 100 -> 21.776 | T114: =VLOOKUP($R114,Sat!$A$10:$AG$2410,4*($C$8-1)+4) * 100 -> 24.55 | U114: =VLOOKUP($R114,Sat!$A$10:$AG$2410,4*($C$8-1)+5) * 100 -> 26.083 | V114: =VLOOKUP($R114,Sat!$A$10:$AG$2410,4*($C$8-1)+2) * 100 -> 24.209
H115: 90 | I115: =IF($B$4="Annual Average", AVERAGE(OFFSET(Sat!$A$10,$H115*12,4*($C$8-1)+2,12,1)), MAX(OFFSET(Sat!$A$10,$H115*12,4*($C$8-1)+2,12,1))) * 100 -> 22.05358333 | J115: =IF($B$4="Annual Average", AVERAGE(OFFSET(Sat!$A$10,$H115*12,4*($C$8-1)+3,12,1)), MAX(OFFSET(Sat!$A$10,$H115*12,4*($C$8-1)+3,12,1))) * 100 -> 24.74825 | K115: =IF($B$4="Annual Average", AVERAGE(OFFSET(Sat!$A$10,$H115*12,4*($C$8-1)+4,12,1)), MAX(OFFSET(Sat!$A$10,$H115*12,4*($C$8-1)+4,12,1))) * 100 -> 26.32075 | L115: =IF($B$4="Annual Average", AVERAGE(OFFSET(Sat!$A$10,$H115*12,4*($C$8-1)+1,12,1)), MAX(OFFSET(Sat!$A$10,$H115*12,4*($C$8-1)+1,12,1))) * 100 -> 24.3815 | R115: 7.5 | S115: =VLOOKUP($R115,Sat!$A$10:$AG$2410,4*($C$8-1)+3) * 100 -> 21.727 | T115: =VLOOKUP($R115,Sat!$A$10:$AG$2410,4*($C$8-1)+4) * 100 -> 24.533 | U115: =VLOOKUP($R115,Sat!$A$10:$AG$2410,4*($C$8-1)+5) * 100 -> 26.038 | V115: =VLOOKUP($R115,Sat!$A$10:$AG$2410,4*($C$8-1)+2) * 100 -> 24.227
H116: 91 | I116: =IF($B$4="Annual Average", AVERAGE(OFFSET(Sat!$A$10,$H116*12,4*($C$8-1)+2,12,1)), MAX(OFFSET(Sat!$A$10,$H116*12,4*($C$8-1)+2,12,1))) * 100 -> 21.94708333 | J116: =IF($B$4="Annual Average", AVERAGE(OFFSET(Sat!$A$10,$H116*12,4*($C$8-1)+3,12,1)), MAX(OFFSET(Sat!$A$10,$H116*12,4*($C$8-1)+3,12,1))) * 100 -> 24.653 | K116: =IF($B$4="Annual Average", AVERAGE(OFFSET(Sat!$A$10,$H116*12,4*($C$8-1)+4,12,1)), MAX(OFFSET(Sat!$A$10,$H116*12,4*($C$8-1)+4,12,1))) * 100 -> 26.36025 | L116: =IF($B$4="Annual Average", AVERAGE(OFFSET(Sat!$A$10,$H116*12,4*($C$8-1)+1,12,1)), MAX(OFFSET(Sat!$A$10,$H116*12,4*($C$8-1)+1,12,1))) * 100 -> 24.32441667 | R116: 7.583333333 | S116: =VLOOKUP($R116,Sat!$A$10:$AG$2410,4*($C$8-1)+3) * 100 -> 22.052 | T116: =VLOOKUP($R116,Sat!$A$10:$AG$2410,4*($C$8-1)+4) * 100 -> 24.557 | U116: =VLOOKUP($R116,Sat!$A$10:$AG$2410,4*($C$8-1)+5) * 100 -> 26.095 | V116: =VLOOKUP($R116,Sat!$A$10:$AG$2410,4*($C$8-1)+2) * 100 -> 24.263
H117: 92 | I117: =IF($B$4="Annual Average", AVERAGE(OFFSET(Sat!$A$10,$H117*12,4*($C$8-1)+2,12,1)), MAX(OFFSET(Sat!$A$10,$H117*12,4*($C$8-1)+2,12,1))) * 100 -> 22.13375 | J117: =IF($B$4="Annual Average", AVERAGE(OFFSET(Sat!$A$10,$H117*12,4*($C$8-1)+3,12,1)), MAX(OFFSET(Sat!$A$10,$H117*12,4*($C$8-1)+3,12,1))) * 100 -> 24.76033333 | K117: =IF($B$4="Annual Average", AVERAGE(OFFSET(Sat!$A$10,$H117*12,4*($C$8-1)+4,12,1)), MAX(OFFSET(Sat!$A$10,$H117*12,4*($C$8-1)+4,12,1))) * 100 -> 26.38666667 | L117: =IF($B$4="Annual Average", AVERAGE(OFFSET(Sat!$A$10,$H117*12,4*($C$8-1)+1,12,1)), MAX(OFFSET(Sat!$A$10,$H117*12,4*($C$8-1)+1,12,1))) * 100 -> 24.43341667 | R117: 7.666666667 | S117: =VLOOKUP($R117,Sat!$A$10:$AG$2410,4*($C$8-1)+3) * 100 -> 22.052 | T117: =VLOOKUP($R117,Sat!$A$10:$AG$2410,4*($C$8-1)+4) * 100 -> 24.557 | U117: =VLOOKUP($R117,Sat!$A$10:$AG$2410,4*($C$8-1)+5) * 100 -> 26.095 | V117: =VLOOKUP($R117,Sat!$A$10:$AG$2410,4*($C$8-1)+2) * 100 -> 24.263
H118: 93 | I118: =IF($B$4="Annual Average", AVERAGE(OFFSET(Sat!$A$10,$H118*12,4*($C$8-1)+2,12,1)), MAX(OFFSET(Sat!$A$10,$H118*12,4*($C$8-1)+2,12,1))) * 100 -> 21.75658333 | J118: =IF($B$4="Annual Average", AVERAGE(OFFSET(Sat!$A$10,$H118*12,4*($C$8-1)+3,12,1)), MAX(OFFSET(Sat!$A$10,$H118*12,4*($C$8-1)+3,12,1))) * 100 -> 24.71466667 | K118: =IF($B$4="Annual Average", AVERAGE(OFFSET(Sat!$A$10,$H118*12,4*($C$8-1)+4,12,1)), MAX(OFFSET(Sat!$A$10,$H118*12,4*($C$8-1)+4,12,1))) * 100 -> 26.36416667 | L118: =IF($B$4="Annual Average", AVERAGE(OFFSET(Sat!$A$10,$H118*12,4*($C$8-1)+1,12,1)), MAX(OFFSET(Sat!$A$10,$H118*12,4*($C$8-1)+1,12,1))) * 100 -> 24.32425 | R118: 7.75 | S118: =VLOOKUP($R118,Sat!$A$10:$AG$2410,4*($C$8-1)+3) * 100 -> 22.12 | T118: =VLOOKUP($R118,Sat!$A$10:$AG$2410,4*($C$8-1)+4) * 100 -> 24.579 | U118: =VLOOKUP($R118,Sat!$A$10:$AG$2410,4*($C$8-1)+5) * 100 -> 26.178 | V118: =VLOOKUP($R118,Sat!$A$10:$AG$2410,4*($C$8-1)+2) * 100 -> 24.281
H119: 94 | I119: =IF($B$4="Annual Average", AVERAGE(OFFSET(Sat!$A$10,$H119*12,4*($C$8-1)+2,12,1)), MAX(OFFSET(Sat!$A$10,$H119*12,4*($C$8-1)+2,12,1))) * 100 -> 21.7595 | J119: =IF($B$4="Annual Average", AVERAGE(OFFSET(Sat!$A$10,$H119*12,4*($C$8-1)+3,12,1)), MAX(OFFSET(Sat!$A$10,$H119*12,4*($C$8-1)+3,12,1))) * 100 -> 24.53166667 | K119: =IF($B$4="Annual Average", AVERAGE(OFFSET(Sat!$A$10,$H119*12,4*($C$8-1)+4,12,1)), MAX(OFFSET(Sat!$A$10,$H119*12,4*($C$8-1)+4,12,1))) * 100 -> 26.35825 | L119: =IF($B$4="Annual Average", AVERAGE(OFFSET(Sat!$A$10,$H119*12,4*($C$8-1)+1,12,1)), MAX(OFFSET(Sat!$A$10,$H119*12,4*($C$8-1)+1,12,1))) * 100 -> 24.22633333 | R119: 7.833333333 | S119: =VLOOKUP($R119,Sat!$A$10:$AG$2410,4*($C$8-1)+3) * 100 -> 22.047 | T119: =VLOOKUP($R119,Sat!$A$10:$AG$2410,4*($C$8-1)+4) * 100 -> 24.699 | U119: =VLOOKUP($R119,Sat!$A$10:$AG$2410,4*($C$8-1)+5) * 100 -> 26.298 | V119: =VLOOKUP($R119,Sat!$A$10:$AG$2410,4*($C$8-1)+2) * 100 -> 24.316
H120: 95 | I120: =IF($B$4="Annual Average", AVERAGE(OFFSET(Sat!$A$10,$H120*12,4*($C$8-1)+2,12,1)), MAX(OFFSET(Sat!$A$10,$H120*12,4*($C$8-1)+2,12,1))) * 100 -> 21.95808333 | J120: =IF($B$4="Annual Average", AVERAGE(OFFSET(Sat!$A$10,$H120*12,4*($C$8-1)+3,12,1)), MAX(OFFSET(Sat!$A$10,$H120*12,4*($C$8-1)+3,12,1))) * 100 -> 24.661 | K120: =IF($B$4="Annual Average", AVERAGE(OFFSET(Sat!$A$10,$H120*12,4*($C$8-1)+4,12,1)), MAX(OFFSET(Sat!$A$10,$H120*12,4*($C$8-1)+4,12,1))) * 100 -> 26.33041667 | L120: =IF($B$4="Annual Average", AVERAGE(OFFSET(Sat!$A$10,$H120*12,4*($C$8-1)+1,12,1)), MAX(OFFSET(Sat!$A$10,$H120*12,4*($C$8-1)+1,12,1))) * 100 -> 24.314 | R120: 7.916666667 | S120: =VLOOKUP($R120,Sat!$A$10:$AG$2410,4*($C$8-1)+3) * 100 -> 22.047 | T120: =VLOOKUP($R120,Sat!$A$10:$AG$2410,4*($C$8-1)+4) * 100 -> 24.699 | U120: =VLOOKUP($R120,Sat!$A$10:$AG$2410,4*($C$8-1)+5) * 100 -> 26.298 | V120: =VLOOKUP($R120,Sat!$A$10:$AG$2410,4*($C$8-1)+2) * 100 -> 24.316
H121: 96 | I121: =IF($B$4="Annual Average", AVERAGE(OFFSET(Sat!$A$10,$H121*12,4*($C$8-1)+2,12,1)), MAX(OFFSET(Sat!$A$10,$H121*12,4*($C$8-1)+2,12,1))) * 100 -> 22.06933333 | J121: =IF($B$4="Annual Average", AVERAGE(OFFSET(Sat!$A$10,$H121*12,4*($C$8-1)+3,12,1)), MAX(OFFSET(Sat!$A$10,$H121*12,4*($C$8-1)+3,12,1))) * 100 -> 24.69158333 | K121: =IF($B$4="Annual Average", AVERAGE(OFFSET(Sat!$A$10,$H121*12,4*($C$8-1)+4,12,1)), MAX(OFFSET(Sat!$A$10,$H121*12,4*($C$8-1)+4,12,1))) * 100 -> 26.43066667 | L121: =IF($B$4="Annual Average", AVERAGE(OFFSET(Sat!$A$10,$H121*12,4*($C$8-1)+1,12,1)), MAX(OFFSET(Sat!$A$10,$H121*12,4*($C$8-1)+1,12,1))) * 100 -> 24.36725 | R121: 8 | S121: =VLOOKUP($R121,Sat!$A$10:$AG$2410,4*($C$8-1)+3) * 100 -> 21.776 | T121: =VLOOKUP($R121,Sat!$A$10:$AG$2410,4*($C$8-1)+4) * 100 -> 24.759 | U121: =VLOOKUP($R121,Sat!$A$10:$AG$2410,4*($C$8-1)+5) * 100 -> 26.443 | V121: =VLOOKUP($R121,Sat!$A$10:$AG$2410,4*($C$8-1)+2) * 100 -> 24.334
H122: 97 | I122: =IF($B$4="Annual Average", AVERAGE(OFFSET(Sat!$A$10,$H122*12,4*($C$8-1)+2,12,1)), MAX(OFFSET(Sat!$A$10,$H122*12,4*($C$8-1)+2,12,1))) * 100 -> 22.05333333 | J122: =IF($B$4="Annual Average", AVERAGE(OFFSET(Sat!$A$10,$H122*12,4*($C$8-1)+3,12,1)), MAX(OFFSET(Sat!$A$10,$H122*12,4*($C$8-1)+3,12,1))) * 100 -> 24.73375 | K122: =IF($B$4="Annual Average", AVERAGE(OFFSET(Sat!$A$10,$H122*12,4*($C$8-1)+4,12,1)), MAX(OFFSET(Sat!$A$10,$H122*12,4*($C$8-1)+4,12,1))) * 100 -> 26.36433333 | L122: =IF($B$4="Annual Average", AVERAGE(OFFSET(Sat!$A$10,$H122*12,4*($C$8-1)+1,12,1)), MAX(OFFSET(Sat!$A$10,$H122*12,4*($C$8-1)+1,12,1))) * 100 -> 24.40841667 | R122: 8.083333333 | S122: =VLOOKUP($R122,Sat!$A$10:$AG$2410,4*($C$8-1)+3) * 100 -> 21.64 | T122: =VLOOKUP($R122,Sat!$A$10:$AG$2410,4*($C$8-1)+4) * 100 -> 24.719 | U122: =VLOOKUP($R122,Sat!$A$10:$AG$2410,4*($C$8-1)+5) * 100 -> 26.368 | V122: =VLOOKUP($R122,Sat!$A$10:$AG$2410,4*($C$8-1)+2) * 100 -> 24.342
H123: 98 | I123: =IF($B$4="Annual Average", AVERAGE(OFFSET(Sat!$A$10,$H123*12,4*($C$8-1)+2,12,1)), MAX(OFFSET(Sat!$A$10,$H123*12,4*($C$8-1)+2,12,1))) * 100 -> 21.97875 | J123: =IF($B$4="Annual Average", AVERAGE(OFFSET(Sat!$A$10,$H123*12,4*($C$8-1)+3,12,1)), MAX(OFFSET(Sat!$A$10,$H123*12,4*($C$8-1)+3,12,1))) * 100 -> 24.67141667 | K123: =IF($B$4="Annual Average", AVERAGE(OFFSET(Sat!$A$10,$H123*12,4*($C$8-1)+4,12,1)), MAX(OFFSET(Sat!$A$10,$H123*12,4*($C$8-1)+4,12,1))) * 100 -> 26.37483333 | L123: =IF($B$4="Annual Average", AVERAGE(OFFSET(Sat!$A$10,$H123*12,4*($C$8-1)+1,12,1)), MAX(OFFSET(Sat!$A$10,$H123*12,4*($C$8-1)+1,12,1))) * 100 -> 24.381 | R123: 8.166666667 | S123: =VLOOKUP($R123,Sat!$A$10:$AG$2410,4*($C$8-1)+3) * 100 -> 21.64 | T123: =VLOOKUP($R123,Sat!$A$10:$AG$2410,4*($C$8-1)+4) * 100 -> 24.719 | U123: =VLOOKUP($R123,Sat!$A$10:$AG$2410,4*($C$8-1)+5) * 100 -> 26.368 | V123: =VLOOKUP($R123,Sat!$A$10:$AG$2410,4*($C$8-1)+2) * 100 -> 24.342
H124: 99 | I124: =IF($B$4="Annual Average", AVERAGE(OFFSET(Sat!$A$10,$H124*12,4*($C$8-1)+2,12,1)), MAX(OFFSET(Sat!$A$10,$H124*12,4*($C$8-1)+2,12,1))) * 100 -> 22.26083333 | J124: =IF($B$4="Annual Average", AVERAGE(OFFSET(Sat!$A$10,$H124*12,4*($C$8-1)+3,12,1)), MAX(OFFSET(Sat!$A$10,$H124*12,4*($C$8-1)+3,12,1))) * 100 -> 24.73575 | K124: =IF($B$4="Annual Average", AVERAGE(OFFSET(Sat!$A$10,$H124*12,4*($C$8-1)+4,12,1)), MAX(OFFSET(Sat!$A$10,$H124*12,4*($C$8-1)+4,12,1))) * 100 -> 26.40733333 | L124: =IF($B$4="Annual Average", AVERAGE(OFFSET(Sat!$A$10,$H124*12,4*($C$8-1)+1,12,1)), MAX(OFFSET(Sat!$A$10,$H124*12,4*($C$8-1)+1,12,1))) * 100 -> 24.45791667 | R124: 8.25 | S124: =VLOOKUP($R124,Sat!$A$10:$AG$2410,4*($C$8-1)+3) * 100 -> 21.733 | T124: =VLOOKUP($R124,Sat!$A$10:$AG$2410,4*($C$8-1)+4) * 100 -> 24.74 | U124: =VLOOKUP($R124,Sat!$A$10:$AG$2410,4*($C$8-1)+5) * 100 -> 26.258 | V124: =VLOOKUP($R124,Sat!$A$10:$AG$2410,4*($C$8-1)+2) * 100 -> 24.332
H125: 100 | I125: =IF($B$4="Annual Average", AVERAGE(OFFSET(Sat!$A$10,$H125*12,4*($C$8-1)+2,12,1)), MAX(OFFSET(Sat!$A$10,$H125*12,4*($C$8-1)+2,12,1))) * 100 -> 22.29916667 | J125: =IF($B$4="Annual Average", AVERAGE(OFFSET(Sat!$A$10,$H125*12,4*($C$8-1)+3,12,1)), MAX(OFFSET(Sat!$A$10,$H125*12,4*($C$8-1)+3,12,1))) * 100 -> 24.75616667 | K125: =IF($B$4="Annual Average", AVERAGE(OFFSET(Sat!$A$10,$H125*12,4*($C$8-1)+4,12,1)), MAX(OFFSET(Sat!$A$10,$H125*12,4*($C$8-1)+4,12,1))) * 100 -> 26.47225 | L125: =IF($B$4="Annual Average", AVERAGE(OFFSET(Sat!$A$10,$H125*12,4*($C$8-1)+1,12,1)), MAX(OFFSET(Sat!$A$10,$H125*12,4*($C$8-1)+1,12,1))) * 100 -> 24.49475 | R125: 8.333333333 | S125: =VLOOKUP($R125,Sat!$A$10:$AG$2410,4*($C$8-1)+3) * 100 -> 22.071 | T125: =VLOOKUP($R125,Sat!$A$10:$AG$2410,4*($C$8-1)+4) * 100 -> 24.716 | U125: =VLOOKUP($R125,Sat!$A$10:$AG$2410,4*($C$8-1)+5) * 100 -> 26.145 | V125: =VLOOKUP($R125,Sat!$A$10:$AG$2410,4*($C$8-1)+2) * 100 -> 24.313
H126: 101 | I126: =IF($B$4="Annual Average", AVERAGE(OFFSET(Sat!$A$10,$H126*12,4*($C$8-1)+2,12,1)), MAX(OFFSET(Sat!$A$10,$H126*12,4*($C$8-1)+2,12,1))) * 100 -> 21.92191667 | J126: =IF($B$4="Annual Average", AVERAGE(OFFSET(Sat!$A$10,$H126*12,4*($C$8-1)+3,12,1)), MAX(OFFSET(Sat!$A$10,$H126*12,4*($C$8-1)+3,12,1))) * 100 -> 24.71041667 | K126: =IF($B$4="Annual Average", AVERAGE(OFFSET(Sat!$A$10,$H126*12,4*($C$8-1)+4,12,1)), MAX(OFFSET(Sat!$A$10,$H126*12,4*($C$8-1)+4,12,1))) * 100 -> 26.44325 | L126: =IF($B$4="Annual Average", AVERAGE(OFFSET(Sat!$A$10,$H126*12,4*($C$8-1)+1,12,1)), MAX(OFFSET(Sat!$A$10,$H126*12,4*($C$8-1)+1,12,1))) * 100 -> 24.38383333 | R126: 8.416666667 | S126: =VLOOKUP($R126,Sat!$A$10:$AG$2410,4*($C$8-1)+3) * 100 -> 22.071 | T126: =VLOOKUP($R126,Sat!$A$10:$AG$2410,4*($C$8-1)+4) * 100 -> 24.716 | U126: =VLOOKUP($R126,Sat!$A$10:$AG$2410,4*($C$8-1)+5) * 100 -> 26.145 | V126: =VLOOKUP($R126,Sat!$A$10:$AG$2410,4*($C$8-1)+2) * 100 -> 24.313
H127: 102 | I127: =IF($B$4="Annual Average", AVERAGE(OFFSET(Sat!$A$10,$H127*12,4*($C$8-1)+2,12,1)), MAX(OFFSET(Sat!$A$10,$H127*12,4*($C$8-1)+2,12,1))) * 100 -> 21.3835 | J127: =IF($B$4="Annual Average", AVERAGE(OFFSET(Sat!$A$10,$H127*12,4*($C$8-1)+3,12,1)), MAX(OFFSET(Sat!$A$10,$H127*12,4*($C$8-1)+3,12,1))) * 100 -> 24.75 | K127: =IF($B$4="Annual Average", AVERAGE(OFFSET(Sat!$A$10,$H127*12,4*($C$8-1)+4,12,1)), MAX(OFFSET(Sat!$A$10,$H127*12,4*($C$8-1)+4,12,1))) * 100 -> 26.50066667 | L127: =IF($B$4="Annual Average", AVERAGE(OFFSET(Sat!$A$10,$H127*12,4*($C$8-1)+1,12,1)), MAX(OFFSET(Sat!$A$10,$H127*12,4*($C$8-1)+1,12,1))) * 100 -> 24.2925 | R127: 8.5 | S127: =VLOOKUP($R127,Sat!$A$10:$AG$2410,4*($C$8-1)+3) * 100 -> 21.895 | T127: =VLOOKUP($R127,Sat!$A$10:$AG$2410,4*($C$8-1)+4) * 100 -> 24.698 | U127: =VLOOKUP($R127,Sat!$A$10:$AG$2410,4*($C$8-1)+5) * 100 -> 26.147 | V127: =VLOOKUP($R127,Sat!$A$10:$AG$2410,4*($C$8-1)+2) * 100 -> 24.303
H128: 103 | I128: =IF($B$4="Annual Average", AVERAGE(OFFSET(Sat!$A$10,$H128*12,4*($C$8-1)+2,12,1)), MAX(OFFSET(Sat!$A$10,$H128*12,4*($C$8-1)+2,12,1))) * 100 -> 21.62008333 | J128: =IF($B$4="Annual Average", AVERAGE(OFFSET(Sat!$A$10,$H128*12,4*($C$8-1)+3,12,1)), MAX(OFFSET(Sat!$A$10,$H128*12,4*($C$8-1)+3,12,1))) * 100 -> 24.79991667 | K128: =IF($B$4="Annual Average", AVERAGE(OFFSET(Sat!$A$10,$H128*12,4*($C$8-1)+4,12,1)), MAX(OFFSET(Sat!$A$10,$H128*12,4*($C$8-1)+4,12,1))) * 100 -> 26.44183333 | L128: =IF($B$4="Annual Average", AVERAGE(OFFSET(Sat!$A$10,$H128*12,4*($C$8-1)+1,12,1)), MAX(OFFSET(Sat!$A$10,$H128*12,4*($C$8-1)+1,12,1))) * 100 -> 24.33708333 | R128: 8.583333333 | S128: =VLOOKUP($R128,Sat!$A$10:$AG$2410,4*($C$8-1)+3) * 100 -> 21.696 | T128: =VLOOKUP($R128,Sat!$A$10:$AG$2410,4*($C$8-1)+4) * 100 -> 24.717 | U128: =VLOOKUP($R128,Sat!$A$10:$AG$2410,4*($C$8-1)+5) * 100 -> 26.273 | V128: =VLOOKUP($R128,Sat!$A$10:$AG$2410,4*($C$8-1)+2) * 100 -> 24.283
H129: 104 | I129: =IF($B$4="Annual Average", AVERAGE(OFFSET(Sat!$A$10,$H129*12,4*($C$8-1)+2,12,1)), MAX(OFFSET(Sat!$A$10,$H129*12,4*($C$8-1)+2,12,1))) * 100 -> 21.90416667 | J129: =IF($B$4="Annual Average", AVERAGE(OFFSET(Sat!$A$10,$H129*12,4*($C$8-1)+3,12,1)), MAX(OFFSET(Sat!$A$10,$H129*12,4*($C$8-1)+3,12,1))) * 100 -> 24.68208333 | K129: =IF($B$4="Annual Average", AVERAGE(OFFSET(Sat!$A$10,$H129*12,4*($C$8-1)+4,12,1)), MAX(OFFSET(Sat!$A$10,$H129*12,4*($C$8-1)+4,12,1))) * 100 -> 26.38891667 | L129: =IF($B$4="Annual Average", AVERAGE(OFFSET(Sat!$A$10,$H129*12,4*($C$8-1)+1,12,1)), MAX(OFFSET(Sat!$A$10,$H129*12,4*($C$8-1)+1,12,1))) * 100 -> 24.32625 | R129: 8.666666667 | S129: =VLOOKUP($R129,Sat!$A$10:$AG$2410,4*($C$8-1)+3) * 100 -> 21.696 | T129: =VLOOKUP($R129,Sat!$A$10:$AG$2410,4*($C$8-1)+4) * 100 -> 24.717 | U129: =VLOOKUP($R129,Sat!$A$10:$AG$2410,4*($C$8-1)+5) * 100 -> 26.273 | V129: =VLOOKUP($R129,Sat!$A$10:$AG$2410,4*($C$8-1)+2) * 100 -> 24.283
H130: 105 | I130: =IF($B$4="Annual Average", AVERAGE(OFFSET(Sat!$A$10,$H130*12,4*($C$8-1)+2,12,1)), MAX(OFFSET(Sat!$A$10,$H130*12,4*($C$8-1)+2,12,1))) * 100 -> 21.65975 | J130: =IF($B$4="Annual Average", AVERAGE(OFFSET(Sat!$A$10,$H130*12,4*($C$8-1)+3,12,1)), MAX(OFFSET(Sat!$A$10,$H130*12,4*($C$8-1)+3,12,1))) * 100 -> 24.5985 | K130: =IF($B$4="Annual Average", AVERAGE(OFFSET(Sat!$A$10,$H130*12,4*($C$8-1)+4,12,1)), MAX(OFFSET(Sat!$A$10,$H130*12,4*($C$8-1)+4,12,1))) * 100 -> 26.48083333 | L130: =IF($B$4="Annual Average", AVERAGE(OFFSET(Sat!$A$10,$H130*12,4*($C$8-1)+1,12,1)), MAX(OFFSET(Sat!$A$10,$H130*12,4*($C$8-1)+1,12,1))) * 100 -> 24.274 | R130: 8.75 | S130: =VLOOKUP($R130,Sat!$A$10:$AG$2410,4*($C$8-1)+3) * 100 -> 21.622 | T130: =VLOOKUP($R130,Sat!$A$10:$AG$2410,4*($C$8-1)+4) * 100 -> 24.734 | U130: =VLOOKUP($R130,Sat!$A$10:$AG$2410,4*($C$8-1)+5) * 100 -> 26.324 | V130: =VLOOKUP($R130,Sat!$A$10:$AG$2410,4*($C$8-1)+2) * 100 -> 24.274
H131: 106 | I131: =IF($B$4="Annual Average", AVERAGE(OFFSET(Sat!$A$10,$H131*12,4*($C$8-1)+2,12,1)), MAX(OFFSET(Sat!$A$10,$H131*12,4*($C$8-1)+2,12,1))) * 100 -> 21.65725 | J131: =IF($B$4="Annual Average", AVERAGE(OFFSET(Sat!$A$10,$H131*12,4*($C$8-1)+3,12,1)), MAX(OFFSET(Sat!$A$10,$H131*12,4*($C$8-1)+3,12,1))) * 100 -> 24.61883333 | K131: =IF($B$4="Annual Average", AVERAGE(OFFSET(Sat!$A$10,$H131*12,4*($C$8-1)+4,12,1)), MAX(OFFSET(Sat!$A$10,$H131*12,4*($C$8-1)+4,12,1))) * 100 -> 26.34925 | L131: =IF($B$4="Annual Average", AVERAGE(OFFSET(Sat!$A$10,$H131*12,4*($C$8-1)+1,12,1)), MAX(OFFSET(Sat!$A$10,$H131*12,4*($C$8-1)+1,12,1))) * 100 -> 24.22925 | R131: 8.833333333 | S131: =VLOOKUP($R131,Sat!$A$10:$AG$2410,4*($C$8-1)+3) * 100 -> 21.064 | T131: =VLOOKUP($R131,Sat!$A$10:$AG$2410,4*($C$8-1)+4) * 100 -> 24.784 | U131: =VLOOKUP($R131,Sat!$A$10:$AG$2410,4*($C$8-1)+5) * 100 -> 26.465 | V131: =VLOOKUP($R131,Sat!$A$10:$AG$2410,4*($C$8-1)+2) * 100 -> 24.254
H132: 107 | I132: =IF($B$4="Annual Average", AVERAGE(OFFSET(Sat!$A$10,$H132*12,4*($C$8-1)+2,12,1)), MAX(OFFSET(Sat!$A$10,$H132*12,4*($C$8-1)+2,12,1))) * 100 -> 21.65183333 | J132: =IF($B$4="Annual Average", AVERAGE(OFFSET(Sat!$A$10,$H132*12,4*($C$8-1)+3,12,1)), MAX(OFFSET(Sat!$A$10,$H132*12,4*($C$8-1)+3,12,1))) * 100 -> 24.65225 | K132: =IF($B$4="Annual Average", AVERAGE(OFFSET(Sat!$A$10,$H132*12,4*($C$8-1)+4,12,1)), MAX(OFFSET(Sat!$A$10,$H132*12,4*($C$8-1)+4,12,1))) * 100 -> 26.45383333 | L132: =IF($B$4="Annual Average", AVERAGE(OFFSET(Sat!$A$10,$H132*12,4*($C$8-1)+1,12,1)), MAX(OFFSET(Sat!$A$10,$H132*12,4*($C$8-1)+1,12,1))) * 100 -> 24.28691667 | R132: 8.916666667 | S132: =VLOOKUP($R132,Sat!$A$10:$AG$2410,4*($C$8-1)+3) * 100 -> 21.064 | T132: =VLOOKUP($R132,Sat!$A$10:$AG$2410,4*($C$8-1)+4) * 100 -> 24.784 | U132: =VLOOKUP($R132,Sat!$A$10:$AG$2410,4*($C$8-1)+5) * 100 -> 26.465 | V132: =VLOOKUP($R132,Sat!$A$10:$AG$2410,4*($C$8-1)+2) * 100 -> 24.254
H133: 108 | I133: =IF($B$4="Annual Average", AVERAGE(OFFSET(Sat!$A$10,$H133*12,4*($C$8-1)+2,12,1)), MAX(OFFSET(Sat!$A$10,$H133*12,4*($C$8-1)+2,12,1))) * 100 -> 21.96841667 | J133: =IF($B$4="Annual Average", AVERAGE(OFFSET(Sat!$A$10,$H133*12,4*($C$8-1)+3,12,1)), MAX(OFFSET(Sat!$A$10,$H133*12,4*($C$8-1)+3,12,1))) * 100 -> 24.67641667 | K133: =IF($B$4="Annual Average", AVERAGE(OFFSET(Sat!$A$10,$H133*12,4*($C$8-1)+4,12,1)), MAX(OFFSET(Sat!$A$10,$H133*12,4*($C$8-1)+4,12,1))) * 100 -> 26.41216667 | L133: =IF($B$4="Annual Average", AVERAGE(OFFSET(Sat!$A$10,$H133*12,4*($C$8-1)+1,12,1)), MAX(OFFSET(Sat!$A$10,$H133*12,4*($C$8-1)+1,12,1))) * 100 -> 24.34008333 | R133: 9 | S133: =VLOOKUP($R133,Sat!$A$10:$AG$2410,4*($C$8-1)+3) * 100 -> 20.801 | T133: =VLOOKUP($R133,Sat!$A$10:$AG$2410,4*($C$8-1)+4) * 100 -> 24.867 | U133: =VLOOKUP($R133,Sat!$A$10:$AG$2410,4*($C$8-1)+5) * 100 -> 26.612 | V133: =VLOOKUP($R133,Sat!$A$10:$AG$2410,4*($C$8-1)+2) * 100 -> 24.244
H134: 109 | I134: =IF($B$4="Annual Average", AVERAGE(OFFSET(Sat!$A$10,$H134*12,4*($C$8-1)+2,12,1)), MAX(OFFSET(Sat!$A$10,$H134*12,4*($C$8-1)+2,12,1))) * 100 -> 21.91291667 | J134: =IF($B$4="Annual Average", AVERAGE(OFFSET(Sat!$A$10,$H134*12,4*($C$8-1)+3,12,1)), MAX(OFFSET(Sat!$A$10,$H134*12,4*($C$8-1)+3,12,1))) * 100 -> 24.64925 | K134: =IF($B$4="Annual Average", AVERAGE(OFFSET(Sat!$A$10,$H134*12,4*($C$8-1)+4,12,1)), MAX(OFFSET(Sat!$A$10,$H134*12,4*($C$8-1)+4,12,1))) * 100 -> 26.35525 | L134: =IF($B$4="Annual Average", AVERAGE(OFFSET(Sat!$A$10,$H134*12,4*($C$8-1)+1,12,1)), MAX(OFFSET(Sat!$A$10,$H134*12,4*($C$8-1)+1,12,1))) * 100 -> 24.31108333 | R134: 9.083333333 | S134: =VLOOKUP($R134,Sat!$A$10:$AG$2410,4*($C$8-1)+3) * 100 -> 20.816 | T134: =VLOOKUP($R134,Sat!$A$10:$AG$2410,4*($C$8-1)+4) * 100 -> 24.862 | U134: =VLOOKUP($R134,Sat!$A$10:$AG$2410,4*($C$8-1)+5) * 100 -> 26.612 | V134: =VLOOKUP($R134,Sat!$A$10:$AG$2410,4*($C$8-1)+2) * 100 -> 24.234
H135: 110 | I135: =IF($B$4="Annual Average", AVERAGE(OFFSET(Sat!$A$10,$H135*12,4*($C$8-1)+2,12,1)), MAX(OFFSET(Sat!$A$10,$H135*12,4*($C$8-1)+2,12,1))) * 100 -> 21.90008333 | J135: =IF($B$4="Annual Average", AVERAGE(OFFSET(Sat!$A$10,$H135*12,4*($C$8-1)+3,12,1)), MAX(OFFSET(Sat!$A$10,$H135*12,4*($C$8-1)+3,12,1))) * 100 -> 24.70133333 | K135: =IF($B$4="Annual Average", AVERAGE(OFFSET(Sat!$A$10,$H135*12,4*($C$8-1)+4,12,1)), MAX(OFFSET(Sat!$A$10,$H135*12,4*($C$8-1)+4,12,1))) * 100 -> 26.44366667 | L135: =IF($B$4="Annual Average", AVERAGE(OFFSET(Sat!$A$10,$H135*12,4*($C$8-1)+1,12,1)), MAX(OFFSET(Sat!$A$10,$H135*12,4*($C$8-1)+1,12,1))) * 100 -> 24.34533333 | R135: 9.166666667 | S135: =VLOOKUP($R135,Sat!$A$10:$AG$2410,4*($C$8-1)+3) * 100 -> 20.816 | T135: =VLOOKUP($R135,Sat!$A$10:$AG$2410,4*($C$8-1)+4) * 100 -> 24.862 | U135: =VLOOKUP($R135,Sat!$A$10:$AG$2410,4*($C$8-1)+5) * 100 -> 26.612 | V135: =VLOOKUP($R135,Sat!$A$10:$AG$2410,4*($C$8-1)+2) * 100 -> 24.234
H136: 111 | I136: =IF($B$4="Annual Average", AVERAGE(OFFSET(Sat!$A$10,$H136*12,4*($C$8-1)+2,12,1)), MAX(OFFSET(Sat!$A$10,$H136*12,4*($C$8-1)+2,12,1))) * 100 -> 21.94691667 | J136: =IF($B$4="Annual Average", AVERAGE(OFFSET(Sat!$A$10,$H136*12,4*($C$8-1)+3,12,1)), MAX(OFFSET(Sat!$A$10,$H136*12,4*($C$8-1)+3,12,1))) * 100 -> 24.70541667 | K136: =IF($B$4="Annual Average", AVERAGE(OFFSET(Sat!$A$10,$H136*12,4*($C$8-1)+4,12,1)), MAX(OFFSET(Sat!$A$10,$H136*12,4*($C$8-1)+4,12,1))) * 100 -> 26.28875 | L136: =IF($B$4="Annual Average", AVERAGE(OFFSET(Sat!$A$10,$H136*12,4*($C$8-1)+1,12,1)), MAX(OFFSET(Sat!$A$10,$H136*12,4*($C$8-1)+1,12,1))) * 100 -> 24.30241667 | R136: 9.25 | S136: =VLOOKUP($R136,Sat!$A$10:$AG$2410,4*($C$8-1)+3) * 100 -> 21.026 | T136: =VLOOKUP($R136,Sat!$A$10:$AG$2410,4*($C$8-1)+4) * 100 -> 24.756 | U136: =VLOOKUP($R136,Sat!$A$10:$AG$2410,4*($C$8-1)+5) * 100 -> 26.406 | V136: =VLOOKUP($R136,Sat!$A$10:$AG$2410,4*($C$8-1)+2) * 100 -> 24.233
H137: 112 | I137: =IF($B$4="Annual Average", AVERAGE(OFFSET(Sat!$A$10,$H137*12,4*($C$8-1)+2,12,1)), MAX(OFFSET(Sat!$A$10,$H137*12,4*($C$8-1)+2,12,1))) * 100 -> 22.02141667 | J137: =IF($B$4="Annual Average", AVERAGE(OFFSET(Sat!$A$10,$H137*12,4*($C$8-1)+3,12,1)), MAX(OFFSET(Sat!$A$10,$H137*12,4*($C$8-1)+3,12,1))) * 100 -> 24.83566667 | K137: =IF($B$4="Annual Average", AVERAGE(OFFSET(Sat!$A$10,$H137*12,4*($C$8-1)+4,12,1)), MAX(OFFSET(Sat!$A$10,$H137*12,4*($C$8-1)+4,12,1))) * 100 -> 26.31366667 | L137: =IF($B$4="Annual Average", AVERAGE(OFFSET(Sat!$A$10,$H137*12,4*($C$8-1)+1,12,1)), MAX(OFFSET(Sat!$A$10,$H137*12,4*($C$8-1)+1,12,1))) * 100 -> 24.37408333 | R137: 9.333333333 | S137: =VLOOKUP($R137,Sat!$A$10:$AG$2410,4*($C$8-1)+3) * 100 -> 21.427 | T137: =VLOOKUP($R137,Sat!$A$10:$AG$2410,4*($C$8-1)+4) * 100 -> 24.686 | U137: =VLOOKUP($R137,Sat!$A$10:$AG$2410,4*($C$8-1)+5) * 100 -> 26.259 | V137: =VLOOKUP($R137,Sat!$A$10:$AG$2410,4*($C$8-1)+2) * 100 -> 24.232
H138: 113 | I138: =IF($B$4="Annual Average", AVERAGE(OFFSET(Sat!$A$10,$H138*12,4*($C$8-1)+2,12,1)), MAX(OFFSET(Sat!$A$10,$H138*12,4*($C$8-1)+2,12,1))) * 100 -> 21.96975 | J138: =IF($B$4="Annual Average", AVERAGE(OFFSET(Sat!$A$10,$H138*12,4*($C$8-1)+3,12,1)), MAX(OFFSET(Sat!$A$10,$H138*12,4*($C$8-1)+3,12,1))) * 100 -> 24.81633333 | K138: =IF($B$4="Annual Average", AVERAGE(OFFSET(Sat!$A$10,$H138*12,4*($C$8-1)+4,12,1)), MAX(OFFSET(Sat!$A$10,$H138*12,4*($C$8-1)+4,12,1))) * 100 -> 26.39783333 | L138: =IF($B$4="Annual Average", AVERAGE(OFFSET(Sat!$A$10,$H138*12,4*($C$8-1)+1,12,1)), MAX(OFFSET(Sat!$A$10,$H138*12,4*($C$8-1)+1,12,1))) * 100 -> 24.41266667 | R138: 9.416666667 | S138: =VLOOKUP($R138,Sat!$A$10:$AG$2410,4*($C$8-1)+3) * 100 -> 21.427 | T138: =VLOOKUP($R138,Sat!$A$10:$AG$2410,4*($C$8-1)+4) * 100 -> 24.686 | U138: =VLOOKUP($R138,Sat!$A$10:$AG$2410,4*($C$8-1)+5) * 100 -> 26.259 | V138: =VLOOKUP($R138,Sat!$A$10:$AG$2410,4*($C$8-1)+2) * 100 -> 24.232
H139: 114 | I139: =IF($B$4="Annual Average", AVERAGE(OFFSET(Sat!$A$10,$H139*12,4*($C$8-1)+2,12,1)), MAX(OFFSET(Sat!$A$10,$H139*12,4*($C$8-1)+2,12,1))) * 100 -> 21.8255 | J139: =IF($B$4="Annual Average", AVERAGE(OFFSET(Sat!$A$10,$H139*12,4*($C$8-1)+3,12,1)), MAX(OFFSET(Sat!$A$10,$H139*12,4*($C$8-1)+3,12,1))) * 100 -> 24.70133333 | K139: =IF($B$4="Annual Average", AVERAGE(OFFSET(Sat!$A$10,$H139*12,4*($C$8-1)+4,12,1)), MAX(OFFSET(Sat!$A$10,$H139*12,4*($C$8-1)+4,12,1))) * 100 -> 26.34341667 | L139: =IF($B$4="Annual Average", AVERAGE(OFFSET(Sat!$A$10,$H139*12,4*($C$8-1)+1,12,1)), MAX(OFFSET(Sat!$A$10,$H139*12,4*($C$8-1)+1,12,1))) * 100 -> 24.30116667 | R139: 9.5 | S139: =VLOOKUP($R139,Sat!$A$10:$AG$2410,4*($C$8-1)+3) * 100 -> 21.558 | T139: =VLOOKUP($R139,Sat!$A$10:$AG$2410,4*($C$8-1)+4) * 100 -> 24.633 | U139: =VLOOKUP($R139,Sat!$A$10:$AG$2410,4*($C$8-1)+5) * 100 -> 26.286 | V139: =VLOOKUP($R139,Sat!$A$10:$AG$2410,4*($C$8-1)+2) * 100 -> 24.232
H140: 115 | I140: =IF($B$4="Annual Average", AVERAGE(OFFSET(Sat!$A$10,$H140*12,4*($C$8-1)+2,12,1)), MAX(OFFSET(Sat!$A$10,$H140*12,4*($C$8-1)+2,12,1))) * 100 -> 21.95825 | J140: =IF($B$4="Annual Average", AVERAGE(OFFSET(Sat!$A$10,$H140*12,4*($C$8-1)+3,12,1)), MAX(OFFSET(Sat!$A$10,$H140*12,4*($C$8-1)+3,12,1))) * 100 -> 24.68816667 | K140: =IF($B$4="Annual Average", AVERAGE(OFFSET(Sat!$A$10,$H140*12,4*($C$8-1)+4,12,1)), MAX(OFFSET(Sat!$A$10,$H140*12,4*($C$8-1)+4,12,1))) * 100 -> 26.37858333 | L140: =IF($B$4="Annual Average", AVERAGE(OFFSET(Sat!$A$10,$H140*12,4*($C$8-1)+1,12,1)), MAX(OFFSET(Sat!$A$10,$H140*12,4*($C$8-1)+1,12,1))) * 100 -> 24.32858333 | R140: 9.583333333 | S140: =VLOOKUP($R140,Sat!$A$10:$AG$2410,4*($C$8-1)+3) * 100 -> 21.631 | T140: =VLOOKUP($R140,Sat!$A$10:$AG$2410,4*($C$8-1)+4) * 100 -> 24.641 | U140: =VLOOKUP($R140,Sat!$A$10:$AG$2410,4*($C$8-1)+5) * 100 -> 26.265 | V140: =VLOOKUP($R140,Sat!$A$10:$AG$2410,4*($C$8-1)+2) * 100 -> 24.231
H141: 116 | I141: =IF($B$4="Annual Average", AVERAGE(OFFSET(Sat!$A$10,$H141*12,4*($C$8-1)+2,12,1)), MAX(OFFSET(Sat!$A$10,$H141*12,4*($C$8-1)+2,12,1))) * 100 -> 21.92433333 | J141: =IF($B$4="Annual Average", AVERAGE(OFFSET(Sat!$A$10,$H141*12,4*($C$8-1)+3,12,1)), MAX(OFFSET(Sat!$A$10,$H141*12,4*($C$8-1)+3,12,1))) * 100 -> 24.76358333 | K141: =IF($B$4="Annual Average", AVERAGE(OFFSET(Sat!$A$10,$H141*12,4*($C$8-1)+4,12,1)), MAX(OFFSET(Sat!$A$10,$H141*12,4*($C$8-1)+4,12,1))) * 100 -> 26.39433333 | L141: =IF($B$4="Annual Average", AVERAGE(OFFSET(Sat!$A$10,$H141*12,4*($C$8-1)+1,12,1)), MAX(OFFSET(Sat!$A$10,$H141*12,4*($C$8-1)+1,12,1))) * 100 -> 24.39691667 | R141: 9.666666667 | S141: =VLOOKUP($R141,Sat!$A$10:$AG$2410,4*($C$8-1)+3) * 100 -> 21.631 | T141: =VLOOKUP($R141,Sat!$A$10:$AG$2410,4*($C$8-1)+4) * 100 -> 24.641 | U141: =VLOOKUP($R141,Sat!$A$10:$AG$2410,4*($C$8-1)+5) * 100 -> 26.265 | V141: =VLOOKUP($R141,Sat!$A$10:$AG$2410,4*($C$8-1)+2) * 100 -> 24.231
H142: 117 | I142: =IF($B$4="Annual Average", AVERAGE(OFFSET(Sat!$A$10,$H142*12,4*($C$8-1)+2,12,1)), MAX(OFFSET(Sat!$A$10,$H142*12,4*($C$8-1)+2,12,1))) * 100 -> 21.90141667 | J142: =IF($B$4="Annual Average", AVERAGE(OFFSET(Sat!$A$10,$H142*12,4*($C$8-1)+3,12,1)), MAX(OFFSET(Sat!$A$10,$H142*12,4*($C$8-1)+3,12,1))) * 100 -> 24.82483333 | K142: =IF($B$4="Annual Average", AVERAGE(OFFSET(Sat!$A$10,$H142*12,4*($C$8-1)+4,12,1)), MAX(OFFSET(Sat!$A$10,$H142*12,4*($C$8-1)+4,12,1))) * 100 -> 26.48591667 | L142: =IF($B$4="Annual Average", AVERAGE(OFFSET(Sat!$A$10,$H142*12,4*($C$8-1)+1,12,1)), MAX(OFFSET(Sat!$A$10,$H142*12,4*($C$8-1)+1,12,1))) * 100 -> 24.45841667 | R142: 9.75 | S142: =VLOOKUP($R142,Sat!$A$10:$AG$2410,4*($C$8-1)+3) * 100 -> 21.563 | T142: =VLOOKUP($R142,Sat!$A$10:$AG$2410,4*($C$8-1)+4) * 100 -> 24.644 | U142: =VLOOKUP($R142,Sat!$A$10:$AG$2410,4*($C$8-1)+5) * 100 -> 26.321 | V142: =VLOOKUP($R142,Sat!$A$10:$AG$2410,4*($C$8-1)+2) * 100 -> 24.23
H143: 118 | I143: =IF($B$4="Annual Average", AVERAGE(OFFSET(Sat!$A$10,$H143*12,4*($C$8-1)+2,12,1)), MAX(OFFSET(Sat!$A$10,$H143*12,4*($C$8-1)+2,12,1))) * 100 -> 21.81225 | J143: =IF($B$4="Annual Average", AVERAGE(OFFSET(Sat!$A$10,$H143*12,4*($C$8-1)+3,12,1)), MAX(OFFSET(Sat!$A$10,$H143*12,4*($C$8-1)+3,12,1))) * 100 -> 24.815 | K143: =IF($B$4="Annual Average", AVERAGE(OFFSET(Sat!$A$10,$H143*12,4*($C$8-1)+4,12,1)), MAX(OFFSET(Sat!$A$10,$H143*12,4*($C$8-1)+4,12,1))) * 100 -> 26.56066667 | L143: =IF($B$4="Annual Average", AVERAGE(OFFSET(Sat!$A$10,$H143*12,4*($C$8-1)+1,12,1)), MAX(OFFSET(Sat!$A$10,$H143*12,4*($C$8-1)+1,12,1))) * 100 -> 24.43783333 | R143: 9.833333333 | S143: =VLOOKUP($R143,Sat!$A$10:$AG$2410,4*($C$8-1)+3) * 100 -> 21.283 | T143: =VLOOKUP($R143,Sat!$A$10:$AG$2410,4*($C$8-1)+4) * 100 -> 24.71 | U143: =VLOOKUP($R143,Sat!$A$10:$AG$2410,4*($C$8-1)+5) * 100 -> 26.404 | V143: =VLOOKUP($R143,Sat!$A$10:$AG$2410,4*($C$8-1)+2) * 100 -> 24.23
H144: 119 | I144: =IF($B$4="Annual Average", AVERAGE(OFFSET(Sat!$A$10,$H144*12,4*($C$8-1)+2,12,1)), MAX(OFFSET(Sat!$A$10,$H144*12,4*($C$8-1)+2,12,1))) * 100 -> 21.43233333 | J144: =IF($B$4="Annual Average", AVERAGE(OFFSET(Sat!$A$10,$H144*12,4*($C$8-1)+3,12,1)), MAX(OFFSET(Sat!$A$10,$H144*12,4*($C$8-1)+3,12,1))) * 100 -> 24.69375 | K144: =IF($B$4="Annual Average", AVERAGE(OFFSET(Sat!$A$10,$H144*12,4*($C$8-1)+4,12,1)), MAX(OFFSET(Sat!$A$10,$H144*12,4*($C$8-1)+4,12,1))) * 100 -> 26.39041667 | L144: =IF($B$4="Annual Average", AVERAGE(OFFSET(Sat!$A$10,$H144*12,4*($C$8-1)+1,12,1)), MAX(OFFSET(Sat!$A$10,$H144*12,4*($C$8-1)+1,12,1))) * 100 -> 24.26566667 | R144: 9.916666667 | S144: =VLOOKUP($R144,Sat!$A$10:$AG$2410,4*($C$8-1)+3) * 100 -> 21.283 | T144: =VLOOKUP($R144,Sat!$A$10:$AG$2410,4*($C$8-1)+4) * 100 -> 24.71 | U144: =VLOOKUP($R144,Sat!$A$10:$AG$2410,4*($C$8-1)+5) * 100 -> 26.404 | V144: =VLOOKUP($R144,Sat!$A$10:$AG$2410,4*($C$8-1)+2) * 100 -> 24.23
H145: 120 | I145: =IF($B$4="Annual Average", AVERAGE(OFFSET(Sat!$A$10,$H145*12,4*($C$8-1)+2,12,1)), MAX(OFFSET(Sat!$A$10,$H145*12,4*($C$8-1)+2,12,1))) * 100 -> 21.88633333 | J145: =IF($B$4="Annual Average", AVERAGE(OFFSET(Sat!$A$10,$H145*12,4*($C$8-1)+3,12,1)), MAX(OFFSET(Sat!$A$10,$H145*12,4*($C$8-1)+3,12,1))) * 100 -> 24.6515 | K145: =IF($B$4="Annual Average", AVERAGE(OFFSET(Sat!$A$10,$H145*12,4*($C$8-1)+4,12,1)), MAX(OFFSET(Sat!$A$10,$H145*12,4*($C$8-1)+4,12,1))) * 100 -> 26.37125 | L145: =IF($B$4="Annual Average", AVERAGE(OFFSET(Sat!$A$10,$H145*12,4*($C$8-1)+1,12,1)), MAX(OFFSET(Sat!$A$10,$H145*12,4*($C$8-1)+1,12,1))) * 100 -> 24.29258333 | R145: 10 | S145: =VLOOKUP($R145,Sat!$A$10:$AG$2410,4*($C$8-1)+3) * 100 -> 20.928 | T145: =VLOOKUP($R145,Sat!$A$10:$AG$2410,4*($C$8-1)+4) * 100 -> 24.925 | U145: =VLOOKUP($R145,Sat!$A$10:$AG$2410,4*($C$8-1)+5) * 100 -> 26.72 | V145: =VLOOKUP($R145,Sat!$A$10:$AG$2410,4*($C$8-1)+2) * 100 -> 24.229
H146: 121 | I146: =IF($B$4="Annual Average", AVERAGE(OFFSET(Sat!$A$10,$H146*12,4*($C$8-1)+2,12,1)), MAX(OFFSET(Sat!$A$10,$H146*12,4*($C$8-1)+2,12,1))) * 100 -> 21.95808333 | J146: =IF($B$4="Annual Average", AVERAGE(OFFSET(Sat!$A$10,$H146*12,4*($C$8-1)+3,12,1)), MAX(OFFSET(Sat!$A$10,$H146*12,4*($C$8-1)+3,12,1))) * 100 -> 24.82141667 | K146: =IF($B$4="Annual Average", AVERAGE(OFFSET(Sat!$A$10,$H146*12,4*($C$8-1)+4,12,1)), MAX(OFFSET(Sat!$A$10,$H146*12,4*($C$8-1)+4,12,1))) * 100 -> 26.47166667 | L146: =IF($B$4="Annual Average", AVERAGE(OFFSET(Sat!$A$10,$H146*12,4*($C$8-1)+1,12,1)), MAX(OFFSET(Sat!$A$10,$H146*12,4*($C$8-1)+1,12,1))) * 100 -> 24.42866667 | R146: 10.08333333 | S146: =VLOOKUP($R146,Sat!$A$10:$AG$2410,4*($C$8-1)+3) * 100 -> 21.095 | T146: =VLOOKUP($R146,Sat!$A$10:$AG$2410,4*($C$8-1)+4) * 100 -> 24.841 | U146: =VLOOKUP($R146,Sat!$A$10:$AG$2410,4*($C$8-1)+5) * 100 -> 26.54 | V146: =VLOOKUP($R146,Sat!$A$10:$AG$2410,4*($C$8-1)+2) * 100 -> 24.237
H147: 122 | I147: =IF($B$4="Annual Average", AVERAGE(OFFSET(Sat!$A$10,$H147*12,4*($C$8-1)+2,12,1)), MAX(OFFSET(Sat!$A$10,$H147*12,4*($C$8-1)+2,12,1))) * 100 -> 22.01266667 | J147: =IF($B$4="Annual Average", AVERAGE(OFFSET(Sat!$A$10,$H147*12,4*($C$8-1)+3,12,1)), MAX(OFFSET(Sat!$A$10,$H147*12,4*($C$8-1)+3,12,1))) * 100 -> 24.75575 | K147: =IF($B$4="Annual Average", AVERAGE(OFFSET(Sat!$A$10,$H147*12,4*($C$8-1)+4,12,1)), MAX(OFFSET(Sat!$A$10,$H147*12,4*($C$8-1)+4,12,1))) * 100 -> 26.34333333 | L147: =IF($B$4="Annual Average", AVERAGE(OFFSET(Sat!$A$10,$H147*12,4*($C$8-1)+1,12,1)), MAX(OFFSET(Sat!$A$10,$H147*12,4*($C$8-1)+1,12,1))) * 100 -> 24.389 | R147: 10.16666667 | S147: =VLOOKUP($R147,Sat!$A$10:$AG$2410,4*($C$8-1)+3) * 100 -> 21.095 | T147: =VLOOKUP($R147,Sat!$A$10:$AG$2410,4*($C$8-1)+4) * 100 -> 24.841 | U147: =VLOOKUP($R147,Sat!$A$10:$AG$2410,4*($C$8-1)+5) * 100 -> 26.54 | V147: =VLOOKUP($R147,Sat!$A$10:$AG$2410,4*($C$8-1)+2) * 100 -> 24.237
H148: 123 | I148: =IF($B$4="Annual Average", AVERAGE(OFFSET(Sat!$A$10,$H148*12,4*($C$8-1)+2,12,1)), MAX(OFFSET(Sat!$A$10,$H148*12,4*($C$8-1)+2,12,1))) * 100 -> 21.78541667 | J148: =IF($B$4="Annual Average", AVERAGE(OFFSET(Sat!$A$10,$H148*12,4*($C$8-1)+3,12,1)), MAX(OFFSET(Sat!$A$10,$H148*12,4*($C$8-1)+3,12,1))) * 100 -> 24.61941667 | K148: =IF($B$4="Annual Average", AVERAGE(OFFSET(Sat!$A$10,$H148*12,4*($C$8-1)+4,12,1)), MAX(OFFSET(Sat!$A$10,$H148*12,4*($C$8-1)+4,12,1))) * 100 -> 26.29775 | L148: =IF($B$4="Annual Average", AVERAGE(OFFSET(Sat!$A$10,$H148*12,4*($C$8-1)+1,12,1)), MAX(OFFSET(Sat!$A$10,$H148*12,4*($C$8-1)+1,12,1))) * 100 -> 24.256 | R148: 10.25 | S148: =VLOOKUP($R148,Sat!$A$10:$AG$2410,4*($C$8-1)+3) * 100 -> 21.474 | T148: =VLOOKUP($R148,Sat!$A$10:$AG$2410,4*($C$8-1)+4) * 100 -> 24.744 | U148: =VLOOKUP($R148,Sat!$A$10:$AG$2410,4*($C$8-1)+5) * 100 -> 26.271 | V148: =VLOOKUP($R148,Sat!$A$10:$AG$2410,4*($C$8-1)+2) * 100 -> 24.253
H149: 124 | I149: =IF($B$4="Annual Average", AVERAGE(OFFSET(Sat!$A$10,$H149*12,4*($C$8-1)+2,12,1)), MAX(OFFSET(Sat!$A$10,$H149*12,4*($C$8-1)+2,12,1))) * 100 -> 21.857 | J149: =IF($B$4="Annual Average", AVERAGE(OFFSET(Sat!$A$10,$H149*12,4*($C$8-1)+3,12,1)), MAX(OFFSET(Sat!$A$10,$H149*12,4*($C$8-1)+3,12,1))) * 100 -> 24.74966667 | K149: =IF($B$4="Annual Average", AVERAGE(OFFSET(Sat!$A$10,$H149*12,4*($C$8-1)+4,12,1)), MAX(OFFSET(Sat!$A$10,$H149*12,4*($C$8-1)+4,12,1))) * 100 -> 26.36016667 | L149: =IF($B$4="Annual Average", AVERAGE(OFFSET(Sat!$A$10,$H149*12,4*($C$8-1)+1,12,1)), MAX(OFFSET(Sat!$A$10,$H149*12,4*($C$8-1)+1,12,1))) * 100 -> 24.31816667 | R149: 10.33333333 | S149: =VLOOKUP($R149,Sat!$A$10:$AG$2410,4*($C$8-1)+3) * 100 -> 21.379 | T149: =VLOOKUP($R149,Sat!$A$10:$AG$2410,4*($C$8-1)+4) * 100 -> 24.78 | U149: =VLOOKUP($R149,Sat!$A$10:$AG$2410,4*($C$8-1)+5) * 100 -> 26.222 | V149: =VLOOKUP($R149,Sat!$A$10:$AG$2410,4*($C$8-1)+2) * 100 -> 24.261
H150: 125 | I150: =IF($B$4="Annual Average", AVERAGE(OFFSET(Sat!$A$10,$H150*12,4*($C$8-1)+2,12,1)), MAX(OFFSET(Sat!$A$10,$H150*12,4*($C$8-1)+2,12,1))) * 100 -> 22.32425 | J150: =IF($B$4="Annual Average", AVERAGE(OFFSET(Sat!$A$10,$H150*12,4*($C$8-1)+3,12,1)), MAX(OFFSET(Sat!$A$10,$H150*12,4*($C$8-1)+3,12,1))) * 100 -> 24.78733333 | K150: =IF($B$4="Annual Average", AVERAGE(OFFSET(Sat!$A$10,$H150*12,4*($C$8-1)+4,12,1)), MAX(OFFSET(Sat!$A$10,$H150*12,4*($C$8-1)+4,12,1))) * 100 -> 26.43675 | L150: =IF($B$4="Annual Average", AVERAGE(OFFSET(Sat!$A$10,$H150*12,4*($C$8-1)+1,12,1)), MAX(OFFSET(Sat!$A$10,$H150*12,4*($C$8-1)+1,12,1))) * 100 -> 24.48291667 | R150: 10.41666667 | S150: =VLOOKUP($R150,Sat!$A$10:$AG$2410,4*($C$8-1)+3) * 100 -> 21.379 | T150: =VLOOKUP($R150,Sat!$A$10:$AG$2410,4*($C$8-1)+4) * 100 -> 24.78 | U150: =VLOOKUP($R150,Sat!$A$10:$AG$2410,4*($C$8-1)+5) * 100 -> 26.222 | V150: =VLOOKUP($R150,Sat!$A$10:$AG$2410,4*($C$8-1)+2) * 100 -> 24.261
H151: 126 | I151: =IF($B$4="Annual Average", AVERAGE(OFFSET(Sat!$A$10,$H151*12,4*($C$8-1)+2,12,1)), MAX(OFFSET(Sat!$A$10,$H151*12,4*($C$8-1)+2,12,1))) * 100 -> 21.90775 | J151: =IF($B$4="Annual Average", AVERAGE(OFFSET(Sat!$A$10,$H151*12,4*($C$8-1)+3,12,1)), MAX(OFFSET(Sat!$A$10,$H151*12,4*($C$8-1)+3,12,1))) * 100 -> 24.73333333 | K151: =IF($B$4="Annual Average", AVERAGE(OFFSET(Sat!$A$10,$H151*12,4*($C$8-1)+4,12,1)), MAX(OFFSET(Sat!$A$10,$H151*12,4*($C$8-1)+4,12,1))) * 100 -> 26.357 | L151: =IF($B$4="Annual Average", AVERAGE(OFFSET(Sat!$A$10,$H151*12,4*($C$8-1)+1,12,1)), MAX(OFFSET(Sat!$A$10,$H151*12,4*($C$8-1)+1,12,1))) * 100 -> 24.362 | R151: 10.5 | S151: =VLOOKUP($R151,Sat!$A$10:$AG$2410,4*($C$8-1)+3) * 100 -> 21.518 | T151: =VLOOKUP($R151,Sat!$A$10:$AG$2410,4*($C$8-1)+4) * 100 -> 24.68 | U151: =VLOOKUP($R151,Sat!$A$10:$AG$2410,4*($C$8-1)+5) * 100 -> 26.16 | V151: =VLOOKUP($R151,Sat!$A$10:$AG$2410,4*($C$8-1)+2) * 100 -> 24.277
H152: 127 | I152: =IF($B$4="Annual Average", AVERAGE(OFFSET(Sat!$A$10,$H152*12,4*($C$8-1)+2,12,1)), MAX(OFFSET(Sat!$A$10,$H152*12,4*($C$8-1)+2,12,1))) * 100 -> 21.52316667 | J152: =IF($B$4="Annual Average", AVERAGE(OFFSET(Sat!$A$10,$H152*12,4*($C$8-1)+3,12,1)), MAX(OFFSET(Sat!$A$10,$H152*12,4*($C$8-1)+3,12,1))) * 100 -> 24.63416667 | K152: =IF($B$4="Annual Average", AVERAGE(OFFSET(Sat!$A$10,$H152*12,4*($C$8-1)+4,12,1)), MAX(OFFSET(Sat!$A$10,$H152*12,4*($C$8-1)+4,12,1))) * 100 -> 26.31508333 | L152: =IF($B$4="Annual Average", AVERAGE(OFFSET(Sat!$A$10,$H152*12,4*($C$8-1)+1,12,1)), MAX(OFFSET(Sat!$A$10,$H152*12,4*($C$8-1)+1,12,1))) * 100 -> 24.22483333 | R152: 10.58333333 | S152: =VLOOKUP($R152,Sat!$A$10:$AG$2410,4*($C$8-1)+3) * 100 -> 21.683 | T152: =VLOOKUP($R152,Sat!$A$10:$AG$2410,4*($C$8-1)+4) * 100 -> 24.669 | U152: =VLOOKUP($R152,Sat!$A$10:$AG$2410,4*($C$8-1)+5) * 100 -> 26.157 | V152: =VLOOKUP($R152,Sat!$A$10:$AG$2410,4*($C$8-1)+2) * 100 -> 24.285
H153: 128 | I153: =IF($B$4="Annual Average", AVERAGE(OFFSET(Sat!$A$10,$H153*12,4*($C$8-1)+2,12,1)), MAX(OFFSET(Sat!$A$10,$H153*12,4*($C$8-1)+2,12,1))) * 100 -> 21.74108333 | J153: =IF($B$4="Annual Average", AVERAGE(OFFSET(Sat!$A$10,$H153*12,4*($C$8-1)+3,12,1)), MAX(OFFSET(Sat!$A$10,$H153*12,4*($C$8-1)+3,12,1))) * 100 -> 24.58516667 | K153: =IF($B$4="Annual Average", AVERAGE(OFFSET(Sat!$A$10,$H153*12,4*($C$8-1)+4,12,1)), MAX(OFFSET(Sat!$A$10,$H153*12,4*($C$8-1)+4,12,1))) * 100 -> 26.29958333 | L153: =IF($B$4="Annual Average", AVERAGE(OFFSET(Sat!$A$10,$H153*12,4*($C$8-1)+1,12,1)), MAX(OFFSET(Sat!$A$10,$H153*12,4*($C$8-1)+1,12,1))) * 100 -> 24.27425 | R153: 10.66666667 | S153: =VLOOKUP($R153,Sat!$A$10:$AG$2410,4*($C$8-1)+3) * 100 -> 21.683 | T153: =VLOOKUP($R153,Sat!$A$10:$AG$2410,4*($C$8-1)+4) * 100 -> 24.669 | U153: =VLOOKUP($R153,Sat!$A$10:$AG$2410,4*($C$8-1)+5) * 100 -> 26.157 | V153: =VLOOKUP($R153,Sat!$A$10:$AG$2410,4*($C$8-1)+2) * 100 -> 24.285
H154: 129 | I154: =IF($B$4="Annual Average", AVERAGE(OFFSET(Sat!$A$10,$H154*12,4*($C$8-1)+2,12,1)), MAX(OFFSET(Sat!$A$10,$H154*12,4*($C$8-1)+2,12,1))) * 100 -> 21.78875 | J154: =IF($B$4="Annual Average", AVERAGE(OFFSET(Sat!$A$10,$H154*12,4*($C$8-1)+3,12,1)), MAX(OFFSET(Sat!$A$10,$H154*12,4*($C$8-1)+3,12,1))) * 100 -> 24.671 | K154: =IF($B$4="Annual Average", AVERAGE(OFFSET(Sat!$A$10,$H154*12,4*($C$8-1)+4,12,1)), MAX(OFFSET(Sat!$A$10,$H154*12,4*($C$8-1)+4,12,1))) * 100 -> 26.33158333 | L154: =IF($B$4="Annual Average", AVERAGE(OFFSET(Sat!$A$10,$H154*12,4*($C$8-1)+1,12,1)), MAX(OFFSET(Sat!$A$10,$H154*12,4*($C$8-1)+1,12,1))) * 100 -> 24.28683333 | R154: 10.75 | S154: =VLOOKUP($R154,Sat!$A$10:$AG$2410,4*($C$8-1)+3) * 100 -> 21.968 | T154: =VLOOKUP($R154,Sat!$A$10:$AG$2410,4*($C$8-1)+4) * 100 -> 24.683 | U154: =VLOOKUP($R154,Sat!$A$10:$AG$2410,4*($C$8-1)+5) * 100 -> 26.316 | V154: =VLOOKUP($R154,Sat!$A$10:$AG$2410,4*($C$8-1)+2) * 100 -> 24.301
H155: 130 | I155: =IF($B$4="Annual Average", AVERAGE(OFFSET(Sat!$A$10,$H155*12,4*($C$8-1)+2,12,1)), MAX(OFFSET(Sat!$A$10,$H155*12,4*($C$8-1)+2,12,1))) * 100 -> 21.56216667 | J155: =IF($B$4="Annual Average", AVERAGE(OFFSET(Sat!$A$10,$H155*12,4*($C$8-1)+3,12,1)), MAX(OFFSET(Sat!$A$10,$H155*12,4*($C$8-1)+3,12,1))) * 100 -> 24.72783333 | K155: =IF($B$4="Annual Average", AVERAGE(OFFSET(Sat!$A$10,$H155*12,4*($C$8-1)+4,12,1)), MAX(OFFSET(Sat!$A$10,$H155*12,4*($C$8-1)+4,12,1))) * 100 -> 26.36425 | L155: =IF($B$4="Annual Average", AVERAGE(OFFSET(Sat!$A$10,$H155*12,4*($C$8-1)+1,12,1)), MAX(OFFSET(Sat!$A$10,$H155*12,4*($C$8-1)+1,12,1))) * 100 -> 24.28666667 | R155: =R154+1/12 -> 10.83333333 | S155: =VLOOKUP($R155,Sat!$A$10:$AG$2410,4*($C$8-1)+3) * 100 -> 21.701 | T155: =VLOOKUP($R155,Sat!$A$10:$AG$2410,4*($C$8-1)+4) * 100 -> 24.732 | U155: =VLOOKUP($R155,Sat!$A$10:$AG$2410,4*($C$8-1)+5) * 100 -> 26.441 | V155: =VLOOKUP($R155,Sat!$A$10:$AG$2410,4*($C$8-1)+2) * 100 -> 24.309
H156: 131 | I156: =IF($B$4="Annual Average", AVERAGE(OFFSET(Sat!$A$10,$H156*12,4*($C$8-1)+2,12,1)), MAX(OFFSET(Sat!$A$10,$H156*12,4*($C$8-1)+2,12,1))) * 100 -> 21.984 | J156: =IF($B$4="Annual Average", AVERAGE(OFFSET(Sat!$A$10,$H156*12,4*($C$8-1)+3,12,1)), MAX(OFFSET(Sat!$A$10,$H156*12,4*($C$8-1)+3,12,1))) * 100 -> 24.71516667 | K156: =IF($B$4="Annual Average", AVERAGE(OFFSET(Sat!$A$10,$H156*12,4*($C$8-1)+4,12,1)), MAX(OFFSET(Sat!$A$10,$H156*12,4*($C$8-1)+4,12,1))) * 100 -> 26.39333333 | L156: =IF($B$4="Annual Average", AVERAGE(OFFSET(Sat!$A$10,$H156*12,4*($C$8-1)+1,12,1)), MAX(OFFSET(Sat!$A$10,$H156*12,4*($C$8-1)+1,12,1))) * 100 -> 24.36283333 | R156: 10.91666667 | S156: =VLOOKUP($R156,Sat!$A$10:$AG$2410,4*($C$8-1)+3) * 100 -> 21.701 | T156: =VLOOKUP($R156,Sat!$A$10:$AG$2410,4*($C$8-1)+4) * 100 -> 24.732 | U156: =VLOOKUP($R156,Sat!$A$10:$AG$2410,4*($C$8-1)+5) * 100 -> 26.441 | V156: =VLOOKUP($R156,Sat!$A$10:$AG$2410,4*($C$8-1)+2) * 100 -> 24.309
H157: 132 | I157: =IF($B$4="Annual Average", AVERAGE(OFFSET(Sat!$A$10,$H157*12,4*($C$8-1)+2,12,1)), MAX(OFFSET(Sat!$A$10,$H157*12,4*($C$8-1)+2,12,1))) * 100 -> 22.0545 | J157: =IF($B$4="Annual Average", AVERAGE(OFFSET(Sat!$A$10,$H157*12,4*($C$8-1)+3,12,1)), MAX(OFFSET(Sat!$A$10,$H157*12,4*($C$8-1)+3,12,1))) * 100 -> 24.65633333 | K157: =IF($B$4="Annual Average", AVERAGE(OFFSET(Sat!$A$10,$H157*12,4*($C$8-1)+4,12,1)), MAX(OFFSET(Sat!$A$10,$H157*12,4*($C$8-1)+4,12,1))) * 100 -> 26.44891667 | L157: =IF($B$4="Annual Average", AVERAGE(OFFSET(Sat!$A$10,$H157*12,4*($C$8-1)+1,12,1)), MAX(OFFSET(Sat!$A$10,$H157*12,4*($C$8-1)+1,12,1))) * 100 -> 24.36766667 | R157: 11 | S157: =VLOOKUP($R157,Sat!$A$10:$AG$2410,4*($C$8-1)+3) * 100 -> 21.394 | T157: =VLOOKUP($R157,Sat!$A$10:$AG$2410,4*($C$8-1)+4) * 100 -> 24.88 | U157: =VLOOKUP($R157,Sat!$A$10:$AG$2410,4*($C$8-1)+5) * 100 -> 26.763 | V157: =VLOOKUP($R157,Sat!$A$10:$AG$2410,4*($C$8-1)+2) * 100 -> 24.325
H158: 133 | I158: =IF($B$4="Annual Average", AVERAGE(OFFSET(Sat!$A$10,$H158*12,4*($C$8-1)+2,12,1)), MAX(OFFSET(Sat!$A$10,$H158*12,4*($C$8-1)+2,12,1))) * 100 -> 22.14966667 | J158: =IF($B$4="Annual Average", AVERAGE(OFFSET(Sat!$A$10,$H158*12,4*($C$8-1)+3,12,1)), MAX(OFFSET(Sat!$A$10,$H158*12,4*($C$8-1)+3,12,1))) * 100 -> 24.6635 | K158: =IF($B$4="Annual Average", AVERAGE(OFFSET(Sat!$A$10,$H158*12,4*($C$8-1)+4,12,1)), MAX(OFFSET(Sat!$A$10,$H158*12,4*($C$8-1)+4,12,1))) * 100 -> 26.392 | L158: =IF($B$4="Annual Average", AVERAGE(OFFSET(Sat!$A$10,$H158*12,4*($C$8-1)+1,12,1)), MAX(OFFSET(Sat!$A$10,$H158*12,4*($C$8-1)+1,12,1))) * 100 -> 24.37283333 | R158: 11.08333333 | S158: =VLOOKUP($R158,Sat!$A$10:$AG$2410,4*($C$8-1)+3) * 100 -> 21.633 | T158: =VLOOKUP($R158,Sat!$A$10:$AG$2410,4*($C$8-1)+4) * 100 -> 24.806 | U158: =VLOOKUP($R158,Sat!$A$10:$AG$2410,4*($C$8-1)+5) * 100 -> 26.579 | V158: =VLOOKUP($R158,Sat!$A$10:$AG$2410,4*($C$8-1)+2) * 100 -> 24.33
H159: 134 | I159: =IF($B$4="Annual Average", AVERAGE(OFFSET(Sat!$A$10,$H159*12,4*($C$8-1)+2,12,1)), MAX(OFFSET(Sat!$A$10,$H159*12,4*($C$8-1)+2,12,1))) * 100 -> 21.95158333 | J159: =IF($B$4="Annual Average", AVERAGE(OFFSET(Sat!$A$10,$H159*12,4*($C$8-1)+3,12,1)), MAX(OFFSET(Sat!$A$10,$H159*12,4*($C$8-1)+3,12,1))) * 100 -> 24.73525 | K159: =IF($B$4="Annual Average", AVERAGE(OFFSET(Sat!$A$10,$H159*12,4*($C$8-1)+4,12,1)), MAX(OFFSET(Sat!$A$10,$H159*12,4*($C$8-1)+4,12,1))) * 100 -> 26.40833333 | L159: =IF($B$4="Annual Average", AVERAGE(OFFSET(Sat!$A$10,$H159*12,4*($C$8-1)+1,12,1)), MAX(OFFSET(Sat!$A$10,$H159*12,4*($C$8-1)+1,12,1))) * 100 -> 24.36191667 | R159: 11.16666667 | S159: =VLOOKUP($R159,Sat!$A$10:$AG$2410,4*($C$8-1)+3) * 100 -> 21.633 | T159: =VLOOKUP($R159,Sat!$A$10:$AG$2410,4*($C$8-1)+4) * 100 -> 24.806 | U159: =VLOOKUP($R159,Sat!$A$10:$AG$2410,4*($C$8-1)+5) * 100 -> 26.579 | V159: =VLOOKUP($R159,Sat!$A$10:$AG$2410,4*($C$8-1)+2) * 100 -> 24.33
H160: 135 | I160: =IF($B$4="Annual Average", AVERAGE(OFFSET(Sat!$A$10,$H160*12,4*($C$8-1)+2,12,1)), MAX(OFFSET(Sat!$A$10,$H160*12,4*($C$8-1)+2,12,1))) * 100 -> 21.9785 | J160: =IF($B$4="Annual Average", AVERAGE(OFFSET(Sat!$A$10,$H160*12,4*($C$8-1)+3,12,1)), MAX(OFFSET(Sat!$A$10,$H160*12,4*($C$8-1)+3,12,1))) * 100 -> 24.60125 | K160: =IF($B$4="Annual Average", AVERAGE(OFFSET(Sat!$A$10,$H160*12,4*($C$8-1)+4,12,1)), MAX(OFFSET(Sat!$A$10,$H160*12,4*($C$8-1)+4,12,1))) * 100 -> 26.29516667 | L160: =IF($B$4="Annual Average", AVERAGE(OFFSET(Sat!$A$10,$H160*12,4*($C$8-1)+1,12,1)), MAX(OFFSET(Sat!$A$10,$H160*12,4*($C$8-1)+1,12,1))) * 100 -> 24.265 | R160: 11.25 | S160: =VLOOKUP($R160,Sat!$A$10:$AG$2410,4*($C$8-1)+3) * 100 -> 22.159 | T160: =VLOOKUP($R160,Sat!$A$10:$AG$2410,4*($C$8-1)+4) * 100 -> 24.633 | U160: =VLOOKUP($R160,Sat!$A$10:$AG$2410,4*($C$8-1)+5) * 100 -> 26.317 | V160: =VLOOKUP($R160,Sat!$A$10:$AG$2410,4*($C$8-1)+2) * 100 -> 24.341
H161: 136 | I161: =IF($B$4="Annual Average", AVERAGE(OFFSET(Sat!$A$10,$H161*12,4*($C$8-1)+2,12,1)), MAX(OFFSET(Sat!$A$10,$H161*12,4*($C$8-1)+2,12,1))) * 100 -> 21.69783333 | J161: =IF($B$4="Annual Average", AVERAGE(OFFSET(Sat!$A$10,$H161*12,4*($C$8-1)+3,12,1)), MAX(OFFSET(Sat!$A$10,$H161*12,4*($C$8-1)+3,12,1))) * 100 -> 24.61041667 | K161: =IF($B$4="Annual Average", AVERAGE(OFFSET(Sat!$A$10,$H161*12,4*($C$8-1)+4,12,1)), MAX(OFFSET(Sat!$A$10,$H161*12,4*($C$8-1)+4,12,1))) * 100 -> 26.28991667 | L161: =IF($B$4="Annual Average", AVERAGE(OFFSET(Sat!$A$10,$H161*12,4*($C$8-1)+1,12,1)), MAX(OFFSET(Sat!$A$10,$H161*12,4*($C$8-1)+1,12,1))) * 100 -> 24.24383333 | R161: 11.33333333 | S161: =VLOOKUP($R161,Sat!$A$10:$AG$2410,4*($C$8-1)+3) * 100 -> 22.231 | T161: =VLOOKUP($R161,Sat!$A$10:$AG$2410,4*($C$8-1)+4) * 100 -> 24.603 | U161: =VLOOKUP($R161,Sat!$A$10:$AG$2410,4*($C$8-1)+5) * 100 -> 26.175 | V161: =VLOOKUP($R161,Sat!$A$10:$AG$2410,4*($C$8-1)+2) * 100 -> 24.346
H162: 137 | I162: =IF($B$4="Annual Average", AVERAGE(OFFSET(Sat!$A$10,$H162*12,4*($C$8-1)+2,12,1)), MAX(OFFSET(Sat!$A$10,$H162*12,4*($C$8-1)+2,12,1))) * 100 -> 21.73941667 | J162: =IF($B$4="Annual Average", AVERAGE(OFFSET(Sat!$A$10,$H162*12,4*($C$8-1)+3,12,1)), MAX(OFFSET(Sat!$A$10,$H162*12,4*($C$8-1)+3,12,1))) * 100 -> 24.70208333 | K162: =IF($B$4="Annual Average", AVERAGE(OFFSET(Sat!$A$10,$H162*12,4*($C$8-1)+4,12,1)), MAX(OFFSET(Sat!$A$10,$H162*12,4*($C$8-1)+4,12,1))) * 100 -> 26.42241667 | L162: =IF($B$4="Annual Average", AVERAGE(OFFSET(Sat!$A$10,$H162*12,4*($C$8-1)+1,12,1)), MAX(OFFSET(Sat!$A$10,$H162*12,4*($C$8-1)+1,12,1))) * 100 -> 24.31325 | R162: 11.41666667 | S162: =VLOOKUP($R162,Sat!$A$10:$AG$2410,4*($C$8-1)+3) * 100 -> 22.231 | T162: =VLOOKUP($R162,Sat!$A$10:$AG$2410,4*($C$8-1)+4) * 100 -> 24.603 | U162: =VLOOKUP($R162,Sat!$A$10:$AG$2410,4*($C$8-1)+5) * 100 -> 26.175 | V162: =VLOOKUP($R162,Sat!$A$10:$AG$2410,4*($C$8-1)+2) * 100 -> 24.346
H163: 138 | I163: =IF($B$4="Annual Average", AVERAGE(OFFSET(Sat!$A$10,$H163*12,4*($C$8-1)+2,12,1)), MAX(OFFSET(Sat!$A$10,$H163*12,4*($C$8-1)+2,12,1))) * 100 -> 21.9685 | J163: =IF($B$4="Annual Average", AVERAGE(OFFSET(Sat!$A$10,$H163*12,4*($C$8-1)+3,12,1)), MAX(OFFSET(Sat!$A$10,$H163*12,4*($C$8-1)+3,12,1))) * 100 -> 24.69233333 | K163: =IF($B$4="Annual Average", AVERAGE(OFFSET(Sat!$A$10,$H163*12,4*($C$8-1)+4,12,1)), MAX(OFFSET(Sat!$A$10,$H163*12,4*($C$8-1)+4,12,1))) * 100 -> 26.421 | L163: =IF($B$4="Annual Average", AVERAGE(OFFSET(Sat!$A$10,$H163*12,4*($C$8-1)+1,12,1)), MAX(OFFSET(Sat!$A$10,$H163*12,4*($C$8-1)+1,12,1))) * 100 -> 24.36908333 | R163: 11.5 | S163: =VLOOKUP($R163,Sat!$A$10:$AG$2410,4*($C$8-1)+3) * 100 -> 22.103 | T163: =VLOOKUP($R163,Sat!$A$10:$AG$2410,4*($C$8-1)+4) * 100 -> 24.608 | U163: =VLOOKUP($R163,Sat!$A$10:$AG$2410,4*($C$8-1)+5) * 100 -> 26.155 | V163: =VLOOKUP($R163,Sat!$A$10:$AG$2410,4*($C$8-1)+2) * 100 -> 24.356
H164: 139 | I164: =IF($B$4="Annual Average", AVERAGE(OFFSET(Sat!$A$10,$H164*12,4*($C$8-1)+2,12,1)), MAX(OFFSET(Sat!$A$10,$H164*12,4*($C$8-1)+2,12,1))) * 100 -> 21.90991667 | J164: =IF($B$4="Annual Average", AVERAGE(OFFSET(Sat!$A$10,$H164*12,4*($C$8-1)+3,12,1)), MAX(OFFSET(Sat!$A$10,$H164*12,4*($C$8-1)+3,12,1))) * 100 -> 24.64441667 | K164: =IF($B$4="Annual Average", AVERAGE(OFFSET(Sat!$A$10,$H164*12,4*($C$8-1)+4,12,1)), MAX(OFFSET(Sat!$A$10,$H164*12,4*($C$8-1)+4,12,1))) * 100 -> 26.3465 | L164: =IF($B$4="Annual Average", AVERAGE(OFFSET(Sat!$A$10,$H164*12,4*($C$8-1)+1,12,1)), MAX(OFFSET(Sat!$A$10,$H164*12,4*($C$8-1)+1,12,1))) * 100 -> 24.32891667 | R164: 11.58333333 | S164: =VLOOKUP($R164,Sat!$A$10:$AG$2410,4*($C$8-1)+3) * 100 -> 22.278 | T164: =VLOOKUP($R164,Sat!$A$10:$AG$2410,4*($C$8-1)+4) * 100 -> 24.648 | U164: =VLOOKUP($R164,Sat!$A$10:$AG$2410,4*($C$8-1)+5) * 100 -> 26.186 | V164: =VLOOKUP($R164,Sat!$A$10:$AG$2410,4*($C$8-1)+2) * 100 -> 24.361
H165: 140 | I165: =IF($B$4="Annual Average", AVERAGE(OFFSET(Sat!$A$10,$H165*12,4*($C$8-1)+2,12,1)), MAX(OFFSET(Sat!$A$10,$H165*12,4*($C$8-1)+2,12,1))) * 100 -> 21.26941667 | J165: =IF($B$4="Annual Average", AVERAGE(OFFSET(Sat!$A$10,$H165*12,4*($C$8-1)+3,12,1)), MAX(OFFSET(Sat!$A$10,$H165*12,4*($C$8-1)+3,12,1))) * 100 -> 24.58616667 | K165: =IF($B$4="Annual Average", AVERAGE(OFFSET(Sat!$A$10,$H165*12,4*($C$8-1)+4,12,1)), MAX(OFFSET(Sat!$A$10,$H165*12,4*($C$8-1)+4,12,1))) * 100 -> 26.21308333 | L165: =IF($B$4="Annual Average", AVERAGE(OFFSET(Sat!$A$10,$H165*12,4*($C$8-1)+1,12,1)), MAX(OFFSET(Sat!$A$10,$H165*12,4*($C$8-1)+1,12,1))) * 100 -> 24.12733333 | R165: 11.66666667 | S165: =VLOOKUP($R165,Sat!$A$10:$AG$2410,4*($C$8-1)+3) * 100 -> 22.278 | T165: =VLOOKUP($R165,Sat!$A$10:$AG$2410,4*($C$8-1)+4) * 100 -> 24.648 | U165: =VLOOKUP($R165,Sat!$A$10:$AG$2410,4*($C$8-1)+5) * 100 -> 26.186 | V165: =VLOOKUP($R165,Sat!$A$10:$AG$2410,4*($C$8-1)+2) * 100 -> 24.361
H166: 141 | I166: =IF($B$4="Annual Average", AVERAGE(OFFSET(Sat!$A$10,$H166*12,4*($C$8-1)+2,12,1)), MAX(OFFSET(Sat!$A$10,$H166*12,4*($C$8-1)+2,12,1))) * 100 -> 21.38333333 | J166: =IF($B$4="Annual Average", AVERAGE(OFFSET(Sat!$A$10,$H166*12,4*($C$8-1)+3,12,1)), MAX(OFFSET(Sat!$A$10,$H166*12,4*($C$8-1)+3,12,1))) * 100 -> 24.6275 | K166: =IF($B$4="Annual Average", AVERAGE(OFFSET(Sat!$A$10,$H166*12,4*($C$8-1)+4,12,1)), MAX(OFFSET(Sat!$A$10,$H166*12,4*($C$8-1)+4,12,1))) * 100 -> 26.3455 | L166: =IF($B$4="Annual Average", AVERAGE(OFFSET(Sat!$A$10,$H166*12,4*($C$8-1)+1,12,1)), MAX(OFFSET(Sat!$A$10,$H166*12,4*($C$8-1)+1,12,1))) * 100 -> 24.19341667 | R166: 11.75 | S166: =VLOOKUP($R166,Sat!$A$10:$AG$2410,4*($C$8-1)+3) * 100 -> 22.239 | T166: =VLOOKUP($R166,Sat!$A$10:$AG$2410,4*($C$8-1)+4) * 100 -> 24.768 | U166: =VLOOKUP($R166,Sat!$A$10:$AG$2410,4*($C$8-1)+5) * 100 -> 26.312 | V166: =VLOOKUP($R166,Sat!$A$10:$AG$2410,4*($C$8-1)+2) * 100 -> 24.371
H167: 142 | I167: =IF($B$4="Annual Average", AVERAGE(OFFSET(Sat!$A$10,$H167*12,4*($C$8-1)+2,12,1)), MAX(OFFSET(Sat!$A$10,$H167*12,4*($C$8-1)+2,12,1))) * 100 -> 21.74983333 | J167: =IF($B$4="Annual Average", AVERAGE(OFFSET(Sat!$A$10,$H167*12,4*($C$8-1)+3,12,1)), MAX(OFFSET(Sat!$A$10,$H167*12,4*($C$8-1)+3,12,1))) * 100 -> 24.83183333 | K167: =IF($B$4="Annual Average", AVERAGE(OFFSET(Sat!$A$10,$H167*12,4*($C$8-1)+4,12,1)), MAX(OFFSET(Sat!$A$10,$H167*12,4*($C$8-1)+4,12,1))) * 100 -> 26.437 | L167: =IF($B$4="Annual Average", AVERAGE(OFFSET(Sat!$A$10,$H167*12,4*($C$8-1)+1,12,1)), MAX(OFFSET(Sat!$A$10,$H167*12,4*($C$8-1)+1,12,1))) * 100 -> 24.39508333 | R167: 11.83333333 | S167: =VLOOKUP($R167,Sat!$A$10:$AG$2410,4*($C$8-1)+3) * 100 -> 22.085 | T167: =VLOOKUP($R167,Sat!$A$10:$AG$2410,4*($C$8-1)+4) * 100 -> 24.839 | U167: =VLOOKUP($R167,Sat!$A$10:$AG$2410,4*($C$8-1)+5) * 100 -> 26.313 | V167: =VLOOKUP($R167,Sat!$A$10:$AG$2410,4*($C$8-1)+2) * 100 -> 24.376
H168: 143 | I168: =IF($B$4="Annual Average", AVERAGE(OFFSET(Sat!$A$10,$H168*12,4*($C$8-1)+2,12,1)), MAX(OFFSET(Sat!$A$10,$H168*12,4*($C$8-1)+2,12,1))) * 100 -> 21.86375 | J168: =IF($B$4="Annual Average", AVERAGE(OFFSET(Sat!$A$10,$H168*12,4*($C$8-1)+3,12,1)), MAX(OFFSET(Sat!$A$10,$H168*12,4*($C$8-1)+3,12,1))) * 100 -> 24.81866667 | K168: =IF($B$4="Annual Average", AVERAGE(OFFSET(Sat!$A$10,$H168*12,4*($C$8-1)+4,12,1)), MAX(OFFSET(Sat!$A$10,$H168*12,4*($C$8-1)+4,12,1))) * 100 -> 26.425 | L168: =IF($B$4="Annual Average", AVERAGE(OFFSET(Sat!$A$10,$H168*12,4*($C$8-1)+1,12,1)), MAX(OFFSET(Sat!$A$10,$H168*12,4*($C$8-1)+1,12,1))) * 100 -> 24.42991667 | R168: 11.91666667 | S168: =VLOOKUP($R168,Sat!$A$10:$AG$2410,4*($C$8-1)+3) * 100 -> 22.085 | T168: =VLOOKUP($R168,Sat!$A$10:$AG$2410,4*($C$8-1)+4) * 100 -> 24.839 | U168: =VLOOKUP($R168,Sat!$A$10:$AG$2410,4*($C$8-1)+5) * 100 -> 26.313 | V168: =VLOOKUP($R168,Sat!$A$10:$AG$2410,4*($C$8-1)+2) * 100 -> 24.376
H169: 144 | I169: =IF($B$4="Annual Average", AVERAGE(OFFSET(Sat!$A$10,$H169*12,4*($C$8-1)+2,12,1)), MAX(OFFSET(Sat!$A$10,$H169*12,4*($C$8-1)+2,12,1))) * 100 -> 21.97675 | J169: =IF($B$4="Annual Average", AVERAGE(OFFSET(Sat!$A$10,$H169*12,4*($C$8-1)+3,12,1)), MAX(OFFSET(Sat!$A$10,$H169*12,4*($C$8-1)+3,12,1))) * 100 -> 24.76866667 | K169: =IF($B$4="Annual Average", AVERAGE(OFFSET(Sat!$A$10,$H169*12,4*($C$8-1)+4,12,1)), MAX(OFFSET(Sat!$A$10,$H169*12,4*($C$8-1)+4,12,1))) * 100 -> 26.53975 | L169: =IF($B$4="Annual Average", AVERAGE(OFFSET(Sat!$A$10,$H169*12,4*($C$8-1)+1,12,1)), MAX(OFFSET(Sat!$A$10,$H169*12,4*($C$8-1)+1,12,1))) * 100 -> 24.4545 | R169: 12 | S169: =VLOOKUP($R169,Sat!$A$10:$AG$2410,4*($C$8-1)+3) * 100 -> 21.576 | T169: =VLOOKUP($R169,Sat!$A$10:$AG$2410,4*($C$8-1)+4) * 100 -> 24.971 | U169: =VLOOKUP($R169,Sat!$A$10:$AG$2410,4*($C$8-1)+5) * 100 -> 26.669 | V169: =VLOOKUP($R169,Sat!$A$10:$AG$2410,4*($C$8-1)+2) * 100 -> 24.387
H170: 145 | I170: =IF($B$4="Annual Average", AVERAGE(OFFSET(Sat!$A$10,$H170*12,4*($C$8-1)+2,12,1)), MAX(OFFSET(Sat!$A$10,$H170*12,4*($C$8-1)+2,12,1))) * 100 -> 22.04333333 | J170: =IF($B$4="Annual Average", AVERAGE(OFFSET(Sat!$A$10,$H170*12,4*($C$8-1)+3,12,1)), MAX(OFFSET(Sat!$A$10,$H170*12,4*($C$8-1)+3,12,1))) * 100 -> 24.64241667 | K170: =IF($B$4="Annual Average", AVERAGE(OFFSET(Sat!$A$10,$H170*12,4*($C$8-1)+4,12,1)), MAX(OFFSET(Sat!$A$10,$H170*12,4*($C$8-1)+4,12,1))) * 100 -> 26.41758333 | L170: =IF($B$4="Annual Average", AVERAGE(OFFSET(Sat!$A$10,$H170*12,4*($C$8-1)+1,12,1)), MAX(OFFSET(Sat!$A$10,$H170*12,4*($C$8-1)+1,12,1))) * 100 -> 24.32791667 | R170: 12.08333333 | S170: =VLOOKUP($R170,Sat!$A$10:$AG$2410,4*($C$8-1)+3) * 100 -> 21.821 | T170: =VLOOKUP($R170,Sat!$A$10:$AG$2410,4*($C$8-1)+4) * 100 -> 24.896 | U170: =VLOOKUP($R170,Sat!$A$10:$AG$2410,4*($C$8-1)+5) * 100 -> 26.468 | V170: =VLOOKUP($R170,Sat!$A$10:$AG$2410,4*($C$8-1)+2) * 100 -> 24.382
H171: 146 | I171: =IF($B$4="Annual Average", AVERAGE(OFFSET(Sat!$A$10,$H171*12,4*($C$8-1)+2,12,1)), MAX(OFFSET(Sat!$A$10,$H171*12,4*($C$8-1)+2,12,1))) * 100 -> 21.92575 | J171: =IF($B$4="Annual Average", AVERAGE(OFFSET(Sat!$A$10,$H171*12,4*($C$8-1)+3,12,1)), MAX(OFFSET(Sat!$A$10,$H171*12,4*($C$8-1)+3,12,1))) * 100 -> 24.66975 | K171: =IF($B$4="Annual Average", AVERAGE(OFFSET(Sat!$A$10,$H171*12,4*($C$8-1)+4,12,1)), MAX(OFFSET(Sat!$A$10,$H171*12,4*($C$8-1)+4,12,1))) * 100 -> 26.32625 | L171: =IF($B$4="Annual Average", AVERAGE(OFFSET(Sat!$A$10,$H171*12,4*($C$8-1)+1,12,1)), MAX(OFFSET(Sat!$A$10,$H171*12,4*($C$8-1)+1,12,1))) * 100 -> 24.31258333 | R171: 12.16666667 | S171: =VLOOKUP($R171,Sat!$A$10:$AG$2410,4*($C$8-1)+3) * 100 -> 21.821 | T171: =VLOOKUP($R171,Sat!$A$10:$AG$2410,4*($C$8-1)+4) * 100 -> 24.896 | U171: =VLOOKUP($R171,Sat!$A$10:$AG$2410,4*($C$8-1)+5) * 100 -> 26.468 | V171: =VLOOKUP($R171,Sat!$A$10:$AG$2410,4*($C$8-1)+2) * 100 -> 24.382
H172: 147 | I172: =IF($B$4="Annual Average", AVERAGE(OFFSET(Sat!$A$10,$H172*12,4*($C$8-1)+2,12,1)), MAX(OFFSET(Sat!$A$10,$H172*12,4*($C$8-1)+2,12,1))) * 100 -> 22.04591667 | J172: =IF($B$4="Annual Average", AVERAGE(OFFSET(Sat!$A$10,$H172*12,4*($C$8-1)+3,12,1)), MAX(OFFSET(Sat!$A$10,$H172*12,4*($C$8-1)+3,12,1))) * 100 -> 24.74658333 | K172: =IF($B$4="Annual Average", AVERAGE(OFFSET(Sat!$A$10,$H172*12,4*($C$8-1)+4,12,1)), MAX(OFFSET(Sat!$A$10,$H172*12,4*($C$8-1)+4,12,1))) * 100 -> 26.46408333 | L172: =IF($B$4="Annual Average", AVERAGE(OFFSET(Sat!$A$10,$H172*12,4*($C$8-1)+1,12,1)), MAX(OFFSET(Sat!$A$10,$H172*12,4*($C$8-1)+1,12,1))) * 100 -> 24.41116667 | R172: 12.25 | S172: =VLOOKUP($R172,Sat!$A$10:$AG$2410,4*($C$8-1)+3) * 100 -> 22.11 | T172: =VLOOKUP($R172,Sat!$A$10:$AG$2410,4*($C$8-1)+4) * 100 -> 24.718 | U172: =VLOOKUP($R172,Sat!$A$10:$AG$2410,4*($C$8-1)+5) * 100 -> 26.267 | V172: =VLOOKUP($R172,Sat!$A$10:$AG$2410,4*($C$8-1)+2) * 100 -> 24.373
H173: 148 | I173: =IF($B$4="Annual Average", AVERAGE(OFFSET(Sat!$A$10,$H173*12,4*($C$8-1)+2,12,1)), MAX(OFFSET(Sat!$A$10,$H173*12,4*($C$8-1)+2,12,1))) * 100 -> 22.245 | J173: =IF($B$4="Annual Average", AVERAGE(OFFSET(Sat!$A$10,$H173*12,4*($C$8-1)+3,12,1)), MAX(OFFSET(Sat!$A$10,$H173*12,4*($C$8-1)+3,12,1))) * 100 -> 24.79691667 | K173: =IF($B$4="Annual Average", AVERAGE(OFFSET(Sat!$A$10,$H173*12,4*($C$8-1)+4,12,1)), MAX(OFFSET(Sat!$A$10,$H173*12,4*($C$8-1)+4,12,1))) * 100 -> 26.45941667 | L173: =IF($B$4="Annual Average", AVERAGE(OFFSET(Sat!$A$10,$H173*12,4*($C$8-1)+1,12,1)), MAX(OFFSET(Sat!$A$10,$H173*12,4*($C$8-1)+1,12,1))) * 100 -> 24.4935 | R173: 12.33333333 | S173: =VLOOKUP($R173,Sat!$A$10:$AG$2410,4*($C$8-1)+3) * 100 -> 22.115 | T173: =VLOOKUP($R173,Sat!$A$10:$AG$2410,4*($C$8-1)+4) * 100 -> 24.683 | U173: =VLOOKUP($R173,Sat!$A$10:$AG$2410,4*($C$8-1)+5) * 100 -> 26.22 | V173: =VLOOKUP($R173,Sat!$A$10:$AG$2410,4*($C$8-1)+2) * 100 -> 24.369
H174: 149 | I174: =IF($B$4="Annual Average", AVERAGE(OFFSET(Sat!$A$10,$H174*12,4*($C$8-1)+2,12,1)), MAX(OFFSET(Sat!$A$10,$H174*12,4*($C$8-1)+2,12,1))) * 100 -> 21.7155 | J174: =IF($B$4="Annual Average", AVERAGE(OFFSET(Sat!$A$10,$H174*12,4*($C$8-1)+3,12,1)), MAX(OFFSET(Sat!$A$10,$H174*12,4*($C$8-1)+3,12,1))) * 100 -> 24.70508333 | K174: =IF($B$4="Annual Average", AVERAGE(OFFSET(Sat!$A$10,$H174*12,4*($C$8-1)+4,12,1)), MAX(OFFSET(Sat!$A$10,$H174*12,4*($C$8-1)+4,12,1))) * 100 -> 26.38175 | L174: =IF($B$4="Annual Average", AVERAGE(OFFSET(Sat!$A$10,$H174*12,4*($C$8-1)+1,12,1)), MAX(OFFSET(Sat!$A$10,$H174*12,4*($C$8-1)+1,12,1))) * 100 -> 24.33783333 | R174: 12.41666667 | S174: =VLOOKUP($R174,Sat!$A$10:$AG$2410,4*($C$8-1)+3) * 100 -> 22.115 | T174: =VLOOKUP($R174,Sat!$A$10:$AG$2410,4*($C$8-1)+4) * 100 -> 24.683 | U174: =VLOOKUP($R174,Sat!$A$10:$AG$2410,4*($C$8-1)+5) * 100 -> 26.22 | V174: =VLOOKUP($R174,Sat!$A$10:$AG$2410,4*($C$8-1)+2) * 100 -> 24.369
H175: 150 | I175: =IF($B$4="Annual Average", AVERAGE(OFFSET(Sat!$A$10,$H175*12,4*($C$8-1)+2,12,1)), MAX(OFFSET(Sat!$A$10,$H175*12,4*($C$8-1)+2,12,1))) * 100 -> 21.39525 | J175: =IF($B$4="Annual Average", AVERAGE(OFFSET(Sat!$A$10,$H175*12,4*($C$8-1)+3,12,1)), MAX(OFFSET(Sat!$A$10,$H175*12,4*($C$8-1)+3,12,1))) * 100 -> 24.64275 | K175: =IF($B$4="Annual Average", AVERAGE(OFFSET(Sat!$A$10,$H175*12,4*($C$8-1)+4,12,1)), MAX(OFFSET(Sat!$A$10,$H175*12,4*($C$8-1)+4,12,1))) * 100 -> 26.35375 | L175: =IF($B$4="Annual Average", AVERAGE(OFFSET(Sat!$A$10,$H175*12,4*($C$8-1)+1,12,1)), MAX(OFFSET(Sat!$A$10,$H175*12,4*($C$8-1)+1,12,1))) * 100 -> 24.2355 | R175: 12.5 | S175: =VLOOKUP($R175,Sat!$A$10:$AG$2410,4*($C$8-1)+3) * 100 -> 21.856 | T175: =VLOOKUP($R175,Sat!$A$10:$AG$2410,4*($C$8-1)+4) * 100 -> 24.733 | U175: =VLOOKUP($R175,Sat!$A$10:$AG$2410,4*($C$8-1)+5) * 100 -> 26.151 | V175: =VLOOKUP($R175,Sat!$A$10:$AG$2410,4*($C$8-1)+2) * 100 -> 24.36
H176: 151 | I176: =IF($B$4="Annual Average", AVERAGE(OFFSET(Sat!$A$10,$H176*12,4*($C$8-1)+2,12,1)), MAX(OFFSET(Sat!$A$10,$H176*12,4*($C$8-1)+2,12,1))) * 100 -> 21.64833333 | J176: =IF($B$4="Annual Average", AVERAGE(OFFSET(Sat!$A$10,$H176*12,4*($C$8-1)+3,12,1)), MAX(OFFSET(Sat!$A$10,$H176*12,4*($C$8-1)+3,12,1))) * 100 -> 24.61083333 | K176: =IF($B$4="Annual Average", AVERAGE(OFFSET(Sat!$A$10,$H176*12,4*($C$8-1)+4,12,1)), MAX(OFFSET(Sat!$A$10,$H176*12,4*($C$8-1)+4,12,1))) * 100 -> 26.30733333 | L176: =IF($B$4="Annual Average", AVERAGE(OFFSET(Sat!$A$10,$H176*12,4*($C$8-1)+1,12,1)), MAX(OFFSET(Sat!$A$10,$H176*12,4*($C$8-1)+1,12,1))) * 100 -> 24.2115 | R176: 12.58333333 | S176: =VLOOKUP($R176,Sat!$A$10:$AG$2410,4*($C$8-1)+3) * 100 -> 21.908 | T176: =VLOOKUP($R176,Sat!$A$10:$AG$2410,4*($C$8-1)+4) * 100 -> 24.714 | U176: =VLOOKUP($R176,Sat!$A$10:$AG$2410,4*($C$8-1)+5) * 100 -> 26.097 | V176: =VLOOKUP($R176,Sat!$A$10:$AG$2410,4*($C$8-1)+2) * 100 -> 24.355
H177: 152 | I177: =IF($B$4="Annual Average", AVERAGE(OFFSET(Sat!$A$10,$H177*12,4*($C$8-1)+2,12,1)), MAX(OFFSET(Sat!$A$10,$H177*12,4*($C$8-1)+2,12,1))) * 100 -> 21.748 | J177: =IF($B$4="Annual Average", AVERAGE(OFFSET(Sat!$A$10,$H177*12,4*($C$8-1)+3,12,1)), MAX(OFFSET(Sat!$A$10,$H177*12,4*($C$8-1)+3,12,1))) * 100 -> 24.66533333 | K177: =IF($B$4="Annual Average", AVERAGE(OFFSET(Sat!$A$10,$H177*12,4*($C$8-1)+4,12,1)), MAX(OFFSET(Sat!$A$10,$H177*12,4*($C$8-1)+4,12,1))) * 100 -> 26.39025 | L177: =IF($B$4="Annual Average", AVERAGE(OFFSET(Sat!$A$10,$H177*12,4*($C$8-1)+1,12,1)), MAX(OFFSET(Sat!$A$10,$H177*12,4*($C$8-1)+1,12,1))) * 100 -> 24.27825 | R177: 12.66666667 | S177: =VLOOKUP($R177,Sat!$A$10:$AG$2410,4*($C$8-1)+3) * 100 -> 21.908 | T177: =VLOOKUP($R177,Sat!$A$10:$AG$2410,4*($C$8-1)+4) * 100 -> 24.714 | U177: =VLOOKUP($R177,Sat!$A$10:$AG$2410,4*($C$8-1)+5) * 100 -> 26.097 | V177: =VLOOKUP($R177,Sat!$A$10:$AG$2410,4*($C$8-1)+2) * 100 -> 24.355
H178: 153 | I178: =IF($B$4="Annual Average", AVERAGE(OFFSET(Sat!$A$10,$H178*12,4*($C$8-1)+2,12,1)), MAX(OFFSET(Sat!$A$10,$H178*12,4*($C$8-1)+2,12,1))) * 100 -> 22.021 | J178: =IF($B$4="Annual Average", AVERAGE(OFFSET(Sat!$A$10,$H178*12,4*($C$8-1)+3,12,1)), MAX(OFFSET(Sat!$A$10,$H178*12,4*($C$8-1)+3,12,1))) * 100 -> 24.74141667 | K178: =IF($B$4="Annual Average", AVERAGE(OFFSET(Sat!$A$10,$H178*12,4*($C$8-1)+4,12,1)), MAX(OFFSET(Sat!$A$10,$H178*12,4*($C$8-1)+4,12,1))) * 100 -> 26.47208333 | L178: =IF($B$4="Annual Average", AVERAGE(OFFSET(Sat!$A$10,$H178*12,4*($C$8-1)+1,12,1)), MAX(OFFSET(Sat!$A$10,$H178*12,4*($C$8-1)+1,12,1))) * 100 -> 24.39891667 | R178: 12.75 | S178: =VLOOKUP($R178,Sat!$A$10:$AG$2410,4*($C$8-1)+3) * 100 -> 21.8 | T178: =VLOOKUP($R178,Sat!$A$10:$AG$2410,4*($C$8-1)+4) * 100 -> 24.72 | U178: =VLOOKUP($R178,Sat!$A$10:$AG$2410,4*($C$8-1)+5) * 100 -> 26.261 | V178: =VLOOKUP($R178,Sat!$A$10:$AG$2410,4*($C$8-1)+2) * 100 -> 24.346
H179: 154 | I179: =IF($B$4="Annual Average", AVERAGE(OFFSET(Sat!$A$10,$H179*12,4*($C$8-1)+2,12,1)), MAX(OFFSET(Sat!$A$10,$H179*12,4*($C$8-1)+2,12,1))) * 100 -> 21.8635 | J179: =IF($B$4="Annual Average", AVERAGE(OFFSET(Sat!$A$10,$H179*12,4*($C$8-1)+3,12,1)), MAX(OFFSET(Sat!$A$10,$H179*12,4*($C$8-1)+3,12,1))) * 100 -> 24.69791667 | K179: =IF($B$4="Annual Average", AVERAGE(OFFSET(Sat!$A$10,$H179*12,4*($C$8-1)+4,12,1)), MAX(OFFSET(Sat!$A$10,$H179*12,4*($C$8-1)+4,12,1))) * 100 -> 26.44408333 | L179: =IF($B$4="Annual Average", AVERAGE(OFFSET(Sat!$A$10,$H179*12,4*($C$8-1)+1,12,1)), MAX(OFFSET(Sat!$A$10,$H179*12,4*($C$8-1)+1,12,1))) * 100 -> 24.3305 | R179: 12.83333333 | S179: =VLOOKUP($R179,Sat!$A$10:$AG$2410,4*($C$8-1)+3) * 100 -> 21.98 | T179: =VLOOKUP($R179,Sat!$A$10:$AG$2410,4*($C$8-1)+4) * 100 -> 24.759 | U179: =VLOOKUP($R179,Sat!$A$10:$AG$2410,4*($C$8-1)+5) * 100 -> 26.42 | V179: =VLOOKUP($R179,Sat!$A$10:$AG$2410,4*($C$8-1)+2) * 100 -> 24.342
H180: 155 | I180: =IF($B$4="Annual Average", AVERAGE(OFFSET(Sat!$A$10,$H180*12,4*($C$8-1)+2,12,1)), MAX(OFFSET(Sat!$A$10,$H180*12,4*($C$8-1)+2,12,1))) * 100 -> 21.78433333 | J180: =IF($B$4="Annual Average", AVERAGE(OFFSET(Sat!$A$10,$H180*12,4*($C$8-1)+3,12,1)), MAX(OFFSET(Sat!$A$10,$H180*12,4*($C$8-1)+3,12,1))) * 100 -> 24.64358333 | K180: =IF($B$4="Annual Average", AVERAGE(OFFSET(Sat!$A$10,$H180*12,4*($C$8-1)+4,12,1)), MAX(OFFSET(Sat!$A$10,$H180*12,4*($C$8-1)+4,12,1))) * 100 -> 26.28641667 | L180: =IF($B$4="Annual Average", AVERAGE(OFFSET(Sat!$A$10,$H180*12,4*($C$8-1)+1,12,1)), MAX(OFFSET(Sat!$A$10,$H180*12,4*($C$8-1)+1,12,1))) * 100 -> 24.25383333 | R180: 12.91666667 | S180: =VLOOKUP($R180,Sat!$A$10:$AG$2410,4*($C$8-1)+3) * 100 -> 21.98 | T180: =VLOOKUP($R180,Sat!$A$10:$AG$2410,4*($C$8-1)+4) * 100 -> 24.759 | U180: =VLOOKUP($R180,Sat!$A$10:$AG$2410,4*($C$8-1)+5) * 100 -> 26.42 | V180: =VLOOKUP($R180,Sat!$A$10:$AG$2410,4*($C$8-1)+2) * 100 -> 24.342
H181: 156 | I181: =IF($B$4="Annual Average", AVERAGE(OFFSET(Sat!$A$10,$H181*12,4*($C$8-1)+2,12,1)), MAX(OFFSET(Sat!$A$10,$H181*12,4*($C$8-1)+2,12,1))) * 100 -> 21.93491667 | J181: =IF($B$4="Annual Average", AVERAGE(OFFSET(Sat!$A$10,$H181*12,4*($C$8-1)+3,12,1)), MAX(OFFSET(Sat!$A$10,$H181*12,4*($C$8-1)+3,12,1))) * 100 -> 24.6435 | K181: =IF($B$4="Annual Average", AVERAGE(OFFSET(Sat!$A$10,$H181*12,4*($C$8-1)+4,12,1)), MAX(OFFSET(Sat!$A$10,$H181*12,4*($C$8-1)+4,12,1))) * 100 -> 26.19608333 | L181: =IF($B$4="Annual Average", AVERAGE(OFFSET(Sat!$A$10,$H181*12,4*($C$8-1)+1,12,1)), MAX(OFFSET(Sat!$A$10,$H181*12,4*($C$8-1)+1,12,1))) * 100 -> 24.30466667 | R181: 13 | S181: =VLOOKUP($R181,Sat!$A$10:$AG$2410,4*($C$8-1)+3) * 100 -> 21.663 | T181: =VLOOKUP($R181,Sat!$A$10:$AG$2410,4*($C$8-1)+4) * 100 -> 24.85 | U181: =VLOOKUP($R181,Sat!$A$10:$AG$2410,4*($C$8-1)+5) * 100 -> 26.801 | V181: =VLOOKUP($R181,Sat!$A$10:$AG$2410,4*($C$8-1)+2) * 100 -> 24.333
H182: 157 | I182: =IF($B$4="Annual Average", AVERAGE(OFFSET(Sat!$A$10,$H182*12,4*($C$8-1)+2,12,1)), MAX(OFFSET(Sat!$A$10,$H182*12,4*($C$8-1)+2,12,1))) * 100 -> 21.93308333 | J182: =IF($B$4="Annual Average", AVERAGE(OFFSET(Sat!$A$10,$H182*12,4*($C$8-1)+3,12,1)), MAX(OFFSET(Sat!$A$10,$H182*12,4*($C$8-1)+3,12,1))) * 100 -> 24.75075 | K182: =IF($B$4="Annual Average", AVERAGE(OFFSET(Sat!$A$10,$H182*12,4*($C$8-1)+4,12,1)), MAX(OFFSET(Sat!$A$10,$H182*12,4*($C$8-1)+4,12,1))) * 100 -> 26.36733333 | L182: =IF($B$4="Annual Average", AVERAGE(OFFSET(Sat!$A$10,$H182*12,4*($C$8-1)+1,12,1)), MAX(OFFSET(Sat!$A$10,$H182*12,4*($C$8-1)+1,12,1))) * 100 -> 24.36866667 | R182: 13.08333333 | S182: =VLOOKUP($R182,Sat!$A$10:$AG$2410,4*($C$8-1)+3) * 100 -> 21.675 | T182: =VLOOKUP($R182,Sat!$A$10:$AG$2410,4*($C$8-1)+4) * 100 -> 24.731 | U182: =VLOOKUP($R182,Sat!$A$10:$AG$2410,4*($C$8-1)+5) * 100 -> 26.564 | V182: =VLOOKUP($R182,Sat!$A$10:$AG$2410,4*($C$8-1)+2) * 100 -> 24.337
H183: 158 | I183: =IF($B$4="Annual Average", AVERAGE(OFFSET(Sat!$A$10,$H183*12,4*($C$8-1)+2,12,1)), MAX(OFFSET(Sat!$A$10,$H183*12,4*($C$8-1)+2,12,1))) * 100 -> 21.55733333 | J183: =IF($B$4="Annual Average", AVERAGE(OFFSET(Sat!$A$10,$H183*12,4*($C$8-1)+3,12,1)), MAX(OFFSET(Sat!$A$10,$H183*12,4*($C$8-1)+3,12,1))) * 100 -> 24.54708333 | K183: =IF($B$4="Annual Average", AVERAGE(OFFSET(Sat!$A$10,$H183*12,4*($C$8-1)+4,12,1)), MAX(OFFSET(Sat!$A$10,$H183*12,4*($C$8-1)+4,12,1))) * 100 -> 26.37866667 | L183: =IF($B$4="Annual Average", AVERAGE(OFFSET(Sat!$A$10,$H183*12,4*($C$8-1)+1,12,1)), MAX(OFFSET(Sat!$A$10,$H183*12,4*($C$8-1)+1,12,1))) * 100 -> 24.18066667 | R183: 13.16666667 | S183: =VLOOKUP($R183,Sat!$A$10:$AG$2410,4*($C$8-1)+3) * 100 -> 21.675 | T183: =VLOOKUP($R183,Sat!$A$10:$AG$2410,4*($C$8-1)+4) * 100 -> 24.731 | U183: =VLOOKUP($R183,Sat!$A$10:$AG$2410,4*($C$8-1)+5) * 100 -> 26.564 | V183: =VLOOKUP($R183,Sat!$A$10:$AG$2410,4*($C$8-1)+2) * 100 -> 24.337
H184: 159 | I184: =IF($B$4="Annual Average", AVERAGE(OFFSET(Sat!$A$10,$H184*12,4*($C$8-1)+2,12,1)), MAX(OFFSET(Sat!$A$10,$H184*12,4*($C$8-1)+2,12,1))) * 100 -> 21.39783333 | J184: =IF($B$4="Annual Average", AVERAGE(OFFSET(Sat!$A$10,$H184*12,4*($C$8-1)+3,12,1)), MAX(OFFSET(Sat!$A$10,$H184*12,4*($C$8-1)+3,12,1))) * 100 -> 24.5005 | K184: =IF($B$4="Annual Average", AVERAGE(OFFSET(Sat!$A$10,$H184*12,4*($C$8-1)+4,12,1)), MAX(OFFSET(Sat!$A$10,$H184*12,4*($C$8-1)+4,12,1))) * 100 -> 26.335 | L184: =IF($B$4="Annual Average", AVERAGE(OFFSET(Sat!$A$10,$H184*12,4*($C$8-1)+1,12,1)), MAX(OFFSET(Sat!$A$10,$H184*12,4*($C$8-1)+1,12,1))) * 100 -> 24.11858333 | R184: 13.25 | S184: =VLOOKUP($R184,Sat!$A$10:$AG$2410,4*($C$8-1)+3) * 100 -> 21.85 | T184: =VLOOKUP($R184,Sat!$A$10:$AG$2410,4*($C$8-1)+4) * 100 -> 24.627 | U184: =VLOOKUP($R184,Sat!$A$10:$AG$2410,4*($C$8-1)+5) * 100 -> 26.369 | V184: =VLOOKUP($R184,Sat!$A$10:$AG$2410,4*($C$8-1)+2) * 100 -> 24.346
H185: 160 | I185: =IF($B$4="Annual Average", AVERAGE(OFFSET(Sat!$A$10,$H185*12,4*($C$8-1)+2,12,1)), MAX(OFFSET(Sat!$A$10,$H185*12,4*($C$8-1)+2,12,1))) * 100 -> 21.79308333 | J185: =IF($B$4="Annual Average", AVERAGE(OFFSET(Sat!$A$10,$H185*12,4*($C$8-1)+3,12,1)), MAX(OFFSET(Sat!$A$10,$H185*12,4*($C$8-1)+3,12,1))) * 100 -> 24.68983333 | K185: =IF($B$4="Annual Average", AVERAGE(OFFSET(Sat!$A$10,$H185*12,4*($C$8-1)+4,12,1)), MAX(OFFSET(Sat!$A$10,$H185*12,4*($C$8-1)+4,12,1))) * 100 -> 26.32566667 | L185: =IF($B$4="Annual Average", AVERAGE(OFFSET(Sat!$A$10,$H185*12,4*($C$8-1)+1,12,1)), MAX(OFFSET(Sat!$A$10,$H185*12,4*($C$8-1)+1,12,1))) * 100 -> 24.29766667 | R185: 13.33333333 | S185: =VLOOKUP($R185,Sat!$A$10:$AG$2410,4*($C$8-1)+3) * 100 -> 21.985 | T185: =VLOOKUP($R185,Sat!$A$10:$AG$2410,4*($C$8-1)+4) * 100 -> 24.623 | U185: =VLOOKUP($R185,Sat!$A$10:$AG$2410,4*($C$8-1)+5) * 100 -> 26.312 | V185: =VLOOKUP($R185,Sat!$A$10:$AG$2410,4*($C$8-1)+2) * 100 -> 24.35
H186: 161 | I186: =IF($B$4="Annual Average", AVERAGE(OFFSET(Sat!$A$10,$H186*12,4*($C$8-1)+2,12,1)), MAX(OFFSET(Sat!$A$10,$H186*12,4*($C$8-1)+2,12,1))) * 100 -> 21.82241667 | J186: =IF($B$4="Annual Average", AVERAGE(OFFSET(Sat!$A$10,$H186*12,4*($C$8-1)+3,12,1)), MAX(OFFSET(Sat!$A$10,$H186*12,4*($C$8-1)+3,12,1))) * 100 -> 24.79866667 | K186: =IF($B$4="Annual Average", AVERAGE(OFFSET(Sat!$A$10,$H186*12,4*($C$8-1)+4,12,1)), MAX(OFFSET(Sat!$A$10,$H186*12,4*($C$8-1)+4,12,1))) * 100 -> 26.50116667 | L186: =IF($B$4="Annual Average", AVERAGE(OFFSET(Sat!$A$10,$H186*12,4*($C$8-1)+1,12,1)), MAX(OFFSET(Sat!$A$10,$H186*12,4*($C$8-1)+1,12,1))) * 100 -> 24.41175 | R186: 13.41666667 | S186: =VLOOKUP($R186,Sat!$A$10:$AG$2410,4*($C$8-1)+3) * 100 -> 21.985 | T186: =VLOOKUP($R186,Sat!$A$10:$AG$2410,4*($C$8-1)+4) * 100 -> 24.623 | U186: =VLOOKUP($R186,Sat!$A$10:$AG$2410,4*($C$8-1)+5) * 100 -> 26.312 | V186: =VLOOKUP($R186,Sat!$A$10:$AG$2410,4*($C$8-1)+2) * 100 -> 24.35
H187: 162 | I187: =IF($B$4="Annual Average", AVERAGE(OFFSET(Sat!$A$10,$H187*12,4*($C$8-1)+2,12,1)), MAX(OFFSET(Sat!$A$10,$H187*12,4*($C$8-1)+2,12,1))) * 100 -> 22.06575 | J187: =IF($B$4="Annual Average", AVERAGE(OFFSET(Sat!$A$10,$H187*12,4*($C$8-1)+3,12,1)), MAX(OFFSET(Sat!$A$10,$H187*12,4*($C$8-1)+3,12,1))) * 100 -> 24.732 | K187: =IF($B$4="Annual Average", AVERAGE(OFFSET(Sat!$A$10,$H187*12,4*($C$8-1)+4,12,1)), MAX(OFFSET(Sat!$A$10,$H187*12,4*($C$8-1)+4,12,1))) * 100 -> 26.38266667 | L187: =IF($B$4="Annual Average", AVERAGE(OFFSET(Sat!$A$10,$H187*12,4*($C$8-1)+1,12,1)), MAX(OFFSET(Sat!$A$10,$H187*12,4*($C$8-1)+1,12,1))) * 100 -> 24.37683333 | R187: 13.5 | S187: =VLOOKUP($R187,Sat!$A$10:$AG$2410,4*($C$8-1)+3) * 100 -> 21.805 | T187: =VLOOKUP($R187,Sat!$A$10:$AG$2410,4*($C$8-1)+4) * 100 -> 24.677 | U187: =VLOOKUP($R187,Sat!$A$10:$AG$2410,4*($C$8-1)+5) * 100 -> 26.378 | V187: =VLOOKUP($R187,Sat!$A$10:$AG$2410,4*($C$8-1)+2) * 100 -> 24.358
H188: 163 | I188: =IF($B$4="Annual Average", AVERAGE(OFFSET(Sat!$A$10,$H188*12,4*($C$8-1)+2,12,1)), MAX(OFFSET(Sat!$A$10,$H188*12,4*($C$8-1)+2,12,1))) * 100 -> 21.71233333 | J188: =IF($B$4="Annual Average", AVERAGE(OFFSET(Sat!$A$10,$H188*12,4*($C$8-1)+3,12,1)), MAX(OFFSET(Sat!$A$10,$H188*12,4*($C$8-1)+3,12,1))) * 100 -> 24.5745 | K188: =IF($B$4="Annual Average", AVERAGE(OFFSET(Sat!$A$10,$H188*12,4*($C$8-1)+4,12,1)), MAX(OFFSET(Sat!$A$10,$H188*12,4*($C$8-1)+4,12,1))) * 100 -> 26.39691667 | L188: =IF($B$4="Annual Average", AVERAGE(OFFSET(Sat!$A$10,$H188*12,4*($C$8-1)+1,12,1)), MAX(OFFSET(Sat!$A$10,$H188*12,4*($C$8-1)+1,12,1))) * 100 -> 24.234 | R188: 13.58333333 | S188: =VLOOKUP($R188,Sat!$A$10:$AG$2410,4*($C$8-1)+3) * 100 -> 21.97 | T188: =VLOOKUP($R188,Sat!$A$10:$AG$2410,4*($C$8-1)+4) * 100 -> 24.743 | U188: =VLOOKUP($R188,Sat!$A$10:$AG$2410,4*($C$8-1)+5) * 100 -> 26.383 | V188: =VLOOKUP($R188,Sat!$A$10:$AG$2410,4*($C$8-1)+2) * 100 -> 24.362
H189: 164 | I189: =IF($B$4="Annual Average", AVERAGE(OFFSET(Sat!$A$10,$H189*12,4*($C$8-1)+2,12,1)), MAX(OFFSET(Sat!$A$10,$H189*12,4*($C$8-1)+2,12,1))) * 100 -> 21.411 | J189: =IF($B$4="Annual Average", AVERAGE(OFFSET(Sat!$A$10,$H189*12,4*($C$8-1)+3,12,1)), MAX(OFFSET(Sat!$A$10,$H189*12,4*($C$8-1)+3,12,1))) * 100 -> 24.66083333 | K189: =IF($B$4="Annual Average", AVERAGE(OFFSET(Sat!$A$10,$H189*12,4*($C$8-1)+4,12,1)), MAX(OFFSET(Sat!$A$10,$H189*12,4*($C$8-1)+4,12,1))) * 100 -> 26.39975 | L189: =IF($B$4="Annual Average", AVERAGE(OFFSET(Sat!$A$10,$H189*12,4*($C$8-1)+1,12,1)), MAX(OFFSET(Sat!$A$10,$H189*12,4*($C$8-1)+1,12,1))) * 100 -> 24.23208333 | R189: 13.66666667 | S189: =VLOOKUP($R189,Sat!$A$10:$AG$2410,4*($C$8-1)+3) * 100 -> 21.97 | T189: =VLOOKUP($R189,Sat!$A$10:$AG$2410,4*($C$8-1)+4) * 100 -> 24.743 | U189: =VLOOKUP($R189,Sat!$A$10:$AG$2410,4*($C$8-1)+5) * 100 -> 26.383 | V189: =VLOOKUP($R189,Sat!$A$10:$AG$2410,4*($C$8-1)+2) * 100 -> 24.362
H190: 165 | I190: =IF($B$4="Annual Average", AVERAGE(OFFSET(Sat!$A$10,$H190*12,4*($C$8-1)+2,12,1)), MAX(OFFSET(Sat!$A$10,$H190*12,4*($C$8-1)+2,12,1))) * 100 -> 21.6495 | J190: =IF($B$4="Annual Average", AVERAGE(OFFSET(Sat!$A$10,$H190*12,4*($C$8-1)+3,12,1)), MAX(OFFSET(Sat!$A$10,$H190*12,4*($C$8-1)+3,12,1))) * 100 -> 24.62925 | K190: =IF($B$4="Annual Average", AVERAGE(OFFSET(Sat!$A$10,$H190*12,4*($C$8-1)+4,12,1)), MAX(OFFSET(Sat!$A$10,$H190*12,4*($C$8-1)+4,12,1))) * 100 -> 26.54733333 | L190: =IF($B$4="Annual Average", AVERAGE(OFFSET(Sat!$A$10,$H190*12,4*($C$8-1)+1,12,1)), MAX(OFFSET(Sat!$A$10,$H190*12,4*($C$8-1)+1,12,1))) * 100 -> 24.28233333 | R190: 13.75 | S190: =VLOOKUP($R190,Sat!$A$10:$AG$2410,4*($C$8-1)+3) * 100 -> 21.98 | T190: =VLOOKUP($R190,Sat!$A$10:$AG$2410,4*($C$8-1)+4) * 100 -> 24.828 | U190: =VLOOKUP($R190,Sat!$A$10:$AG$2410,4*($C$8-1)+5) * 100 -> 26.444 | V190: =VLOOKUP($R190,Sat!$A$10:$AG$2410,4*($C$8-1)+2) * 100 -> 24.37
H191: 166 | I191: =IF($B$4="Annual Average", AVERAGE(OFFSET(Sat!$A$10,$H191*12,4*($C$8-1)+2,12,1)), MAX(OFFSET(Sat!$A$10,$H191*12,4*($C$8-1)+2,12,1))) * 100 -> 21.70783333 | J191: =IF($B$4="Annual Average", AVERAGE(OFFSET(Sat!$A$10,$H191*12,4*($C$8-1)+3,12,1)), MAX(OFFSET(Sat!$A$10,$H191*12,4*($C$8-1)+3,12,1))) * 100 -> 24.6995 | K191: =IF($B$4="Annual Average", AVERAGE(OFFSET(Sat!$A$10,$H191*12,4*($C$8-1)+4,12,1)), MAX(OFFSET(Sat!$A$10,$H191*12,4*($C$8-1)+4,12,1))) * 100 -> 26.47675 | L191: =IF($B$4="Annual Average", AVERAGE(OFFSET(Sat!$A$10,$H191*12,4*($C$8-1)+1,12,1)), MAX(OFFSET(Sat!$A$10,$H191*12,4*($C$8-1)+1,12,1))) * 100 -> 24.307 | R191: 13.83333333 | S191: =VLOOKUP($R191,Sat!$A$10:$AG$2410,4*($C$8-1)+3) * 100 -> 21.881 | T191: =VLOOKUP($R191,Sat!$A$10:$AG$2410,4*($C$8-1)+4) * 100 -> 24.836 | U191: =VLOOKUP($R191,Sat!$A$10:$AG$2410,4*($C$8-1)+5) * 100 -> 26.494 | V191: =VLOOKUP($R191,Sat!$A$10:$AG$2410,4*($C$8-1)+2) * 100 -> 24.374
H192: 167 | I192: =IF($B$4="Annual Average", AVERAGE(OFFSET(Sat!$A$10,$H192*12,4*($C$8-1)+2,12,1)), MAX(OFFSET(Sat!$A$10,$H192*12,4*($C$8-1)+2,12,1))) * 100 -> 21.65466667 | J192: =IF($B$4="Annual Average", AVERAGE(OFFSET(Sat!$A$10,$H192*12,4*($C$8-1)+3,12,1)), MAX(OFFSET(Sat!$A$10,$H192*12,4*($C$8-1)+3,12,1))) * 100 -> 24.78241667 | K192: =IF($B$4="Annual Average", AVERAGE(OFFSET(Sat!$A$10,$H192*12,4*($C$8-1)+4,12,1)), MAX(OFFSET(Sat!$A$10,$H192*12,4*($C$8-1)+4,12,1))) * 100 -> 26.44525 | L192: =IF($B$4="Annual Average", AVERAGE(OFFSET(Sat!$A$10,$H192*12,4*($C$8-1)+1,12,1)), MAX(OFFSET(Sat!$A$10,$H192*12,4*($C$8-1)+1,12,1))) * 100 -> 24.33933333 | R192: 13.91666667 | S192: =VLOOKUP($R192,Sat!$A$10:$AG$2410,4*($C$8-1)+3) * 100 -> 21.881 | T192: =VLOOKUP($R192,Sat!$A$10:$AG$2410,4*($C$8-1)+4) * 100 -> 24.836 | U192: =VLOOKUP($R192,Sat!$A$10:$AG$2410,4*($C$8-1)+5) * 100 -> 26.494 | V192: =VLOOKUP($R192,Sat!$A$10:$AG$2410,4*($C$8-1)+2) * 100 -> 24.374
H193: 168 | I193: =IF($B$4="Annual Average", AVERAGE(OFFSET(Sat!$A$10,$H193*12,4*($C$8-1)+2,12,1)), MAX(OFFSET(Sat!$A$10,$H193*12,4*($C$8-1)+2,12,1))) * 100 -> 21.75433333 | J193: =IF($B$4="Annual Average", AVERAGE(OFFSET(Sat!$A$10,$H193*12,4*($C$8-1)+3,12,1)), MAX(OFFSET(Sat!$A$10,$H193*12,4*($C$8-1)+3,12,1))) * 100 -> 24.80416667 | K193: =IF($B$4="Annual Average", AVERAGE(OFFSET(Sat!$A$10,$H193*12,4*($C$8-1)+4,12,1)), MAX(OFFSET(Sat!$A$10,$H193*12,4*($C$8-1)+4,12,1))) * 100 -> 26.49266667 | L193: =IF($B$4="Annual Average", AVERAGE(OFFSET(Sat!$A$10,$H193*12,4*($C$8-1)+1,12,1)), MAX(OFFSET(Sat!$A$10,$H193*12,4*($C$8-1)+1,12,1))) * 100 -> 24.36075 | R193: 14 | S193: =VLOOKUP($R193,Sat!$A$10:$AG$2410,4*($C$8-1)+3) * 100 -> 21.506 | T193: =VLOOKUP($R193,Sat!$A$10:$AG$2410,4*($C$8-1)+4) * 100 -> 24.908 | U193: =VLOOKUP($R193,Sat!$A$10:$AG$2410,4*($C$8-1)+5) * 100 -> 26.802 | V193: =VLOOKUP($R193,Sat!$A$10:$AG$2410,4*($C$8-1)+2) * 100 -> 24.383
H194: 169 | I194: =IF($B$4="Annual Average", AVERAGE(OFFSET(Sat!$A$10,$H194*12,4*($C$8-1)+2,12,1)), MAX(OFFSET(Sat!$A$10,$H194*12,4*($C$8-1)+2,12,1))) * 100 -> 21.83266667 | J194: =IF($B$4="Annual Average", AVERAGE(OFFSET(Sat!$A$10,$H194*12,4*($C$8-1)+3,12,1)), MAX(OFFSET(Sat!$A$10,$H194*12,4*($C$8-1)+3,12,1))) * 100 -> 24.68666667 | K194: =IF($B$4="Annual Average", AVERAGE(OFFSET(Sat!$A$10,$H194*12,4*($C$8-1)+4,12,1)), MAX(OFFSET(Sat!$A$10,$H194*12,4*($C$8-1)+4,12,1))) * 100 -> 26.39158333 | L194: =IF($B$4="Annual Average", AVERAGE(OFFSET(Sat!$A$10,$H194*12,4*($C$8-1)+1,12,1)), MAX(OFFSET(Sat!$A$10,$H194*12,4*($C$8-1)+1,12,1))) * 100 -> 24.31933333 | R194: 14.08333333 | S194: =VLOOKUP($R194,Sat!$A$10:$AG$2410,4*($C$8-1)+3) * 100 -> 21.764 | T194: =VLOOKUP($R194,Sat!$A$10:$AG$2410,4*($C$8-1)+4) * 100 -> 24.876 | U194: =VLOOKUP($R194,Sat!$A$10:$AG$2410,4*($C$8-1)+5) * 100 -> 26.704 | V194: =VLOOKUP($R194,Sat!$A$10:$AG$2410,4*($C$8-1)+2) * 100 -> 24.375
H195: 170 | I195: =IF($B$4="Annual Average", AVERAGE(OFFSET(Sat!$A$10,$H195*12,4*($C$8-1)+2,12,1)), MAX(OFFSET(Sat!$A$10,$H195*12,4*($C$8-1)+2,12,1))) * 100 -> 21.66891667 | J195: =IF($B$4="Annual Average", AVERAGE(OFFSET(Sat!$A$10,$H195*12,4*($C$8-1)+3,12,1)), MAX(OFFSET(Sat!$A$10,$H195*12,4*($C$8-1)+3,12,1))) * 100 -> 24.69383333 | K195: =IF($B$4="Annual Average", AVERAGE(OFFSET(Sat!$A$10,$H195*12,4*($C$8-1)+4,12,1)), MAX(OFFSET(Sat!$A$10,$H195*12,4*($C$8-1)+4,12,1))) * 100 -> 26.41325 | L195: =IF($B$4="Annual Average", AVERAGE(OFFSET(Sat!$A$10,$H195*12,4*($C$8-1)+1,12,1)), MAX(OFFSET(Sat!$A$10,$H195*12,4*($C$8-1)+1,12,1))) * 100 -> 24.31 | R195: 14.16666667 | S195: =VLOOKUP($R195,Sat!$A$10:$AG$2410,4*($C$8-1)+3) * 100 -> 21.764 | T195: =VLOOKUP($R195,Sat!$A$10:$AG$2410,4*($C$8-1)+4) * 100 -> 24.876 | U195: =VLOOKUP($R195,Sat!$A$10:$AG$2410,4*($C$8-1)+5) * 100 -> 26.704 | V195: =VLOOKUP($R195,Sat!$A$10:$AG$2410,4*($C$8-1)+2) * 100 -> 24.375
H196: 171 | I196: =IF($B$4="Annual Average", AVERAGE(OFFSET(Sat!$A$10,$H196*12,4*($C$8-1)+2,12,1)), MAX(OFFSET(Sat!$A$10,$H196*12,4*($C$8-1)+2,12,1))) * 100 -> 21.82566667 | J196: =IF($B$4="Annual Average", AVERAGE(OFFSET(Sat!$A$10,$H196*12,4*($C$8-1)+3,12,1)), MAX(OFFSET(Sat!$A$10,$H196*12,4*($C$8-1)+3,12,1))) * 100 -> 24.77591667 | K196: =IF($B$4="Annual Average", AVERAGE(OFFSET(Sat!$A$10,$H196*12,4*($C$8-1)+4,12,1)), MAX(OFFSET(Sat!$A$10,$H196*12,4*($C$8-1)+4,12,1))) * 100 -> 26.48625 | L196: =IF($B$4="Annual Average", AVERAGE(OFFSET(Sat!$A$10,$H196*12,4*($C$8-1)+1,12,1)), MAX(OFFSET(Sat!$A$10,$H196*12,4*($C$8-1)+1,12,1))) * 100 -> 24.4095 | R196: 14.25 | S196: =VLOOKUP($R196,Sat!$A$10:$AG$2410,4*($C$8-1)+3) * 100 -> 22.061 | T196: =VLOOKUP($R196,Sat!$A$10:$AG$2410,4*($C$8-1)+4) * 100 -> 24.717 | U196: =VLOOKUP($R196,Sat!$A$10:$AG$2410,4*($C$8-1)+5) * 100 -> 26.462 | V196: =VLOOKUP($R196,Sat!$A$10:$AG$2410,4*($C$8-1)+2) * 100 -> 24.358
H197: 172 | I197: =IF($B$4="Annual Average", AVERAGE(OFFSET(Sat!$A$10,$H197*12,4*($C$8-1)+2,12,1)), MAX(OFFSET(Sat!$A$10,$H197*12,4*($C$8-1)+2,12,1))) * 100 -> 21.842 | J197: =IF($B$4="Annual Average", AVERAGE(OFFSET(Sat!$A$10,$H197*12,4*($C$8-1)+3,12,1)), MAX(OFFSET(Sat!$A$10,$H197*12,4*($C$8-1)+3,12,1))) * 100 -> 24.76733333 | K197: =IF($B$4="Annual Average", AVERAGE(OFFSET(Sat!$A$10,$H197*12,4*($C$8-1)+4,12,1)), MAX(OFFSET(Sat!$A$10,$H197*12,4*($C$8-1)+4,12,1))) * 100 -> 26.49516667 | L197: =IF($B$4="Annual Average", AVERAGE(OFFSET(Sat!$A$10,$H197*12,4*($C$8-1)+1,12,1)), MAX(OFFSET(Sat!$A$10,$H197*12,4*($C$8-1)+1,12,1))) * 100 -> 24.4065 | R197: 14.33333333 | S197: =VLOOKUP($R197,Sat!$A$10:$AG$2410,4*($C$8-1)+3) * 100 -> 21.997 | T197: =VLOOKUP($R197,Sat!$A$10:$AG$2410,4*($C$8-1)+4) * 100 -> 24.69 | U197: =VLOOKUP($R197,Sat!$A$10:$AG$2410,4*($C$8-1)+5) * 100 -> 26.343 | V197: =VLOOKUP($R197,Sat!$A$10:$AG$2410,4*($C$8-1)+2) * 100 -> 24.35
H198: 173 | I198: =IF($B$4="Annual Average", AVERAGE(OFFSET(Sat!$A$10,$H198*12,4*($C$8-1)+2,12,1)), MAX(OFFSET(Sat!$A$10,$H198*12,4*($C$8-1)+2,12,1))) * 100 -> 21.74233333 | J198: =IF($B$4="Annual Average", AVERAGE(OFFSET(Sat!$A$10,$H198*12,4*($C$8-1)+3,12,1)), MAX(OFFSET(Sat!$A$10,$H198*12,4*($C$8-1)+3,12,1))) * 100 -> 24.61825 | K198: =IF($B$4="Annual Average", AVERAGE(OFFSET(Sat!$A$10,$H198*12,4*($C$8-1)+4,12,1)), MAX(OFFSET(Sat!$A$10,$H198*12,4*($C$8-1)+4,12,1))) * 100 -> 26.38125 | L198: =IF($B$4="Annual Average", AVERAGE(OFFSET(Sat!$A$10,$H198*12,4*($C$8-1)+1,12,1)), MAX(OFFSET(Sat!$A$10,$H198*12,4*($C$8-1)+1,12,1))) * 100 -> 24.26783333 | R198: 14.41666667 | S198: =VLOOKUP($R198,Sat!$A$10:$AG$2410,4*($C$8-1)+3) * 100 -> 21.997 | T198: =VLOOKUP($R198,Sat!$A$10:$AG$2410,4*($C$8-1)+4) * 100 -> 24.69 | U198: =VLOOKUP($R198,Sat!$A$10:$AG$2410,4*($C$8-1)+5) * 100 -> 26.343 | V198: =VLOOKUP($R198,Sat!$A$10:$AG$2410,4*($C$8-1)+2) * 100 -> 24.35
H199: 174 | I199: =IF($B$4="Annual Average", AVERAGE(OFFSET(Sat!$A$10,$H199*12,4*($C$8-1)+2,12,1)), MAX(OFFSET(Sat!$A$10,$H199*12,4*($C$8-1)+2,12,1))) * 100 -> 21.85808333 | J199: =IF($B$4="Annual Average", AVERAGE(OFFSET(Sat!$A$10,$H199*12,4*($C$8-1)+3,12,1)), MAX(OFFSET(Sat!$A$10,$H199*12,4*($C$8-1)+3,12,1))) * 100 -> 24.66108333 | K199: =IF($B$4="Annual Average", AVERAGE(OFFSET(Sat!$A$10,$H199*12,4*($C$8-1)+4,12,1)), MAX(OFFSET(Sat!$A$10,$H199*12,4*($C$8-1)+4,12,1))) * 100 -> 26.43883333 | L199: =IF($B$4="Annual Average", AVERAGE(OFFSET(Sat!$A$10,$H199*12,4*($C$8-1)+1,12,1)), MAX(OFFSET(Sat!$A$10,$H199*12,4*($C$8-1)+1,12,1))) * 100 -> 24.30758333 | R199: 14.5 | S199: =VLOOKUP($R199,Sat!$A$10:$AG$2410,4*($C$8-1)+3) * 100 -> 21.715 | T199: =VLOOKUP($R199,Sat!$A$10:$AG$2410,4*($C$8-1)+4) * 100 -> 24.701 | U199: =VLOOKUP($R199,Sat!$A$10:$AG$2410,4*($C$8-1)+5) * 100 -> 26.256 | V199: =VLOOKUP($R199,Sat!$A$10:$AG$2410,4*($C$8-1)+2) * 100 -> 24.333
H200: 175 | I200: =IF($B$4="Annual Average", AVERAGE(OFFSET(Sat!$A$10,$H200*12,4*($C$8-1)+2,12,1)), MAX(OFFSET(Sat!$A$10,$H200*12,4*($C$8-1)+2,12,1))) * 100 -> 22.1445 | J200: =IF($B$4="Annual Average", AVERAGE(OFFSET(Sat!$A$10,$H200*12,4*($C$8-1)+3,12,1)), MAX(OFFSET(Sat!$A$10,$H200*12,4*($C$8-1)+3,12,1))) * 100 -> 24.64783333 | K200: =IF($B$4="Annual Average", AVERAGE(OFFSET(Sat!$A$10,$H200*12,4*($C$8-1)+4,12,1)), MAX(OFFSET(Sat!$A$10,$H200*12,4*($C$8-1)+4,12,1))) * 100 -> 26.297 | L200: =IF($B$4="Annual Average", AVERAGE(OFFSET(Sat!$A$10,$H200*12,4*($C$8-1)+1,12,1)), MAX(OFFSET(Sat!$A$10,$H200*12,4*($C$8-1)+1,12,1))) * 100 -> 24.381 | R200: 14.58333333 | S200: =VLOOKUP($R200,Sat!$A$10:$AG$2410,4*($C$8-1)+3) * 100 -> 21.701 | T200: =VLOOKUP($R200,Sat!$A$10:$AG$2410,4*($C$8-1)+4) * 100 -> 24.717 | U200: =VLOOKUP($R200,Sat!$A$10:$AG$2410,4*($C$8-1)+5) * 100 -> 26.298 | V200: =VLOOKUP($R200,Sat!$A$10:$AG$2410,4*($C$8-1)+2) * 100 -> 24.325
H201: 176 | I201: =IF($B$4="Annual Average", AVERAGE(OFFSET(Sat!$A$10,$H201*12,4*($C$8-1)+2,12,1)), MAX(OFFSET(Sat!$A$10,$H201*12,4*($C$8-1)+2,12,1))) * 100 -> 21.91641667 | J201: =IF($B$4="Annual Average", AVERAGE(OFFSET(Sat!$A$10,$H201*12,4*($C$8-1)+3,12,1)), MAX(OFFSET(Sat!$A$10,$H201*12,4*($C$8-1)+3,12,1))) * 100 -> 24.53616667 | K201: =IF($B$4="Annual Average", AVERAGE(OFFSET(Sat!$A$10,$H201*12,4*($C$8-1)+4,12,1)), MAX(OFFSET(Sat!$A$10,$H201*12,4*($C$8-1)+4,12,1))) * 100 -> 26.08525 | L201: =IF($B$4="Annual Average", AVERAGE(OFFSET(Sat!$A$10,$H201*12,4*($C$8-1)+1,12,1)), MAX(OFFSET(Sat!$A$10,$H201*12,4*($C$8-1)+1,12,1))) * 100 -> 24.2025 | R201: 14.66666667 | S201: =VLOOKUP($R201,Sat!$A$10:$AG$2410,4*($C$8-1)+3) * 100 -> 21.701 | T201: =VLOOKUP($R201,Sat!$A$10:$AG$2410,4*($C$8-1)+4) * 100 -> 24.717 | U201: =VLOOKUP($R201,Sat!$A$10:$AG$2410,4*($C$8-1)+5) * 100 -> 26.298 | V201: =VLOOKUP($R201,Sat!$A$10:$AG$2410,4*($C$8-1)+2) * 100 -> 24.325
H202: 177 | I202: =IF($B$4="Annual Average", AVERAGE(OFFSET(Sat!$A$10,$H202*12,4*($C$8-1)+2,12,1)), MAX(OFFSET(Sat!$A$10,$H202*12,4*($C$8-1)+2,12,1))) * 100 -> 21.58808333 | J202: =IF($B$4="Annual Average", AVERAGE(OFFSET(Sat!$A$10,$H202*12,4*($C$8-1)+3,12,1)), MAX(OFFSET(Sat!$A$10,$H202*12,4*($C$8-1)+3,12,1))) * 100 -> 24.625 | K202: =IF($B$4="Annual Average", AVERAGE(OFFSET(Sat!$A$10,$H202*12,4*($C$8-1)+4,12,1)), MAX(OFFSET(Sat!$A$10,$H202*12,4*($C$8-1)+4,12,1))) * 100 -> 26.25641667 | L202: =IF($B$4="Annual Average", AVERAGE(OFFSET(Sat!$A$10,$H202*12,4*($C$8-1)+1,12,1)), MAX(OFFSET(Sat!$A$10,$H202*12,4*($C$8-1)+1,12,1))) * 100 -> 24.23325 | R202: 14.75 | S202: =VLOOKUP($R202,Sat!$A$10:$AG$2410,4*($C$8-1)+3) * 100 -> 21.726 | T202: =VLOOKUP($R202,Sat!$A$10:$AG$2410,4*($C$8-1)+4) * 100 -> 24.719 | U202: =VLOOKUP($R202,Sat!$A$10:$AG$2410,4*($C$8-1)+5) * 100 -> 26.461 | V202: =VLOOKUP($R202,Sat!$A$10:$AG$2410,4*($C$8-1)+2) * 100 -> 24.308
H203: 178 | I203: =IF($B$4="Annual Average", AVERAGE(OFFSET(Sat!$A$10,$H203*12,4*($C$8-1)+2,12,1)), MAX(OFFSET(Sat!$A$10,$H203*12,4*($C$8-1)+2,12,1))) * 100 -> 21.60533333 | J203: =IF($B$4="Annual Average", AVERAGE(OFFSET(Sat!$A$10,$H203*12,4*($C$8-1)+3,12,1)), MAX(OFFSET(Sat!$A$10,$H203*12,4*($C$8-1)+3,12,1))) * 100 -> 24.78833333 | K203: =IF($B$4="Annual Average", AVERAGE(OFFSET(Sat!$A$10,$H203*12,4*($C$8-1)+4,12,1)), MAX(OFFSET(Sat!$A$10,$H203*12,4*($C$8-1)+4,12,1))) * 100 -> 26.483 | L203: =IF($B$4="Annual Average", AVERAGE(OFFSET(Sat!$A$10,$H203*12,4*($C$8-1)+1,12,1)), MAX(OFFSET(Sat!$A$10,$H203*12,4*($C$8-1)+1,12,1))) * 100 -> 24.3355 | R203: 14.83333333 | S203: =VLOOKUP($R203,Sat!$A$10:$AG$2410,4*($C$8-1)+3) * 100 -> 21.447 | T203: =VLOOKUP($R203,Sat!$A$10:$AG$2410,4*($C$8-1)+4) * 100 -> 24.768 | U203: =VLOOKUP($R203,Sat!$A$10:$AG$2410,4*($C$8-1)+5) * 100 -> 26.595 | V203: =VLOOKUP($R203,Sat!$A$10:$AG$2410,4*($C$8-1)+2) * 100 -> 24.3
H204: 179 | I204: =IF($B$4="Annual Average", AVERAGE(OFFSET(Sat!$A$10,$H204*12,4*($C$8-1)+2,12,1)), MAX(OFFSET(Sat!$A$10,$H204*12,4*($C$8-1)+2,12,1))) * 100 -> 21.59766667 | J204: =IF($B$4="Annual Average", AVERAGE(OFFSET(Sat!$A$10,$H204*12,4*($C$8-1)+3,12,1)), MAX(OFFSET(Sat!$A$10,$H204*12,4*($C$8-1)+3,12,1))) * 100 -> 24.74716667 | K204: =IF($B$4="Annual Average", AVERAGE(OFFSET(Sat!$A$10,$H204*12,4*($C$8-1)+4,12,1)), MAX(OFFSET(Sat!$A$10,$H204*12,4*($C$8-1)+4,12,1))) * 100 -> 26.52133333 | L204: =IF($B$4="Annual Average", AVERAGE(OFFSET(Sat!$A$10,$H204*12,4*($C$8-1)+1,12,1)), MAX(OFFSET(Sat!$A$10,$H204*12,4*($C$8-1)+1,12,1))) * 100 -> 24.33025 | R204: 14.91666667 | S204: =VLOOKUP($R204,Sat!$A$10:$AG$2410,4*($C$8-1)+3) * 100 -> 21.447 | T204: =VLOOKUP($R204,Sat!$A$10:$AG$2410,4*($C$8-1)+4) * 100 -> 24.768 | U204: =VLOOKUP($R204,Sat!$A$10:$AG$2410,4*($C$8-1)+5) * 100 -> 26.595 | V204: =VLOOKUP($R204,Sat!$A$10:$AG$2410,4*($C$8-1)+2) * 100 -> 24.3
H205: 180 | I205: =IF($B$4="Annual Average", AVERAGE(OFFSET(Sat!$A$10,$H205*12,4*($C$8-1)+2,12,1)), MAX(OFFSET(Sat!$A$10,$H205*12,4*($C$8-1)+2,12,1))) * 100 -> 21.63116667 | J205: =IF($B$4="Annual Average", AVERAGE(OFFSET(Sat!$A$10,$H205*12,4*($C$8-1)+3,12,1)), MAX(OFFSET(Sat!$A$10,$H205*12,4*($C$8-1)+3,12,1))) * 100 -> 24.647 | K205: =IF($B$4="Annual Average", AVERAGE(OFFSET(Sat!$A$10,$H205*12,4*($C$8-1)+4,12,1)), MAX(OFFSET(Sat!$A$10,$H205*12,4*($C$8-1)+4,12,1))) * 100 -> 26.48766667 | L205: =IF($B$4="Annual Average", AVERAGE(OFFSET(Sat!$A$10,$H205*12,4*($C$8-1)+1,12,1)), MAX(OFFSET(Sat!$A$10,$H205*12,4*($C$8-1)+1,12,1))) * 100 -> 24.26975 | R205: 15 | S205: =VLOOKUP($R205,Sat!$A$10:$AG$2410,4*($C$8-1)+3) * 100 -> 20.996 | T205: =VLOOKUP($R205,Sat!$A$10:$AG$2410,4*($C$8-1)+4) * 100 -> 24.837 | U205: =VLOOKUP($R205,Sat!$A$10:$AG$2410,4*($C$8-1)+5) * 100 -> 26.889 | V205: =VLOOKUP($R205,Sat!$A$10:$AG$2410,4*($C$8-1)+2) * 100 -> 24.284
... 60 more rows

Sheet Sat
A1: =A7 -> ! GoldSim Time History Results,GSVersion:10.50.300
A2: =C7 -> Element:\Results\PROJECT_results\Unsat_Zones\LTVSMC\LTVSMC_Saturation
A3: =D7 -> Model:C:\Tailings Basin\Version 6.0\NorthMet_PlantSite_FEIS_BiggerWWTP.gsm
A4: =E7 -> Time:12/15/2014 16:12:17
A5: Copied | B5: 2014-12-16T08:42:47
B6: Cell 2W Fines | F6: Cell 2W Coarse | J6: Cell 2W Embankments | N6: Cell 2E Fines | R6: Cell 2E Coarse | V6: Cell 2E Embankments | Z6: Cell 1E Fines | AD6: Cell 1E Coarse
A7: ! GoldSim Time History Results,GSVersion:10.50.300 | B7: Result:Statistics | C7: Element:\Results\PROJECT_results\Unsat_Zones\LTVSMC\LTVSMC_Saturation | D7: Model:C:\Tailings Basin\Version 6.0\NorthMet_PlantSite_FEIS_BiggerWWTP.gsm | E7: Time:12/15/2014 16:12:17
A8: !Statistics
A9: Time (yr) | B9: Curr_Saturation [-],Mean | C9: Curr_Saturation [-],10% | D9: Curr_Saturation [-],Median | E9: Curr_Saturation [-],90% | F9: Curr_Saturation [-],Mean | G9: Curr_Saturation [-],10% | H9: Curr_Saturation [-],Median | I9: Curr_Saturation [-],90% | J9: Curr_Saturation [-],Mean | K9: Curr_Saturation [-],10% | L9: Curr_Saturation [-],Median | M9: Curr_Saturation [-],90% | N9: Curr_Saturation [-],Mean | O9: Curr_Saturation [-],10% | P9: Curr_Saturation [-],Median | Q9: Curr_Saturation [-],90% | R9: Curr_Saturation [-],Mean | S9: Curr_Saturation [-],10% | T9: Curr_Saturation [-],Median | U9: Curr_Saturation [-],90% | V9: Curr_Saturation [-],Mean | W9: Curr_Saturation [-],10% | X9: Curr_Saturation [-],Median | Y9: Curr_Saturation [-],90% | Z9: Curr_Saturation [-],Mean | AA9: Curr_Saturation [-],10% | AB9: Curr_Saturation [-],Median | AC9: Curr_Saturation [-],90% | AD9: Curr_Saturation [-],Mean | AE9: Curr_Saturation [-],10% | AF9: Curr_Saturation [-],Median | AG9: Curr_Saturation [-],90%
A10: 0 | B10: 0.72 | C10: 0.72 | D10: 0.72 | E10: 0.72 | F10: 0.36 | G10: 0.36 | H10: 0.36 | I10: 0.36 | J10: 0.32 | K10: 0.32 | L10: 0.32 | M10: 0.32 | N10: 0.48 | O10: 0.48 | P10: 0.48 | Q10: 0.48 | R10: 0.29 | S10: 0.29 | T10: 0.29 | U10: 0.29 | V10: 0.3 | W10: 0.3 | X10: 0.3 | Y10: 0.3 | Z10: 0.71 | AA10: 0.71 | AB10: 0.71 | AC10: 0.71 | AD10: 0.25 | AE10: 0.25 | AF10: 0.25 | AG10: 0.25
A11: 0.0833333 | B11: 0.72014 | C11: 0.71857 | D11: 0.72021 | E11: 0.72171 | F11: 0.36004 | G11: 0.35906 | H11: 0.36007 | I11: 0.36104 | J11: 0.32042 | K11: 0.31914 | L11: 0.32045 | M11: 0.32167 | N11: 0.47875 | O11: 0.47311 | P11: 0.47983 | Q11: 0.48314 | R11: 0.29023 | S11: 0.28828 | T11: 0.29044 | U11: 0.29195 | V11: 0.29952 | W11: 0.29775 | X11: 0.29965 | Y11: 0.30111 | Z11: 0.7086 | AA11: 0.70206 | AB11: 0.70989 | AC11: 0.71374 | AD11: 0.24945 | AE11: 0.24674 | AF11: 0.24989 | AG11: 0.25141
A12: 0.166667 | B12: 0.72028 | C12: 0.71713 | D12: 0.72043 | E12: 0.72341 | F12: 0.36007 | G12: 0.35811 | H12: 0.36014 | I12: 0.36207 | J12: 0.32084 | K12: 0.31828 | L12: 0.32091 | M12: 0.32335 | N12: 0.47749 | O12: 0.46622 | P12: 0.47965 | Q12: 0.48627 | R12: 0.29046 | S12: 0.28657 | T12: 0.29087 | U12: 0.2939 | V12: 0.29903 | W12: 0.2955 | X12: 0.29929 | Y12: 0.30221 | Z12: 0.7072 | AA12: 0.69412 | AB12: 0.70978 | AC12: 0.71748 | AD12: 0.24891 | AE12: 0.24347 | AF12: 0.24978 | AG12: 0.25283
A13: 0.25 | B13: 0.72042 | C13: 0.7157 | D13: 0.72064 | E13: 0.72511 | F13: 0.36011 | G13: 0.35716 | H13: 0.36022 | I13: 0.36311 | J13: 0.32126 | K13: 0.31743 | L13: 0.32136 | M13: 0.32502 | N13: 0.47623 | O13: 0.45933 | P13: 0.47948 | Q13: 0.48941 | R13: 0.29068 | S13: 0.28485 | T13: 0.29131 | U13: 0.29584 | V13: 0.29855 | W13: 0.29325 | X13: 0.29893 | Y13: 0.30332 | Z13: 0.7058 | AA13: 0.68618 | AB13: 0.70967 | AC13: 0.72122 | AD13: 0.24836 | AE13: 0.2402 | AF13: 0.24968 | AG13: 0.25424
A14: 0.333333 | B14: 0.72056 | C14: 0.71427 | D14: 0.72085 | E14: 0.72682 | F14: 0.36015 | G14: 0.35621 | H14: 0.36029 | I14: 0.36415 | J14: 0.32168 | K14: 0.31657 | L14: 0.32182 | M14: 0.3267 | N14: 0.47498 | O14: 0.45244 | P14: 0.4793 | Q14: 0.49254 | R14: 0.29091 | S14: 0.28314 | T14: 0.29174 | U14: 0.29779 | V14: 0.29807 | W14: 0.291 | X14: 0.29857 | Y14: 0.30442 | Z14: 0.70441 | AA14: 0.67825 | AB14: 0.70956 | AC14: 0.72496 | AD14: 0.24781 | AE14: 0.23694 | AF14: 0.24957 | AG14: 0.25565
A15: 0.416667 | B15: 0.7207 | C15: 0.71284 | D15: 0.72106 | E15: 0.72852 | F15: 0.36018 | G15: 0.35526 | H15: 0.36036 | I15: 0.36518 | J15: 0.32209 | K15: 0.31571 | L15: 0.32227 | M15: 0.32837 | N15: 0.47372 | O15: 0.44555 | P15: 0.47913 | Q15: 0.49568 | R15: 0.29114 | S15: 0.28142 | T15: 0.29218 | U15: 0.29974 | V15: 0.29758 | W15: 0.28875 | X15: 0.29821 | Y15: 0.30553 | Z15: 0.70301 | AA15: 0.67031 | AB15: 0.70944 | AC15: 0.7287 | AD15: 0.24726 | AE15: 0.23367 | AF15: 0.24946 | AG15: 0.25706
A16: 0.5 | B16: 0.72084 | C16: 0.7114 | D16: 0.72128 | E16: 0.73022 | F16: 0.36022 | G16: 0.35431 | H16: 0.36043 | I16: 0.36622 | J16: 0.32251 | K16: 0.31485 | L16: 0.32272 | M16: 0.33005 | N16: 0.47247 | O16: 0.43866 | P16: 0.47895 | Q16: 0.49881 | R16: 0.29136 | S16: 0.2797 | T16: 0.29261 | U16: 0.30169 | V16: 0.2971 | W16: 0.2865 | X16: 0.29785 | Y16: 0.30663 | Z16: 0.70161 | AA16: 0.66237 | AB16: 0.70933 | AC16: 0.73245 | AD16: 0.24672 | AE16: 0.2304 | AF16: 0.24935 | AG16: 0.25848
A17: 0.583333 | B17: 0.72098 | C17: 0.70997 | D17: 0.72149 | E17: 0.73193 | F17: 0.36026 | G17: 0.35336 | H17: 0.36051 | I17: 0.36726 | J17: 0.32293 | K17: 0.31399 | L17: 0.32318 | M17: 0.33172 | N17: 0.47121 | O17: 0.43177 | P17: 0.47878 | Q17: 0.50195 | R17: 0.29159 | S17: 0.27799 | T17: 0.29305 | U17: 0.30363 | V17: 0.29662 | W17: 0.28425 | X17: 0.29749 | Y17: 0.30774 | Z17: 0.70021 | AA17: 0.65443 | AB17: 0.70922 | AC17: 0.73619 | AD17: 0.24617 | AE17: 0.22714 | AF17: 0.24924 | AG17: 0.25989
A18: 0.666667 | B18: 0.72112 | C18: 0.70854 | D18: 0.7217 | E18: 0.73363 | F18: 0.36029 | G18: 0.35241 | H18: 0.36058 | I18: 0.36829 | J18: 0.32335 | K18: 0.31314 | L18: 0.32363 | M18: 0.33339 | N18: 0.46996 | O18: 0.42488 | P18: 0.4786 | Q18: 0.50509 | R18: 0.29182 | S18: 0.27627 | T18: 0.29348 | U18: 0.30558 | V18: 0.29613 | W18: 0.282 | X18: 0.29713 | Y18: 0.30885 | Z18: 0.69881 | AA18: 0.64649 | AB18: 0.70911 | AC18: 0.73993 | AD18: 0.24562 | AE18: 0.22387 | AF18: 0.24914 | AG18: 0.2613
A19: 0.75 | B19: 0.72126 | C19: 0.70711 | D19: 0.72191 | E19: 0.73533 | F19: 0.36033 | G19: 0.35146 | H19: 0.36065 | I19: 0.36933 | J19: 0.32377 | K19: 0.31228 | L19: 0.32408 | M19: 0.33507 | N19: 0.4687 | O19: 0.41799 | P19: 0.47843 | Q19: 0.50822 | R19: 0.29204 | S19: 0.27456 | T19: 0.29391 | U19: 0.30753 | V19: 0.29565 | W19: 0.27975 | X19: 0.29677 | Y19: 0.30995 | Z19: 0.69741 | AA19: 0.63855 | AB19: 0.709 | AC19: 0.74367 | AD19: 0.24507 | AE19: 0.22061 | AF19: 0.24903 | AG19: 0.26271
A20: 0.833333 | B20: 0.7214 | C20: 0.70567 | D20: 0.72213 | E20: 0.73704 | F20: 0.36037 | G20: 0.35051 | H20: 0.36072 | I20: 0.37037 | J20: 0.32419 | K20: 0.31142 | L20: 0.32454 | M20: 0.33674 | N20: 0.46744 | O20: 0.4111 | P20: 0.47825 | Q20: 0.51136 | R20: 0.29227 | S20: 0.27284 | T20: 0.29435 | U20: 0.30948 | V20: 0.29517 | W20: 0.2775 | X20: 0.29641 | Y20: 0.31106 | Z20: 0.69601 | AA20: 0.63061 | AB20: 0.70889 | AC20: 0.74741 | AD20: 0.24452 | AE20: 0.21734 | AF20: 0.24892 | AG20: 0.26412
A21: 0.916667 | B21: 0.72154 | C21: 0.70424 | D21: 0.72234 | E21: 0.73874 | F21: 0.3604 | G21: 0.34957 | H21: 0.3608 | I21: 0.3714 | J21: 0.3246 | K21: 0.31056 | L21: 0.32499 | M21: 0.33842 | N21: 0.46619 | O21: 0.40421 | P21: 0.47808 | Q21: 0.51449 | R21: 0.2925 | S21: 0.27112 | T21: 0.29478 | U21: 0.31142 | V21: 0.29468 | W21: 0.27525 | X21: 0.29605 | Y21: 0.31216 | Z21: 0.69461 | AA21: 0.62268 | AB21: 0.70878 | AC21: 0.75115 | AD21: 0.24398 | AE21: 0.21407 | AF21: 0.24881 | AG21: 0.26554
A22: 1 | B22: 0.72168 | C22: 0.70281 | D22: 0.72255 | E22: 0.74044 | F22: 0.36044 | G22: 0.34862 | H22: 0.36087 | I22: 0.37244 | J22: 0.32502 | K22: 0.3097 | L22: 0.32545 | M22: 0.34009 | N22: 0.46493 | O22: 0.39732 | P22: 0.4779 | Q22: 0.51763 | R22: 0.29272 | S22: 0.26941 | T22: 0.29522 | U22: 0.31337 | V22: 0.2942 | W22: 0.273 | X22: 0.29569 | Y22: 0.31327 | Z22: 0.69322 | AA22: 0.61474 | AB22: 0.70867 | AC22: 0.75489 | AD22: 0.24343 | AE22: 0.21081 | AF22: 0.2487 | AG22: 0.26695
A23: 1.08333 | B23: 0.72181 | C23: 0.70481 | D23: 0.72287 | E23: 0.73861 | F23: 0.36052 | G23: 0.34981 | H23: 0.36108 | I23: 0.37124 | J23: 0.32507 | K23: 0.31099 | L23: 0.32557 | M23: 0.33911 | N23: 0.46537 | O23: 0.40415 | P23: 0.47726 | Q23: 0.51325 | R23: 0.29285 | S23: 0.27205 | T23: 0.29488 | U23: 0.31206 | V23: 0.29427 | W23: 0.27497 | X23: 0.29551 | Y23: 0.31186 | Z23: 0.6934 | AA23: 0.61989 | AB23: 0.70768 | AC23: 0.74913 | AD23: 0.24361 | AE23: 0.21441 | AF23: 0.24826 | AG23: 0.26501
A24: 1.16667 | B24: 0.72194 | C24: 0.70602 | D24: 0.72248 | E24: 0.73759 | F24: 0.36061 | G24: 0.35064 | H24: 0.36087 | I24: 0.37052 | J24: 0.32511 | K24: 0.31266 | L24: 0.32556 | M24: 0.33783 | N24: 0.46581 | O24: 0.40655 | P24: 0.4771 | Q24: 0.5109 | R24: 0.29299 | S24: 0.2733 | T24: 0.29473 | U24: 0.3104 | V24: 0.29433 | W24: 0.27663 | X24: 0.29552 | Y24: 0.31088 | Z24: 0.69358 | AA24: 0.62247 | AB24: 0.70658 | AC24: 0.74676 | AD24: 0.2438 | AE24: 0.2173 | AF24: 0.24811 | AG24: 0.26431
A25: 1.25 | B25: 0.72207 | C25: 0.70639 | D25: 0.72257 | E25: 0.7365 | F25: 0.36069 | G25: 0.3508 | H25: 0.36096 | I25: 0.36983 | J25: 0.32515 | K25: 0.31324 | L25: 0.32537 | M25: 0.33733 | N25: 0.46625 | O25: 0.41122 | P25: 0.47589 | Q25: 0.50849 | R25: 0.29313 | S25: 0.27423 | T25: 0.29496 | U25: 0.30893 | V25: 0.2944 | W25: 0.2784 | X25: 0.29549 | Y25: 0.31016 | Z25: 0.69376 | AA25: 0.62877 | AB25: 0.70579 | AC25: 0.7454 | AD25: 0.24398 | AE25: 0.22042 | AF25: 0.24773 | AG25: 0.26389
A26: 1.33333 | B26: 0.7222 | C26: 0.70761 | D26: 0.72252 | E26: 0.73603 | F26: 0.36077 | G26: 0.35161 | H26: 0.36085 | I26: 0.36952 | J26: 0.32519 | K26: 0.31398 | L26: 0.32546 | M26: 0.33625 | N26: 0.46669 | O26: 0.40611 | P26: 0.47633 | Q26: 0.50737 | R26: 0.29326 | S26: 0.27577 | T26: 0.2952 | U26: 0.30834 | V26: 0.29446 | W26: 0.27878 | X26: 0.29527 | Y26: 0.30951 | Z26: 0.69393 | AA26: 0.63222 | AB26: 0.70566 | AC26: 0.74619 | AD26: 0.24417 | AE26: 0.22024 | AF26: 0.24777 | AG26: 0.26342
A27: 1.41667 | B27: 0.72233 | C27: 0.70839 | D27: 0.72254 | E27: 0.73563 | F27: 0.36085 | G27: 0.35217 | H27: 0.36093 | I27: 0.3693 | J27: 0.32523 | K27: 0.31427 | L27: 0.32548 | M27: 0.33581 | N27: 0.46712 | O27: 0.41073 | P27: 0.47475 | Q27: 0.50684 | R27: 0.2934 | S27: 0.27741 | T27: 0.29456 | U27: 0.30831 | V27: 0.29453 | W27: 0.27983 | X27: 0.29498 | Y27: 0.30861 | Z27: 0.69411 | AA27: 0.63035 | AB27: 0.70478 | AC27: 0.74532 | AD27: 0.24435 | AE27: 0.22098 | AF27: 0.24791 | AG27: 0.26262
A28: 1.5 | B28: 0.72246 | C28: 0.70948 | D28: 0.72273 | E28: 0.73536 | F28: 0.36093 | G28: 0.35272 | H28: 0.36103 | I28: 0.36907 | J28: 0.32527 | K28: 0.31485 | L28: 0.3255 | M28: 0.33553 | N28: 0.46756 | O28: 0.41076 | P28: 0.47549 | Q28: 0.50632 | R28: 0.29354 | S28: 0.27798 | T28: 0.2947 | U28: 0.30846 | V28: 0.2946 | W28: 0.27953 | X28: 0.29559 | Y28: 0.30851 | Z28: 0.69429 | AA28: 0.6322 | AB28: 0.70451 | AC28: 0.74344 | AD28: 0.24454 | AE28: 0.22317 | AF28: 0.24807 | AG28: 0.26181
A29: 1.58333 | B29: 0.72259 | C29: 0.70993 | D29: 0.72223 | E29: 0.7356 | F29: 0.36102 | G29: 0.35303 | H29: 0.3607 | I29: 0.36927 | J29: 0.32531 | K29: 0.31477 | L29: 0.32533 | M29: 0.33557 | N29: 0.468 | O29: 0.41537 | P29: 0.47566 | Q29: 0.50612 | R29: 0.29367 | S29: 0.27763 | T29: 0.29468 | U29: 0.30844 | V29: 0.29466 | W29: 0.27916 | X29: 0.29597 | Y29: 0.30872 | Z29: 0.69447 | AA29: 0.6323 | AB29: 0.70453 | AC29: 0.74348 | AD29: 0.24472 | AE29: 0.22461 | AF29: 0.24821 | AG29: 0.26194
A30: 1.66667 | B30: 0.72272 | C30: 0.70979 | D30: 0.72256 | E30: 0.73608 | F30: 0.3611 | G30: 0.3529 | H30: 0.36092 | I30: 0.36956 | J30: 0.32535 | K30: 0.3143 | L30: 0.32558 | M30: 0.33659 | N30: 0.46844 | O30: 0.41878 | P30: 0.47585 | Q30: 0.50749 | R30: 0.29381 | S30: 0.27704 | T30: 0.29513 | U30: 0.30931 | V30: 0.29473 | W30: 0.27865 | X30: 0.29601 | Y30: 0.3094 | Z30: 0.69465 | AA30: 0.63382 | AB30: 0.7056 | AC30: 0.74475 | AD30: 0.24491 | AE30: 0.22472 | AF30: 0.24803 | AG30: 0.26163
A31: 1.75 | B31: 0.72285 | C31: 0.70888 | D31: 0.72273 | E31: 0.73712 | F31: 0.36118 | G31: 0.35237 | H31: 0.36102 | I31: 0.37024 | J31: 0.3254 | K31: 0.3133 | L31: 0.32562 | M31: 0.33751 | N31: 0.46888 | O31: 0.41888 | P31: 0.4771 | Q31: 0.51051 | R31: 0.29395 | S31: 0.27625 | T31: 0.29524 | U31: 0.31048 | V31: 0.29479 | W31: 0.27775 | X31: 0.29601 | Y31: 0.31044 | Z31: 0.69483 | AA31: 0.63081 | AB31: 0.70745 | AC31: 0.74709 | AD31: 0.2451 | AE31: 0.22473 | AF31: 0.24798 | AG31: 0.26322
A32: 1.83333 | B32: 0.72299 | C32: 0.70762 | D32: 0.72269 | E32: 0.73815 | F32: 0.36126 | G32: 0.35154 | H32: 0.36099 | I32: 0.37099 | J32: 0.32544 | K32: 0.31242 | L32: 0.32576 | M32: 0.33843 | N32: 0.46932 | O32: 0.41557 | P32: 0.47853 | Q32: 0.51376 | R32: 0.29408 | S32: 0.27541 | T32: 0.29581 | U32: 0.31179 | V32: 0.29486 | W32: 0.27597 | X32: 0.29634 | Y32: 0.31159 | Z32: 0.69501 | AA32: 0.63007 | AB32: 0.70794 | AC32: 0.74764 | AD32: 0.24528 | AE32: 0.22321 | AF32: 0.24845 | AG32: 0.26444
A33: 1.91667 | B33: 0.72312 | C33: 0.70664 | D33: 0.72293 | E33: 0.74016 | F33: 0.36135 | G33: 0.35092 | H33: 0.36116 | I33: 0.37217 | J33: 0.32548 | K33: 0.31176 | L33: 0.32573 | M33: 0.33927 | N33: 0.46976 | O33: 0.40978 | P33: 0.48173 | Q33: 0.51734 | R33: 0.29422 | S33: 0.2734 | T33: 0.29619 | U33: 0.31318 | V33: 0.29492 | W33: 0.27535 | X33: 0.29676 | Y33: 0.31285 | Z33: 0.69518 | AA33: 0.62978 | AB33: 0.7092 | AC33: 0.75207 | AD33: 0.24547 | AE33: 0.22128 | AF33: 0.24874 | AG33: 0.26534
A34: 2 | B34: 0.72325 | C34: 0.70563 | D34: 0.72301 | E34: 0.74176 | F34: 0.36143 | G34: 0.35038 | H34: 0.36116 | I34: 0.37326 | J34: 0.32552 | K34: 0.31021 | L34: 0.32578 | M34: 0.3406 | N34: 0.4702 | O34: 0.40563 | P34: 0.48322 | Q34: 0.5213 | R34: 0.29436 | S34: 0.27225 | T34: 0.29623 | U34: 0.315 | V34: 0.29499 | W34: 0.27406 | X34: 0.29682 | Y34: 0.31442 | Z34: 0.69536 | AA34: 0.62347 | AB34: 0.71065 | AC34: 0.75703 | AD34: 0.24565 | AE34: 0.21914 | AF34: 0.24955 | AG34: 0.26762
A35: 2.08333 | B35: 0.72309 | C35: 0.70674 | D35: 0.72313 | E35: 0.74007 | F35: 0.36133 | G35: 0.35108 | H35: 0.36124 | I35: 0.37216 | J35: 0.32542 | K35: 0.31114 | L35: 0.32593 | M35: 0.33963 | N35: 0.46978 | O35: 0.41083 | P35: 0.48124 | Q35: 0.51721 | R35: 0.2942 | S35: 0.2733 | T35: 0.29623 | U35: 0.31289 | V35: 0.2948 | W35: 0.27505 | X35: 0.29604 | Y35: 0.31296 | Z35: 0.69501 | AA35: 0.63099 | AB35: 0.70824 | AC35: 0.75176 | AD35: 0.24547 | AE35: 0.22143 | AF35: 0.24883 | AG35: 0.26593
A36: 2.16667 | B36: 0.72293 | C36: 0.70812 | D36: 0.723 | E36: 0.73838 | F36: 0.36123 | G36: 0.35188 | H36: 0.36117 | I36: 0.37111 | J36: 0.32533 | K36: 0.31182 | L36: 0.32562 | M36: 0.33794 | N36: 0.46936 | O36: 0.41523 | P36: 0.48018 | Q36: 0.51473 | R36: 0.29405 | S36: 0.27382 | T36: 0.296 | U36: 0.31182 | V36: 0.29461 | W36: 0.27653 | X36: 0.29526 | Y36: 0.31101 | Z36: 0.69465 | AA36: 0.63283 | AB36: 0.70568 | AC36: 0.7488 | AD36: 0.24528 | AE36: 0.22334 | AF36: 0.24795 | AG36: 0.26442
A37: 2.25 | B37: 0.72277 | C37: 0.70889 | D37: 0.72286 | E37: 0.73711 | F37: 0.36113 | G37: 0.3524 | H37: 0.36114 | I37: 0.37031 | J37: 0.32523 | K37: 0.31256 | L37: 0.32584 | M37: 0.33731 | N37: 0.46894 | O37: 0.41693 | P37: 0.47827 | Q37: 0.51266 | R37: 0.2939 | S37: 0.27475 | T37: 0.29562 | U37: 0.31061 | V37: 0.29443 | W37: 0.27738 | X37: 0.29577 | Y37: 0.31002 | Z37: 0.6943 | AA37: 0.63494 | AB37: 0.70369 | AC37: 0.74615 | AD37: 0.2451 | AE37: 0.22434 | AF37: 0.24789 | AG37: 0.26334
A38: 2.33333 | B38: 0.72261 | C38: 0.7096 | D38: 0.72322 | E38: 0.73629 | F38: 0.36102 | G38: 0.35282 | H38: 0.36135 | I38: 0.36974 | J38: 0.32514 | K38: 0.31293 | L38: 0.32566 | M38: 0.33598 | N38: 0.46853 | O38: 0.41747 | P38: 0.47697 | Q38: 0.5111 | R38: 0.29374 | S38: 0.27573 | T38: 0.29517 | U38: 0.30998 | V38: 0.29424 | W38: 0.27826 | X38: 0.29533 | Y38: 0.30932 | Z38: 0.69394 | AA38: 0.63563 | AB38: 0.70264 | AC38: 0.74432 | AD38: 0.24491 | AE38: 0.22408 | AF38: 0.24786 | AG38: 0.26208
A39: 2.41667 | B39: 0.72244 | C39: 0.70935 | D39: 0.72299 | E39: 0.73539 | F39: 0.36092 | G39: 0.35275 | H39: 0.36127 | I39: 0.36912 | J39: 0.32504 | K39: 0.31293 | L39: 0.32575 | M39: 0.33586 | N39: 0.46811 | O39: 0.41415 | P39: 0.47577 | Q39: 0.50988 | R39: 0.29359 | S39: 0.27567 | T39: 0.29497 | U39: 0.30962 | V39: 0.29405 | W39: 0.27795 | X39: 0.29516 | Y39: 0.30906 | Z39: 0.69359 | AA39: 0.62718 | AB39: 0.70173 | AC39: 0.74282 | AD39: 0.24472 | AE39: 0.22358 | AF39: 0.24758 | AG39: 0.26175
A40: 2.5 | B40: 0.72228 | C40: 0.70899 | D40: 0.72315 | E40: 0.73479 | F40: 0.36082 | G40: 0.3525 | H40: 0.36131 | I40: 0.36884 | J40: 0.32495 | K40: 0.31302 | L40: 0.32554 | M40: 0.3354 | N40: 0.46769 | O40: 0.41165 | P40: 0.47554 | Q40: 0.50894 | R40: 0.29344 | S40: 0.27527 | T40: 0.2954 | U40: 0.31005 | V40: 0.29386 | W40: 0.2782 | X40: 0.29473 | Y40: 0.30869 | Z40: 0.69323 | AA40: 0.62556 | AB40: 0.70174 | AC40: 0.74119 | AD40: 0.24454 | AE40: 0.22254 | AF40: 0.24663 | AG40: 0.26142
A41: 2.58333 | B41: 0.72212 | C41: 0.7086 | D41: 0.72303 | E41: 0.73429 | F41: 0.36072 | G41: 0.35231 | H41: 0.36126 | I41: 0.36845 | J41: 0.32485 | K41: 0.31291 | L41: 0.32541 | M41: 0.33556 | N41: 0.46727 | O41: 0.41395 | P41: 0.47587 | Q41: 0.50825 | R41: 0.29328 | S41: 0.27461 | T41: 0.29564 | U41: 0.31025 | V41: 0.29367 | W41: 0.27864 | X41: 0.29427 | Y41: 0.30849 | Z41: 0.69288 | AA41: 0.62435 | AB41: 0.70163 | AC41: 0.74131 | AD41: 0.24435 | AE41: 0.22253 | AF41: 0.24674 | AG41: 0.2613
A42: 2.66667 | B42: 0.72196 | C42: 0.70791 | D42: 0.72295 | E42: 0.73452 | F42: 0.36062 | G42: 0.35179 | H42: 0.36119 | I42: 0.36862 | J42: 0.32475 | K42: 0.31297 | L42: 0.32536 | M42: 0.33594 | N42: 0.46686 | O42: 0.41336 | P42: 0.47568 | Q42: 0.50933 | R42: 0.29313 | S42: 0.27466 | T42: 0.2955 | U42: 0.31027 | V42: 0.29348 | W42: 0.27799 | X42: 0.29442 | Y42: 0.30857 | Z42: 0.69253 | AA42: 0.63019 | AB42: 0.70222 | AC42: 0.74158 | AD42: 0.24417 | AE42: 0.2211 | AF42: 0.24704 | AG42: 0.26152
A43: 2.75 | B43: 0.7218 | C43: 0.70664 | D43: 0.72251 | E43: 0.73503 | F43: 0.36052 | G43: 0.35103 | H43: 0.36091 | I43: 0.36888 | J43: 0.32466 | K43: 0.31218 | L43: 0.32543 | M43: 0.33649 | N43: 0.46644 | O43: 0.41283 | P43: 0.47488 | Q43: 0.51087 | R43: 0.29297 | S43: 0.27344 | T43: 0.29514 | U43: 0.3113 | V43: 0.29329 | W43: 0.27624 | X43: 0.29467 | Y43: 0.3088 | Z43: 0.69218 | AA43: 0.63299 | AB43: 0.70394 | AC43: 0.74322 | AD43: 0.24398 | AE43: 0.21946 | AF43: 0.24753 | AG43: 0.262
A44: 2.83333 | B44: 0.72164 | C44: 0.70481 | D44: 0.72233 | E44: 0.7356 | F44: 0.36042 | G44: 0.34982 | H44: 0.36084 | I44: 0.36931 | J44: 0.32456 | K44: 0.31072 | L44: 0.32489 | M44: 0.33724 | N44: 0.46602 | O44: 0.41014 | P44: 0.4763 | Q44: 0.51214 | R44: 0.29282 | S44: 0.27267 | T44: 0.29489 | U44: 0.31234 | V44: 0.29311 | W44: 0.27464 | X44: 0.29494 | Y44: 0.30966 | Z44: 0.69183 | AA44: 0.62839 | AB44: 0.70275 | AC44: 0.7461 | AD44: 0.2438 | AE44: 0.21981 | AF44: 0.24813 | AG44: 0.26291
A45: 2.91667 | B45: 0.72148 | C45: 0.70364 | D45: 0.72242 | E45: 0.73695 | F45: 0.36032 | G45: 0.34908 | H45: 0.36083 | I45: 0.37013 | J45: 0.32447 | K45: 0.30985 | L45: 0.32468 | M45: 0.33865 | N45: 0.4656 | O45: 0.40565 | P45: 0.47769 | Q45: 0.51407 | R45: 0.29267 | S45: 0.27112 | T45: 0.29442 | U45: 0.31406 | V45: 0.29292 | W45: 0.27233 | X45: 0.29481 | Y45: 0.31075 | Z45: 0.69148 | AA45: 0.62687 | AB45: 0.70349 | AC45: 0.74891 | AD45: 0.24361 | AE45: 0.21748 | AF45: 0.24837 | AG45: 0.26457
A46: 3 | B46: 0.72132 | C46: 0.70233 | D46: 0.72215 | E46: 0.73843 | F46: 0.36022 | G46: 0.34828 | H46: 0.36068 | I46: 0.37105 | J46: 0.32437 | K46: 0.30849 | L46: 0.32441 | M46: 0.3392 | N46: 0.46518 | O46: 0.39897 | P46: 0.47855 | Q46: 0.51807 | R46: 0.29251 | S46: 0.26974 | T46: 0.29484 | U46: 0.31575 | V46: 0.29273 | W46: 0.27037 | X46: 0.29459 | Y46: 0.31179 | Z46: 0.69112 | AA46: 0.62052 | AB46: 0.7044 | AC46: 0.7546 | AD46: 0.24343 | AE46: 0.21477 | AF46: 0.24836 | AG46: 0.26638
A47: 3.08333 | B47: 0.72136 | C47: 0.70407 | D47: 0.72186 | E47: 0.7366 | F47: 0.36024 | G47: 0.34936 | H47: 0.3605 | I47: 0.36992 | J47: 0.32449 | K47: 0.30953 | L47: 0.3248 | M47: 0.3382 | N47: 0.46551 | O47: 0.40561 | P47: 0.47734 | Q47: 0.51267 | R47: 0.29244 | S47: 0.27117 | T47: 0.29418 | U47: 0.31415 | V47: 0.29295 | W47: 0.27301 | X47: 0.29505 | Y47: 0.31055 | Z47: 0.69179 | AA47: 0.62805 | AB47: 0.70424 | AC47: 0.75005 | AD47: 0.24341 | AE47: 0.21752 | AF47: 0.24821 | AG47: 0.26495
A48: 3.16667 | B48: 0.7214 | C48: 0.7055 | D48: 0.72166 | E48: 0.73555 | F48: 0.36027 | G48: 0.35026 | H48: 0.36031 | I48: 0.36923 | J48: 0.32461 | K48: 0.31102 | L48: 0.32489 | M48: 0.33713 | N48: 0.46583 | O48: 0.41054 | P48: 0.47606 | Q48: 0.5098 | R48: 0.29237 | S48: 0.27335 | T48: 0.29348 | U48: 0.31189 | V48: 0.29317 | W48: 0.27408 | X48: 0.29523 | Y48: 0.30929 | Z48: 0.69245 | AA48: 0.63139 | AB48: 0.7031 | AC48: 0.74512 | AD48: 0.24338 | AE48: 0.21957 | AF48: 0.24722 | AG48: 0.26415
A49: 3.25 | B49: 0.72144 | C49: 0.70662 | D49: 0.72155 | E49: 0.73506 | F49: 0.36029 | G49: 0.35096 | H49: 0.36024 | I49: 0.36894 | J49: 0.32473 | K49: 0.3122 | L49: 0.32487 | M49: 0.33621 | N49: 0.46615 | O49: 0.41387 | P49: 0.47479 | Q49: 0.50754 | R49: 0.29229 | S49: 0.27376 | T49: 0.29331 | U49: 0.30993 | V49: 0.29339 | W49: 0.27657 | X49: 0.29527 | Y49: 0.3086 | Z49: 0.69311 | AA49: 0.63493 | AB49: 0.70272 | AC49: 0.74252 | AD49: 0.24336 | AE49: 0.22094 | AF49: 0.24661 | AG49: 0.26344
A50: 3.33333 | B50: 0.72147 | C50: 0.70743 | D50: 0.7217 | E50: 0.73463 | F50: 0.36032 | G50: 0.35144 | H50: 0.36038 | I50: 0.36867 | J50: 0.32486 | K50: 0.31295 | L50: 0.32511 | M50: 0.33573 | N50: 0.46647 | O50: 0.41509 | P50: 0.47526 | Q50: 0.50708 | R50: 0.29222 | S50: 0.27369 | T50: 0.29307 | U50: 0.30887 | V50: 0.29361 | W50: 0.27777 | X50: 0.29531 | Y50: 0.30828 | Z50: 0.69377 | AA50: 0.63567 | AB50: 0.70271 | AC50: 0.74079 | AD50: 0.24334 | AE50: 0.22017 | AF50: 0.24611 | AG50: 0.26254
A51: 3.41667 | B51: 0.72151 | C51: 0.70819 | D51: 0.72132 | E51: 0.73495 | F51: 0.36034 | G51: 0.35191 | H51: 0.36016 | I51: 0.36886 | J51: 0.32498 | K51: 0.31392 | L51: 0.32523 | M51: 0.33557 | N51: 0.46679 | O51: 0.41505 | P51: 0.47491 | Q51: 0.50686 | R51: 0.29215 | S51: 0.27405 | T51: 0.29354 | U51: 0.30775 | V51: 0.29382 | W51: 0.27908 | X51: 0.29536 | Y51: 0.30829 | Z51: 0.69444 | AA51: 0.63315 | AB51: 0.70308 | AC51: 0.74014 | AD51: 0.24331 | AE51: 0.21999 | AF51: 0.2464 | AG51: 0.2624
A52: 3.5 | B52: 0.72155 | C52: 0.70822 | D52: 0.72121 | E52: 0.73545 | F52: 0.36037 | G52: 0.352 | H52: 0.36009 | I52: 0.36916 | J52: 0.3251 | K52: 0.31398 | L52: 0.32533 | M52: 0.33568 | N52: 0.46711 | O52: 0.41444 | P52: 0.47402 | Q52: 0.50779 | R52: 0.29208 | S52: 0.27456 | T52: 0.29341 | U52: 0.30798 | V52: 0.29404 | W52: 0.27926 | X52: 0.29526 | Y52: 0.30809 | Z52: 0.6951 | AA52: 0.63553 | AB52: 0.70405 | AC52: 0.73973 | AD52: 0.24329 | AE52: 0.21756 | AF52: 0.24656 | AG52: 0.26267
A53: 3.58333 | B53: 0.72159 | C53: 0.70763 | D53: 0.72156 | E53: 0.73531 | F53: 0.36039 | G53: 0.35169 | H53: 0.36034 | I53: 0.36909 | J53: 0.32522 | K53: 0.31421 | L53: 0.32535 | M53: 0.33593 | N53: 0.46744 | O53: 0.4147 | P53: 0.47383 | Q53: 0.50864 | R53: 0.292 | S53: 0.27406 | T53: 0.2936 | U53: 0.30767 | V53: 0.29426 | W53: 0.27865 | X53: 0.29523 | Y53: 0.30775 | Z53: 0.69576 | AA53: 0.63944 | AB53: 0.70499 | AC53: 0.74115 | AD53: 0.24327 | AE53: 0.21811 | AF53: 0.24646 | AG53: 0.26256
A54: 3.66667 | B54: 0.72163 | C54: 0.7068 | D54: 0.72168 | E54: 0.73603 | F54: 0.36042 | G54: 0.35116 | H54: 0.36041 | I54: 0.3695 | J54: 0.32534 | K54: 0.31419 | L54: 0.32541 | M54: 0.33643 | N54: 0.46776 | O54: 0.41325 | P54: 0.47483 | Q54: 0.50803 | R54: 0.29193 | S54: 0.27437 | T54: 0.29361 | U54: 0.3084 | V54: 0.29448 | W54: 0.279 | X54: 0.29521 | Y54: 0.30858 | Z54: 0.69643 | AA54: 0.64427 | AB54: 0.70495 | AC54: 0.74371 | AD54: 0.24325 | AE54: 0.21859 | AF54: 0.2463 | AG54: 0.26315
A55: 3.75 | B55: 0.72167 | C55: 0.7053 | D55: 0.72193 | E55: 0.73662 | F55: 0.36045 | G55: 0.35018 | H55: 0.3605 | I55: 0.36989 | J55: 0.32546 | K55: 0.31366 | L55: 0.3255 | M55: 0.33655 | N55: 0.46808 | O55: 0.41151 | P55: 0.47611 | Q55: 0.50938 | R55: 0.29186 | S55: 0.27381 | T55: 0.29384 | U55: 0.30903 | V55: 0.2947 | W55: 0.27799 | X55: 0.29552 | Y55: 0.30994 | Z55: 0.69709 | AA55: 0.64813 | AB55: 0.7051 | AC55: 0.74557 | AD55: 0.24323 | AE55: 0.2178 | AF55: 0.24659 | AG55: 0.26423
A56: 3.83333 | B56: 0.72171 | C56: 0.7045 | D56: 0.72189 | E56: 0.73763 | F56: 0.36047 | G56: 0.34964 | H56: 0.36051 | I56: 0.37066 | J56: 0.32558 | K56: 0.31283 | L56: 0.32554 | M56: 0.33756 | N56: 0.4684 | O56: 0.40963 | P56: 0.47852 | Q56: 0.51159 | R56: 0.29179 | S56: 0.27217 | T56: 0.29398 | U56: 0.3099 | V56: 0.29492 | W56: 0.27743 | X56: 0.29553 | Y56: 0.31093 | Z56: 0.69776 | AA56: 0.64438 | AB56: 0.70582 | AC56: 0.75085 | AD56: 0.24321 | AE56: 0.21621 | AF56: 0.24722 | AG56: 0.26529
A57: 3.91667 | B57: 0.72175 | C57: 0.70289 | D57: 0.72218 | E57: 0.739 | F57: 0.3605 | G57: 0.34864 | H57: 0.3607 | I57: 0.37143 | J57: 0.3257 | K57: 0.31179 | L57: 0.32564 | M57: 0.3388 | N57: 0.46872 | O57: 0.40448 | P57: 0.47963 | Q57: 0.51461 | R57: 0.29171 | S57: 0.27078 | T57: 0.29496 | U57: 0.31119 | V57: 0.29513 | W57: 0.27662 | X57: 0.29633 | Y57: 0.31284 | Z57: 0.69843 | AA57: 0.63831 | AB57: 0.70782 | AC57: 0.75481 | AD57: 0.24318 | AE57: 0.21469 | AF57: 0.24829 | AG57: 0.26656
A58: 4 | B58: 0.72179 | C58: 0.70137 | D58: 0.72243 | E58: 0.74012 | F58: 0.36052 | G58: 0.34772 | H58: 0.36081 | I58: 0.37213 | J58: 0.32583 | K58: 0.31035 | L58: 0.32599 | M58: 0.33993 | N58: 0.46905 | O58: 0.40181 | P58: 0.48117 | Q58: 0.51879 | R58: 0.29164 | S58: 0.2683 | T58: 0.2954 | U58: 0.31287 | V58: 0.29535 | W58: 0.27487 | X58: 0.29673 | Y58: 0.31394 | Z58: 0.6991 | AA58: 0.63468 | AB58: 0.71043 | AC58: 0.76053 | AD58: 0.24316 | AE58: 0.21267 | AF58: 0.24891 | AG58: 0.26822
A59: 4.08333 | B59: 0.72174 | C59: 0.70339 | D59: 0.72194 | E59: 0.73862 | F59: 0.36049 | G59: 0.34895 | H59: 0.36051 | I59: 0.37124 | J59: 0.32575 | K59: 0.31157 | L59: 0.32619 | M59: 0.33835 | N59: 0.46871 | O59: 0.40712 | P59: 0.48017 | Q59: 0.51309 | R59: 0.29157 | S59: 0.27102 | T59: 0.29454 | U59: 0.31121 | V59: 0.29516 | W59: 0.27633 | X59: 0.29662 | Y59: 0.31239 | Z59: 0.69901 | AA59: 0.63863 | AB59: 0.70758 | AC59: 0.75628 | AD59: 0.24322 | AE59: 0.21574 | AF59: 0.24834 | AG59: 0.26566
A60: 4.16667 | B60: 0.72169 | C60: 0.70516 | D60: 0.72219 | E60: 0.73712 | F60: 0.36046 | G60: 0.35009 | H60: 0.36067 | I60: 0.37025 | J60: 0.32568 | K60: 0.31308 | L60: 0.32606 | M60: 0.33733 | N60: 0.46837 | O60: 0.40903 | P60: 0.47795 | Q60: 0.511 | R60: 0.29149 | S60: 0.27257 | T60: 0.29426 | U60: 0.31023 | V60: 0.29497 | W60: 0.27731 | X60: 0.29649 | Y60: 0.31131 | Z60: 0.69892 | AA60: 0.64178 | AB60: 0.70761 | AC60: 0.75051 | AD60: 0.24327 | AE60: 0.21811 | AF60: 0.24882 | AG60: 0.26472
A61: 4.25 | B61: 0.72164 | C61: 0.70619 | D61: 0.72203 | E61: 0.73661 | F61: 0.36043 | G61: 0.35072 | H61: 0.36058 | I61: 0.36989 | J61: 0.32561 | K61: 0.31436 | L61: 0.3258 | M61: 0.33668 | N61: 0.46804 | O61: 0.41258 | P61: 0.4766 | Q61: 0.50931 | R61: 0.29142 | S61: 0.27334 | T61: 0.29389 | U61: 0.30918 | V61: 0.29478 | W61: 0.27813 | X61: 0.29606 | Y61: 0.30964 | Z61: 0.69884 | AA61: 0.64524 | AB61: 0.70779 | AC61: 0.74658 | AD61: 0.24332 | AE61: 0.21994 | AF61: 0.2481 | AG61: 0.26379
A62: 4.33333 | B62: 0.72159 | C62: 0.70682 | D62: 0.7219 | E62: 0.73583 | F62: 0.3604 | G62: 0.35115 | H62: 0.36055 | I62: 0.36957 | J62: 0.32554 | K62: 0.31439 | L62: 0.32572 | M62: 0.33627 | N62: 0.4677 | O62: 0.41401 | P62: 0.47495 | Q62: 0.50832 | R62: 0.29135 | S62: 0.27377 | T62: 0.2934 | U62: 0.30832 | V62: 0.29458 | W62: 0.27921 | X62: 0.29586 | Y62: 0.30848 | Z62: 0.69875 | AA62: 0.64578 | AB62: 0.70747 | AC62: 0.74448 | AD62: 0.24337 | AE62: 0.219 | AF62: 0.24722 | AG62: 0.26343
A63: 4.41667 | B63: 0.72154 | C63: 0.70699 | D63: 0.72165 | E63: 0.7352 | F63: 0.36037 | G63: 0.35117 | H63: 0.36037 | I63: 0.36894 | J63: 0.32547 | K63: 0.31484 | L63: 0.32564 | M63: 0.33582 | N63: 0.46737 | O63: 0.41316 | P63: 0.47473 | Q63: 0.50833 | R63: 0.29127 | S63: 0.27373 | T63: 0.293 | U63: 0.30813 | V63: 0.29439 | W63: 0.27965 | X63: 0.2961 | Y63: 0.30743 | Z63: 0.69866 | AA63: 0.64622 | AB63: 0.70719 | AC63: 0.74258 | AD63: 0.24343 | AE63: 0.21873 | AF63: 0.24634 | AG63: 0.26283
A64: 4.5 | B64: 0.7215 | C64: 0.70767 | D64: 0.72159 | E64: 0.73525 | F64: 0.36033 | G64: 0.35167 | H64: 0.36037 | I64: 0.36896 | J64: 0.3254 | K64: 0.31466 | L64: 0.32539 | M64: 0.33585 | N64: 0.46703 | O64: 0.40816 | P64: 0.47398 | Q64: 0.50724 | R64: 0.2912 | S64: 0.27423 | T64: 0.29265 | U64: 0.30768 | V64: 0.2942 | W64: 0.2794 | X64: 0.29578 | Y64: 0.30763 | Z64: 0.69858 | AA64: 0.64785 | AB64: 0.70804 | AC64: 0.74287 | AD64: 0.24348 | AE64: 0.21971 | AF64: 0.24653 | AG64: 0.26257
A65: 4.58333 | B65: 0.72145 | C65: 0.7081 | D65: 0.72147 | E65: 0.7353 | F65: 0.3603 | G65: 0.35197 | H65: 0.36025 | I65: 0.369 | J65: 0.32532 | K65: 0.31475 | L65: 0.3252 | M65: 0.33564 | N65: 0.46669 | O65: 0.41069 | P65: 0.47475 | Q65: 0.50682 | R65: 0.29113 | S65: 0.27355 | T65: 0.29221 | U65: 0.30798 | V65: 0.294 | W65: 0.27856 | X65: 0.2954 | Y65: 0.30728 | Z65: 0.69849 | AA65: 0.64556 | AB65: 0.70711 | AC65: 0.74395 | AD65: 0.24353 | AE65: 0.22091 | AF65: 0.24617 | AG65: 0.26289
A66: 4.66667 | B66: 0.7214 | C66: 0.70776 | D66: 0.7215 | E66: 0.73572 | F66: 0.36027 | G66: 0.35174 | H66: 0.36023 | I66: 0.36923 | J66: 0.32525 | K66: 0.31413 | L66: 0.32555 | M66: 0.33561 | N66: 0.46636 | O66: 0.4129 | P66: 0.47546 | Q66: 0.50796 | R66: 0.29105 | S66: 0.27172 | T66: 0.29287 | U66: 0.3082 | V66: 0.29381 | W66: 0.27838 | X66: 0.29552 | Y66: 0.30781 | Z66: 0.6984 | AA66: 0.64554 | AB66: 0.7064 | AC66: 0.74499 | AD66: 0.24358 | AE66: 0.22082 | AF66: 0.24609 | AG66: 0.263
A67: 4.75 | B67: 0.72135 | C67: 0.70637 | D67: 0.72153 | E67: 0.73573 | F67: 0.36024 | G67: 0.35088 | H67: 0.36034 | I67: 0.36936 | J67: 0.32518 | K67: 0.31364 | L67: 0.32561 | M67: 0.33636 | N67: 0.46602 | O67: 0.41393 | P67: 0.47632 | Q67: 0.50767 | R67: 0.29097 | S67: 0.27139 | T67: 0.29272 | U67: 0.30964 | V67: 0.29362 | W67: 0.27784 | X67: 0.29579 | Y67: 0.30822 | Z67: 0.69832 | AA67: 0.64324 | AB67: 0.7062 | AC67: 0.74584 | AD67: 0.24364 | AE67: 0.22049 | AF67: 0.24656 | AG67: 0.26398
A68: 4.83333 | B68: 0.7213 | C68: 0.70531 | D68: 0.72144 | E68: 0.73669 | F68: 0.36021 | G68: 0.35022 | H68: 0.36024 | I68: 0.3699 | J68: 0.32511 | K68: 0.31275 | L68: 0.32535 | M68: 0.33715 | N68: 0.46568 | O68: 0.41221 | P68: 0.47728 | Q68: 0.50924 | R68: 0.2909 | S68: 0.27035 | T68: 0.29272 | U68: 0.3106 | V68: 0.29342 | W68: 0.27628 | X68: 0.29519 | Y68: 0.30937 | Z68: 0.69823 | AA68: 0.64169 | AB68: 0.70733 | AC68: 0.74833 | AD68: 0.24369 | AE68: 0.21951 | AF68: 0.24712 | AG68: 0.26483
A69: 4.91667 | B69: 0.72125 | C69: 0.70378 | D69: 0.72184 | E69: 0.73809 | F69: 0.36018 | G69: 0.34921 | H69: 0.36044 | I69: 0.37084 | J69: 0.32504 | K69: 0.31198 | L69: 0.32544 | M69: 0.33796 | N69: 0.46535 | O69: 0.40366 | P69: 0.47857 | Q69: 0.51196 | R69: 0.29082 | S69: 0.26819 | T69: 0.29318 | U69: 0.31147 | V69: 0.29323 | W69: 0.2744 | X69: 0.29505 | Y69: 0.3108 | Z69: 0.69814 | AA69: 0.63688 | AB69: 0.70914 | AC69: 0.75217 | AD69: 0.24374 | AE69: 0.21792 | AF69: 0.24723 | AG69: 0.26682
A70: 5 | B70: 0.7212 | C70: 0.70251 | D70: 0.72158 | E70: 0.7393 | F70: 0.36015 | G70: 0.34841 | H70: 0.36031 | I70: 0.37166 | J70: 0.32497 | K70: 0.31088 | L70: 0.32532 | M70: 0.33931 | N70: 0.46501 | O70: 0.39851 | P70: 0.47926 | Q70: 0.51705 | R70: 0.29075 | S70: 0.26628 | T70: 0.2938 | U70: 0.31362 | V70: 0.29304 | W70: 0.27249 | X70: 0.29484 | Y70: 0.31223 | Z70: 0.69806 | AA70: 0.63158 | AB70: 0.70917 | AC70: 0.75651 | AD70: 0.2438 | AE70: 0.21605 | AF70: 0.24772 | AG70: 0.26829
A71: 5.08333 | B71: 0.7212 | C71: 0.70423 | D71: 0.72181 | E71: 0.73834 | F71: 0.36014 | G71: 0.34946 | H71: 0.36042 | I71: 0.37102 | J71: 0.32497 | K71: 0.31185 | L71: 0.32524 | M71: 0.33788 | N71: 0.46471 | O71: 0.40274 | P71: 0.47772 | Q71: 0.5124 | R71: 0.29094 | S71: 0.26838 | T71: 0.29358 | U71: 0.3114 | V71: 0.29308 | W71: 0.27383 | X71: 0.29441 | Y71: 0.3111 | Z71: 0.69766 | AA71: 0.63666 | AB71: 0.70682 | AC71: 0.75298 | AD71: 0.2438 | AE71: 0.21868 | AF71: 0.24726 | AG71: 0.26631
A72: 5.16667 | B72: 0.72119 | C72: 0.7053 | D72: 0.72183 | E72: 0.73702 | F72: 0.36014 | G72: 0.35018 | H72: 0.36046 | I72: 0.37016 | J72: 0.32498 | K72: 0.31271 | L72: 0.3252 | M72: 0.33646 | N72: 0.46442 | O72: 0.40435 | P72: 0.47537 | Q72: 0.50969 | R72: 0.29112 | S72: 0.26998 | T72: 0.29349 | U72: 0.30937 | V72: 0.29312 | W72: 0.27504 | X72: 0.29451 | Y72: 0.30929 | Z72: 0.69727 | AA72: 0.6411 | AB72: 0.70557 | AC72: 0.75039 | AD72: 0.24381 | AE72: 0.21978 | AF72: 0.24653 | AG72: 0.26495
A73: 5.25 | B73: 0.72119 | C73: 0.7065 | D73: 0.72167 | E73: 0.73558 | F73: 0.36014 | G73: 0.35089 | H73: 0.36036 | I73: 0.36932 | J73: 0.32498 | K73: 0.31385 | L73: 0.32516 | M73: 0.33595 | N73: 0.46412 | O73: 0.406 | P73: 0.47283 | Q73: 0.50783 | R73: 0.2913 | S73: 0.27203 | T73: 0.29304 | U73: 0.30852 | V73: 0.29317 | W73: 0.27628 | X73: 0.29428 | Y73: 0.30851 | Z73: 0.69687 | AA73: 0.64328 | AB73: 0.70597 | AC73: 0.74828 | AD73: 0.24381 | AE73: 0.22003 | AF73: 0.24594 | AG73: 0.26374
A74: 5.33333 | B74: 0.72119 | C74: 0.70683 | D74: 0.72192 | E74: 0.73449 | F74: 0.36014 | G74: 0.35117 | H74: 0.36052 | I74: 0.36853 | J74: 0.32498 | K74: 0.31422 | L74: 0.32518 | M74: 0.33579 | N74: 0.46383 | O74: 0.40721 | P74: 0.47263 | Q74: 0.50582 | R74: 0.29149 | S74: 0.2737 | T74: 0.29294 | U74: 0.30803 | V74: 0.29321 | W74: 0.27701 | X74: 0.2944 | Y74: 0.30783 | Z74: 0.69647 | AA74: 0.63603 | AB74: 0.70497 | AC74: 0.74569 | AD74: 0.24382 | AE74: 0.2203 | AF74: 0.24597 | AG74: 0.26292
A75: 5.41667 | B75: 0.72118 | C75: 0.70672 | D75: 0.72182 | E75: 0.7344 | F75: 0.36014 | G75: 0.35105 | H75: 0.36044 | I75: 0.36845 | J75: 0.32499 | K75: 0.31408 | L75: 0.32519 | M75: 0.33513 | N75: 0.46353 | O75: 0.40658 | P75: 0.47259 | Q75: 0.5045 | R75: 0.29167 | S75: 0.27537 | T75: 0.29321 | U75: 0.3079 | V75: 0.29326 | W75: 0.27863 | X75: 0.29397 | Y75: 0.30776 | Z75: 0.69608 | AA75: 0.63766 | AB75: 0.70538 | AC75: 0.74585 | AD75: 0.24382 | AE75: 0.2214 | AF75: 0.24608 | AG75: 0.26239
A76: 5.5 | B76: 0.72118 | C76: 0.70733 | D76: 0.72177 | E76: 0.73371 | F76: 0.36013 | G76: 0.35145 | H76: 0.36047 | I76: 0.36813 | J76: 0.32499 | K76: 0.31437 | L76: 0.32524 | M76: 0.33464 | N76: 0.46324 | O76: 0.4044 | P76: 0.47259 | Q76: 0.50376 | R76: 0.29185 | S76: 0.27536 | T76: 0.29293 | U76: 0.30797 | V76: 0.2933 | W76: 0.27866 | X76: 0.29378 | Y76: 0.30799 | Z76: 0.69568 | AA76: 0.63723 | AB76: 0.70566 | AC76: 0.74488 | AD76: 0.24383 | AE76: 0.22084 | AF76: 0.246 | AG76: 0.26222
A77: 5.58333 | B77: 0.72118 | C77: 0.70764 | D77: 0.72157 | E77: 0.73341 | F77: 0.36013 | G77: 0.35162 | H77: 0.36027 | I77: 0.36798 | J77: 0.32499 | K77: 0.31386 | L77: 0.3254 | M77: 0.33526 | N77: 0.46294 | O77: 0.40006 | P77: 0.47275 | Q77: 0.50455 | R77: 0.29204 | S77: 0.27562 | T77: 0.29306 | U77: 0.30826 | V77: 0.29335 | W77: 0.27788 | X77: 0.29384 | Y77: 0.30764 | Z77: 0.69529 | AA77: 0.63623 | AB77: 0.70382 | AC77: 0.74409 | AD77: 0.24383 | AE77: 0.22104 | AF77: 0.24649 | AG77: 0.26234
A78: 5.66667 | B78: 0.72117 | C78: 0.70682 | D78: 0.72165 | E78: 0.73452 | F78: 0.36013 | G78: 0.35116 | H78: 0.36041 | I78: 0.36862 | J78: 0.325 | K78: 0.31383 | L78: 0.32537 | M78: 0.33578 | N78: 0.46265 | O78: 0.38937 | P78: 0.47296 | Q78: 0.50641 | R78: 0.29222 | S78: 0.27523 | T78: 0.29308 | U78: 0.3091 | V78: 0.29339 | W78: 0.27828 | X78: 0.29412 | Y78: 0.30756 | Z78: 0.6949 | AA78: 0.63491 | AB78: 0.70427 | AC78: 0.74485 | AD78: 0.24384 | AE78: 0.22281 | AF78: 0.24693 | AG78: 0.26282
A79: 5.75 | B79: 0.72117 | C79: 0.70538 | D79: 0.72177 | E79: 0.73588 | F79: 0.36013 | G79: 0.35021 | H79: 0.36042 | I79: 0.36949 | J79: 0.325 | K79: 0.31296 | L79: 0.32529 | M79: 0.33658 | N79: 0.46235 | O79: 0.38066 | P79: 0.47419 | Q79: 0.50845 | R79: 0.2924 | S79: 0.27356 | T79: 0.29275 | U79: 0.30982 | V79: 0.29343 | W79: 0.27748 | X79: 0.29424 | Y79: 0.30831 | Z79: 0.6945 | AA79: 0.63484 | AB79: 0.70508 | AC79: 0.74457 | AD79: 0.24384 | AE79: 0.22118 | AF79: 0.24736 | AG79: 0.26345
A80: 5.83333 | B80: 0.72117 | C80: 0.70514 | D80: 0.7218 | E80: 0.7366 | F80: 0.36013 | G80: 0.35008 | H80: 0.36042 | I80: 0.36986 | J80: 0.325 | K80: 0.31232 | L80: 0.32526 | M80: 0.3376 | N80: 0.46206 | O80: 0.3743 | P80: 0.47542 | Q80: 0.5104 | R80: 0.29258 | S80: 0.27286 | T80: 0.29304 | U80: 0.3111 | V80: 0.29347 | W80: 0.27601 | X80: 0.29437 | Y80: 0.3097 | Z80: 0.69411 | AA80: 0.63367 | AB80: 0.70658 | AC80: 0.74752 | AD80: 0.24385 | AE80: 0.2196 | AF80: 0.24795 | AG80: 0.26443
A81: 5.91667 | B81: 0.72116 | C81: 0.70392 | D81: 0.72145 | E81: 0.73835 | F81: 0.36012 | G81: 0.34931 | H81: 0.36022 | I81: 0.37104 | J81: 0.32501 | K81: 0.31101 | L81: 0.3255 | M81: 0.33913 | N81: 0.46177 | O81: 0.36579 | P81: 0.47791 | Q81: 0.51311 | R81: 0.29277 | S81: 0.27119 | T81: 0.29332 | U81: 0.31263 | V81: 0.29352 | W81: 0.27449 | X81: 0.29452 | Y81: 0.31084 | Z81: 0.69372 | AA81: 0.63044 | AB81: 0.7078 | AC81: 0.75141 | AD81: 0.24385 | AE81: 0.21699 | AF81: 0.24821 | AG81: 0.26598
A82: 6 | B82: 0.72116 | C82: 0.70252 | D82: 0.72136 | E82: 0.73969 | F82: 0.36012 | G82: 0.34844 | H82: 0.36014 | I82: 0.37193 | J82: 0.32501 | K82: 0.30962 | L82: 0.32541 | M82: 0.34014 | N82: 0.46147 | O82: 0.36386 | P82: 0.47791 | Q82: 0.51694 | R82: 0.29295 | S82: 0.2701 | T82: 0.29416 | U82: 0.31495 | V82: 0.29356 | W82: 0.27288 | X82: 0.29487 | Y82: 0.31236 | Z82: 0.69333 | AA82: 0.62531 | AB82: 0.70872 | AC82: 0.75635 | AD82: 0.24386 | AE82: 0.21453 | AF82: 0.24884 | AG82: 0.26746
A83: 6.08333 | B83: 0.72113 | C83: 0.7036 | D83: 0.7213 | E83: 0.73772 | F83: 0.3601 | G83: 0.34911 | H83: 0.36007 | I83: 0.37062 | J83: 0.32498 | K83: 0.31096 | L83: 0.3252 | M83: 0.33855 | N83: 0.46177 | O83: 0.36888 | P83: 0.47641 | Q83: 0.51329 | R83: 0.2929 | S83: 0.27166 | T83: 0.294 | U83: 0.31269 | V83: 0.29353 | W83: 0.27508 | X83: 0.29479 | Y83: 0.31079 | Z83: 0.69359 | AA83: 0.63151 | AB83: 0.70676 | AC83: 0.75229 | AD83: 0.24365 | AE83: 0.21516 | AF83: 0.24762 | AG83: 0.26511
A84: 6.16667 | B84: 0.7211 | C84: 0.70489 | D84: 0.72115 | E84: 0.73684 | F84: 0.36008 | G84: 0.34991 | H84: 0.36 | I84: 0.37004 | J84: 0.32496 | K84: 0.31223 | L84: 0.32528 | M84: 0.33748 | N84: 0.46207 | O84: 0.37436 | P84: 0.47511 | Q84: 0.5105 | R84: 0.29285 | S84: 0.27344 | T84: 0.29356 | U84: 0.31064 | V84: 0.29349 | W84: 0.2765 | X84: 0.29461 | Y84: 0.30921 | Z84: 0.69385 | AA84: 0.63368 | AB84: 0.70611 | AC84: 0.74793 | AD84: 0.24345 | AE84: 0.21852 | AF84: 0.24615 | AG84: 0.26374
A85: 6.25 | B85: 0.72107 | C85: 0.70615 | D85: 0.72105 | E85: 0.7358 | F85: 0.36006 | G85: 0.35072 | H85: 0.36004 | I85: 0.36936 | J85: 0.32493 | K85: 0.31288 | L85: 0.32502 | M85: 0.33712 | N85: 0.46237 | O85: 0.38068 | P85: 0.47404 | Q85: 0.50802 | R85: 0.2928 | S85: 0.27437 | T85: 0.2932 | U85: 0.30926 | V85: 0.29345 | W85: 0.27678 | X85: 0.2946 | Y85: 0.30806 | Z85: 0.69412 | AA85: 0.63398 | AB85: 0.70586 | AC85: 0.74529 | AD85: 0.24324 | AE85: 0.219 | AF85: 0.24588 | AG85: 0.26216
A86: 6.33333 | B86: 0.72104 | C86: 0.70764 | D86: 0.72098 | E86: 0.73498 | F86: 0.36004 | G86: 0.35161 | H86: 0.35992 | I86: 0.36886 | J86: 0.3249 | K86: 0.31362 | L86: 0.32485 | M86: 0.3364 | N86: 0.46267 | O86: 0.38729 | P86: 0.47244 | Q86: 0.50565 | R86: 0.29275 | S86: 0.27615 | T86: 0.2928 | U86: 0.30797 | V86: 0.29342 | W86: 0.27834 | X86: 0.2946 | Y86: 0.30716 | Z86: 0.69438 | AA86: 0.63213 | AB86: 0.70469 | AC86: 0.7433 | AD86: 0.24303 | AE86: 0.21969 | AF86: 0.24623 | AG86: 0.26117
A87: 6.41667 | B87: 0.72101 | C87: 0.70848 | D87: 0.72102 | E87: 0.73409 | F87: 0.36002 | G87: 0.35211 | H87: 0.36002 | I87: 0.36834 | J87: 0.32487 | K87: 0.31395 | L87: 0.32469 | M87: 0.33547 | N87: 0.46298 | O87: 0.3972 | P87: 0.4727 | Q87: 0.50487 | R87: 0.2927 | S87: 0.27812 | T87: 0.29252 | U87: 0.3075 | V87: 0.29338 | W87: 0.27926 | X87: 0.29439 | Y87: 0.30692 | Z87: 0.69464 | AA87: 0.63459 | AB87: 0.70461 | AC87: 0.74131 | AD87: 0.24282 | AE87: 0.2197 | AF87: 0.24607 | AG87: 0.26044
A88: 6.5 | B88: 0.72097 | C88: 0.70798 | D88: 0.72105 | E88: 0.73398 | F88: 0.36 | G88: 0.35177 | H88: 0.35998 | I88: 0.36823 | J88: 0.32484 | K88: 0.31437 | L88: 0.32491 | M88: 0.33465 | N88: 0.46328 | O88: 0.39773 | P88: 0.47338 | Q88: 0.50392 | R88: 0.29265 | S88: 0.27776 | T88: 0.29297 | U88: 0.30724 | V88: 0.29335 | W88: 0.27962 | X88: 0.29447 | Y88: 0.30728 | Z88: 0.6949 | AA88: 0.63269 | AB88: 0.70483 | AC88: 0.74126 | AD88: 0.24262 | AE88: 0.21813 | AF88: 0.2459 | AG88: 0.2601
A89: 6.58333 | B89: 0.72094 | C89: 0.70769 | D89: 0.72115 | E89: 0.73401 | F89: 0.35998 | G89: 0.35162 | H89: 0.36004 | I89: 0.36823 | J89: 0.32481 | K89: 0.31397 | L89: 0.32484 | M89: 0.33489 | N89: 0.46358 | O89: 0.39607 | P89: 0.47305 | Q89: 0.50501 | R89: 0.2926 | S89: 0.27805 | T89: 0.2934 | U89: 0.30693 | V89: 0.29331 | W89: 0.27926 | X89: 0.29423 | Y89: 0.30761 | Z89: 0.69517 | AA89: 0.6341 | AB89: 0.70394 | AC89: 0.74145 | AD89: 0.24241 | AE89: 0.21814 | AF89: 0.24551 | AG89: 0.26002
A90: 6.66667 | B90: 0.72091 | C90: 0.70736 | D90: 0.72098 | E90: 0.73463 | F90: 0.35996 | G90: 0.35146 | H90: 0.35993 | I90: 0.36864 | J90: 0.32478 | K90: 0.31389 | L90: 0.32497 | M90: 0.3355 | N90: 0.46388 | O90: 0.39878 | P90: 0.47315 | Q90: 0.50613 | R90: 0.29255 | S90: 0.27744 | T90: 0.29355 | U90: 0.3073 | V90: 0.29327 | W90: 0.27894 | X90: 0.2938 | Y90: 0.30829 | Z90: 0.69544 | AA90: 0.63431 | AB90: 0.70408 | AC90: 0.74326 | AD90: 0.2422 | AE90: 0.21838 | AF90: 0.24571 | AG90: 0.26061
A91: 6.75 | B91: 0.72088 | C91: 0.70563 | D91: 0.72112 | E91: 0.73483 | F91: 0.35994 | G91: 0.35035 | H91: 0.36003 | I91: 0.36879 | J91: 0.32475 | K91: 0.31318 | L91: 0.32499 | M91: 0.33542 | N91: 0.46418 | O91: 0.40623 | P91: 0.47417 | Q91: 0.50794 | R91: 0.2925 | S91: 0.27582 | T91: 0.29383 | U91: 0.30772 | V91: 0.29324 | W91: 0.27829 | X91: 0.29422 | Y91: 0.30877 | Z91: 0.69571 | AA91: 0.63557 | AB91: 0.70419 | AC91: 0.74568 | AD91: 0.242 | AE91: 0.21585 | AF91: 0.24623 | AG91: 0.26096
A92: 6.83333 | B92: 0.72084 | C92: 0.70422 | D92: 0.72159 | E92: 0.73573 | F92: 0.35992 | G92: 0.34951 | H92: 0.36031 | I92: 0.36931 | J92: 0.32473 | K92: 0.31279 | L92: 0.32489 | M92: 0.33678 | N92: 0.46448 | O92: 0.40726 | P92: 0.47477 | Q92: 0.51017 | R92: 0.29245 | S92: 0.2738 | T92: 0.29423 | U92: 0.30917 | V92: 0.2932 | W92: 0.27736 | X92: 0.29429 | Y92: 0.30932 | Z92: 0.69598 | AA92: 0.63499 | AB92: 0.70367 | AC92: 0.74893 | AD92: 0.24179 | AE92: 0.21464 | AF92: 0.24661 | AG92: 0.26222
A93: 6.91667 | B93: 0.72081 | C93: 0.70333 | D93: 0.72159 | E93: 0.73721 | F93: 0.3599 | G93: 0.3489 | H93: 0.36035 | I93: 0.37024 | J93: 0.3247 | K93: 0.31157 | L93: 0.3248 | M93: 0.33751 | N93: 0.46479 | O93: 0.40426 | P93: 0.47569 | Q93: 0.51218 | R93: 0.2924 | S93: 0.27273 | T93: 0.29441 | U93: 0.31128 | V93: 0.29317 | W93: 0.27599 | X93: 0.29427 | Y93: 0.31048 | Z93: 0.69625 | AA93: 0.63051 | AB93: 0.70363 | AC93: 0.75253 | AD93: 0.24159 | AE93: 0.21333 | AF93: 0.24679 | AG93: 0.26353
A94: 7 | B94: 0.72078 | C94: 0.70153 | D94: 0.72172 | E94: 0.73883 | F94: 0.35988 | G94: 0.34783 | H94: 0.36046 | I94: 0.37125 | J94: 0.32467 | K94: 0.31049 | L94: 0.32499 | M94: 0.33846 | N94: 0.46509 | O94: 0.40002 | P94: 0.47762 | Q94: 0.5165 | R94: 0.29235 | S94: 0.27017 | T94: 0.29425 | U94: 0.31298 | V94: 0.29313 | W94: 0.27461 | X94: 0.29417 | Y94: 0.3115 | Z94: 0.69651 | AA94: 0.62669 | AB94: 0.70468 | AC94: 0.75853 | AD94: 0.24138 | AE94: 0.2112 | AF94: 0.24728 | AG94: 0.266
A95: 7.08333 | B95: 0.72087 | C95: 0.70308 | D95: 0.72175 | E95: 0.73734 | F95: 0.35993 | G95: 0.34873 | H95: 0.36042 | I95: 0.37031 | J95: 0.32472 | K95: 0.31196 | L95: 0.32514 | M95: 0.33737 | N95: 0.46512 | O95: 0.40501 | P95: 0.47481 | Q95: 0.51224 | R95: 0.29226 | S95: 0.2721 | T95: 0.29403 | U95: 0.31132 | V95: 0.29325 | W95: 0.2761 | X95: 0.29407 | Y95: 0.3103 | Z95: 0.69643 | AA95: 0.63021 | AB95: 0.70334 | AC95: 0.75283 | AD95: 0.24156 | AE95: 0.21518 | AF95: 0.24632 | AG95: 0.26411
A96: 7.16667 | B96: 0.72095 | C96: 0.70433 | D96: 0.72226 | E96: 0.73641 | F96: 0.35998 | G96: 0.3495 | H96: 0.36069 | I96: 0.36981 | J96: 0.32477 | K96: 0.31285 | L96: 0.32518 | M96: 0.337 | N96: 0.46515 | O96: 0.41015 | P96: 0.4744 | Q96: 0.50942 | R96: 0.29216 | S96: 0.2739 | T96: 0.29381 | U96: 0.30994 | V96: 0.29336 | W96: 0.27827 | X96: 0.294 | Y96: 0.30961 | Z96: 0.69635 | AA96: 0.63671 | AB96: 0.7032 | AC96: 0.74926 | AD96: 0.24174 | AE96: 0.21566 | AF96: 0.24613 | AG96: 0.26337
A97: 7.25 | B97: 0.72103 | C97: 0.70577 | D97: 0.72202 | E97: 0.73598 | F97: 0.36003 | G97: 0.3505 | H97: 0.36064 | I97: 0.36952 | J97: 0.32481 | K97: 0.31309 | L97: 0.32516 | M97: 0.33647 | N97: 0.46519 | O97: 0.40943 | P97: 0.47314 | Q97: 0.50829 | R97: 0.29206 | S97: 0.27484 | T97: 0.29355 | U97: 0.30932 | V97: 0.29348 | W97: 0.2794 | X97: 0.29434 | Y97: 0.30835 | Z97: 0.69627 | AA97: 0.64162 | AB97: 0.70329 | AC97: 0.74535 | AD97: 0.24192 | AE97: 0.21556 | AF97: 0.24549 | AG97: 0.26166
A98: 7.33333 | B98: 0.72111 | C98: 0.7069 | D98: 0.72187 | E98: 0.73559 | F98: 0.36009 | G98: 0.35116 | H98: 0.36053 | I98: 0.36927 | J98: 0.32486 | K98: 0.31335 | L98: 0.32538 | M98: 0.3357 | N98: 0.46522 | O98: 0.41186 | P98: 0.47317 | Q98: 0.50682 | R98: 0.29196 | S98: 0.27602 | T98: 0.29385 | U98: 0.30819 | V98: 0.2936 | W98: 0.27919 | X98: 0.29433 | Y98: 0.30785 | Z98: 0.69619 | AA98: 0.64269 | AB98: 0.70315 | AC98: 0.74301 | AD98: 0.24209 | AE98: 0.21776 | AF98: 0.2455 | AG98: 0.26083
A99: 7.41667 | B99: 0.72119 | C99: 0.707 | D99: 0.72229 | E99: 0.73514 | F99: 0.36014 | G99: 0.35122 | H99: 0.3608 | I99: 0.36896 | J99: 0.32491 | K99: 0.31362 | L99: 0.32577 | M99: 0.33497 | N99: 0.46525 | O99: 0.41029 | P99: 0.47288 | Q99: 0.50681 | R99: 0.29186 | S99: 0.27693 | T99: 0.293 | U99: 0.30738 | V99: 0.29371 | W99: 0.27942 | X99: 0.29426 | Y99: 0.30747 | Z99: 0.69611 | AA99: 0.64193 | AB99: 0.70136 | AC99: 0.74205 | AD99: 0.24227 | AE99: 0.21727 | AF99: 0.24533 | AG99: 0.26038
A100: 7.5 | B100: 0.72127 | C100: 0.70674 | D100: 0.72196 | E100: 0.73487 | F100: 0.36019 | G100: 0.35119 | H100: 0.36058 | I100: 0.36883 | J100: 0.32496 | K100: 0.3137 | L100: 0.32526 | M100: 0.33491 | N100: 0.46528 | O100: 0.40618 | P100: 0.47331 | Q100: 0.50685 | R100: 0.29176 | S100: 0.27676 | T100: 0.29268 | U100: 0.30685 | V100: 0.29383 | W100: 0.27969 | X100: 0.2948 | Y100: 0.30745 | Z100: 0.69603 | AA100: 0.64081 | AB100: 0.70293 | AC100: 0.74238 | AD100: 0.24245 | AE100: 0.21779 | AF100: 0.24536 | AG100: 0.26064
A101: 7.58333 | B101: 0.72136 | C101: 0.7068 | D101: 0.72198 | E101: 0.73515 | F101: 0.36024 | G101: 0.35108 | H101: 0.36062 | I101: 0.36897 | J101: 0.32501 | K101: 0.31345 | L101: 0.32519 | M101: 0.33611 | N101: 0.46532 | O101: 0.40413 | P101: 0.47258 | Q101: 0.50706 | R101: 0.29166 | S101: 0.27579 | T101: 0.29264 | U101: 0.30691 | V101: 0.29394 | W101: 0.27895 | X101: 0.29501 | Y101: 0.30789 | Z101: 0.69595 | AA101: 0.6414 | AB101: 0.70289 | AC101: 0.74129 | AD101: 0.24263 | AE101: 0.22052 | AF101: 0.24557 | AG101: 0.26095
A102: 7.66667 | B102: 0.72144 | C102: 0.70703 | D102: 0.72192 | E102: 0.73559 | F102: 0.36029 | G102: 0.35124 | H102: 0.3605 | I102: 0.36924 | J102: 0.32506 | K102: 0.31304 | L102: 0.3251 | M102: 0.33693 | N102: 0.46535 | O102: 0.40633 | P102: 0.47242 | Q102: 0.50777 | R102: 0.29156 | S102: 0.27507 | T102: 0.29274 | U102: 0.30743 | V102: 0.29406 | W102: 0.27899 | X102: 0.29507 | Y102: 0.30826 | Z102: 0.69588 | AA102: 0.63875 | AB102: 0.70432 | AC102: 0.74403 | AD102: 0.24281 | AE102: 0.2212 | AF102: 0.24579 | AG102: 0.26178
A103: 7.75 | B103: 0.72152 | C103: 0.70583 | D103: 0.72221 | E103: 0.73625 | F103: 0.36035 | G103: 0.35051 | H103: 0.36075 | I103: 0.3697 | J103: 0.3251 | K103: 0.31201 | L103: 0.32522 | M103: 0.33814 | N103: 0.46538 | O103: 0.40578 | P103: 0.47383 | Q103: 0.51027 | R103: 0.29146 | S103: 0.27442 | T103: 0.29275 | U103: 0.30904 | V103: 0.29417 | W103: 0.27868 | X103: 0.29466 | Y103: 0.30949 | Z103: 0.6958 | AA103: 0.63688 | AB103: 0.70408 | AC103: 0.74722 | AD103: 0.24298 | AE103: 0.22184 | AF103: 0.24622 | AG103: 0.26275
A104: 7.83333 | B104: 0.7216 | C104: 0.70508 | D104: 0.72195 | E104: 0.7376 | F104: 0.3604 | G104: 0.35002 | H104: 0.36056 | I104: 0.37061 | J104: 0.32515 | K104: 0.3116 | L104: 0.32525 | M104: 0.33956 | N104: 0.46541 | O104: 0.40172 | P104: 0.47612 | Q104: 0.51139 | R104: 0.29136 | S104: 0.27248 | T104: 0.29279 | U104: 0.31062 | V104: 0.29429 | W104: 0.27729 | X104: 0.29469 | Y104: 0.31101 | Z104: 0.69572 | AA104: 0.6349 | AB104: 0.7067 | AC104: 0.74984 | AD104: 0.24316 | AE104: 0.22047 | AF104: 0.24699 | AG104: 0.26298
A105: 7.91667 | B105: 0.72168 | C105: 0.70422 | D105: 0.72204 | E105: 0.7392 | F105: 0.36045 | G105: 0.34951 | H105: 0.36059 | I105: 0.37154 | J105: 0.3252 | K105: 0.31054 | L105: 0.32566 | M105: 0.34049 | N105: 0.46545 | O105: 0.39145 | P105: 0.47694 | Q105: 0.51526 | R105: 0.29127 | S105: 0.27073 | T105: 0.29309 | U105: 0.31141 | V105: 0.2944 | W105: 0.27538 | X105: 0.29477 | Y105: 0.31194 | Z105: 0.69564 | AA105: 0.63094 | AB105: 0.70712 | AC105: 0.75176 | AD105: 0.24334 | AE105: 0.21776 | AF105: 0.24759 | AG105: 0.26443
A106: 8 | B106: 0.72176 | C106: 0.70223 | D106: 0.72239 | E106: 0.73965 | F106: 0.3605 | G106: 0.34822 | H106: 0.36075 | I106: 0.37188 | J106: 0.32525 | K106: 0.30898 | L106: 0.32585 | M106: 0.34119 | N106: 0.46548 | O106: 0.38913 | P106: 0.4785 | Q106: 0.51949 | R106: 0.29117 | S106: 0.26767 | T106: 0.29295 | U106: 0.31191 | V106: 0.29452 | W106: 0.27354 | X106: 0.29555 | Y106: 0.31314 | Z106: 0.69556 | AA106: 0.62597 | AB106: 0.70783 | AC106: 0.75844 | AD106: 0.24352 | AE106: 0.21491 | AF106: 0.24768 | AG106: 0.26624
A107: 8.08333 | B107: 0.72181 | C107: 0.70405 | D107: 0.72245 | E107: 0.73897 | F107: 0.36053 | G107: 0.34939 | H107: 0.36082 | I107: 0.37136 | J107: 0.32527 | K107: 0.31042 | L107: 0.32557 | M107: 0.34005 | N107: 0.46576 | O107: 0.39664 | P107: 0.47678 | Q107: 0.51468 | R107: 0.2913 | S107: 0.27009 | T107: 0.29335 | U107: 0.31133 | V107: 0.29453 | W107: 0.27503 | X107: 0.29585 | Y107: 0.31189 | Z107: 0.69551 | AA107: 0.63192 | AB107: 0.70833 | AC107: 0.75187 | AD107: 0.24342 | AE107: 0.2164 | AF107: 0.24719 | AG107: 0.26368
A108: 8.16667 | B108: 0.72186 | C108: 0.70543 | D108: 0.72279 | E108: 0.73797 | F108: 0.36056 | G108: 0.35025 | H108: 0.36113 | I108: 0.37078 | J108: 0.32529 | K108: 0.312 | L108: 0.32551 | M108: 0.33862 | N108: 0.46603 | O108: 0.40241 | P108: 0.47645 | Q108: 0.51164 | R108: 0.29144 | S108: 0.27177 | T108: 0.2931 | U108: 0.31023 | V108: 0.29455 | W108: 0.27675 | X108: 0.29602 | Y108: 0.31078 | Z108: 0.69546 | AA108: 0.63586 | AB108: 0.70703 | AC108: 0.74774 | AD108: 0.24332 | AE108: 0.21733 | AF108: 0.2474 | AG108: 0.26258
A109: 8.25 | B109: 0.72191 | C109: 0.70702 | D109: 0.72283 | E109: 0.73626 | F109: 0.36059 | G109: 0.35125 | H109: 0.36113 | I109: 0.36974 | J109: 0.32531 | K109: 0.31288 | L109: 0.32551 | M109: 0.33741 | N109: 0.4663 | O109: 0.40618 | P109: 0.47607 | Q109: 0.50957 | R109: 0.29158 | S109: 0.27298 | T109: 0.29303 | U109: 0.30861 | V109: 0.29456 | W109: 0.27746 | X109: 0.29579 | Y109: 0.30943 | Z109: 0.69541 | AA109: 0.63805 | AB109: 0.70671 | AC109: 0.74478 | AD109: 0.24323 | AE109: 0.21956 | AF109: 0.24732 | AG109: 0.26194
A110: 8.33333 | B110: 0.72196 | C110: 0.70813 | D110: 0.72293 | E110: 0.73567 | F110: 0.36063 | G110: 0.35198 | H110: 0.36114 | I110: 0.36925 | J110: 0.32533 | K110: 0.31375 | L110: 0.32565 | M110: 0.33626 | N110: 0.46658 | O110: 0.40958 | P110: 0.47544 | Q110: 0.50692 | R110: 0.29172 | S110: 0.27466 | T110: 0.29307 | U110: 0.30749 | V110: 0.29458 | W110: 0.2786 | X110: 0.29627 | Y110: 0.30899 | Z110: 0.69536 | AA110: 0.64296 | AB110: 0.70578 | AC110: 0.74276 | AD110: 0.24313 | AE110: 0.22071 | AF110: 0.24716 | AG110: 0.26145
A111: 8.41667 | B111: 0.72201 | C111: 0.70908 | D111: 0.72275 | E111: 0.7348 | F111: 0.36066 | G111: 0.35256 | H111: 0.36107 | I111: 0.36873 | J111: 0.32535 | K111: 0.31457 | L111: 0.32566 | M111: 0.33597 | N111: 0.46685 | O111: 0.41138 | P111: 0.47479 | Q111: 0.507 | R111: 0.29186 | S111: 0.27549 | T111: 0.29344 | U111: 0.30693 | V111: 0.29459 | W111: 0.27914 | X111: 0.29621 | Y111: 0.30881 | Z111: 0.6953 | AA111: 0.64069 | AB111: 0.70421 | AC111: 0.74165 | AD111: 0.24303 | AE111: 0.21895 | AF111: 0.24698 | AG111: 0.26147
A112: 8.5 | B112: 0.72206 | C112: 0.70879 | D112: 0.72292 | E112: 0.73385 | F112: 0.36069 | G112: 0.35229 | H112: 0.36117 | I112: 0.36815 | J112: 0.32537 | K112: 0.31513 | L112: 0.32556 | M112: 0.33579 | N112: 0.46712 | O112: 0.40998 | P112: 0.47551 | Q112: 0.50817 | R112: 0.29199 | S112: 0.27563 | T112: 0.29378 | U112: 0.30657 | V112: 0.29461 | W112: 0.27834 | X112: 0.29627 | Y112: 0.30843 | Z112: 0.69525 | AA112: 0.63792 | AB112: 0.70316 | AC112: 0.74295 | AD112: 0.24293 | AE112: 0.21749 | AF112: 0.24722 | AG112: 0.26183
A113: 8.58333 | B113: 0.72211 | C113: 0.70942 | D113: 0.72297 | E113: 0.73427 | F113: 0.36072 | G113: 0.35272 | H113: 0.36121 | I113: 0.3684 | J113: 0.32539 | K113: 0.31542 | L113: 0.32555 | M113: 0.33538 | N113: 0.4674 | O113: 0.41166 | P113: 0.47625 | Q113: 0.51003 | R113: 0.29213 | S113: 0.27524 | T113: 0.29407 | U113: 0.30678 | V113: 0.29463 | W113: 0.27803 | X113: 0.29675 | Y113: 0.30827 | Z113: 0.6952 | AA113: 0.63515 | AB113: 0.7021 | AC113: 0.74422 | AD113: 0.24283 | AE113: 0.21696 | AF113: 0.24717 | AG113: 0.26273
A114: 8.66667 | B114: 0.72216 | C114: 0.70875 | D114: 0.72276 | E114: 0.73495 | F114: 0.36075 | G114: 0.35235 | H114: 0.3611 | I114: 0.36892 | J114: 0.32542 | K114: 0.31503 | L114: 0.32563 | M114: 0.336 | N114: 0.46767 | O114: 0.4168 | P114: 0.47741 | Q114: 0.50962 | R114: 0.29227 | S114: 0.27527 | T114: 0.29398 | U114: 0.30772 | V114: 0.29464 | W114: 0.27702 | X114: 0.29688 | Y114: 0.30858 | Z114: 0.69515 | AA114: 0.63918 | AB114: 0.70297 | AC114: 0.74482 | AD114: 0.24274 | AE114: 0.21622 | AF114: 0.24734 | AG114: 0.26324
A115: 8.75 | B115: 0.72221 | C115: 0.70796 | D115: 0.72309 | E115: 0.73541 | F115: 0.36078 | G115: 0.35182 | H115: 0.3613 | I115: 0.36913 | J115: 0.32544 | K115: 0.31447 | L115: 0.32567 | M115: 0.33646 | N115: 0.46794 | O115: 0.41646 | P115: 0.47758 | Q115: 0.51079 | R115: 0.29241 | S115: 0.27377 | T115: 0.29483 | U115: 0.30856 | V115: 0.29466 | W115: 0.2761 | X115: 0.29654 | Y115: 0.31 | Z115: 0.6951 | AA115: 0.63762 | AB115: 0.70409 | AC115: 0.74858 | AD115: 0.24264 | AE115: 0.21382 | AF115: 0.24735 | AG115: 0.264
A116: 8.83333 | B116: 0.72226 | C116: 0.70594 | D116: 0.72283 | E116: 0.73702 | F116: 0.36081 | G116: 0.35063 | H116: 0.36108 | I116: 0.37019 | J116: 0.32546 | K116: 0.31344 | L116: 0.32593 | M116: 0.33763 | N116: 0.46822 | O116: 0.41163 | P116: 0.47852 | Q116: 0.51187 | R116: 0.29254 | S116: 0.27276 | T116: 0.29498 | U116: 0.31027 | V116: 0.29467 | W116: 0.27458 | X116: 0.29693 | Y116: 0.31125 | Z116: 0.69505 | AA116: 0.6383 | AB116: 0.70434 | AC116: 0.75083 | AD116: 0.24254 | AE116: 0.21064 | AF116: 0.24784 | AG116: 0.26465
A117: 8.91667 | B117: 0.7223 | C117: 0.70437 | D117: 0.72254 | E117: 0.73799 | F117: 0.36084 | G117: 0.34964 | H117: 0.3609 | I117: 0.37085 | J117: 0.32548 | K117: 0.31178 | L117: 0.32618 | M117: 0.33845 | N117: 0.46849 | O117: 0.40647 | P117: 0.47955 | Q117: 0.51505 | R117: 0.29268 | S117: 0.2715 | T117: 0.29533 | U117: 0.31216 | V117: 0.29469 | W117: 0.27403 | X117: 0.2973 | Y117: 0.31294 | Z117: 0.695 | AA117: 0.63526 | AB117: 0.70584 | AC117: 0.75355 | AD117: 0.24244 | AE117: 0.20801 | AF117: 0.24867 | AG117: 0.26612
A118: 9 | B118: 0.72235 | C118: 0.70283 | D118: 0.72277 | E118: 0.73996 | F118: 0.36087 | G118: 0.34857 | H118: 0.36108 | I118: 0.3721 | J118: 0.3255 | K118: 0.31115 | L118: 0.3263 | M118: 0.33892 | N118: 0.46876 | O118: 0.39727 | P118: 0.48062 | Q118: 0.52034 | R118: 0.29282 | S118: 0.26998 | T118: 0.29559 | U118: 0.31422 | V118: 0.2947 | W118: 0.27298 | X118: 0.2972 | Y118: 0.31437 | Z118: 0.69495 | AA118: 0.63016 | AB118: 0.70522 | AC118: 0.75973 | AD118: 0.24234 | AE118: 0.20372 | AF118: 0.24893 | AG118: 0.26823
A119: 9.08333 | B119: 0.72232 | C119: 0.70489 | D119: 0.72277 | E119: 0.73878 | F119: 0.36085 | G119: 0.34998 | H119: 0.36105 | I119: 0.3713 | J119: 0.3255 | K119: 0.31246 | L119: 0.32612 | M119: 0.33795 | N119: 0.46865 | O119: 0.40515 | P119: 0.47893 | Q119: 0.51566 | R119: 0.29285 | S119: 0.27196 | T119: 0.29558 | U119: 0.31265 | V119: 0.29465 | W119: 0.27521 | X119: 0.29697 | Y119: 0.31297 | Z119: 0.69488 | AA119: 0.63501 | AB119: 0.70531 | AC119: 0.75324 | AD119: 0.24234 | AE119: 0.20816 | AF119: 0.24862 | AG119: 0.26612
A120: 9.16667 | B120: 0.72228 | C120: 0.70686 | D120: 0.72258 | E120: 0.73768 | F120: 0.36082 | G120: 0.35109 | H120: 0.36094 | I120: 0.3707 | J120: 0.3255 | K120: 0.31317 | L120: 0.32586 | M120: 0.33783 | N120: 0.46853 | O120: 0.40945 | P120: 0.47728 | Q120: 0.51344 | R120: 0.29288 | S120: 0.27326 | T120: 0.2952 | U120: 0.31136 | V120: 0.29459 | W120: 0.27681 | X120: 0.29658 | Y120: 0.31119 | Z120: 0.6948 | AA120: 0.63509 | AB120: 0.70447 | AC120: 0.75 | AD120: 0.24233 | AE120: 0.21026 | AF120: 0.24756 | AG120: 0.26406
A121: 9.25 | B121: 0.72224 | C121: 0.70802 | D121: 0.72282 | E121: 0.73662 | F121: 0.3608 | G121: 0.35178 | H121: 0.36111 | I121: 0.36989 | J121: 0.3255 | K121: 0.31381 | L121: 0.32573 | M121: 0.33709 | N121: 0.46841 | O121: 0.41323 | P121: 0.4771 | Q121: 0.51147 | R121: 0.29291 | S121: 0.27355 | T121: 0.29506 | U121: 0.31008 | V121: 0.29453 | W121: 0.27754 | X121: 0.29651 | Y121: 0.30976 | Z121: 0.69473 | AA121: 0.6378 | AB121: 0.70417 | AC121: 0.7461 | AD121: 0.24233 | AE121: 0.21405 | AF121: 0.24702 | AG121: 0.26295
A122: 9.33333 | B122: 0.72221 | C122: 0.70856 | D122: 0.7226 | E122: 0.73596 | F122: 0.36078 | G122: 0.35218 | H122: 0.36097 | I122: 0.36955 | J122: 0.3255 | K122: 0.31468 | L122: 0.32563 | M122: 0.33656 | N122: 0.4683 | O122: 0.41204 | P122: 0.47707 | Q122: 0.51016 | R122: 0.29294 | S122: 0.27394 | T122: 0.29432 | U122: 0.3088 | V122: 0.29447 | W122: 0.27828 | X122: 0.2965 | Y122: 0.30898 | Z122: 0.69466 | AA122: 0.63797 | AB122: 0.70368 | AC122: 0.74288 | AD122: 0.24232 | AE122: 0.21427 | AF122: 0.24686 | AG122: 0.26259
A123: 9.41667 | B123: 0.72217 | C123: 0.70907 | D123: 0.72226 | E123: 0.73553 | F123: 0.36075 | G123: 0.35253 | H123: 0.36084 | I123: 0.36923 | J123: 0.3255 | K123: 0.31509 | L123: 0.32552 | M123: 0.33584 | N123: 0.46818 | O123: 0.41241 | P123: 0.47591 | Q123: 0.50975 | R123: 0.29297 | S123: 0.2742 | T123: 0.29416 | U123: 0.30915 | V123: 0.29441 | W123: 0.27928 | X123: 0.29589 | Y123: 0.30844 | Z123: 0.69458 | AA123: 0.63655 | AB123: 0.70298 | AC123: 0.74066 | AD123: 0.24232 | AE123: 0.21558 | AF123: 0.24633 | AG123: 0.26286
A124: 9.5 | B124: 0.72213 | C124: 0.70884 | D124: 0.72271 | E124: 0.73522 | F124: 0.36073 | G124: 0.35233 | H124: 0.36108 | I124: 0.36897 | J124: 0.3255 | K124: 0.31482 | L124: 0.32554 | M124: 0.33546 | N124: 0.46806 | O124: 0.41086 | P124: 0.47533 | Q124: 0.50943 | R124: 0.293 | S124: 0.27478 | T124: 0.29369 | U124: 0.30871 | V124: 0.29435 | W124: 0.27906 | X124: 0.29534 | Y124: 0.3082 | Z124: 0.69451 | AA124: 0.638 | AB124: 0.70111 | AC124: 0.73987 | AD124: 0.24231 | AE124: 0.21601 | AF124: 0.24635 | AG124: 0.26284
A125: 9.58333 | B125: 0.72209 | C125: 0.70842 | D125: 0.72246 | E125: 0.73517 | F125: 0.36071 | G125: 0.35211 | H125: 0.36086 | I125: 0.36898 | J125: 0.3255 | K125: 0.31454 | L125: 0.32568 | M125: 0.33617 | N125: 0.46795 | O125: 0.41508 | P125: 0.47482 | Q125: 0.50909 | R125: 0.29303 | S125: 0.27566 | T125: 0.29353 | U125: 0.30837 | V125: 0.2943 | W125: 0.27878 | X125: 0.29497 | Y125: 0.30902 | Z125: 0.69444 | AA125: 0.63777 | AB125: 0.70204 | AC125: 0.74067 | AD125: 0.24231 | AE125: 0.21631 | AF125: 0.24641 | AG125: 0.26265
A126: 9.66667 | B126: 0.72205 | C126: 0.70785 | D126: 0.7222 | E126: 0.73525 | F126: 0.36068 | G126: 0.35179 | H126: 0.36072 | I126: 0.36912 | J126: 0.3255 | K126: 0.31426 | L126: 0.32578 | M126: 0.3365 | N126: 0.46783 | O126: 0.41652 | P126: 0.47568 | Q126: 0.50954 | R126: 0.29306 | S126: 0.27543 | T126: 0.29374 | U126: 0.30944 | V126: 0.29424 | W126: 0.27846 | X126: 0.29495 | Y126: 0.30965 | Z126: 0.69437 | AA126: 0.6388 | AB126: 0.70199 | AC126: 0.74275 | AD126: 0.24231 | AE126: 0.21659 | AF126: 0.24641 | AG126: 0.26289
A127: 9.75 | B127: 0.72202 | C127: 0.70696 | D127: 0.72233 | E127: 0.73671 | F127: 0.36066 | G127: 0.35114 | H127: 0.36078 | I127: 0.37008 | J127: 0.3255 | K127: 0.31394 | L127: 0.32557 | M127: 0.33736 | N127: 0.46772 | O127: 0.41244 | P127: 0.47505 | Q127: 0.51106 | R127: 0.29308 | S127: 0.27426 | T127: 0.2937 | U127: 0.31089 | V127: 0.29418 | W127: 0.27699 | X127: 0.29489 | Y127: 0.31066 | Z127: 0.69429 | AA127: 0.6379 | AB127: 0.70261 | AC127: 0.74481 | AD127: 0.2423 | AE127: 0.21563 | AF127: 0.24644 | AG127: 0.26321
A128: 9.83333 | B128: 0.72198 | C128: 0.70545 | D128: 0.72219 | E128: 0.73793 | F128: 0.36064 | G128: 0.35024 | H128: 0.36071 | I128: 0.3708 | J128: 0.3255 | K128: 0.31336 | L128: 0.32542 | M128: 0.33836 | N128: 0.4676 | O128: 0.40956 | P128: 0.47671 | Q128: 0.51507 | R128: 0.29311 | S128: 0.27359 | T128: 0.29334 | U128: 0.31179 | V128: 0.29412 | W128: 0.27626 | X128: 0.29521 | Y128: 0.31174 | Z128: 0.69422 | AA128: 0.63686 | AB128: 0.70292 | AC128: 0.7479 | AD128: 0.2423 | AE128: 0.21283 | AF128: 0.2471 | AG128: 0.26404
A129: 9.91667 | B129: 0.72194 | C129: 0.70385 | D129: 0.72201 | E129: 0.73934 | F129: 0.36061 | G129: 0.34924 | H129: 0.36057 | I129: 0.37169 | J129: 0.3255 | K129: 0.3125 | L129: 0.3257 | M129: 0.3397 | N129: 0.46749 | O129: 0.4044 | P129: 0.47815 | Q129: 0.51872 | R129: 0.29314 | S129: 0.27364 | T129: 0.29368 | U129: 0.31322 | V129: 0.29406 | W129: 0.27409 | X129: 0.29563 | Y129: 0.31313 | Z129: 0.69415 | AA129: 0.6337 | AB129: 0.70433 | AC129: 0.75278 | AD129: 0.24229 | AE129: 0.21016 | AF129: 0.24803 | AG129: 0.26512
A130: 10 | B130: 0.7219 | C130: 0.70264 | D130: 0.72164 | E130: 0.74087 | F130: 0.36059 | G130: 0.34848 | H130: 0.36035 | I130: 0.37271 | J130: 0.3255 | K130: 0.31145 | L130: 0.32568 | M130: 0.34066 | N130: 0.46737 | O130: 0.39843 | P130: 0.47875 | Q130: 0.52135 | R130: 0.29317 | S130: 0.27195 | T130: 0.29375 | U130: 0.31478 | V130: 0.294 | W130: 0.27188 | X130: 0.29557 | Y130: 0.31442 | Z130: 0.69408 | AA130: 0.62966 | AB130: 0.70484 | AC130: 0.75454 | AD130: 0.24229 | AE130: 0.20928 | AF130: 0.24925 | AG130: 0.2672
A131: 10.0833 | B131: 0.72186 | C131: 0.70405 | D131: 0.72187 | E131: 0.73907 | F131: 0.36056 | G131: 0.34937 | H131: 0.36048 | I131: 0.3715 | J131: 0.32543 | K131: 0.31275 | L131: 0.32548 | M131: 0.33921 | N131: 0.46698 | O131: 0.40412 | P131: 0.47724 | Q131: 0.51601 | R131: 0.29315 | S131: 0.27365 | T131: 0.29365 | U131: 0.31337 | V131: 0.29398 | W131: 0.27385 | X131: 0.29532 | Y131: 0.31273 | Z131: 0.69397 | AA131: 0.63326 | AB131: 0.70554 | AC131: 0.75112 | AD131: 0.24237 | AE131: 0.21095 | AF131: 0.24841 | AG131: 0.2654
A132: 10.1667 | B132: 0.72182 | C132: 0.70524 | D132: 0.72175 | E132: 0.7378 | F132: 0.36054 | G132: 0.35011 | H132: 0.36045 | I132: 0.37074 | J132: 0.32537 | K132: 0.31381 | L132: 0.32491 | M132: 0.33866 | N132: 0.46658 | O132: 0.40907 | P132: 0.47592 | Q132: 0.5119 | R132: 0.29314 | S132: 0.27326 | T132: 0.29347 | U132: 0.31201 | V132: 0.29395 | W132: 0.27575 | X132: 0.2953 | Y132: 0.31054 | Z132: 0.69386 | AA132: 0.63549 | AB132: 0.70599 | AC132: 0.74767 | AD132: 0.24245 | AE132: 0.21277 | AF132: 0.24801 | AG132: 0.26395
A133: 10.25 | B133: 0.72178 | C133: 0.70611 | D133: 0.72199 | E133: 0.73684 | F133: 0.36051 | G133: 0.3507 | H133: 0.36062 | I133: 0.37008 | J133: 0.3253 | K133: 0.31422 | L133: 0.32501 | M133: 0.3379 | N133: 0.46619 | O133: 0.41285 | P133: 0.47389 | Q133: 0.50922 | R133: 0.29312 | S133: 0.27539 | T133: 0.2932 | U133: 0.31055 | V133: 0.29392 | W133: 0.27626 | X133: 0.29512 | Y133: 0.30942 | Z133: 0.69376 | AA133: 0.63427 | AB133: 0.7059 | AC133: 0.74422 | AD133: 0.24253 | AE133: 0.21474 | AF133: 0.24744 | AG133: 0.26271
A134: 10.3333 | B134: 0.72173 | C134: 0.70753 | D134: 0.72231 | E134: 0.73545 | F134: 0.36048 | G134: 0.35158 | H134: 0.36077 | I134: 0.36922 | J134: 0.32523 | K134: 0.31487 | L134: 0.32475 | M134: 0.33675 | N134: 0.46579 | O134: 0.41034 | P134: 0.4741 | Q134: 0.50745 | R134: 0.2931 | S134: 0.27612 | T134: 0.29346 | U134: 0.30952 | V134: 0.29389 | W134: 0.27743 | X134: 0.29502 | Y134: 0.30845 | Z134: 0.69365 | AA134: 0.63524 | AB134: 0.7049 | AC134: 0.74109 | AD134: 0.24261 | AE134: 0.21379 | AF134: 0.2478 | AG134: 0.26222
A135: 10.4167 | B135: 0.72169 | C135: 0.70818 | D135: 0.72201 | E135: 0.73544 | F135: 0.36045 | G135: 0.35197 | H135: 0.36056 | I135: 0.36917 | J135: 0.32516 | K135: 0.3152 | L135: 0.32491 | M135: 0.33633 | N135: 0.4654 | O135: 0.40787 | P135: 0.47554 | Q135: 0.50649 | R135: 0.29308 | S135: 0.27584 | T135: 0.29368 | U135: 0.30898 | V135: 0.29386 | W135: 0.2779 | X135: 0.29577 | Y135: 0.30777 | Z135: 0.69354 | AA135: 0.63263 | AB135: 0.70318 | AC135: 0.73898 | AD135: 0.24269 | AE135: 0.21575 | AF135: 0.24755 | AG135: 0.26192
A136: 10.5 | B136: 0.72165 | C136: 0.70862 | D136: 0.7216 | E136: 0.73466 | F136: 0.36043 | G136: 0.35229 | H136: 0.36039 | I136: 0.36871 | J136: 0.32509 | K136: 0.31474 | L136: 0.32485 | M136: 0.33538 | N136: 0.465 | O136: 0.4073 | P136: 0.47557 | Q136: 0.50511 | R136: 0.29306 | S136: 0.27586 | T136: 0.29439 | U136: 0.30864 | V136: 0.29384 | W136: 0.27806 | X136: 0.29536 | Y136: 0.30784 | Z136: 0.69344 | AA136: 0.6337 | AB136: 0.70324 | AC136: 0.73858 | AD136: 0.24277 | AE136: 0.21518 | AF136: 0.2468 | AG136: 0.2616
A137: 10.5833 | B137: 0.72161 | C137: 0.70875 | D137: 0.72155 | E137: 0.73516 | F137: 0.3604 | G137: 0.35233 | H137: 0.36037 | I137: 0.36906 | J137: 0.32503 | K137: 0.31388 | L137: 0.32484 | M137: 0.33509 | N137: 0.46461 | O137: 0.4019 | P137: 0.47562 | Q137: 0.50429 | R137: 0.29305 | S137: 0.27426 | T137: 0.2948 | U137: 0.30805 | V137: 0.2938 | W137: 0.27727 | X137: 0.29551 | Y137: 0.30742 | Z137: 0.69333 | AA137: 0.63207 | AB137: 0.70259 | AC137: 0.73947 | AD137: 0.24285 | AE137: 0.21683 | AF137: 0.24669 | AG137: 0.26157
A138: 10.6667 | B138: 0.72156 | C138: 0.70843 | D138: 0.72153 | E138: 0.73536 | F138: 0.36037 | G138: 0.35209 | H138: 0.36027 | I138: 0.36908 | J138: 0.32496 | K138: 0.31336 | L138: 0.32494 | M138: 0.33564 | N138: 0.46421 | O138: 0.39577 | P138: 0.47558 | Q138: 0.50418 | R138: 0.29303 | S138: 0.27364 | T138: 0.29525 | U138: 0.30859 | V138: 0.29377 | W138: 0.27691 | X138: 0.29571 | Y138: 0.30788 | Z138: 0.69322 | AA138: 0.63525 | AB138: 0.70316 | AC138: 0.74221 | AD138: 0.24293 | AE138: 0.21753 | AF138: 0.24641 | AG138: 0.26238
A139: 10.75 | B139: 0.72152 | C139: 0.707 | D139: 0.72144 | E139: 0.73592 | F139: 0.36034 | G139: 0.35124 | H139: 0.36026 | I139: 0.36949 | J139: 0.32489 | K139: 0.31245 | L139: 0.32506 | M139: 0.3361 | N139: 0.46382 | O139: 0.39211 | P139: 0.47554 | Q139: 0.50566 | R139: 0.29301 | S139: 0.27372 | T139: 0.29578 | U139: 0.30926 | V139: 0.29375 | W139: 0.27586 | X139: 0.2957 | Y139: 0.30869 | Z139: 0.69311 | AA139: 0.63699 | AB139: 0.70476 | AC139: 0.74445 | AD139: 0.24301 | AE139: 0.21968 | AF139: 0.24683 | AG139: 0.26316
A140: 10.8333 | B140: 0.72148 | C140: 0.70554 | D140: 0.72139 | E140: 0.73759 | F140: 0.36032 | G140: 0.35027 | H140: 0.36024 | I140: 0.37054 | J140: 0.32482 | K140: 0.31194 | L140: 0.3249 | M140: 0.33719 | N140: 0.46342 | O140: 0.39045 | P140: 0.47681 | Q140: 0.50763 | R140: 0.29299 | S140: 0.27187 | T140: 0.29597 | U140: 0.30988 | V140: 0.29372 | W140: 0.27435 | X140: 0.2959 | Y140: 0.30975 | Z140: 0.69301 | AA140: 0.63681 | AB140: 0.70557 | AC140: 0.74662 | AD140: 0.24309 | AE140: 0.21701 | AF140: 0.24732 | AG140: 0.26441
A141: 10.9167 | B141: 0.72143 | C141: 0.70384 | D141: 0.72122 | E141: 0.73847 | F141: 0.36029 | G141: 0.34926 | H141: 0.36009 | I141: 0.37111 | J141: 0.32475 | K141: 0.31114 | L141: 0.32505 | M141: 0.33808 | N141: 0.46303 | O141: 0.38245 | P141: 0.4783 | Q141: 0.5113 | R141: 0.29297 | S141: 0.27046 | T141: 0.29638 | U141: 0.31115 | V141: 0.29369 | W141: 0.27254 | X141: 0.2957 | Y141: 0.31109 | Z141: 0.6929 | AA141: 0.63202 | AB141: 0.70663 | AC141: 0.74953 | AD141: 0.24317 | AE141: 0.21713 | AF141: 0.24781 | AG141: 0.26594
A142: 11 | B142: 0.72139 | C142: 0.70267 | D142: 0.7207 | E142: 0.73971 | F142: 0.36026 | G142: 0.34845 | H142: 0.35975 | I142: 0.37192 | J142: 0.32468 | K142: 0.30981 | L142: 0.32542 | M142: 0.33892 | N142: 0.46263 | O142: 0.37301 | P142: 0.47922 | Q142: 0.51515 | R142: 0.29295 | S142: 0.26885 | T142: 0.29614 | U142: 0.31276 | V142: 0.29366 | W142: 0.27095 | X142: 0.29579 | Y142: 0.31318 | Z142: 0.69279 | AA142: 0.62836 | AB142: 0.70607 | AC142: 0.75333 | AD142: 0.24325 | AE142: 0.21394 | AF142: 0.2488 | AG142: 0.26763
A143: 11.0833 | B143: 0.72143 | C143: 0.70421 | D143: 0.72118 | E143: 0.73828 | F143: 0.36029 | G143: 0.34944 | H143: 0.36 | I143: 0.37104 | J143: 0.32474 | K143: 0.31048 | L143: 0.32535 | M143: 0.33811 | N143: 0.46267 | O143: 0.37534 | P143: 0.47727 | Q143: 0.51171 | R143: 0.29299 | S143: 0.27154 | T143: 0.29647 | U143: 0.31112 | V143: 0.29367 | W143: 0.27333 | X143: 0.29572 | Y143: 0.31136 | Z143: 0.69294 | AA143: 0.63365 | AB143: 0.70671 | AC143: 0.74658 | AD143: 0.2433 | AE143: 0.21633 | AF143: 0.24806 | AG143: 0.26579
A144: 11.1667 | B144: 0.72147 | C144: 0.7051 | D144: 0.72123 | E144: 0.73724 | F144: 0.36031 | G144: 0.35 | H144: 0.36009 | I144: 0.37027 | J144: 0.32479 | K144: 0.31165 | L144: 0.32553 | M144: 0.33705 | N144: 0.4627 | O144: 0.38583 | P144: 0.47571 | Q144: 0.50762 | R144: 0.29301 | S144: 0.27208 | T144: 0.29591 | U144: 0.3099 | V144: 0.29368 | W144: 0.27435 | X144: 0.2955 | Y144: 0.30989 | Z144: 0.69308 | AA144: 0.63547 | AB144: 0.70439 | AC144: 0.74582 | AD144: 0.24335 | AE144: 0.21943 | AF144: 0.24714 | AG144: 0.26388
A145: 11.25 | B145: 0.72151 | C145: 0.70687 | D145: 0.72175 | E145: 0.73621 | F145: 0.36033 | G145: 0.3512 | H145: 0.36044 | I145: 0.36962 | J145: 0.32485 | K145: 0.31275 | L145: 0.32549 | M145: 0.336 | N145: 0.46274 | O145: 0.39113 | P145: 0.47522 | Q145: 0.50705 | R145: 0.29304 | S145: 0.27303 | T145: 0.29536 | U145: 0.3087 | V145: 0.2937 | W145: 0.27552 | X145: 0.29528 | Y145: 0.30928 | Z145: 0.69322 | AA145: 0.64072 | AB145: 0.70306 | AC145: 0.74416 | AD145: 0.24341 | AE145: 0.22159 | AF145: 0.24633 | AG145: 0.26317
A146: 11.3333 | B146: 0.72155 | C146: 0.70772 | D146: 0.72201 | E146: 0.7352 | F146: 0.36036 | G146: 0.35189 | H146: 0.36059 | I146: 0.36906 | J146: 0.3249 | K146: 0.31333 | L146: 0.3257 | M146: 0.33547 | N146: 0.46277 | O146: 0.39321 | P146: 0.47484 | Q146: 0.50542 | R146: 0.29308 | S146: 0.27438 | T146: 0.29497 | U146: 0.30791 | V146: 0.29371 | W146: 0.27656 | X146: 0.29516 | Y146: 0.30816 | Z146: 0.69336 | AA146: 0.63829 | AB146: 0.70197 | AC146: 0.74322 | AD146: 0.24346 | AE146: 0.22231 | AF146: 0.24603 | AG146: 0.26175
A147: 11.4167 | B147: 0.72159 | C147: 0.7084 | D147: 0.72179 | E147: 0.73398 | F147: 0.36038 | G147: 0.35222 | H147: 0.36049 | I147: 0.36824 | J147: 0.32496 | K147: 0.3138 | L147: 0.32567 | M147: 0.33553 | N147: 0.46281 | O147: 0.3998 | P147: 0.47378 | Q147: 0.50553 | R147: 0.29311 | S147: 0.27609 | T147: 0.29492 | U147: 0.30747 | V147: 0.29372 | W147: 0.27755 | X147: 0.29472 | Y147: 0.30763 | Z147: 0.69351 | AA147: 0.63633 | AB147: 0.70018 | AC147: 0.7419 | AD147: 0.24351 | AE147: 0.22268 | AF147: 0.24632 | AG147: 0.26123
A148: 11.5 | B148: 0.72163 | C148: 0.70894 | D148: 0.72169 | E148: 0.73358 | F148: 0.36041 | G148: 0.35248 | H148: 0.36046 | I148: 0.36795 | J148: 0.32501 | K148: 0.31444 | L148: 0.32568 | M148: 0.33512 | N148: 0.46284 | O148: 0.40347 | P148: 0.47398 | Q148: 0.50523 | R148: 0.29314 | S148: 0.27596 | T148: 0.29472 | U148: 0.30767 | V148: 0.29373 | W148: 0.27804 | X148: 0.29448 | Y148: 0.30706 | Z148: 0.69365 | AA148: 0.63226 | AB148: 0.70003 | AC148: 0.7425 | AD148: 0.24356 | AE148: 0.22103 | AF148: 0.24608 | AG148: 0.26155
A149: 11.5833 | B149: 0.72166 | C149: 0.70876 | D149: 0.7216 | E149: 0.73388 | F149: 0.36043 | G149: 0.35224 | H149: 0.36035 | I149: 0.36825 | J149: 0.32507 | K149: 0.31378 | L149: 0.32515 | M149: 0.33506 | N149: 0.46287 | O149: 0.3989 | P149: 0.47281 | Q149: 0.50473 | R149: 0.29317 | S149: 0.27618 | T149: 0.29493 | U149: 0.30823 | V149: 0.29374 | W149: 0.27767 | X149: 0.29479 | Y149: 0.30706 | Z149: 0.69379 | AA149: 0.63584 | AB149: 0.70215 | AC149: 0.7426 | AD149: 0.24361 | AE149: 0.22278 | AF149: 0.24648 | AG149: 0.26186
A150: 11.6667 | B150: 0.7217 | C150: 0.70822 | D150: 0.72144 | E150: 0.73469 | F150: 0.36045 | G150: 0.35196 | H150: 0.36027 | I150: 0.36869 | J150: 0.32512 | K150: 0.31354 | L150: 0.32531 | M150: 0.33556 | N150: 0.46291 | O150: 0.39026 | P150: 0.47206 | Q150: 0.50619 | R150: 0.2932 | S150: 0.2766 | T150: 0.29507 | U150: 0.30927 | V150: 0.29376 | W150: 0.27819 | X150: 0.29459 | Y150: 0.30792 | Z150: 0.69393 | AA150: 0.63606 | AB150: 0.70179 | AC150: 0.74384 | AD150: 0.24366 | AE150: 0.22243 | AF150: 0.24715 | AG150: 0.26247
A151: 11.75 | B151: 0.72174 | C151: 0.70752 | D151: 0.72157 | E151: 0.73607 | F151: 0.36048 | G151: 0.35157 | H151: 0.36035 | I151: 0.36956 | J151: 0.32518 | K151: 0.31304 | L151: 0.32554 | M151: 0.33629 | N151: 0.46294 | O151: 0.38269 | P151: 0.4729 | Q151: 0.50791 | R151: 0.29322 | S151: 0.27599 | T151: 0.29475 | U151: 0.30987 | V151: 0.29377 | W151: 0.27786 | X151: 0.29427 | Y151: 0.30885 | Z151: 0.69408 | AA151: 0.63253 | AB151: 0.703 | AC151: 0.74626 | AD151: 0.24371 | AE151: 0.22239 | AF151: 0.24768 | AG151: 0.26312
A152: 11.8333 | B152: 0.72178 | C152: 0.70655 | D152: 0.72186 | E152: 0.73725 | F152: 0.3605 | G152: 0.35097 | H152: 0.36043 | I152: 0.37029 | J152: 0.32523 | K152: 0.31292 | L152: 0.32593 | M152: 0.33743 | N152: 0.46298 | O152: 0.38065 | P152: 0.47563 | Q152: 0.51002 | R152: 0.29325 | S152: 0.27434 | T152: 0.29464 | U152: 0.31114 | V152: 0.29378 | W152: 0.27688 | X152: 0.29457 | Y152: 0.30945 | Z152: 0.69422 | AA152: 0.63173 | AB152: 0.70377 | AC152: 0.74994 | AD152: 0.24376 | AE152: 0.22085 | AF152: 0.24839 | AG152: 0.26313
A153: 11.9167 | B153: 0.72182 | C153: 0.705 | D153: 0.72219 | E153: 0.73946 | F153: 0.36053 | G153: 0.34995 | H153: 0.36064 | I153: 0.37177 | J153: 0.32529 | K153: 0.3122 | L153: 0.32563 | M153: 0.3385 | N153: 0.46301 | O153: 0.3718 | P153: 0.47707 | Q153: 0.51276 | R153: 0.29329 | S153: 0.27316 | T153: 0.29493 | U153: 0.31219 | V153: 0.29379 | W153: 0.27607 | X153: 0.29492 | Y153: 0.31102 | Z153: 0.69437 | AA153: 0.62721 | AB153: 0.70519 | AC153: 0.75248 | AD153: 0.24382 | AE153: 0.21904 | AF153: 0.24914 | AG153: 0.26441
A154: 12 | B154: 0.72186 | C154: 0.7032 | D154: 0.72222 | E154: 0.74128 | F154: 0.36055 | G154: 0.34886 | H154: 0.36064 | I154: 0.37294 | J154: 0.32534 | K154: 0.3111 | L154: 0.32567 | M154: 0.34021 | N154: 0.46305 | O154: 0.36427 | P154: 0.47839 | Q154: 0.51688 | R154: 0.29332 | S154: 0.27185 | T154: 0.29525 | U154: 0.31427 | V154: 0.2938 | W154: 0.27422 | X154: 0.29525 | Y154: 0.31342 | Z154: 0.69451 | AA154: 0.62376 | AB154: 0.70701 | AC154: 0.75897 | AD154: 0.24387 | AE154: 0.21576 | AF154: 0.24971 | AG154: 0.26669
A155: 12.0833 | B155: 0.7219 | C155: 0.70444 | D155: 0.72216 | E155: 0.73983 | F155: 0.36058 | G155: 0.34964 | H155: 0.36064 | I155: 0.37197 | J155: 0.32537 | K155: 0.31273 | L155: 0.32567 | M155: 0.33944 | N155: 0.46312 | O155: 0.37304 | P155: 0.47692 | Q155: 0.51352 | R155: 0.29317 | S155: 0.27384 | T155: 0.29435 | U155: 0.31298 | V155: 0.29385 | W155: 0.27601 | X155: 0.29532 | Y155: 0.31101 | Z155: 0.6944 | AA155: 0.63209 | AB155: 0.70506 | AC155: 0.7543 | AD155: 0.24382 | AE155: 0.21821 | AF155: 0.24896 | AG155: 0.26468
A156: 12.1667 | B156: 0.72194 | C156: 0.70561 | D156: 0.72219 | E156: 0.7382 | F156: 0.3606 | G156: 0.35029 | H156: 0.36068 | I156: 0.37087 | J156: 0.3254 | K156: 0.31349 | L156: 0.32551 | M156: 0.33784 | N156: 0.4632 | O156: 0.3827 | P156: 0.47482 | Q156: 0.50964 | R156: 0.29303 | S156: 0.27471 | T156: 0.29463 | U156: 0.31152 | V156: 0.2939 | W156: 0.27726 | X156: 0.29566 | Y156: 0.30974 | Z156: 0.6943 | AA156: 0.6369 | AB156: 0.70345 | AC156: 0.7504 | AD156: 0.24378 | AE156: 0.22039 | AF156: 0.24779 | AG156: 0.2635
A157: 12.25 | B157: 0.72198 | C157: 0.70704 | D157: 0.72236 | E157: 0.73655 | F157: 0.36063 | G157: 0.35136 | H157: 0.36083 | I157: 0.36996 | J157: 0.32543 | K157: 0.31361 | L157: 0.32542 | M157: 0.33734 | N157: 0.46327 | O157: 0.38974 | P157: 0.47412 | Q157: 0.50803 | R157: 0.29288 | S157: 0.27553 | T157: 0.29454 | U157: 0.30965 | V157: 0.29395 | W157: 0.27788 | X157: 0.29592 | Y157: 0.30828 | Z157: 0.69419 | AA157: 0.63799 | AB157: 0.70302 | AC157: 0.74709 | AD157: 0.24373 | AE157: 0.2211 | AF157: 0.24718 | AG157: 0.26267
A158: 12.3333 | B158: 0.72201 | C158: 0.7079 | D158: 0.72198 | E158: 0.73573 | F158: 0.36065 | G158: 0.35173 | H158: 0.36061 | I158: 0.36932 | J158: 0.32546 | K158: 0.31387 | L158: 0.32547 | M158: 0.33655 | N158: 0.46334 | O158: 0.38519 | P158: 0.47356 | Q158: 0.50798 | R158: 0.29274 | S158: 0.27641 | T158: 0.29426 | U158: 0.30823 | V158: 0.294 | W158: 0.27756 | X158: 0.29583 | Y158: 0.30756 | Z158: 0.69408 | AA158: 0.63534 | AB158: 0.70201 | AC158: 0.7454 | AD158: 0.24369 | AE158: 0.22115 | AF158: 0.24683 | AG158: 0.2622
A159: 12.4167 | B159: 0.72205 | C159: 0.70875 | D159: 0.72205 | E159: 0.73509 | F159: 0.36067 | G159: 0.35225 | H159: 0.36061 | I159: 0.36893 | J159: 0.32549 | K159: 0.31441 | L159: 0.32543 | M159: 0.33615 | N159: 0.46342 | O159: 0.39467 | P159: 0.47314 | Q159: 0.50782 | R159: 0.29259 | S159: 0.27574 | T159: 0.29429 | U159: 0.30784 | V159: 0.29405 | W159: 0.27812 | X159: 0.29569 | Y159: 0.30749 | Z159: 0.69397 | AA159: 0.62979 | AB159: 0.70259 | AC159: 0.74412 | AD159: 0.24364 | AE159: 0.21895 | AF159: 0.24709 | AG159: 0.26175
A160: 12.5 | B160: 0.72209 | C160: 0.70943 | D160: 0.72223 | E160: 0.73479 | F160: 0.3607 | G160: 0.35271 | H160: 0.36071 | I160: 0.36875 | J160: 0.32552 | K160: 0.31459 | L160: 0.32569 | M160: 0.33632 | N160: 0.46349 | O160: 0.40169 | P160: 0.47212 | Q160: 0.50839 | R160: 0.29244 | S160: 0.2757 | T160: 0.29432 | U160: 0.3076 | V160: 0.29409 | W160: 0.27881 | X160: 0.29544 | Y160: 0.30727 | Z160: 0.69387 | AA160: 0.63121 | AB160: 0.70463 | AC160: 0.74193 | AD160: 0.2436 | AE160: 0.21856 | AF160: 0.24733 | AG160: 0.26151
A161: 12.5833 | B161: 0.72213 | C161: 0.70913 | D161: 0.72269 | E161: 0.73465 | F161: 0.36072 | G161: 0.35248 | H161: 0.36108 | I161: 0.3687 | J161: 0.32555 | K161: 0.31485 | L161: 0.32572 | M161: 0.33636 | N161: 0.46357 | O161: 0.40336 | P161: 0.47234 | Q161: 0.50899 | R161: 0.2923 | S161: 0.27438 | T161: 0.29418 | U161: 0.30845 | V161: 0.29414 | W161: 0.27811 | X161: 0.2957 | Y161: 0.30827 | Z161: 0.69376 | AA161: 0.62968 | AB161: 0.70559 | AC161: 0.74261 | AD161: 0.24355 | AE161: 0.21908 | AF161: 0.24714 | AG161: 0.26097
A162: 12.6667 | B162: 0.72217 | C162: 0.70864 | D162: 0.72246 | E162: 0.73469 | F162: 0.36075 | G162: 0.35217 | H162: 0.36083 | I162: 0.36863 | J162: 0.32558 | K162: 0.3143 | L162: 0.32558 | M162: 0.33594 | N162: 0.46364 | O162: 0.40533 | P162: 0.4731 | Q162: 0.50972 | R162: 0.29215 | S162: 0.2738 | T162: 0.29446 | U162: 0.30922 | V162: 0.29418 | W162: 0.27707 | X162: 0.29581 | Y162: 0.30849 | Z162: 0.69365 | AA162: 0.63225 | AB162: 0.70449 | AC162: 0.74264 | AD162: 0.24351 | AE162: 0.21844 | AF162: 0.24653 | AG162: 0.26203
A163: 12.75 | B163: 0.72221 | C163: 0.70794 | D163: 0.72266 | E163: 0.73575 | F163: 0.36077 | G163: 0.35177 | H163: 0.36099 | I163: 0.36931 | J163: 0.32561 | K163: 0.3132 | L163: 0.32593 | M163: 0.33669 | N163: 0.46371 | O163: 0.4079 | P163: 0.47367 | Q163: 0.51098 | R163: 0.29201 | S163: 0.27227 | T163: 0.29462 | U163: 0.31013 | V163: 0.29423 | W163: 0.27678 | X163: 0.2957 | Y163: 0.30901 | Z163: 0.69354 | AA163: 0.63038 | AB163: 0.70495 | AC163: 0.74464 | AD163: 0.24346 | AE163: 0.218 | AF163: 0.2472 | AG163: 0.26261
A164: 12.8333 | B164: 0.72225 | C164: 0.70693 | D164: 0.72307 | E164: 0.73668 | F164: 0.36079 | G164: 0.35116 | H164: 0.36126 | I164: 0.36993 | J164: 0.32564 | K164: 0.31198 | L164: 0.32605 | M164: 0.33777 | N164: 0.46379 | O164: 0.405 | P164: 0.47467 | Q164: 0.51303 | R164: 0.29186 | S164: 0.26983 | T164: 0.29396 | U164: 0.31131 | V164: 0.29428 | W164: 0.27563 | X164: 0.29578 | Y164: 0.31011 | Z164: 0.69344 | AA164: 0.62194 | AB164: 0.70582 | AC164: 0.74627 | AD164: 0.24342 | AE164: 0.2198 | AF164: 0.24759 | AG164: 0.2642
A165: 12.9167 | B165: 0.72229 | C165: 0.7058 | D165: 0.72255 | E165: 0.73834 | F165: 0.36082 | G165: 0.35038 | H165: 0.36092 | I165: 0.37103 | J165: 0.32567 | K165: 0.3113 | L165: 0.32644 | M165: 0.33856 | N165: 0.46386 | O165: 0.40084 | P165: 0.4763 | Q165: 0.5153 | R165: 0.29172 | S165: 0.26803 | T165: 0.29441 | U165: 0.3129 | V165: 0.29433 | W165: 0.27464 | X165: 0.29602 | Y165: 0.31138 | Z165: 0.69333 | AA165: 0.61742 | AB165: 0.70629 | AC165: 0.74836 | AD165: 0.24338 | AE165: 0.21886 | AF165: 0.24786 | AG165: 0.26592
A166: 13 | B166: 0.72232 | C166: 0.70381 | D166: 0.7229 | E166: 0.73974 | F166: 0.36084 | G166: 0.3492 | H166: 0.36108 | I166: 0.37193 | J166: 0.3257 | K166: 0.31025 | L166: 0.32649 | M166: 0.33939 | N166: 0.46394 | O166: 0.39169 | P166: 0.47742 | Q166: 0.51843 | R166: 0.29157 | S166: 0.26602 | T166: 0.29464 | U166: 0.31487 | V166: 0.29437 | W166: 0.27321 | X166: 0.29574 | Y166: 0.31321 | Z166: 0.69322 | AA166: 0.61218 | AB166: 0.70778 | AC166: 0.75224 | AD166: 0.24333 | AE166: 0.21663 | AF166: 0.2485 | AG166: 0.26801
A167: 13.0833 | B167: 0.72234 | C167: 0.70548 | D167: 0.72262 | E167: 0.73838 | F167: 0.36085 | G167: 0.35023 | H167: 0.36094 | I167: 0.37099 | J167: 0.32574 | K167: 0.31124 | L167: 0.32636 | M167: 0.33802 | N167: 0.46377 | O167: 0.39162 | P167: 0.47585 | Q167: 0.51346 | R167: 0.29177 | S167: 0.26913 | T167: 0.29462 | U167: 0.31352 | V167: 0.29435 | W167: 0.27538 | X167: 0.29546 | Y167: 0.31137 | Z167: 0.69313 | AA167: 0.61878 | AB167: 0.70613 | AC167: 0.74718 | AD167: 0.24337 | AE167: 0.21675 | AF167: 0.24731 | AG167: 0.26564
A168: 13.1667 | B168: 0.72236 | C168: 0.70612 | D168: 0.72253 | E168: 0.73689 | F168: 0.36086 | G168: 0.35065 | H168: 0.36088 | I168: 0.3701 | J168: 0.32577 | K168: 0.31207 | L168: 0.32636 | M168: 0.33684 | N168: 0.46361 | O168: 0.39692 | P168: 0.47512 | Q168: 0.51127 | R168: 0.29196 | S168: 0.27126 | T168: 0.29446 | U168: 0.31234 | V168: 0.29432 | W168: 0.27742 | X168: 0.29517 | Y168: 0.31001 | Z168: 0.69304 | AA168: 0.62664 | AB168: 0.70415 | AC168: 0.74391 | AD168: 0.24341 | AE168: 0.21691 | AF168: 0.2466 | AG168: 0.2649
A169: 13.25 | B169: 0.72238 | C169: 0.70737 | D169: 0.72274 | E169: 0.73578 | F169: 0.36087 | G169: 0.35153 | H169: 0.36102 | I169: 0.36938 | J169: 0.3258 | K169: 0.31328 | L169: 0.3264 | M169: 0.33671 | N169: 0.46344 | O169: 0.4008 | P169: 0.47278 | Q169: 0.50972 | R169: 0.29215 | S169: 0.27311 | T169: 0.29478 | U169: 0.31028 | V169: 0.2943 | W169: 0.27847 | X169: 0.29542 | Y169: 0.30868 | Z169: 0.69295 | AA169: 0.63147 | AB169: 0.70371 | AC169: 0.7419 | AD169: 0.24346 | AE169: 0.2185 | AF169: 0.24627 | AG169: 0.26369
A170: 13.3333 | B170: 0.72239 | C170: 0.70918 | D170: 0.72281 | E170: 0.7349 | F170: 0.36088 | G170: 0.35253 | H170: 0.36107 | I170: 0.36884 | J170: 0.32584 | K170: 0.31447 | L170: 0.32643 | M170: 0.33571 | N170: 0.46328 | O170: 0.40385 | P170: 0.47062 | Q170: 0.50848 | R170: 0.29234 | S170: 0.27528 | T170: 0.2947 | U170: 0.30945 | V170: 0.29427 | W170: 0.27899 | X170: 0.29593 | Y170: 0.30784 | Z170: 0.69286 | AA170: 0.63016 | AB170: 0.70221 | AC170: 0.7399 | AD170: 0.2435 | AE170: 0.21985 | AF170: 0.24623 | AG170: 0.26312
A171: 13.4167 | B171: 0.72241 | C171: 0.70963 | D171: 0.72298 | E171: 0.73468 | F171: 0.36089 | G171: 0.35278 | H171: 0.3612 | I171: 0.36865 | J171: 0.32587 | K171: 0.31499 | L171: 0.32617 | M171: 0.33565 | N171: 0.46311 | O171: 0.40638 | P171: 0.46988 | Q171: 0.50723 | R171: 0.29253 | S171: 0.2753 | T171: 0.29439 | U171: 0.30879 | V171: 0.29425 | W171: 0.2796 | X171: 0.29567 | Y171: 0.30719 | Z171: 0.69277 | AA171: 0.62963 | AB171: 0.70104 | AC171: 0.73949 | AD171: 0.24354 | AE171: 0.21834 | AF171: 0.2465 | AG171: 0.26327
A172: 13.5 | B172: 0.72243 | C172: 0.70918 | D172: 0.72326 | E172: 0.7344 | F172: 0.3609 | G172: 0.35258 | H172: 0.36137 | I172: 0.36852 | J172: 0.3259 | K172: 0.31536 | L172: 0.32651 | M172: 0.3359 | N172: 0.46295 | O172: 0.40615 | P172: 0.46927 | Q172: 0.50611 | R172: 0.29273 | S172: 0.27625 | T172: 0.29441 | U172: 0.30856 | V172: 0.29422 | W172: 0.27977 | X172: 0.29586 | Y172: 0.30718 | Z172: 0.69268 | AA172: 0.62837 | AB172: 0.70123 | AC172: 0.74052 | AD172: 0.24358 | AE172: 0.21805 | AF172: 0.24677 | AG172: 0.26378
A173: 13.5833 | B173: 0.72244 | C173: 0.7094 | D173: 0.72321 | E173: 0.73469 | F173: 0.36091 | G173: 0.3527 | H173: 0.36136 | I173: 0.36865 | J173: 0.32593 | K173: 0.31481 | L173: 0.3265 | M173: 0.33648 | N173: 0.46278 | O173: 0.40287 | P173: 0.47076 | Q173: 0.50691 | R173: 0.29292 | S173: 0.27625 | T173: 0.29451 | U173: 0.30924 | V173: 0.2942 | W173: 0.27929 | X173: 0.29589 | Y173: 0.30775 | Z173: 0.69259 | AA173: 0.63074 | AB173: 0.70115 | AC173: 0.74103 | AD173: 0.24362 | AE173: 0.2197 | AF173: 0.24743 | AG173: 0.26383
A174: 13.6667 | B174: 0.72246 | C174: 0.709 | D174: 0.72332 | E174: 0.73519 | F174: 0.36092 | G174: 0.35246 | H174: 0.36149 | I174: 0.36908 | J174: 0.32597 | K174: 0.31461 | L174: 0.32636 | M174: 0.33671 | N174: 0.46262 | O174: 0.40485 | P174: 0.47176 | Q174: 0.50806 | R174: 0.29311 | S174: 0.27546 | T174: 0.29408 | U174: 0.30991 | V174: 0.29417 | W174: 0.27909 | X174: 0.29542 | Y174: 0.30781 | Z174: 0.6925 | AA174: 0.63307 | AB174: 0.70143 | AC174: 0.74141 | AD174: 0.24366 | AE174: 0.2199 | AF174: 0.24789 | AG174: 0.26386
A175: 13.75 | B175: 0.72248 | C175: 0.70852 | D175: 0.72294 | E175: 0.73622 | F175: 0.36093 | G175: 0.35212 | H175: 0.36118 | I175: 0.36962 | J175: 0.326 | K175: 0.31472 | L175: 0.32649 | M175: 0.33747 | N175: 0.46245 | O175: 0.40373 | P175: 0.47305 | Q175: 0.50922 | R175: 0.2933 | S175: 0.27588 | T175: 0.29419 | U175: 0.31099 | V175: 0.29415 | W175: 0.27894 | X175: 0.29575 | Y175: 0.30917 | Z175: 0.69241 | AA175: 0.63497 | AB175: 0.70203 | AC175: 0.74261 | AD175: 0.2437 | AE175: 0.2198 | AF175: 0.24828 | AG175: 0.26444
A176: 13.8333 | B176: 0.72249 | C176: 0.70732 | D176: 0.72278 | E176: 0.73677 | F176: 0.36094 | G176: 0.35143 | H176: 0.36112 | I176: 0.37002 | J176: 0.32603 | K176: 0.31472 | L176: 0.32679 | M176: 0.33857 | N176: 0.46229 | O176: 0.39715 | P176: 0.47326 | Q176: 0.51077 | R176: 0.29349 | S176: 0.27415 | T176: 0.29439 | U176: 0.31179 | V176: 0.29412 | W176: 0.27772 | X176: 0.29553 | Y176: 0.31044 | Z176: 0.69232 | AA176: 0.63177 | AB176: 0.70205 | AC176: 0.74526 | AD176: 0.24374 | AE176: 0.21881 | AF176: 0.24836 | AG176: 0.26494
A177: 13.9167 | B177: 0.72251 | C177: 0.70687 | D177: 0.72262 | E177: 0.73815 | F177: 0.36095 | G177: 0.35107 | H177: 0.36099 | I177: 0.37084 | J177: 0.32606 | K177: 0.31367 | L177: 0.32655 | M177: 0.33965 | N177: 0.46212 | O177: 0.39235 | P177: 0.47489 | Q177: 0.51465 | R177: 0.29369 | S177: 0.27294 | T177: 0.29422 | U177: 0.31365 | V177: 0.29409 | W177: 0.27606 | X177: 0.29549 | Y177: 0.31193 | Z177: 0.69223 | AA177: 0.62549 | AB177: 0.70385 | AC177: 0.74877 | AD177: 0.24378 | AE177: 0.21794 | AF177: 0.2486 | AG177: 0.2662
A178: 14 | B178: 0.72253 | C178: 0.70519 | D178: 0.72264 | E178: 0.73995 | F178: 0.36096 | G178: 0.35006 | H178: 0.36093 | I178: 0.37205 | J178: 0.3261 | K178: 0.3125 | L178: 0.32629 | M178: 0.34115 | N178: 0.46196 | O178: 0.38539 | P178: 0.47696 | Q178: 0.51818 | R178: 0.29388 | S178: 0.27126 | T178: 0.29509 | U178: 0.3156 | V178: 0.29407 | W178: 0.2742 | X178: 0.29569 | Y178: 0.31348 | Z178: 0.69214 | AA178: 0.61867 | AB178: 0.70557 | AC178: 0.75289 | AD178: 0.24383 | AE178: 0.21506 | AF178: 0.24908 | AG178: 0.26802
A179: 14.0833 | B179: 0.72244 | C179: 0.70666 | D179: 0.72274 | E179: 0.73827 | F179: 0.36091 | G179: 0.35093 | H179: 0.36103 | I179: 0.37097 | J179: 0.32604 | K179: 0.31323 | L179: 0.32608 | M179: 0.33927 | N179: 0.46201 | O179: 0.38546 | P179: 0.47548 | Q179: 0.51511 | R179: 0.2937 | S179: 0.27318 | T179: 0.29497 | U179: 0.31418 | V179: 0.2942 | W179: 0.27521 | X179: 0.29584 | Y179: 0.31196 | Z179: 0.69228 | AA179: 0.62288 | AB179: 0.70448 | AC179: 0.74958 | AD179: 0.24375 | AE179: 0.21764 | AF179: 0.24876 | AG179: 0.26704
A180: 14.1667 | B180: 0.72234 | C180: 0.70713 | D180: 0.72242 | E180: 0.7372 | F180: 0.36085 | G180: 0.35123 | H180: 0.3608 | I180: 0.37027 | J180: 0.32598 | K180: 0.31363 | L180: 0.32575 | M180: 0.33815 | N180: 0.46207 | O180: 0.38815 | P180: 0.47428 | Q180: 0.51284 | R180: 0.29352 | S180: 0.27441 | T180: 0.29474 | U180: 0.31302 | V180: 0.29432 | W180: 0.27744 | X180: 0.2961 | Y180: 0.31121 | Z180: 0.69242 | AA180: 0.62691 | AB180: 0.7038 | AC180: 0.74558 | AD180: 0.24366 | AE180: 0.21818 | AF180: 0.24789 | AG180: 0.26554
A181: 14.25 | B181: 0.72225 | C181: 0.70762 | D181: 0.72201 | E181: 0.73593 | F181: 0.3608 | G181: 0.35158 | H181: 0.36056 | I181: 0.36954 | J181: 0.32592 | K181: 0.31455 | L181: 0.32575 | M181: 0.33736 | N181: 0.46212 | O181: 0.38969 | P181: 0.47188 | Q181: 0.51013 | R181: 0.29333 | S181: 0.27513 | T181: 0.29448 | U181: 0.31089 | V181: 0.29445 | W181: 0.27859 | X181: 0.29601 | Y181: 0.31061 | Z181: 0.69256 | AA181: 0.62667 | AB181: 0.70375 | AC181: 0.74261 | AD181: 0.24358 | AE181: 0.22061 | AF181: 0.24717 | AG181: 0.26462
A182: 14.3333 | B182: 0.72216 | C182: 0.70792 | D182: 0.7217 | E182: 0.73539 | F182: 0.36074 | G182: 0.35174 | H182: 0.36044 | I182: 0.36912 | J182: 0.32586 | K182: 0.31466 | L182: 0.3258 | M182: 0.33718 | N182: 0.46217 | O182: 0.39192 | P182: 0.4726 | Q182: 0.50817 | R182: 0.29315 | S182: 0.27461 | T182: 0.29373 | U182: 0.30948 | V182: 0.29458 | W182: 0.27926 | X182: 0.29607 | Y182: 0.30961 | Z182: 0.6927 | AA182: 0.62661 | AB182: 0.70288 | AC182: 0.74054 | AD182: 0.2435 | AE182: 0.21997 | AF182: 0.2469 | AG182: 0.26343
A183: 14.4167 | B183: 0.72207 | C183: 0.70907 | D183: 0.72179 | E183: 0.73511 | F183: 0.36068 | G183: 0.35254 | H183: 0.36042 | I183: 0.36892 | J183: 0.3258 | K183: 0.31476 | L183: 0.32553 | M183: 0.33647 | N183: 0.46222 | O183: 0.39635 | P183: 0.47098 | Q183: 0.50776 | R183: 0.29297 | S183: 0.27467 | T183: 0.29332 | U183: 0.30896 | V183: 0.29471 | W183: 0.27907 | X183: 0.29573 | Y183: 0.3094 | Z183: 0.69284 | AA183: 0.63408 | AB183: 0.70242 | AC183: 0.73959 | AD183: 0.24342 | AE183: 0.21778 | AF183: 0.24688 | AG183: 0.2627
A184: 14.5 | B184: 0.72198 | C184: 0.70942 | D184: 0.72178 | E184: 0.73471 | F184: 0.36063 | G184: 0.35269 | H184: 0.36042 | I184: 0.36877 | J184: 0.32575 | K184: 0.31488 | L184: 0.3254 | M184: 0.33642 | N184: 0.46227 | O184: 0.40031 | P184: 0.47039 | Q184: 0.50572 | R184: 0.29279 | S184: 0.2755 | T184: 0.29335 | U184: 0.30908 | V184: 0.29483 | W184: 0.27949 | X184: 0.29555 | Y184: 0.30938 | Z184: 0.69298 | AA184: 0.63034 | AB184: 0.70239 | AC184: 0.74126 | AD184: 0.24333 | AE184: 0.21715 | AF184: 0.24701 | AG184: 0.26256
A185: 14.5833 | B185: 0.72189 | C185: 0.7092 | D185: 0.72176 | E185: 0.73493 | F185: 0.36057 | G185: 0.35261 | H185: 0.36046 | I185: 0.36883 | J185: 0.32569 | K185: 0.31491 | L185: 0.32516 | M185: 0.3369 | N185: 0.46233 | O185: 0.39853 | P185: 0.47035 | Q185: 0.50569 | R185: 0.29261 | S185: 0.27475 | T185: 0.29353 | U185: 0.30929 | V185: 0.29496 | W185: 0.2787 | X185: 0.29572 | Y185: 0.30943 | Z185: 0.69313 | AA185: 0.63119 | AB185: 0.70173 | AC185: 0.74291 | AD185: 0.24325 | AE185: 0.21701 | AF185: 0.24717 | AG185: 0.26298
A186: 14.6667 | B186: 0.7218 | C186: 0.70827 | D186: 0.72153 | E186: 0.73573 | F186: 0.36051 | G186: 0.35206 | H186: 0.36034 | I186: 0.3693 | J186: 0.32563 | K186: 0.31412 | L186: 0.32515 | M186: 0.33707 | N186: 0.46238 | O186: 0.39766 | P186: 0.47105 | Q186: 0.50739 | R186: 0.29243 | S186: 0.27342 | T186: 0.29383 | U186: 0.30972 | V186: 0.29508 | W186: 0.27907 | X186: 0.29627 | Y186: 0.30935 | Z186: 0.69327 | AA186: 0.63636 | AB186: 0.70373 | AC186: 0.74266 | AD186: 0.24317 | AE186: 0.21804 | AF186: 0.24666 | AG186: 0.26385
A187: 14.75 | B187: 0.72171 | C187: 0.70721 | D187: 0.72157 | E187: 0.73551 | F187: 0.36046 | G187: 0.35136 | H187: 0.36032 | I187: 0.36921 | J187: 0.32557 | K187: 0.31369 | L187: 0.32538 | M187: 0.33821 | N187: 0.46243 | O187: 0.40041 | P187: 0.47224 | Q187: 0.50802 | R187: 0.29225 | S187: 0.27185 | T187: 0.29384 | U187: 0.31019 | V187: 0.29521 | W187: 0.27817 | X187: 0.29655 | Y187: 0.30992 | Z187: 0.69341 | AA187: 0.6376 | AB187: 0.70599 | AC187: 0.74545 | AD187: 0.24308 | AE187: 0.21726 | AF187: 0.24719 | AG187: 0.26461
A188: 14.8333 | B188: 0.72162 | C188: 0.70569 | D188: 0.72164 | E188: 0.73658 | F188: 0.3604 | G188: 0.35037 | H188: 0.36027 | I188: 0.36991 | J188: 0.32551 | K188: 0.31295 | L188: 0.32531 | M188: 0.3386 | N188: 0.46248 | O188: 0.39656 | P188: 0.4735 | Q188: 0.51102 | R188: 0.29206 | S188: 0.26977 | T188: 0.29405 | U188: 0.3107 | V188: 0.29534 | W188: 0.27715 | X188: 0.29704 | Y188: 0.31118 | Z188: 0.69356 | AA188: 0.63421 | AB188: 0.70662 | AC188: 0.74802 | AD188: 0.243 | AE188: 0.21447 | AF188: 0.24768 | AG188: 0.26595
A189: 14.9167 | B189: 0.72153 | C189: 0.70381 | D189: 0.72133 | E189: 0.73833 | F189: 0.36034 | G189: 0.34923 | H189: 0.3601 | I189: 0.37108 | J189: 0.32545 | K189: 0.31196 | L189: 0.3255 | M189: 0.3395 | N189: 0.46254 | O189: 0.3877 | P189: 0.47519 | Q189: 0.51424 | R189: 0.29188 | S189: 0.26772 | T189: 0.2945 | U189: 0.31188 | V189: 0.29547 | W189: 0.27622 | X189: 0.29707 | Y189: 0.31176 | Z189: 0.6937 | AA189: 0.62631 | AB189: 0.70852 | AC189: 0.75185 | AD189: 0.24292 | AE189: 0.21203 | AF189: 0.248 | AG189: 0.26779
A190: 15 | B190: 0.72144 | C190: 0.70237 | D190: 0.72118 | E190: 0.73915 | F190: 0.36029 | G190: 0.34839 | H190: 0.36004 | I190: 0.37153 | J190: 0.32539 | K190: 0.31085 | L190: 0.32524 | M190: 0.34071 | N190: 0.46259 | O190: 0.38495 | P190: 0.47651 | Q190: 0.51565 | R190: 0.2917 | S190: 0.26571 | T190: 0.29443 | U190: 0.31351 | V190: 0.29559 | W190: 0.27498 | X190: 0.29752 | Y190: 0.3134 | Z190: 0.69385 | AA190: 0.61711 | AB190: 0.71063 | AC190: 0.75885 | AD190: 0.24284 | AE190: 0.20996 | AF190: 0.24837 | AG190: 0.26889
A191: 15.0833 | B191: 0.72144 | C191: 0.70396 | D191: 0.72149 | E191: 0.73801 | F191: 0.36029 | G191: 0.34932 | H191: 0.36025 | I191: 0.37083 | J191: 0.32535 | K191: 0.31155 | L191: 0.32527 | M191: 0.33932 | N191: 0.4627 | O191: 0.38951 | P191: 0.47511 | Q191: 0.51239 | R191: 0.29171 | S191: 0.26792 | T191: 0.29429 | U191: 0.31241 | V191: 0.29547 | W191: 0.2764 | X191: 0.29705 | Y191: 0.31167 | Z191: 0.69394 | AA191: 0.62419 | AB191: 0.71059 | AC191: 0.75249 | AD191: 0.24283 | AE191: 0.21187 | AF191: 0.24765 | AG191: 0.26714
A192: 15.1667 | B192: 0.72145 | C192: 0.70502 | D192: 0.72144 | E192: 0.73656 | F192: 0.36029 | G192: 0.34999 | H192: 0.36025 | I192: 0.36988 | J192: 0.3253 | K192: 0.31248 | L192: 0.32533 | M192: 0.33825 | N192: 0.46281 | O192: 0.39353 | P192: 0.47382 | Q192: 0.50961 | R192: 0.29172 | S192: 0.26819 | T192: 0.29412 | U192: 0.31098 | V192: 0.29534 | W192: 0.27814 | X192: 0.29708 | Y192: 0.31048 | Z192: 0.69404 | AA192: 0.63353 | AB192: 0.70789 | AC192: 0.74873 | AD192: 0.24281 | AE192: 0.21508 | AF192: 0.24677 | AG192: 0.26525
A193: 15.25 | B193: 0.72145 | C193: 0.70712 | D193: 0.72161 | E193: 0.73575 | F193: 0.3603 | G193: 0.35125 | H193: 0.36032 | I193: 0.36933 | J193: 0.32525 | K193: 0.31345 | L193: 0.32555 | M193: 0.33738 | N193: 0.46292 | O193: 0.39977 | P193: 0.47296 | Q193: 0.5083 | R193: 0.29173 | S193: 0.27064 | T193: 0.29466 | U193: 0.31019 | V193: 0.29522 | W193: 0.27914 | X193: 0.29707 | Y193: 0.30971 | Z193: 0.69414 | AA193: 0.63539 | AB193: 0.70698 | AC193: 0.74644 | AD193: 0.2428 | AE193: 0.21753 | AF193: 0.24653 | AG193: 0.26386
A194: 15.3333 | B194: 0.72145 | C194: 0.70788 | D194: 0.72181 | E194: 0.7354 | F194: 0.3603 | G194: 0.35172 | H194: 0.36045 | I194: 0.36921 | J194: 0.32521 | K194: 0.31445 | L194: 0.32554 | M194: 0.33643 | N194: 0.46303 | O194: 0.39899 | P194: 0.47227 | Q194: 0.50574 | R194: 0.29174 | S194: 0.2716 | T194: 0.2938 | U194: 0.3095 | V194: 0.29509 | W194: 0.28038 | X194: 0.29681 | Y194: 0.30905 | Z194: 0.69424 | AA194: 0.62862 | AB194: 0.70403 | AC194: 0.74402 | AD194: 0.24279 | AE194: 0.21673 | AF194: 0.24695 | AG194: 0.26277
A195: 15.4167 | B195: 0.72146 | C195: 0.70845 | D195: 0.72166 | E195: 0.73486 | F195: 0.3603 | G195: 0.35204 | H195: 0.3604 | I195: 0.36888 | J195: 0.32516 | K195: 0.31469 | L195: 0.32556 | M195: 0.33595 | N195: 0.46314 | O195: 0.40032 | P195: 0.47326 | Q195: 0.50408 | R195: 0.29175 | S195: 0.27174 | T195: 0.29404 | U195: 0.30889 | V195: 0.29496 | W195: 0.281 | X195: 0.2963 | Y195: 0.30866 | Z195: 0.69434 | AA195: 0.62234 | AB195: 0.70364 | AC195: 0.74305 | AD195: 0.24278 | AE195: 0.21445 | AF195: 0.24687 | AG195: 0.262
A196: 15.5 | B196: 0.72146 | C196: 0.70826 | D196: 0.72153 | E196: 0.73473 | F196: 0.3603 | G196: 0.35202 | H196: 0.36031 | I196: 0.3687 | J196: 0.32512 | K196: 0.31428 | L196: 0.32557 | M196: 0.3356 | N196: 0.46325 | O196: 0.40253 | P196: 0.47305 | Q196: 0.50381 | R196: 0.29175 | S196: 0.27264 | T196: 0.29414 | U196: 0.30843 | V196: 0.29484 | W196: 0.28074 | X196: 0.29636 | Y196: 0.30742 | Z196: 0.69444 | AA196: 0.62682 | AB196: 0.70387 | AC196: 0.74148 | AD196: 0.24277 | AE196: 0.21708 | AF196: 0.24651 | AG196: 0.26187
A197: 15.5833 | B197: 0.72146 | C197: 0.70834 | D197: 0.72133 | E197: 0.73482 | F197: 0.36031 | G197: 0.35206 | H197: 0.36021 | I197: 0.36872 | J197: 0.32507 | K197: 0.31446 | L197: 0.32545 | M197: 0.33544 | N197: 0.46336 | O197: 0.40023 | P197: 0.47197 | Q197: 0.50334 | R197: 0.29176 | S197: 0.27294 | T197: 0.29437 | U197: 0.30876 | V197: 0.29471 | W197: 0.27982 | X197: 0.29624 | Y197: 0.30731 | Z197: 0.69453 | AA197: 0.63418 | AB197: 0.70484 | AC197: 0.74144 | AD197: 0.24275 | AE197: 0.21571 | AF197: 0.24645 | AG197: 0.26225
A198: 15.6667 | B198: 0.72147 | C198: 0.70815 | D198: 0.72138 | E198: 0.73507 | F198: 0.36031 | G198: 0.35187 | H198: 0.36013 | I198: 0.36892 | J198: 0.32502 | K198: 0.31412 | L198: 0.32561 | M198: 0.33579 | N198: 0.46347 | O198: 0.40068 | P198: 0.47254 | Q198: 0.50398 | R198: 0.29177 | S198: 0.27251 | T198: 0.2945 | U198: 0.30879 | V198: 0.29458 | W198: 0.27932 | X198: 0.29656 | Y198: 0.30766 | Z198: 0.69463 | AA198: 0.63202 | AB198: 0.70654 | AC198: 0.74309 | AD198: 0.24274 | AE198: 0.2155 | AF198: 0.24631 | AG198: 0.26304
A199: 15.75 | B199: 0.72147 | C199: 0.7075 | D199: 0.72167 | E199: 0.73596 | F199: 0.36031 | G199: 0.35155 | H199: 0.36035 | I199: 0.36952 | J199: 0.32498 | K199: 0.31324 | L199: 0.32543 | M199: 0.33643 | N199: 0.46358 | O199: 0.40154 | P199: 0.47243 | Q199: 0.50619 | R199: 0.29178 | S199: 0.27139 | T199: 0.29464 | U199: 0.30949 | V199: 0.29446 | W199: 0.27859 | X199: 0.29663 | Y199: 0.30894 | Z199: 0.69473 | AA199: 0.62919 | AB199: 0.70468 | AC199: 0.74573 | AD199: 0.24273 | AE199: 0.21309 | AF199: 0.24644 | AG199: 0.26361
A200: 15.8333 | B200: 0.72147 | C200: 0.70637 | D200: 0.72116 | E200: 0.73659 | F200: 0.36031 | G200: 0.3508 | H200: 0.36005 | I200: 0.36989 | J200: 0.32493 | K200: 0.31203 | L200: 0.32533 | M200: 0.33754 | N200: 0.46369 | O200: 0.40081 | P200: 0.47307 | Q200: 0.50807 | R200: 0.29179 | S200: 0.26987 | T200: 0.29498 | U200: 0.31052 | V200: 0.29433 | W200: 0.27763 | X200: 0.29649 | Y200: 0.30992 | Z200: 0.69483 | AA200: 0.62659 | AB200: 0.70595 | AC200: 0.74839 | AD200: 0.24272 | AE200: 0.21202 | AF200: 0.24706 | AG200: 0.26445
... 2210 more rows
